{"text_format":"1","workbook":"xlsx","n_sheets":6,"sheets":["Latest Data Fine Aggregate","Latest Data Coarse Aggregate","Historical Data CoarseAggregate","Historical Data FineAggregate","CHEMSTONE","CHEMSAND"],"not_rendered":{"charts":0,"images":0,"macros":1,"external_links":0,"defined_names":2,"comments":0,"pivot_tables":0},"unopened":[],"bounds":{"document_bytes":16777216,"sheet_cells":100000,"rows_first":2000,"rows_last":500,"rows_between":2000,"halvings":0,"cell_chars":16384,"cell_head_chars":4096},"cells_cut":0,"cells_raw":0,"read":"whole","date_system":"1900"}

{"sheet":"Latest Data Fine Aggregate","index":0,"n_rows":286,"n_cols":15,"rows_kept":286,"cut":false,"hidden":false,"merged":[]}
["Producer Name","Facility Name","Sample Date","Material Description","Facility ID","Sample ID","Sampled By","Resistivity (Ohm*cm)","pH Units","Chlorides (ppm)","Sulfate (ppm)","Geosynthetic Spec","Steel Spec","SO4","Cl"]
["3rd Generation Ventures, LLC","Parkton Barrow Pit","2023-07-20","Sand, 2S - Chemistry Check","FA647","1112653","Gilliam, Christopher",80040,5.45,"<31","<7.70",{"$f":"IF(ISBLANK(I2),\"N/A\",IF(AND(4.5<=$I2,$I2<=9), \"MEETS\",\"DOES NOT MEET\"))","v":"MEETS"},{"$f":"IF(ISBLANK(I2), \"N/A\", IF(AND(5 <= $I2, $I2 <= 10),IF($H2>=3000,IF($O2<=100,IF($N2<=200,\"MEETS\",\"DOES NOT MEET\"),\"DOES NOT MEET\"),\"DOES NOT MEET\"),\"DOES NOT MEET\"))","v":"MEETS"},{"$f":"IF(LEFT(K2, 1)=\"<\", VALUE(RIGHT(K2,LEN(K2)-1)), K2)","v":7.7},{"$f":"IF(LEFT(J2, 1)=\"<\", VALUE(RIGHT(J2,LEN(J2)-1)), J2)","v":31}]
["3rd Generation Ventures, LLC","Parkton Barrow Pit","2023-07-20","Sand, 2S - Chemistry Check","FA647","1112656","Gilliam, Christopher",106720,5.62,"<31","<6.16","MEETS","MEETS",6.16,31]
["3rd Generation Ventures, LLC","Parkton Barrow Pit","2023-07-20","Sand, 2S - Chemistry Check","FA647","1112655","Gilliam, Christopher",226780,5.8,"<31","<5.87","MEETS","MEETS",5.87,31]
["American Materials Co.","Bailey Mine - Linden","2015-08-27","Sand, 2S - Chemistry Check","FA483","773447","Russell, Jonathan T",60350,5.4,0,0,"MEETS","MEETS",0,0]
["American Materials Co.","Bailey Mine - Linden","2023-03-10","Screenings - Chemistry Check","FA483","1099421","Dudley, Roy Glenn",55110,5.6,"<30","<9.392","MEETS","MEETS",9.3919999999999995,30]
["American Materials Co.","Black Creek Plant - Mt. Croghan, SC","2016-03-22","Sand, 2MS","FA422","798885","Jordan, Daniel H",127113,7.4,0,11.2,"MEETS","MEETS",11.2,0]
["American Materials Co.","Black Creek Plant - Mt. Croghan, SC","2019-06-12","Sand, 2MS - Chemistry Check","FA422","968053","Jordan, Daniel H",23730,7.54,"<30","<27.813","MEETS","MEETS"]
["American Materials Co.","Black Creek Plant - Mt. Croghan, SC","2016-03-04","Select Material, Class III, Type 3 - Chemistry Check","FA422","797150","Jordan, Daniel H",96618,5.5,0,5.0999999999999996,"MEETS","MEETS",{"$f":"IF(LEFT(K9, 1)=\"<\", VALUE(RIGHT(K9,LEN(K9)-1)), K9)","v":5.0999999999999996},{"$f":"IF(LEFT(J9, 1)=\"<\", VALUE(RIGHT(J9,LEN(J9)-1)), J9)","v":0}]
["American Materials Co.","Dupree Mine - Greenville","2021-06-04","Sand, 2S - Chemistry Check","FA478","1043510","Cobb, James R",34684,4.1500000000000004,"<33","<46.742","DOES NOT MEET","DOES NOT MEET",46.741999999999997,33]
["American Materials Co.","Ivanhoe Pit - Ivanhoe","2022-12-22","Screenings - Chemistry Check","FA253","1093308","Cahill, Luke R",83375,5.72,"<30","<32.42","MEETS","MEETS",32.42,30]
["American Materials Co.","Sumter County Pit - Sumter, SC","2019-06-25","Sand, 2S - Chemistry Check","FA607","969961","Jordan, Daniel H",79610,5.05,"<29","<8.29","MEETS","MEETS",8.2899999999999991,29]
["American Materials Co.","Wade Pit - Wade","2016-05-10","Sand, 2S - Chemistry Check","FA211","805958","Murphy, Billy J",91075,5.8,0,7.3,"MEETS","MEETS",7.3,0]
["APAC-Atlantic - Thompson-Arthur","Candor Pit","2019-08-12","Sand, 2S - Chemistry Check","FA60","977381","Jackson, Brandon M",68040,5.0999999999999996,"<29","<9.7002","MEETS","MEETS",9.7002000000000006,29]
["B.E. Singleton & Sons, Inc.","Talley-Whichard Pitt","2018-03-27","Sand, 2S - Chemistry Check","FA488","903394","Cobb, James R",2203,4,21.6,30.5,"DOES NOT MEET","DOES NOT MEET",30.5,21.6]
["Best Sand & Gravel, Inc.","Brooks Pit - Goldsboro","2016-04-07","Sand, 2S - Chemistry Check","FA340","801024","Raines, James R",16537,7.3,0,0,"MEETS","MEETS",0,0]
["Blue Water Industries","Midway Quarry - Mascot, TN","2017-02-20","Sand, 2MS - Chemistry Check","FA168","845874","Rhymer, Robert C",4405,9.4,8.9,37.4,"DOES NOT MEET","MEETS",37.4,8.9]
["Boone's Concrete Supply, LLC","Woodlawn Quarry - Marion","2019-09-23","Screenings - Chemistry Check","FA546","984076","Norton, Stephen S",12950,10,"<32","<50.965","DOES NOT MEET","MEETS",50.965000000000003,32]
["Boxley Materials Company","Blue Ridge Quarry - Blue Ridge, VA","2019-03-05","Sand, 2MS - Chemistry Check","FA362","953113","Westmoreland, Braxton J",4005,8.8000000000000007,"<30","<164.794","MEETS","MEETS",164.79400000000001,30]
["Boxley Materials Company","Fieldale Quarry - Martinsville, VA","2019-03-05","Sand, 2MS - Chemistry Check","FA373","953150","Westmoreland, Braxton J",6135,8,0,"<107.579","MEETS","MEETS",107.57899999999999,0]
["Carolina Sand","Burke County Pit","2016-12-14","Sand, 2S - Chemistry Check","FA334","839021","Ausley, Jeff A",35486,6.7,0,4.5999999999999996,"MEETS","MEETS",4.5999999999999996,0]
["Carolina Sunrock LLC","Butner Quarry - Butner","2019-03-25","Sand, 2MS - Chemistry Check","FA171","955937","Skinner, III, John L",6505,10.3,"<30","<101.46","DOES NOT MEET","DOES NOT MEET",101.46,30]
["Carolina Sunrock LLC","Kittrell Quarry - Kittrell","2019-02-01","Sand, 2MS - Chemistry Check","FA397","948023","Skinner, III, John L",6444,10.6,0,"<102.421","DOES NOT MEET","DOES NOT MEET",102.42100000000001,0]
["Carolina Sunrock LLC","Kittrell Quarry - Kittrell","2016-02-04","Screenings - Chemistry Check","CA304","792563","Skinner, III, John L",9872,7.9,5,67.7,"MEETS","MEETS",67.7,5]
["Carolina Sunrock LLC","Woodsdale Quarry - Roxboro","2019-01-11","Sand, 2MS - Chemistry Check","FA440","945252","Skinner, III, John L",13210,9.1,0,"<49.962","DOES NOT MEET","MEETS",49.962000000000003,0]
["Commercial Ready Mix Products, Inc.","Bent River Pit","2022-06-22","Sand, 2S - Chemistry Check","FA460","1076920","Thomas, Grady Q",153410,6.52,"<28","<10.39","MEETS","MEETS",10.39,28]
["Commercial Ready Mix Products, Inc.","Newsome Pit #2 - Pendleton","2022-06-22","Sand, 2S - Chemistry Check","FA317","1076913","Thomas, Grady Q",126730,5.89,"<28","<11.32","MEETS","MEETS",11.32,28]
["Covia Holdings Corporation","Marston Facility - Marston","2019-08-16","Screenings - Chemistry Check","FA617","978801","Jordan, Daniel H",91790,6.91,"<29","<7.1903","MEETS","MEETS",7.1902999999999997,29]
["Dawson Contracting Inc","Ashley Heights Sand","2016-02-03","Sand, 2S - Chemistry Check","FA494","792505","Jordan, Daniel H",90498,6.5,0,6.9,"MEETS","MEETS",6.9,0]
["Edge Aggregates Inc","Great Pit","2016-04-18","Sand, 2S - Chemistry Check","FA254","803141","Raines, James R",49727,5.0999999999999996,0,7.1,"MEETS","MEETS",7.1,0]
["Ernie Everett Site Prep., Inc.","Shepard Pit - Kinston","2021-06-14","Sand, 2S - Chemistry Check","FA605","1044555","Cobb, James R",173420,5.66,60,"<10.886","MEETS","MEETS",10.885999999999999,60]
["Ernie Everett Site Prep., Inc.","Shepard Pit - Kinston","2021-06-14","Sand, 2S - Chemistry Check","FA605","1044555","Cobb, James R",173420,5.66,60,"<10.886","MEETS","MEETS",10.885999999999999,60]
["Georgia Stone Products","Lynches River Quarry - Jefferson, SC","2016-02-11","Sand, 2MS - Chemistry Check","FA425","793639","Jordan, Daniel H",23154,7.3,0,9.1999999999999993,"MEETS","MEETS",9.1999999999999993,0]
["Georgia Stone Products","Lynches River Quarry - Jefferson, SC","2018-12-06","Screenings, Washed","FA425","942224","Jordan, Daniel H",21340,9.1,0,"<30.928","DOES NOT MEET","MEETS",30.928000000000001,0]
["GS Materials, Inc.","Blue Water Sand & Gravel - Mill Creek Pit","2016-04-15","Sand, 2S - Chemistry Check","FA489","803132","Raines, James R",46729,4.9000000000000004,0,8,"MEETS","DOES NOT MEET",8,0]
["GS Materials, Inc.","Emery Pit - Jackson Springs","2019-08-12","Sand, 2S - Chemistry Check","FA113","977380","Jackson, Brandon M",48450,4.88,"<29","<13.622","MEETS","DOES NOT MEET",13.622,29]
["GS Materials, Inc.","Hall Pit - Lemon Springs","2016-03-08","Sand, 2S - Chemistry Check","FA122","796684","Murphy, Billy J",117385,5.4,0,6.1,"MEETS","MEETS",6.1,0]
["Hanson Aggregates Southeast, Inc.","Brewer (Pageland #1) - Jefferson, SC","2019-06-12","Sand, 2MS - Chemistry Check","FA64","968057","Jordan, Daniel H",34930,6.41,"<30","<18.895","MEETS","MEETS",18.895,30]
["Hanson Aggregates Southeast, Inc.","Crabtree Quarry - Raleigh","2019-03-13","Screenings - Chemistry Check","FA568","954291","Skinner, III, John L",6379,8,0,"<103.464","MEETS","MEETS",103.464,0]
["Hanson Aggregates Southeast, Inc.","Holly Springs Quarry","2019-03-29","Screenings - Chemistry Check","FA513","956970","Skinner, III, John L",8079,8.8000000000000007,"<30","<81.693","MEETS","MEETS",81.692999999999998,30]
["Hanson Aggregates Southeast, Inc.","Jefferson Quarry - Jefferson, SC","2019-09-13","Screenings - Chemistry Check","FA587","982920","Jordan, Daniel H",16120,8.4700000000000006,"<32","<40.943","MEETS","MEETS",40.942999999999998,32]
["Hanson Aggregates Southeast, Inc.","Jefferson Quarry - Jefferson, SC","2018-12-07","Screenings, Washed","FA587","942236","Jordan, Daniel H",17700,9.1999999999999993,0,"<37.288","DOES NOT MEET","MEETS",37.287999999999997,0]
["Hanson Aggregates Southeast, Inc.","Marlboro S&G - Bennettsville","2020-11-04","Sand, 2S","FA10","1025750","Jordan, Daniel H",420210,5.65,"<30","<8.436","MEETS","MEETS",8.4359999999999999,30]
["Hanson Aggregates Southeast, Inc.","Marlboro S&G - Bennettsville","2019-06-19","Sand, 2S - Chemistry Check","FA10","968878","Jordan, Daniel H",142100,5.07,"<29","<4.645","MEETS","MEETS",4.6449999999999996,29]
["Hanson Aggregates Southeast, Inc.","Morehead City Sales Yard","2017-09-14","Screenings - Chemistry Check","FA570","876864","Bartlett, Jr., Charles T",5669,8.8000000000000007,0,86.2,"MEETS","MEETS",86.2,0]
["Hanson Aggregates Southeast, Inc.","Neverson Quarry - Sims","2016-03-15","Sand, 2MS - Chemistry Check","CA66","798235","Raines, James R",25867,7.9,0,4.5,"MEETS","MEETS"]
["Hanson Aggregates Southeast, Inc.","Princeton Quarry","2016-03-24","Screenings - Chemistry Check","CA64","799118","Raines, James R",6472,8.4,10,14.1,"MEETS","MEETS",{"$f":"IF(LEFT(K47, 1)=\"<\", VALUE(RIGHT(K47,LEN(K47)-1)), K47)","v":14.1},{"$f":"IF(LEFT(J47, 1)=\"<\", VALUE(RIGHT(J47,LEN(J47)-1)), J47)","v":10}]
["Hanson Aggregates Southeast, Inc.","Raleigh Quarry - Wake Forest","2016-02-12","Screenings - Chemistry Check","CA67","793722","Skinner, III, John L",17053,7.4,0,0,"MEETS","MEETS",0,0]
["Hanson Aggregates Southeast, Inc.","Raleigh Quarry - Wake Forest","2019-01-09","Screenings, Washed","FA515","944673","Skinner, III, John L",15740,9.3000000000000007,0,"<41.931","DOES NOT MEET","MEETS",41.930999999999997,0]
["Hanson Aggregates Southeast, Inc.","Rocky Mount Quarry (#2)","2016-04-14","Sand, 2MS - Chemistry Check","FA491","802199","Raines, James R",19135,8.4,0,38.799999999999997,"MEETS","MEETS",38.799999999999997,0]
["Hanson Aggregates Southeast, Inc.","Rougemont Quarry","2019-01-11","Sand, 2MS - Chemistry Check","FA464","945248","Skinner, III, John L",19060,9.4,0,"<34.627","DOES NOT MEET","MEETS",34.627000000000002,0]
["Hanson Aggregates Southeast, Inc.","Sandy Flats Quarry - Taylors, SC","2016-12-14","Sand, 2MS - Chemistry Check","FA438","839146","Wood, Dean Michael M",14616,7.8,0,5.6,"MEETS","MEETS",5.6,0]
["Harrison Construction Co., Inc.","Dillsboro Quarry - Dillsboro","2016-10-04","Screenings - Chemistry Check","FA573","828925","Kindley, Wallace Quint",1382,7.3,0,33.5,"MEETS","DOES NOT MEET",33.5,0]
["Harrison Construction Co., Inc.","Hayesville Quarry - Hayesville","2016-07-15","Screenings - Chemistry Check","FA542","816297","Ledford, Brandon S",2440,7.8,2.1,144.69999999999999,"MEETS","DOES NOT MEET",144.69999999999999,2.1]
["Harrison Construction Co., Inc.","Waynesville Quarry - Waynesville","2019-07-29","Screenings - Chemistry Check","FA564","974815","Kindley, Wallace Quint",2712,7.95,"<32","<243.363","MEETS","DOES NOT MEET",243.363,32]
["Hedrick Industries","Aquadale Quarry - Norwood","2017-03-21","Sand, 2MS","FA479","850263","Thomas, Mark D",2023,8,0,96.6,"MEETS","DOES NOT MEET",96.6,0]
["Hedrick Industries","B.V. Hedrick Gravel & Sand - Lilesville","2019-06-25","Sand, 2S - Chemistry Check","FA221","969726","Jordan, Daniel H",130300,5.84,"<29","<5.065","MEETS","MEETS",5.0650000000000004,29]
["Hedrick Industries","Grove Stone Quarry - Black Mountain","2016-04-08","Screenings - Chemistry Check","FA400","801536","Rhymer, Robert C",8157,7.5,0,38.799999999999997,"MEETS","MEETS",38.799999999999997,0]
["Hedrick Industries","Grove Stone Quarry - Black Mountain","2019-04-23","Screenings, Washed","FA400","960226","Rhymer, Robert C",10150,8.4,"<30","<65.025","MEETS","MEETS",65.025000000000006,30]
["Hedrick Industries","Grove Stone Quarry - Black Mountain","2016-12-12","Yearly Quality Check for Fine Aggregate (Strength, Soundness, etc.)","FA400","838364","Rhymer, Robert C",6575,7.3,0,22.2,"MEETS","MEETS",22.2,0]
["Hedrick Industries","Lake Norman Quarry","2019-07-12","Sand, 2MS - Chemistry Check","FA226","972394","Gosnell, Jimmy L",4117,8.24,"<29","<160.311","MEETS","MEETS",160.31100000000001,29]
["Hedrick Industries","Norman Sand Pit (D&J) - Candor, NC","2019-07-12","Sand, 2S - Chemistry Check","FA111","972349","Jackson, Brandon M",44790,4.88,"<29","<14.735","MEETS","DOES NOT MEET",14.734999999999999,29]
["Hedrick Industries","North Buncombe Quarry - Asheville","2019-04-29","Screenings - Chemistry Check","FA126","961055","Kindley, Wallace Quint",767,3.6,"<30",">800<1200","DOES NOT MEET","DOES NOT MEET",">800<1200",30]
["Hedrick Industries","Piedmont (Pageland #3) - Pageland, SC","2016-03-18","Sand, 2MS","FA239","798283","Jordan, Daniel H",25530,6.8,0,12.8,"MEETS","MEETS",12.8,0]
["Hedrick Industries","Piedmont (Pageland #3) - Pageland, SC","2019-06-12","Sand, 2MS - Chemistry Check","FA239","968059","Jordan, Daniel H",40530,6.44,"<30","<16.284","MEETS","MEETS",16.283999999999999,30]
["Hedrick Industries","South McDowell Quarry - Marion","2021-02-16","Sand, 2MS - Chemistry Check","FA415","1033182","Rhymer, Robert C",14090,8.7200000000000006,"<33","<46.842",{"$f":"IF(ISBLANK(I66),\"N/A\",IF(AND(4.5<=$I66,$I66<=9), \"MEETS\",\"DOES NOT MEET\"))","v":"MEETS"},{"$f":"IF(ISBLANK(I66), \"N/A\", IF(AND(5 <= $I66, $I66 <= 10),IF($H66>=3000,IF($O66<=100,IF($N66<=200,\"MEETS\",\"DOES NOT MEET\"),\"DOES NOT MEET\"),\"DOES NOT MEET\"),\"DOES NOT MEET\"))","v":"MEETS"},46.841999999999999,33]
["Hedrick Industries","South McDowell Quarry - Marion","2017-01-13","Screenings - Chemistry Check","FA415","841899","Rhymer, Robert C",10930,7.5,0,55.9,"MEETS","MEETS",55.9,0]
["Hedrick Industries","South McDowell Quarry - Marion","2019-01-24","Screenings, Washed","FA415","946851","Rhymer, Robert C",17770,8.6999999999999993,0,"<37.141","MEETS","MEETS",37.140999999999998,0]
["LBM Industries","Hewitt Quarry - Topton","2011-01-05","Sand, 2MS - Chemistry Check","FA247","529435","Rhymer, Robert C",11000,7.7,0,0,"MEETS","MEETS",0,0]
["LBM Industries","Whitewater Falls - Sapphire","2016-05-24","Sand, 2MS - Chemistry Check","FA162","808253","Wood, Dean Michael M",12303,7.9,2.1,24.8,"MEETS","MEETS",24.8,2.1]
["LBM Industries","Whitewater Falls - Sapphire","2016-05-24","Screenings - Chemistry Check","FA162","808254","Wood, Dean Michael M",14663,8.6,2.1,9.3000000000000007,"MEETS","MEETS",9.3000000000000007,2.1]
["Luck Stone Corporation","Pittsboro Quarry - Moncure","2018-11-30","Screenings - Chemistry Check","FA561","941285","Jackson, Brandon M",13310,9.4,0,"<49.59","DOES NOT MEET","MEETS",49.59,0]
["Mar-Mac Sand and Gravel, LLC","Mar-Mac Sand & Gravel - Goldsboro","2016-04-15","Sand, 2S - Chemistry Check","FA336","803130","Raines, James R",1812,3.1,8.6,146,"DOES NOT MEET","DOES NOT MEET",146,8.6]
["Martin Marietta","Arrowood Quarry - Charlotte","2016-12-06","Sand, 2MS - Chemistry Check","FA203","837865","Adair, Mildred (Millie) L",3339,7.3,8.9,8.5,"MEETS","MEETS",8.5,8.9]
["Martin Marietta","Benson Quarry - Benson","2016-03-16","Screenings - Chemistry Check","CA176","798245","Raines, James R",10971,8,0,8.1,"MEETS","MEETS",8.1,0]
["Martin Marietta","Bonds Quarry - Concord","2019-04-09","Sand, 2MS","FA392","958526","Pegues, Jr., Henderson",7606,8.6999999999999993,"<30","<86.774","MEETS","MEETS",86.774000000000001,30]
["Martin Marietta","Bonds Quarry - Concord","2018-09-10","Sand, 2MS - Chemistry Check","FA392","930605","Pegues, Jr., Henderson",4721,8.3000000000000007,0,83.6,"MEETS","MEETS",83.6,0]
["Martin Marietta","Burlington Quarry - Burlington","2019-05-31","Screenings - Chemistry Check","FA497","966240","Waller, John M",7640,8.83,"<30","<86.387","MEETS","MEETS",86.387,30]
["Martin Marietta","Central Rock Quarry - Greensboro","2019-06-04","Screenings - Chemistry Check","FA496","966794","Waller, John M",6334,8.65,"<30","<104.2","MEETS","MEETS",104.2,30]
["Martin Marietta","Central Rock Quarry - Greensboro","2017-07-05","Select Material, Class III, Type 1","FA496","866376","Cravens, Lane T",9091,7.3,4.7,62.2,"MEETS","MEETS",62.2,4.7]
["Martin Marietta","Charlotte Quarry - Charlotte","2016-09-08","Sand, 2MS - Chemistry Check","FA562","825585","Adair, Mildred (Millie) L",6112,7.5,0,50.7,"MEETS","MEETS",50.7,0]
["Martin Marietta","Charlotte Quarry - Charlotte","2017-06-19","Screenings - Chemistry Check","FA562","864046","Adair, Mildred (Millie) L",5144,8.4,4.7,120.3,"MEETS","MEETS",120.3,4.7]
["Martin Marietta","Charlotte Quarry - Charlotte","2019-07-10","Screenings, Washed","FA562","972773","Pegues, Jr., Henderson",5792,8.36,"<29","<113.950","MEETS","MEETS",113.95,29]
["Martin Marietta","Clarks Quarry - New Bern","2022-01-25","Sand, 2MS - Chemistry Check","FA214","1063337","Cobb, James R",2868,7.95,"<28","<337.251","MEETS","DOES NOT MEET"]
["Martin Marietta","Denver Quarry - Denver","2019-09-20","Sand, 2MS - Chemistry Check","FA377","983982","Myers, Jesse J",5025,7.89,"<32","<131.343","MEETS","MEETS",{"$f":"IF(LEFT(K85, 1)=\"<\", VALUE(RIGHT(K85,LEN(K85)-1)), K85)","v":131.34299999999999},{"$f":"IF(LEFT(J85, 1)=\"<\", VALUE(RIGHT(J85,LEN(J85)-1)), J85)","v":32}]
["Martin Marietta","Edmund Pit - Lexington, SC","2013-10-03","Sand, 2S - Chemistry Check","FA265","683832","Rhymer, Robert C",43178,7.1,0,0,"MEETS","MEETS",0,0]
["Martin Marietta","Fountain Quarry - Fountain","2021-06-01","Screenings - Chemistry Check","FA572","1043180","Cobb, James R",2535,8.16,53,"<302.613","MEETS","DOES NOT MEET",302.613,53]
["Martin Marietta","Franklin Quarry - Franklinton","2019-03-27","Sand, 2MS - Chemistry Check","FA349","956774","Skinner, III, John L",14320,8.6999999999999993,"<30","<46.089","MEETS","MEETS",46.088999999999999,30]
["Martin Marietta","Garner Quarry - Garner","2016-02-09","Sand, 2MS - Chemistry Check","FA382","793219","Skinner, III, John L",18765,8.1999999999999993,5,2.4,"MEETS","MEETS",2.4,5]
["Martin Marietta","Garner Quarry - Garner","2019-01-29","Screenings - Chemistry Check","FA382","947430","Skinner, III, John L",15190,9.1,0,"<43.45","DOES NOT MEET","MEETS",43.45,0]
["Martin Marietta","Hickory Quarry - Hickory","2019-07-08","Screenings - Chemistry Check","FA541","971767","Gosnell, Jimmy L",18600,9.0500000000000007,"<29","<35.484","DOES NOT MEET","MEETS",35.484000000000002,29]
["Martin Marietta","Jamestown Quarry - Jamestown","2019-06-04","Sand, 2MS - Chemistry Check","FA251","966795","Waller, John M",13850,9.17,"<30","<47.653","DOES NOT MEET","MEETS",47.652999999999999,30]
["Martin Marietta","Kings Mountain Quarry - Kings Mountain","2019-07-01","Screenings - Chemistry Check","FA414","970681","Gosnell, Jimmy L",1946,7.96,"<29","<339.157","MEETS","DOES NOT MEET",339.15699999999998,29]
["Martin Marietta","Lemon Springs - Sanford","2019-08-16","Screenings - Chemistry Check","FA518","978240","Jackson, Brandon M",9415,9.15,"<29","<70.10","DOES NOT MEET","MEETS",70.099999999999994,29]
["Martin Marietta","Lemon Springs - Sanford","2023-07-20","Select Material, Class III, Type 3 - Chemistry Check","FA518","1112650","Gilliam, Christopher",4502,8.67,"<31","<98.30","MEETS","MEETS",98.3,31]
["Martin Marietta","Lemon Springs - Sanford","2023-07-20","Select Material, Class III, Type 3 - Chemistry Check","FA518","1112649","Gilliam, Christopher",2735,7.83,"<31","<241.6","MEETS","DOES NOT MEET",241.6,31]
["Martin Marietta","Lemon Springs - Sanford","2023-07-20","Select Material, Class III, Type 3 - Chemistry Check","FA518","1112652","Gilliam, Christopher",2001,7.82,"<31","<240.9","MEETS","DOES NOT MEET",240.9,31]
["Martin Marietta","Loamy Sand and Gravel - Bethune, SC","2019-06-21","Sand, 2S - Chemistry Check","FA429","969545","Jordan, Daniel H",82960,5.48,"<29","<7.956","MEETS","MEETS",7.9560000000000004,29]
["Martin Marietta","Mallard Creek Quarry - Charlotte","2019-11-06","Sand, 2MS - Chemistry Check","FA423","990709","Pegues, Jr., Henderson",8025,8.94,"<32","<82.243","MEETS","MEETS",82.242999999999995,32]
["Martin Marietta","Mallard Creek Quarry - Charlotte","2017-11-07","Screenings - Chemistry Check","FA423","885615","Pegues, Jr., Henderson",11131,9,3.6,55.7,"MEETS","MEETS",55.7,3.6]
["Martin Marietta","Matthews Quarry - Matthews","2015-11-12","Sand, 2MS - Chemistry Check","CA37","783957","Adair, Mildred (Millie) L",3383,7.6,5,300,"MEETS","DOES NOT MEET",300,5]
["Martin Marietta","Pomona Quarry - Greensboro","2019-05-28","Sand, 2MS - Chemistry Check","FA163","965380","Waller, John M",10610,8.9,"<30","<62.205","MEETS","MEETS",62.204999999999998,30]
["Martin Marietta","Raleigh-Durham Quarry - Raleigh","2019-01-18","Screenings - Chemistry Check","FA578","946462","Skinner, III, John L",12420,9.4,0,"<53.140","DOES NOT MEET","MEETS",53.14,0]
["Martin Marietta","Reidsville Quarry - Reidsville","2016-02-09","Screenings - Chemistry Check","CA52","793251","Loshinskiy, Roman",16518,9,5,18.899999999999999,"MEETS","MEETS",18.899999999999999,5]
["Martin Marietta","Salem Stone Quarry - Kernersville","2013-08-20","Sand, 2MS - Chemistry Check","FA305","677612","Vincent, Timothy L",7413,7.3,0,0,"MEETS","MEETS",0,0]
["Martin Marietta","Statesville Quarry - Statesville","2019-10-09","Screenings - Chemistry Check","FA534","987454","Brinson, Joseph",2276,7.81,"<30","<289.982","MEETS","DOES NOT MEET",289.98200000000003,30]
["Matthews Sand and Gravel","Matthews 3 Pit","2016-04-05","Sand, 2S - Chemistry Check","FA472","801023","Raines, James R",71531,7.3,0,0,"MEETS","MEETS",0,0]
["Matthews Sand and Gravel","Matthews Pit #4 - Princeton","2020-10-14","Sand, 2S - Chemistry Check","FA616","1023373","Calestru, Steliana",113390,5.51,"<30","<14.502","MEETS","MEETS",14.502000000000001,30]
["McCrary Stone","Low Gap Quarry - Burnsville","2019-03-05","Screenings - Chemistry Check","FA540","952987","Kindley, Wallace Quint",1371,3.1,"<30","<481.4","DOES NOT MEET","DOES NOT MEET",481.4,30]
["McCrary Stone","Marshall Quarry - Marshall","2019-08-12","Screenings - Chemistry Check","FA557","978217","Kindley, Wallace Quint",6053,9.07,"<29","<109.0","DOES NOT MEET","MEETS",109,29]
["Mid-East Services, Inc.","Massengill Mine","2016-04-05","Sand, 2S - Chemistry Check","FA384","801022","Raines, James R",87108,7.4,0,5.2,"MEETS","MEETS",5.2,0]
["Neuse Sand And Gravel","Tilghman Pit","2018-02-15","Sand, 2S - Chemistry Check","FA446","897315","Cobb, James R",93197,7.5,0,7.1,"MEETS","MEETS",7.1,0]
["Oldcastle Stone Products - Bonsal Mining","Lilesville Pit","2016-03-23","Sand, 2S","FA6","799217","Jackson, Brandon M",139121,6.8,0,6.1,"MEETS","MEETS",6.1,0]
["Osprey Minerals","Osprey Sand Pit - Mt. Croghan","2019-06-12","Sand, 2S - Chemistry Check","FA603","968060","Jordan, Daniel H",51310,5.54,"<30","<12.863","MEETS","MEETS",12.863,30]
["Pea Creek Mines","Pea Creek Mines","2019-06-26","Sand, 2S - Chemistry Check","FA447","970248","Cobb, James R",28120,4.7699999999999996,"<29","<23.471","MEETS","DOES NOT MEET",23.471,29]
["Rogers Group, Inc.","Henrietta Quarry - Mooresboro","2016-02-19","Screenings - Chemistry Check","CA369","794436","Rhymer, Robert C",7663,8,5.4,24.7,"MEETS","MEETS",24.7,5.4]
["Rogers Group, Inc.","Henrietta Quarry - Mooresboro","2019-04-30","Screenings, Washed","FA528","961360","Rhymer, Robert C",22130,8.6999999999999993,"<30","<29.824","MEETS","MEETS",{"$f":"IF(LEFT(K117, 1)=\"<\", VALUE(RIGHT(K117,LEN(K117)-1)), K117)","v":29.824000000000002},{"$f":"IF(LEFT(J117, 1)=\"<\", VALUE(RIGHT(J117,LEN(J117)-1)), J117)","v":30}]
["Salem Stone Corp.","Southside Materials - S. Boston Quarry (VA)","2019-05-21","Screenings - Chemistry Check","FA197","964761","Westmoreland, Braxton J",7227,9,"<30","<91.324","MEETS","MEETS",91.323999999999998,30]
["Salem Stone Corp.","Southside Materials - Shelton Quarry - Pelham","2019-02-28","Screenings - Chemistry Check","FA533","952403","Westmoreland, Braxton J",18390,9,0,"<35.889","MEETS","MEETS",35.889000000000003,0]
["SC Rock","Goretown Mine -- Longs, SC","2016-02-03","Screenings - Chemistry Check","FA344","792514","Walker, Steven E",6510,8.1999999999999993,0,37.9,"MEETS","MEETS",37.9,0]
["Sloan Construction Co.","Blacksburg Quarry - Blacksburg, SC","2019-08-22","Sand, 2MS - Chemistry Check","FA476","979544","Brinson, Joseph",14950,8.3000000000000007,"<29","<44.147","MEETS","MEETS",44.146999999999998,29]
["Sloan Construction Co.","Blacksburg Quarry - Blacksburg, SC","2016-11-22","Screenings - Chemistry Check","FA476","836479","Brinson, Joseph",19342,5.4,0,8.6999999999999993,"MEETS","MEETS",8.6999999999999993,0]
["Stony Creek Sand and Gravel, LLC","Stony Creek Sand & Gravel - Carson, VA","2016-04-22","Sand, 2S - Chemistry Check","FA503","803774","Raines, James R",8210,4.0999999999999996,4.3,31.3,"DOES NOT MEET","DOES NOT MEET",31.3,4.3]
["Thomas Cement, Inc.","Simpson Mine - Pageland, SC","2019-06-25","Sand, 2S - Chemistry Check","FA456","969963","Jordan, Daniel H",66420,4.9000000000000004,"<29","<9.937","MEETS","DOES NOT MEET",9.9369999999999994,29]
["Thompson Contractors","Miller Creek Quarry - Rutherfordton","2019-09-27","Screenings - Chemistry Check","FA585","985275","Norton, Stephen S",9480,8.84,"<30","<69.620","MEETS","MEETS",69.62,30]
["Titan Mid-Atlantic Aggregates LLC","Branchville Sand Plant - Sebrell Farms","2022-03-14","Sand, 2S - Chemistry Check","FA613","1067389","Bonds, Maria M",48691,6.08,"<28","<29.204","MEETS","MEETS",29.204000000000001,28]
["Titan Mid-Atlantic Aggregates LLC","Waverly Sand","2019-06-26","Sand, 2S - Chemistry Check","FA589","970946","Thomas, Grady Q",43060,5.0199999999999996,"<29","<15.327","MEETS","MEETS",15.327,29]
["Vulcan Materials Co.","Blacksburg Quarry - Blacksburg, SC","2019-07-30","Screenings - Chemistry Check","FA550","975114","Gosnell, Jimmy L",8724,9.35,"<29","<75.653","DOES NOT MEET","MEETS",75.653000000000006,29]
["Vulcan Materials Co.","Cabarrus Quarry -- Concord","2018-10-18","Sand, 2MS - Chemistry Check","FA339","935931","Cero, Kevin M",7516,9,0,"<87.8","MEETS","MEETS",87.8,0]
["Vulcan Materials Co.","East Forsyth Quarry - Kernersville","2013-05-30","Sand, 2MS - Chemistry Check","FA158","668582","Vincent, Timothy L",9852,7.6,0,0,{"$f":"IF(ISBLANK(I130),\"N/A\",IF(AND(4.5<=$I130,$I130<=9), \"MEETS\",\"DOES NOT MEET\"))","v":"MEETS"},{"$f":"IF(ISBLANK(I130), \"N/A\", IF(AND(5 <= $I130, $I130 <= 10),IF($H130>=3000,IF($O130<=100,IF($N130<=200,\"MEETS\",\"DOES NOT MEET\"),\"DOES NOT MEET\"),\"DOES NOT MEET\"),\"DOES NOT MEET\"))","v":"MEETS"},0,0]
["Vulcan Materials Co.","Elizabeth City Yard (#216) - Elizabeth City","2020-09-21","Screenings - Chemistry Check","FA539","1021107","Bonds, Maria M",14674,9.24,"<30","<75.334","DOES NOT MEET","MEETS",75.334000000000003,30]
["Vulcan Materials Co.","Enka Quarry - Enka","2013-05-29","Sand, 2MS - Chemistry Check","CA69","668686","Rhymer, Robert C",4277,5.4,0,0,"MEETS","MEETS",0,0]
["Vulcan Materials Co.","Enka Quarry - Enka","2018-10-05","Screenings - Chemistry Check","FA458","933928","Rhymer, Robert C",493,4,0,">1200","DOES NOT MEET","DOES NOT MEET",">1200",0]
["Vulcan Materials Co.","Enka Quarry - Enka","2019-09-05","Screenings, Washed","FA458","981857","Rhymer, Robert C",873,5.14,"<32",">400<800","MEETS","DOES NOT MEET",">400<800",32]
["Vulcan Materials Co.","Greystone Quarry - Henderson","2019-04-01","Sand, 2MS - Chemistry Check","FA183","957256","Skinner, III, John L",14610,9.1,"<30","<45.175","DOES NOT MEET","MEETS",45.174999999999997,30]
["Vulcan Materials Co.","Havre De Grace Quarry - Havre De Grace, MD","2019-08-26","Screenings - Chemistry Check","FA584","980141","Bonds, Maria M",3264,8.17,"<29","<202.206","MEETS","MEETS"]
["Vulcan Materials Co.","Jack Quarry - Petersburg, VA","2019-08-26","Screenings - Chemistry Check","FA549","980162","Bonds, Maria M",6465,9.1300000000000008,"<29","<102.088","DOES NOT MEET","MEETS",{"$f":"IF(LEFT(K137, 1)=\"<\", VALUE(RIGHT(K137,LEN(K137)-1)), K137)","v":102.08799999999999},{"$f":"IF(LEFT(J137, 1)=\"<\", VALUE(RIGHT(J137,LEN(J137)-1)), J137)","v":29}]
["Vulcan Materials Co.","Kitty Hawk Sales Yard","2020-09-21","Sand, 2S - Chemistry Check","FA338","1021098","Bonds, Maria M",43355,4.3099999999999996,"<30","<30.192","DOES NOT MEET","DOES NOT MEET",30.192,30]
["Vulcan Materials Co.","Kitty Hawk Sales Yard","2020-09-21","Screenings - Chemistry Check","FA338","1021097","Bonds, Maria M",17676,8.74,"<30","<59.621","MEETS","MEETS",59.621000000000002,30]
["Vulcan Materials Co.","Morganton Quarry - Morganton","2016-12-06","Screenings - Chemistry Check","FA85","838536","Ausley, Jeff A",7402,7.7,0,26.3,"MEETS","MEETS",26.3,0]
["Vulcan Materials Co.","North Quarry - Winston Salem","2016-03-23","Sand, 2MS - Chemistry Check","CA72","798945","Wallace, Weston G",24278,8,0,7.1,"MEETS","MEETS",7.1,0]
["Vulcan Materials Co.","North Quarry - Winston Salem","2020-10-14","Select Material, Class III, Type 1","FA466","1028506","Edwards, Justin D",5203,8.02,"<30","<113","MEETS","MEETS",113,30]
["Vulcan Materials Co.","Pacolet Quarry - Pacolet, SC","2019-08-01","Sand, 2MS - Chemistry Check","FA212","975600","Gosnell, Jimmy L",1466,7.41,"<29",">400<800","MEETS","DOES NOT MEET",">400<800",29]
["Vulcan Materials Co.","Penrose Quarry - Pisgah Forest","2017-03-07","Screenings - Chemistry Check","FA229","848244","Wood, Dean Michael M",16044,9.1999999999999993,0,37.4,"DOES NOT MEET","MEETS",37.4,0]
["Vulcan Materials Co.","Pineville Quarry - Charlotte","2016-10-06","Screenings - Chemistry Check","FA266","832586","Adair, Mildred (Millie) L",1872,7.6,0,93.3,"MEETS","DOES NOT MEET",93.3,0]
["Vulcan Materials Co.","Puddledock Quarry - Prince George, VA","2019-08-26","Sand, 2S - Chemistry Check","FA172","980143","Bonds, Maria M",52160,4.99,"<29","<12.653","MEETS","DOES NOT MEET",12.653,29]
["Vulcan Materials Co.","Rockingham Quarry - Rockingham","2016-06-09","Sand, 2MS - Chemistry Check","FA374","810588","Tucker, Rusty J",9407,8.9,2.1,16.7,"MEETS","MEETS",16.7,2.1]
["Vulcan Materials Co.","Rockingham Quarry - Rockingham","2023-03-29","Screenings - Chemistry Check","FA374","1101082","Gilmore, David T",11270,7.65,"<31","<435.1","MEETS","DOES NOT MEET",435.1,31]
["Vulcan Materials Co.","Skippers Quarry - Skippers, VA","2022-03-16","Screenings - Chemistry Check","FA531","1067930","Thomas, Grady Q",12673,9.2100000000000009,34,"<128.705","DOES NOT MEET","MEETS",128.70500000000001,34]
["Vulcan Materials Co.","Smith Grove Q. - Mocksville","2016-04-26","Sand, 2MS - Chemistry Check","FA76","803859","Wallace, Weston G",6254,6.2,0,49,"MEETS","MEETS",49,0]
["Vulcan Materials Co.","Spruce Pine Quarry - Bakersville","2015-08-11","Sand, 2MS - Chemistry Check","CA111","770808","Rhymer, Robert C",931966,7.2,0,300,"MEETS","DOES NOT MEET",300,0]
["Vulcan Materials Co.","Spruce Pine Quarry - Bakersville","2019-09-16","Screenings - Chemistry Check","FA558","983094","Norton, Stephen S",3326,7.47,"<32","<198.437","MEETS","MEETS",198.43700000000001,32]
["Vulcan Materials Co.","Stokesdale Quarry - Stokesdale","2019-02-28","Screenings - Chemistry Check","FA499","952380","Westmoreland, Braxton J",19350,9.1,0,"<34.109","DOES NOT MEET","MEETS",34.109000000000002,0]
["Wade Moore Equipment Co.","Fleming Pit - Louisburg","2023-06-14","Aggregate Base Course","CA453","1109175","Moore, Charles A",19860,6.88,"<31","<25.17","MEETS","MEETS"]
["Wade Moore Equipment Co.","Fleming Pit - Louisburg","2019-02-01","Sand, 2S - Chemistry Check","FA165","948020","Skinner, III, John L",79110,6.7,0,"<8.343","MEETS","MEETS"]
["Wake Stone Corp.","Knightdale Quarry - Knightdale","2021-04-26","Sand, 2MS - Chemistry Check","FA481","1039861","Skinner, III, John L",24346,9,"<33","<58.099","MEETS","MEETS"]
["Wake Stone Corp.","Knightdale Quarry - Knightdale","2012-06-13","Select Material, Class II, Type 1","CA98","630833","Carter, PE, Sean C",9800,8.8000000000000007,"na","na","MEETS","MEETS"]
["Wake Stone Corp.","Moncure Quarry - Moncure","2018-03-29","Screenings, Washed","FA502","904094","Jackson, Brandon M",4476,7.5,0,124.3,"MEETS","MEETS"]
["Wake Stone Corp.","Nash County Quarry - Battleboro","2016-03-11","Sand, 2MS - Chemistry Check","FA480","797388","Raines, James R",8361,8.5,0,12.1,"MEETS","MEETS"]
["Wake Stone Corp.","Triangle Quarry - Cary","2012-03-12","Sand, 2MS - Chemistry Check","CA157","617977","Gowl, Adam L",7052,7.8,0,0,"MEETS","MEETS"]
["Wake Stone Corp.","Triangle Quarry - Cary","2011-08-09","Sand, 2S - Chemistry Check","CA157","597278","Gowl, Adam L",8889,7.6,0,0,"MEETS","MEETS"]
["Weeks Sand Company","Weeks Sand #3","2016-03-08","Sand, 2S - Chemistry Check","FA368","796682","Murphy, Billy J",62344,5.2,0,5.0999999999999996,"MEETS","MEETS"]
["Westside Minerals LLC","Dempsey Wood Pit - LaGrange","2020-09-24","Sand, 2S - Chemistry Check","FA403","1021168","Cobb, James R",80040,4.88,"<30","<18.739","MEETS","DOES NOT MEET"]
[null,null,null,null,null,null,null,null,null,null,null,"N/A","N/A"]
[null,null,null,null,null,null,null,null,null,null,null,"N/A","N/A"]
[null,null,null,null,null,null,null,null,null,null,null,"N/A","N/A"]
[null,null,null,null,null,null,null,null,null,null,null,"N/A","N/A"]
[null,null,null,null,null,null,null,null,null,null,null,"N/A","N/A"]
[null,null,null,null,null,null,null,null,null,null,null,"N/A","N/A"]
[null,null,null,null,null,null,null,null,null,null,null,"N/A","N/A"]
[null,null,null,null,null,null,null,null,null,null,null,"N/A","N/A"]
[null,null,null,null,null,null,null,null,null,null,null,"N/A","N/A"]
[null,null,null,null,null,null,null,null,null,null,null,"N/A","N/A"]
[null,null,null,null,null,null,null,null,null,null,null,"N/A","N/A"]
[null,null,null,null,null,null,null,null,null,null,null,"N/A","N/A"]
[null,null,null,null,null,null,null,null,null,null,null,"N/A","N/A"]
[null,null,null,null,null,null,null,null,null,null,null,"N/A","N/A"]
[null,null,null,null,null,null,null,null,null,null,null,"N/A","N/A"]
[null,null,null,null,null,null,null,null,null,null,null,"N/A","N/A"]
[null,null,null,null,null,null,null,null,null,null,null,"N/A","N/A"]
[null,null,null,null,null,null,null,null,null,null,null,"N/A","N/A"]
[null,null,null,null,null,null,null,null,null,null,null,"N/A","N/A"]
[null,null,null,null,null,null,null,null,null,null,null,"N/A","N/A"]
[null,null,null,null,null,null,null,null,null,null,null,"N/A","N/A"]
[null,null,null,null,null,null,null,null,null,null,null,"N/A","N/A"]
[null,null,null,null,null,null,null,null,null,null,null,"N/A","N/A"]
[null,null,null,null,null,null,null,null,null,null,null,"N/A","N/A"]
[null,null,null,null,null,null,null,null,null,null,null,"N/A","N/A"]
[null,null,null,null,null,null,null,null,null,null,null,"N/A","N/A"]
[null,null,null,null,null,null,null,null,null,null,null,"N/A","N/A"]
[null,null,null,null,null,null,null,null,null,null,null,"N/A","N/A"]
[null,null,null,null,null,null,null,null,null,null,null,"N/A","N/A"]
[null,null,null,null,null,null,null,null,null,null,null,"N/A","N/A"]
[null,null,null,null,null,null,null,null,null,null,null,{"$f":"IF(ISBLANK(I194),\"N/A\",IF(AND(4.5<=$I194,$I194<=9), \"MEETS\",\"DOES NOT MEET\"))","v":"N/A"},{"$f":"IF(ISBLANK(I194), \"N/A\", IF(AND(5 <= $I194, $I194 <= 10),IF($H194>=3000,IF($O194<=100,IF($N194<=200,\"MEETS\",\"DOES NOT MEET\"),\"DOES NOT MEET\"),\"DOES NOT MEET\"),\"DOES NOT MEET\"))","v":"N/A"}]
[null,null,null,null,null,null,null,null,null,null,null,"N/A","N/A"]
[null,null,null,null,null,null,null,null,null,null,null,"N/A","N/A"]
[null,null,null,null,null,null,null,null,null,null,null,"N/A","N/A"]
[null,null,null,null,null,null,null,null,null,null,null,"N/A","N/A"]
[null,null,null,null,null,null,null,null,null,null,null,"N/A","N/A"]
[null,null,null,null,null,null,null,null,null,null,null,"N/A","N/A"]
[null,null,null,null,null,null,null,null,null,null,null,"N/A","N/A"]
[null,null,null,null,null,null,null,null,null,null,null,"N/A","N/A"]
[null,null,null,null,null,null,null,null,null,null,null,"N/A","N/A"]
[null,null,null,null,null,null,null,null,null,null,null,"N/A","N/A"]
[null,null,null,null,null,null,null,null,null,null,null,"N/A","N/A"]
[null,null,null,null,null,null,null,null,null,null,null,"N/A","N/A"]
[null,null,null,null,null,null,null,null,null,null,null,"N/A","N/A"]
[null,null,null,null,null,null,null,null,null,null,null,"N/A","N/A"]
[null,null,null,null,null,null,null,null,null,null,null,"N/A","N/A"]
[null,null,null,null,null,null,null,null,null,null,null,"N/A","N/A"]
[null,null,null,null,null,null,null,null,null,null,null,"N/A","N/A"]
[null,null,null,null,null,null,null,null,null,null,null,"N/A","N/A"]
[null,null,null,null,null,null,null,null,null,null,null,"N/A","N/A"]
[null,null,null,null,null,null,null,null,null,null,null,"N/A","N/A"]
[null,null,null,null,null,null,null,null,null,null,null,"N/A","N/A"]
[null,null,null,null,null,null,null,null,null,null,null,"N/A","N/A"]
[null,null,null,null,null,null,null,null,null,null,null,"N/A","N/A"]
[null,null,null,null,null,null,null,null,null,null,null,"N/A","N/A"]
[null,null,null,null,null,null,null,null,null,null,null,"N/A","N/A"]
[null,null,null,null,null,null,null,null,null,null,null,"N/A","N/A"]
[null,null,null,null,null,null,null,null,null,null,null,"N/A","N/A"]
[null,null,null,null,null,null,null,null,null,null,null,"N/A","N/A"]
[null,null,null,null,null,null,null,null,null,null,null,"N/A","N/A"]
[null,null,null,null,null,null,null,null,null,null,null,"N/A","N/A"]
[null,null,null,null,null,null,null,null,null,null,null,"N/A","N/A"]
[null,null,null,null,null,null,null,null,null,null,null,"N/A","N/A"]
[null,null,null,null,null,null,null,null,null,null,null,"N/A","N/A"]
[null,null,null,null,null,null,null,null,null,null,null,"N/A","N/A"]
[null,null,null,null,null,null,null,null,null,null,null,"N/A","N/A"]
[null,null,null,null,null,null,null,null,null,null,null,"N/A","N/A"]
[null,null,null,null,null,null,null,null,null,null,null,"N/A","N/A"]
[null,null,null,null,null,null,null,null,null,null,null,"N/A","N/A"]
[null,null,null,null,null,null,null,null,null,null,null,"N/A","N/A"]
[null,null,null,null,null,null,null,null,null,null,null,"N/A","N/A"]
[null,null,null,null,null,null,null,null,null,null,null,"N/A","N/A"]
[null,null,null,null,null,null,null,null,null,null,null,"N/A","N/A"]
[null,null,null,null,null,null,null,null,null,null,null,"N/A","N/A"]
[null,null,null,null,null,null,null,null,null,null,null,"N/A","N/A"]
[null,null,null,null,null,null,null,null,null,null,null,"N/A","N/A"]
[null,null,null,null,null,null,null,null,null,null,null,"N/A","N/A"]
[null,null,null,null,null,null,null,null,null,null,null,"N/A","N/A"]
[null,null,null,null,null,null,null,null,null,null,null,"N/A","N/A"]
[null,null,null,null,null,null,null,null,null,null,null,"N/A","N/A"]
[null,null,null,null,null,null,null,null,null,null,null,"N/A","N/A"]
[null,null,null,null,null,null,null,null,null,null,null,"N/A","N/A"]
[null,null,null,null,null,null,null,null,null,null,null,"N/A","N/A"]
[null,null,null,null,null,null,null,null,null,null,null,"N/A","N/A"]
[null,null,null,null,null,null,null,null,null,null,null,"N/A","N/A"]
[null,null,null,null,null,null,null,null,null,null,null,"N/A","N/A"]
[null,null,null,null,null,null,null,null,null,null,null,"N/A","N/A"]
[null,null,null,null,null,null,null,null,null,null,null,"N/A","N/A"]
[null,null,null,null,null,null,null,null,null,null,null,"N/A","N/A"]
[null,null,null,null,null,null,null,null,null,null,null,"N/A","N/A"]
[null,null,null,null,null,null,null,null,null,null,null,"N/A","N/A"]
[null,null,null,null,null,null,null,null,null,null,null,"N/A","N/A"]
[null,null,null,null,null,null,null,null,null,null,null,"N/A","N/A"]
[null,null,null,null,null,null,null,null,null,null,null,"N/A","N/A"]
[null,null,null,null,null,null,null,null,null,null,null,{"$f":"IF(ISBLANK(I258),\"N/A\",IF(AND(4.5<=$I258,$I258<=9), \"MEETS\",\"DOES NOT MEET\"))","v":"N/A"},{"$f":"IF(ISBLANK(I258), \"N/A\", IF(AND(5 <= $I258, $I258 <= 10),IF($H258>=3000,IF($O258<=100,IF($N258<=200,\"MEETS\",\"DOES NOT MEET\"),\"DOES NOT MEET\"),\"DOES NOT MEET\"),\"DOES NOT MEET\"))","v":"N/A"}]
[null,null,null,null,null,null,null,null,null,null,null,"N/A","N/A"]
[null,null,null,null,null,null,null,null,null,null,null,"N/A","N/A"]
[null,null,null,null,null,null,null,null,null,null,null,"N/A","N/A"]
[null,null,null,null,null,null,null,null,null,null,null,"N/A","N/A"]
[null,null,null,null,null,null,null,null,null,null,null,"N/A","N/A"]
[null,null,null,null,null,null,null,null,null,null,null,"N/A","N/A"]
[null,null,null,null,null,null,null,null,null,null,null,"N/A","N/A"]
[null,null,null,null,null,null,null,null,null,null,null,"N/A","N/A"]
[null,null,null,null,null,null,null,null,null,null,null,"N/A","N/A"]
[null,null,null,null,null,null,null,null,null,null,null,"N/A","N/A"]
[null,null,null,null,null,null,null,null,null,null,null,"N/A","N/A"]
[null,null,null,null,null,null,null,null,null,null,null,"N/A","N/A"]
[null,null,null,null,null,null,null,null,null,null,null,"N/A","N/A"]
[null,null,null,null,null,null,null,null,null,null,null,"N/A","N/A"]
[null,null,null,null,null,null,null,null,null,null,null,"N/A","N/A"]
[null,null,null,null,null,null,null,null,null,null,null,"N/A","N/A"]
[null,null,null,null,null,null,null,null,null,null,null,"N/A","N/A"]
[null,null,null,null,null,null,null,null,null,null,null,"N/A","N/A"]
[null,null,null,null,null,null,null,null,null,null,null,"N/A","N/A"]
[null,null,null,null,null,null,null,null,null,null,null,"N/A","N/A"]
[null,null,null,null,null,null,null,null,null,null,null,"N/A","N/A"]
[null,null,null,null,null,null,null,null,null,null,null,"N/A","N/A"]
[null,null,null,null,null,null,null,null,null,null,null,"N/A","N/A"]
[null,null,null,null,null,null,null,null,null,null,null,"N/A","N/A"]
[null,null,null,null,null,null,null,null,null,null,null,"N/A","N/A"]
[null,null,null,null,null,null,null,null,null,null,null,"N/A","N/A"]
[null,null,null,null,null,null,null,null,null,null,null,"N/A","N/A"]
[null,null,null,null,null,null,null,null,null,null,null,"N/A","N/A"]

{"sheet":"Latest Data Coarse Aggregate","index":1,"n_rows":356,"n_cols":16,"rows_kept":356,"cut":false,"hidden":false,"merged":[]}
["Producer Name","Facility Name","Sample Date","Material Description","Facility ID","Sample ID","Sampled By","Resistivity (Ohm*cm)","pH Units:","Chlorides (ppm)","Sulfate (ppm)","Geosynthetic Spec","Steel Spec (Coastal Plain Aggregates Only)","SO4","Cl"," Coastal Plain Aggregates"]
["Appalachian Aggregates, LLC","Bluefield Plant","2017-03-22","#57 Stone for Electrochemical","CA307","850413","Church, Tracy G",16706,9.4,0,36.799999999999997,{"$f":"IF(AND(4.5<=$I2,$I2<=9),\"MEETS\",\"DOES NOT MEET\")","v":"DOES NOT MEET"},{"$f":"IF(OR(ISBLANK(I2), NOT(ISNUMBER(MATCH($E2, Coastal, 0)))), \"N/A\", IF(AND(5 <= $I2, $I2 <= 10),IF($H2>=5000,IF($O2<=100,IF($N2<=200,\"MEETS\",\"DOES NOT MEET\"),\"DOES NOT MEET\"),\"DOES NOT MEET\"),\"DOES NOT MEET\"))","v":"N/A"},{"$f":"IF(LEFT(K2, 1)=\"<\", VALUE(RIGHT(K2,LEN(K2)-1)), K2)","v":36.799999999999997},{"$f":"IF(LEFT(J2, 1)=\"<\", VALUE(RIGHT(J2,LEN(J2)-1)), J2)","v":0},"CA216"]
["Appalachian Aggregates, LLC","Bluefield Plant","2017-03-22","Miscellaneous Material for Electrochemical","CA307","850415","Church, Tracy G",5817,8.8000000000000007,8.9,103.9,"MEETS","N/A",103.9,8.9,"CA55"]
["Ararat Rock Products","Eden Quarry - Eden","2019-03-12","#57 Stone for Electrochemical","CA374","954433","Westmoreland, Braxton J",9873,9,0,"<66.849","MEETS","N/A",66.849000000000004,0,"CA371"]
["Ararat Rock Products","Eden Quarry - Eden","2019-03-12","#78-M Stone for Electrochemical","CA374","954434","Westmoreland, Braxton J",7234,8.9,0,"<91.236","MEETS","N/A",91.236000000000004,0,"CA288"]
["Ararat Rock Products","Mt. Airy Quarry - Mt. Airy","2017-01-31","#57 Stone for Electrochemical","CA3","843860","Whitley, Christopher D",12816,8,0,48.7,"MEETS","N/A",48.7,0,"CA42"]
["Ararat Rock Products","Mt. Airy Quarry - Mt. Airy","2017-01-31","#78-M Stone for Electrochemical","CA3","843861","Whitley, Christopher D",11582,8.3000000000000007,0,50.8,"MEETS","N/A",50.8,0,"CA64"]
["Ararat Rock Products","Mt. Airy Quarry - Mt. Airy","2017-01-31","Miscellaneous Material for Electrochemical","CA3","843862","Whitley, Christopher D",9355,7.7,0,64.400000000000006,"MEETS","N/A",64.400000000000006,0,"CA380"]
["Argos USA LLC","Knightdale Plant #1","2005-04-19","#57 Stone for Electrochemical","RM282","373508","Wright, Shane",5130,7.7,"< 30","< 200","MEETS",{"$f":"IF(ISBLANK(I9), \"N/A\", IF(AND(5 <= $I9, $I9 <= 10),IF($H9>=5000,IF($O9<=100,IF($N9<=200,\"MEETS\",\"DOES NOT MEET\"),\"DOES NOT MEET\"),\"DOES NOT MEET\"),\"DOES NOT MEET\"))","v":"MEETS"},200,30,"CA189"]
["Blue Water Industries","Abingdon Quarry","2016-09-28","#57 Stone for Electrochemical","CA251","828584","Church, Tracy G",8741,7.7,0,14.2,"MEETS",{"$f":"IF(OR(ISBLANK(I10), NOT(ISNUMBER(MATCH($E10, Coastal, 0)))), \"N/A\", IF(AND(5 <= $I10, $I10 <= 10),IF($H10>=5000,IF($O10<=100,IF($N10<=200,\"MEETS\",\"DOES NOT MEET\"),\"DOES NOT MEET\"),\"DOES NOT MEET\"),\"DOES NOT MEET\"))","v":"N/A"},14.2,0,"CA38"]
["Blue Water Industries","Elizabethton Quarry","2016-09-28","#57 Stone for Electrochemical","CA401","828607","Church, Tracy G",15265,7.3,0,9.6999999999999993,"MEETS","N/A",9.6999999999999993,0,"CA381"]
["Blue Water Industries","Midway Quarry - Mascot, TN","2017-02-20","#67 Stone for Electrochemical","CA183","845872","Rhymer, Robert C",17056,9.8000000000000007,0,38.200000000000003,"DOES NOT MEET","N/A",38.200000000000003,0,"CA408"]
["Blue Water Industries","Watauga Quarry","2016-09-28","#57 Stone for Electrochemical","CA133","828603","Church, Tracy G",16139,6.7,0,6.1,"MEETS","N/A",6.1,0,"CA259"]
["Boone's Concrete Supply, LLC","Woodlawn Quarry - Marion","2019-09-23","#57 Stone for Electrochemical","CA190","984072","Norton, Stephen S",12400,9.7799999999999994,"<32","<53.226","DOES NOT MEET","N/A",53.225999999999999,32,"CA380"]
["Boone's Concrete Supply, LLC","Woodlawn Quarry - Marion","2019-09-23","#78-M Stone for Electrochemical","CA190","984074","Norton, Stephen S",11100,9.93,"<32","<59.459","DOES NOT MEET","N/A",59.459000000000003,32,"CA319"]
["Boxley Materials Company","Blue Ridge Quarry - Blue Ridge, VA","2019-03-05","#78-M Stone for Electrochemical","CA334","953110","Westmoreland, Braxton J",8427,9.1999999999999993,"<30","<78.32","DOES NOT MEET","N/A",78.319999999999993,30,"CA349"]
["Boxley Materials Company","Fieldale Quarry - Martinsville, VA","2019-03-05","#57 Stone for Electrochemical","CA142","953147","Westmoreland, Braxton J",13260,8.9,0,"<49.774","MEETS","N/A",49.774000000000001,0,"CA272"]
["Boxley Materials Company","Fieldale Quarry - Martinsville, VA","2019-03-05","#67 Stone for Electrochemical","CA142","953148","Westmoreland, Braxton J",10830,8.6999999999999993,0,"<60.942","MEETS","N/A",60.942,0,"CA289"]
["Boxley Materials Company","Fieldale Quarry - Martinsville, VA","2019-03-05","#78-M Stone for Electrochemical","CA142","953149","Westmoreland, Braxton J",7555,8.6999999999999993,0,"<87.359","MEETS","N/A",87.358999999999995,0,"CA310"]
["Boxley Materials Company","Lawyers Road Quarry - Lynchburg, VA","2016-03-14","#78-M Stone for Electrochemical","CA400","798420","Fosque, Robert W",17065,7.6,0,9.5,"MEETS","N/A",9.5,0,"CA138"]
["Carolina Stalite Corp.","Gold Hill (Light Wt.) - Gold Hill","2020-04-07","#67 Stone for Electrochemical","CA226","1004812","Whitley, Christopher D",8852,9.4499999999999993,"<30","<74.56","DOES NOT MEET","N/A",74.56,30,"CA63"]
["Carolina Stalite Corp.","Gold Hill (Light Wt.) - Gold Hill","2020-04-07","#78-M Stone for Electrochemical","CA226","1004822","Whitley, Christopher D",4816,9.67,"<30","<137.0","DOES NOT MEET","N/A",137,30]
["Carolina Sunrock LLC","Butner Quarry - Butner","2016-02-08","#57 Stone for Electrochemical","CA178","793015","Skinner, III, John L",19697,9.1999999999999993,0,0,"DOES NOT MEET","N/A",0,0]
["Carolina Sunrock LLC","Butner Quarry - Butner","2019-03-25","#67 Stone for Electrochemical","CA178","955934","Skinner, III, John L",10130,10.1,"<30","<65.153","DOES NOT MEET","N/A",65.153000000000006,30]
["Carolina Sunrock LLC","Butner Quarry - Butner","2019-03-25","#78-M Stone for Electrochemical","CA178","955935","Skinner, III, John L",11850,10.1,"<30","<55.696","DOES NOT MEET","N/A",55.695999999999998,30]
["Carolina Sunrock LLC","Kittrell Quarry - Kittrell","2016-02-04","#57 Stone for Electrochemical","CA304","792553","Skinner, III, John L",20044,8.6,5,33.1,"MEETS","N/A",33.1,5]
["Carolina Sunrock LLC","Kittrell Quarry - Kittrell","2019-02-01","#67 Stone for Electrochemical","CA304","948021","Skinner, III, John L",20820,9.3000000000000007,0,"<31.7","DOES NOT MEET","N/A",31.7,0]
["Carolina Sunrock LLC","Kittrell Quarry - Kittrell","2019-02-01","#78-M Stone for Electrochemical","CA304","948022","Skinner, III, John L",18400,9.3000000000000007,0,"<35.87","DOES NOT MEET","N/A",35.869999999999997,0]
["Carolina Sunrock LLC","Woodsdale Quarry - Roxboro","2019-01-11","#67 Stone for Electrochemical","CA329","945250","Skinner, III, John L",22230,9.5,0,"<29.69","DOES NOT MEET","N/A",29.69,0]
["Carolina Sunrock LLC","Woodsdale Quarry - Roxboro","2019-01-11","#78-M Stone for Electrochemical","CA329","945251","Skinner, III, John L",16390,9.4,0,"<40.268","DOES NOT MEET","N/A",40.268000000000001,0]
["Generic Plant (Temporary)","Generic Plant (Temporary)","2005-04-21","#57 Stone for Electrochemical","OT1112","373888","Peoples, PE, Christopher A",10880,7.4,"< 30","< 200","MEETS",{"$f":"IF(ISBLANK(I31), \"N/A\", IF(AND(5 <= $I31, $I31 <= 10),IF($H31>=5000,IF($O31<=100,IF($N31<=200,\"MEETS\",\"DOES NOT MEET\"),\"DOES NOT MEET\"),\"DOES NOT MEET\"),\"DOES NOT MEET\"))","v":"MEETS"},200,30]
["Generic Plant (Temporary)","Generic Plant (Temporary)","2005-04-21","#57 Stone for Electrochemical","OT1112","373893","Peoples, PE, Christopher A",25780,7.8,"< 30","< 200","MEETS",{"$f":"IF(ISBLANK(I32), \"N/A\", IF(AND(5 <= $I32, $I32 <= 10),IF($H32>=5000,IF($O32<=100,IF($N32<=200,\"MEETS\",\"DOES NOT MEET\"),\"DOES NOT MEET\"),\"DOES NOT MEET\"),\"DOES NOT MEET\"))","v":"MEETS"},200,30]
["Georgia Stone Products","Lynches River Quarry - Jefferson, SC","2019-07-10","#57 Stone for Electrochemical","CA325","971836","Jordan, Daniel H",26750,9.5,"<29","<24.673","DOES NOT MEET",{"$f":"IF(OR(ISBLANK(I33), NOT(ISNUMBER(MATCH($E33, Coastal, 0)))), \"N/A\", IF(AND(5 <= $I33, $I33 <= 10),IF($H33>=5000,IF($O33<=100,IF($N33<=200,\"MEETS\",\"DOES NOT MEET\"),\"DOES NOT MEET\"),\"DOES NOT MEET\"),\"DOES NOT MEET\"))","v":"N/A"},24.672999999999998,29]
["Georgia Stone Products","Lynches River Quarry - Jefferson, SC","2016-02-11","#67 Stone for Electrochemical","CA325","793641","Jordan, Daniel H",30057,7.6,5.4,4.8,"MEETS","N/A",4.8,5.4]
["Georgia Stone Products","Lynches River Quarry - Jefferson, SC","2019-07-10","#78-M Stone for Electrochemical","CA325","971840","Jordan, Daniel H",25790,9.33,"<29","<25.591","DOES NOT MEET","N/A",25.591000000000001,29]
["Georgia Stone Products","Lynches River Quarry - Jefferson, SC","2018-12-06","Coarse Aggregate, #57","CA325","942219","Jordan, Daniel H",29010,9.1999999999999993,0,"<22.751","DOES NOT MEET","N/A",22.751000000000001,0]
["Georgia Stone Products","Lynches River Quarry - Jefferson, SC","2018-12-06","Coarse Aggregate, #67","CA325","942222","Jordan, Daniel H",29200,9.1999999999999993,0,"<22.603","DOES NOT MEET","N/A",22.603000000000002,0]
["Georgia Stone Products","Lynches River Quarry - Jefferson, SC","2018-12-06","Coarse Aggregate, #78M","CA325","942218","Jordan, Daniel H",22100,9.3000000000000007,0,"<29.864","DOES NOT MEET","N/A",29.864000000000001,0]
["Georgia Stone Products","Lynches River Quarry - Jefferson, SC","2015-06-29","Miscellaneous Material for Electrochemical","CA325","764178","Jordan, Daniel H",16875,8.4,0,200,"MEETS","N/A",200,0]
["Hanson Aggregates Southeast, Inc.","Crabtree Quarry - Raleigh","2016-02-19","#57 Stone for Electrochemical","CA61","794467","Skinner, III, John L",24396,7.9,0,3.8,"MEETS","N/A",3.8,0]
["Hanson Aggregates Southeast, Inc.","Crabtree Quarry - Raleigh","2019-03-13","#67 Stone for Electrochemical","CA61","954289","Skinner, III, John L",18360,8.8000000000000007,0,"<35.948","MEETS","N/A",35.948,0]
["Hanson Aggregates Southeast, Inc.","Crabtree Quarry - Raleigh","2019-03-13","#78-M Stone for Electrochemical","CA61","954290","Skinner, III, John L",17680,9,0,"<37.330","MEETS","N/A",37.33,0]
["Hanson Aggregates Southeast, Inc.","Holly Springs Quarry","2016-02-26","#57 Stone for Electrochemical","CA282","795303","Skinner, III, John L",24313,8.1999999999999993,0,4.0999999999999996,"MEETS","N/A",4.0999999999999996,0]
["Hanson Aggregates Southeast, Inc.","Holly Springs Quarry","2019-03-29","#67 Stone for Electrochemical","CA282","956968","Skinner, III, John L",16520,9.3000000000000007,"<30","<39.952","DOES NOT MEET","N/A",39.951999999999998,30]
["Hanson Aggregates Southeast, Inc.","Holly Springs Quarry","2019-03-29","#78-M Stone for Electrochemical","CA282","956969","Skinner, III, John L",22360,9.3000000000000007,"<30","<29.517","DOES NOT MEET","N/A",29.516999999999999,30]
["Hanson Aggregates Southeast, Inc.","Jefferson Quarry - Jefferson, SC","2019-09-13","#57 Stone for Electrochemical","CA120","982912","Jordan, Daniel H",32700,9.15,"<32","<20.183","DOES NOT MEET","N/A",20.183,32]
["Hanson Aggregates Southeast, Inc.","Jefferson Quarry - Jefferson, SC","2019-09-13","#67 Stone for Electrochemical","CA120","982914","Jordan, Daniel H",29240,9.25,"<32","<22.573","DOES NOT MEET","N/A",22.573,32]
["Hanson Aggregates Southeast, Inc.","Jefferson Quarry - Jefferson, SC","2019-09-13","#78-M Stone for Electrochemical","CA120","982918","Jordan, Daniel H",55150,7.86,"<32","<11.967","MEETS","N/A",11.967000000000001,32]
["Hanson Aggregates Southeast, Inc.","Jefferson Quarry - Jefferson, SC","2018-12-07","Coarse Aggregate, #57","CA120","942231","Jordan, Daniel H",25930,9.1999999999999993,0,"<25.453","DOES NOT MEET","N/A",25.452999999999999,0]
["Hanson Aggregates Southeast, Inc.","Jefferson Quarry - Jefferson, SC","2018-12-07","Coarse Aggregate, #67","CA120","942234","Jordan, Daniel H",25150,9.1999999999999993,0,"<26.243","DOES NOT MEET","N/A",26.242999999999999,0]
["Hanson Aggregates Southeast, Inc.","Jefferson Quarry - Jefferson, SC","2018-12-07","Coarse Aggregate, #78M","CA120","942227","Jordan, Daniel H",23640,9.5,0,"<27.919","DOES NOT MEET","N/A",27.919,0]
["Hanson Aggregates Southeast, Inc.","Jefferson Quarry - Jefferson, SC","2016-12-14","Miscellaneous Material for Electrochemical","CA120","838779","Jordan, Daniel H",14691,8.1,0,0,"MEETS","N/A",0,0]
["Hanson Aggregates Southeast, Inc.","Marlboro Plant - Bennettsville","2018-10-24","#67 Stone for Electrochemical","CA34","936888","Jordan, Daniel H",158500,5.9,0,"<4.2","MEETS","N/A",4.2,0]
["Hanson Aggregates Southeast, Inc.","Marlboro Plant - Bennettsville","2018-10-24","#78-M Stone for Electrochemical","CA34","936887","Jordan, Daniel H",101900,5.8,0,"<6.5","MEETS","N/A",6.5,0]
["Hanson Aggregates Southeast, Inc.","Neverson Quarry - Sims","2016-03-15","#57 Stone for Electrochemical","CA66","798232","Raines, James R",22080,7.7,0,5.8,"MEETS","N/A",5.8,0]
["Hanson Aggregates Southeast, Inc.","Neverson Quarry - Sims","2016-03-15","#78-M Stone for Electrochemical","CA66","798233","Raines, James R",23288,7.4,0,4.5999999999999996,"MEETS","N/A",4.5999999999999996,0]
["Hanson Aggregates Southeast, Inc.","Princeton Quarry","2016-03-24","#57 Stone for Electrochemical","CA64","799116","Raines, James R",13717,7.6,0,4.0999999999999996,"MEETS","MEETS",4.0999999999999996,0]
["Hanson Aggregates Southeast, Inc.","Princeton Quarry","2016-03-24","#78-M Stone for Electrochemical","CA64","799117","Raines, James R",13463,7.7,0,5.7,"MEETS","MEETS",5.7,0]
["Hanson Aggregates Southeast, Inc.","Princeton Quarry","2013-06-12","Miscellaneous Material for Electrochemical","CA64","669957","Gardner, Joseph Tyler",23809,7.8,0,0,"MEETS","MEETS",0,0]
["Hanson Aggregates Southeast, Inc.","Raleigh Quarry - Wake Forest","2016-02-12","#57 Stone for Electrochemical","CA67","793719","Skinner, III, John L",27071,9.1999999999999993,0,4.8,"DOES NOT MEET","N/A",4.8,0]
["Hanson Aggregates Southeast, Inc.","Raleigh Quarry - Wake Forest","2019-01-09","#67 Stone for Electrochemical","CA67","944668","Skinner, III, John L",21840,9.5,0,"<30.22","DOES NOT MEET","N/A",30.22,0]
["Hanson Aggregates Southeast, Inc.","Raleigh Quarry - Wake Forest","2019-01-09","#78-M Stone for Electrochemical","CA67","944670","Skinner, III, John L",21530,9.4,0,"<30.655","DOES NOT MEET","N/A",{"$f":"IF(LEFT(K62, 1)=\"<\", VALUE(RIGHT(K62,LEN(K62)-1)), K62)","v":30.655000000000001},{"$f":"IF(LEFT(J62, 1)=\"<\", VALUE(RIGHT(J62,LEN(J62)-1)), J62)","v":0}]
["Hanson Aggregates Southeast, Inc.","Rocky Mount Quarry (#2)","2016-04-14","#57 Stone for Electrochemical","CA371","802197","Raines, James R",43346,7.9,0,0,"MEETS","MEETS",0,0]
["Hanson Aggregates Southeast, Inc.","Rocky Mount Quarry (#2)","2016-04-14","#78-M Stone for Electrochemical","CA371","802198","Raines, James R",10244,9.3000000000000007,0,62.7,"DOES NOT MEET","MEETS",62.7,0]
["Hanson Aggregates Southeast, Inc.","Rougemont Quarry","2016-02-16","#57 Stone for Electrochemical","CA217","793930","Skinner, III, John L",29940,9.4,5,8.3000000000000007,"DOES NOT MEET","N/A",8.3000000000000007,5]
["Hanson Aggregates Southeast, Inc.","Rougemont Quarry","2019-01-11","#67 Stone for Electrochemical","CA217","945245","Skinner, III, John L",22770,9.6999999999999993,0,"<28.986",{"$f":"IF(AND(4.5<=$I66,$I66<=9),\"MEETS\",\"DOES NOT MEET\")","v":"DOES NOT MEET"},"N/A",28.986000000000001,0]
["Hanson Aggregates Southeast, Inc.","Rougemont Quarry","2019-01-11","#78-M Stone for Electrochemical","CA217","945247","Skinner, III, John L",24460,9.6999999999999993,0,"<26.983","DOES NOT MEET","N/A",26.983000000000001,0]
["Hanson Aggregates Southeast, Inc.","Sandy Flats Quarry - Taylors, SC","2016-12-14","#57 Stone for Electrochemical","CA298","839140","Wood, Dean Michael M",18152,7.7,0,2,"MEETS","N/A",2,0]
["Hanson Aggregates Southeast, Inc.","Sandy Flats Quarry - Taylors, SC","2016-12-14","#67 Stone for Electrochemical","CA298","839142","Wood, Dean Michael M",21013,7.6,0,1.6,"MEETS","N/A",1.6,0]
["Hanson Aggregates Southeast, Inc.","Sandy Flats Quarry - Taylors, SC","2016-12-14","#78-M Stone for Electrochemical","CA298","839144","Wood, Dean Michael M",21786,7.8,0,0.9,"MEETS","N/A",0.9,0]
["Harrison Construction Co., Inc.","Dillsboro Quarry - Dillsboro","2020-10-15","#57 Stone for Electrochemical","CA15","1024687","Wood, Dean Michael M",9992,9.0299999999999994,"<30","<66.053","DOES NOT MEET","N/A",66.052999999999997,30]
["Harrison Construction Co., Inc.","Dillsboro Quarry - Dillsboro","2019-02-13","#78-M Stone for Electrochemical","CA15","949677","Ledford, Brandon S",9607,8.8000000000000007,0,"<68.7","MEETS","N/A",68.7,0]
["Harrison Construction Co., Inc.","Franklin Quarry - Franklin","2019-01-17","#57 Stone for Electrochemical","CA16","946029","Ledford, Brandon S",20250,7.8,0,"<32.593","MEETS","N/A",32.593000000000004,0]
["Harrison Construction Co., Inc.","Franklin Quarry - Franklin","2019-01-17","#78-M Stone for Electrochemical","CA16","946030","Ledford, Brandon S",11820,8.4,0,"<55.838","MEETS","N/A",55.838000000000001,0]
["Harrison Construction Co., Inc.","Hayesville Quarry - Hayesville","2016-07-15","#57 Stone for Electrochemical","CA195","816317","Ledford, Brandon S",17449,8.8000000000000007,2.1,28.9,"MEETS","N/A",28.9,2.1]
["Harrison Construction Co., Inc.","Hayesville Quarry - Hayesville","2016-07-15","#78-M Stone for Electrochemical","CA195","816298","Ledford, Brandon S",8467,8.6999999999999993,2.1,28.4,"MEETS","N/A",28.4,2.1]
["Harrison Construction Co., Inc.","Massey Branch Quarry - Robbinsville","2001-08-09","#57 Stone for Electrochemical","CA193","225525","Wallace, Robert R",83300,7.9,"","","MEETS",{"$f":"IF(ISBLANK(I77), \"N/A\", IF(AND(5 <= $I77, $I77 <= 10),IF($H77>=5000,IF($O77<=100,IF($N77<=200,\"MEETS\",\"DOES NOT MEET\"),\"DOES NOT MEET\"),\"DOES NOT MEET\"),\"DOES NOT MEET\"))","v":"DOES NOT MEET"},"",""]
["Harrison Construction Co., Inc.","Massey Branch Quarry - Robbinsville","2001-10-22","#78-M Stone for Electrochemical","CA193","235848","Wallace, Robert R",8300,5.7,"","","MEETS",{"$f":"IF(ISBLANK(I78), \"N/A\", IF(AND(5 <= $I78, $I78 <= 10),IF($H78>=5000,IF($O78<=100,IF($N78<=200,\"MEETS\",\"DOES NOT MEET\"),\"DOES NOT MEET\"),\"DOES NOT MEET\"),\"DOES NOT MEET\"))","v":"DOES NOT MEET"},"",""]
["Harrison Construction Co., Inc.","Waynesville Quarry - Waynesville","2019-07-29","#57 Stone for Electrochemical","CA1","974809","Kindley, Wallace Quint",12180,9.0299999999999994,"<29","<54.187","DOES NOT MEET",{"$f":"IF(OR(ISBLANK(I79), NOT(ISNUMBER(MATCH($E79, Coastal, 0)))), \"N/A\", IF(AND(5 <= $I79, $I79 <= 10),IF($H79>=5000,IF($O79<=100,IF($N79<=200,\"MEETS\",\"DOES NOT MEET\"),\"DOES NOT MEET\"),\"DOES NOT MEET\"),\"DOES NOT MEET\"))","v":"N/A"},54.186999999999998,29]
["Harrison Construction Co., Inc.","Waynesville Quarry - Waynesville","2008-12-09","#67 Stone for Electrochemical","CA1","475184","Hughes, Joseph W",6309,7.6,"<27","<200","MEETS","N/A",200,27]
["Harrison Construction Co., Inc.","Waynesville Quarry - Waynesville","2019-07-29","#78-M Stone for Electrochemical","CA1","974813","Kindley, Wallace Quint",8835,8.83,"<29","<74.70","MEETS","N/A",74.7,29]
["Hedrick Industries","Aquadale Quarry - Norwood","2019-09-24","#57 Stone for Electrochemical","CA274","984751","Smith, Michael L",11040,8.92,"<32","<59.783","MEETS","N/A",59.783000000000001,32]
["Hedrick Industries","Aquadale Quarry - Norwood","2019-09-24","#67 Stone for Electrochemical","CA274","984693","Smith, Michael L",14180,9.02,"<32","<46.544","DOES NOT MEET","N/A",46.543999999999997,32]
["Hedrick Industries","Aquadale Quarry - Norwood","2019-09-24","#78-M Stone for Electrochemical","CA274","984802","Smith, Michael L",9018,8.86,"<32","<73.187","MEETS","N/A",73.186999999999998,32]
["Hedrick Industries","Grove Stone Quarry - Black Mountain","2019-04-23","#57 Stone for Electrochemical","CA146","960223","Rhymer, Robert C",17500,9.4,"<30","<37.714","DOES NOT MEET","N/A",37.713999999999999,30]
["Hedrick Industries","Grove Stone Quarry - Black Mountain","2016-04-08","#67 Stone for Electrochemical","CA146","801531","Rhymer, Robert C",11593,7,0,21,"MEETS","N/A",21,0]
["Hedrick Industries","Grove Stone Quarry - Black Mountain","2019-04-23","#78-M Stone for Electrochemical","CA146","960224","Rhymer, Robert C",16900,9.1999999999999993,"<30","<39.053","DOES NOT MEET","N/A",39.052999999999997,30]
["Hedrick Industries","Lake Norman Quarry - Stanley","2019-07-12","#57 Stone for Electrochemical","CA168","972391","Gosnell, Jimmy L",7776,9.24,"<29","<84.877","DOES NOT MEET","N/A",84.876999999999995,29]
["Hedrick Industries","Lake Norman Quarry - Stanley","2019-07-12","#67 Stone for Electrochemical","CA168","972392","Gosnell, Jimmy L",7067,9.24,"<29","<71.467","DOES NOT MEET","N/A",71.466999999999999,29]
["Hedrick Industries","Lake Norman Quarry - Stanley","2019-07-12","#78-M Stone for Electrochemical","CA168","972393","Gosnell, Jimmy L",8980,9.0399999999999991,"<29","<73.497","DOES NOT MEET","N/A",73.497,29]
["Hedrick Industries","North Buncombe Quarry - Asheville","2019-04-29","#57 Stone for Electrochemical","CA131","961081","Kindley, Wallace Quint",10350,9.1,"<30","<63.678","DOES NOT MEET","N/A",63.677999999999997,30]
["Hedrick Industries","North Buncombe Quarry - Asheville","2019-04-29","#78-M Stone for Electrochemical","CA131","961088","Kindley, Wallace Quint",8953,9.1,"<30","<73.718","DOES NOT MEET","N/A",73.718000000000004,30]
["Hedrick Industries","South McDowell Quarry - Marion","2019-01-24","#57 Stone for Electrochemical","CA283","946847","Rhymer, Robert C",22238,9.3000000000000007,0,"<29.679","DOES NOT MEET","N/A",29.678999999999998,0]
["Hedrick Industries","South McDowell Quarry - Marion","2019-01-24","#78-M Stone for Electrochemical","CA283","946849","Rhymer, Robert C",26700,9.1999999999999993,0,"<24.719","DOES NOT MEET","N/A",24.719000000000001,0]
["J.T. Russell & Sons, Inc.","Troy Sales Yard","2016-05-19","#57 Stone for Electrochemical","CA403","807584","Tucker, Rusty J",72098,7.4,0,5.3,"MEETS","N/A",5.3,0]
["LBM Industries","Hewitt Quarry - Topton","2011-07-26","#57 Stone for Electrochemical","CA23","595688","Cross, Adam D",17301,8.9,0,0,"MEETS","N/A",0,0]
["LBM Industries","Hewitt Quarry - Topton","2011-07-26","#78-M Stone for Electrochemical","CA23","595694","Cross, Adam D",15432,8.8000000000000007,0,0,"MEETS","N/A",0,0]
["LBM Industries","Whitewater Falls Quarry - Sapphire","2019-08-21","#57 Stone for Electrochemical","CA119","979122","Wood, Dean Michael M",39270,9.1,"<32","<16.807","DOES NOT MEET","N/A",16.806999999999999,32]
["LBM Industries","Whitewater Falls Quarry - Sapphire","2019-08-21","#78-M Stone for Electrochemical","CA119","979124","Wood, Dean Michael M",24020,9.58,"<32","<27.477","DOES NOT MEET","N/A",27.477,32]
["Luck Stone Corporation","Eden Quarry - Eden","2023-04-03","#78-M Stone for Electrochemical","CA374","1101668","Stanley, Nicholas D",11100,9.2200000000000006,"<31","<44.64","DOES NOT MEET","N/A",44.64,31]
["Luck Stone Corporation","Pittsboro Quarry - Moncure","2018-11-30","#57 Stone for Electrochemical","CA292","941282","Jackson, Brandon M",20320,9.5,"<30","<32.48","DOES NOT MEET","N/A",32.479999999999997,30]
["Luck Stone Corporation","Pittsboro Quarry - Moncure","2016-03-29","#67 Stone for Electrochemical","CA292","799656","Jackson, Brandon M",20833,8.6,0,6.1,"MEETS","N/A",6.1,0]
["Luck Stone Corporation","Pittsboro Quarry - Moncure","2018-11-30","#78-M Stone for Electrochemical","CA292","941283","Jackson, Brandon M",18920,9.4,0,".<34.88","DOES NOT MEET","N/A",".<34.88",0]
["Luck Stone Corporation","Pittsboro Quarry - Moncure","2016-03-29","Miscellaneous Material for Electrochemical","CA292","799661","Jackson, Brandon M",3383,7.3,0,123,"MEETS","N/A",123,0]
["Martin Marietta","American Stone - Carrboro","2016-03-02","#57 Stone for Electrochemical","CA2","795851","Fosque, Robert W",22989,8.9,0,4,"MEETS","N/A",4,0]
["Martin Marietta","American Stone - Carrboro","2019-02-13","#67 Stone for Electrochemical","CA2","949790","Westmoreland, Braxton J",16170,9.8000000000000007,0,"<40.816","DOES NOT MEET","N/A",40.816000000000003,0]
["Martin Marietta","American Stone - Carrboro","2019-02-13","#78-M Stone for Electrochemical","CA2","949792","Westmoreland, Braxton J",14230,8.9,0,"<46.381","MEETS","N/A",46.381,0]
["Martin Marietta","Arrowood Quarry - Charlotte","2016-02-24","#57 Stone for Electrochemical","CA31","796031","Adair, Mildred (Millie) L",22826,7.7,0,9.6999999999999993,"MEETS","N/A",9.6999999999999993,0]
["Martin Marietta","Arrowood Quarry - Charlotte","2019-09-18","#67 Stone for Electrochemical","CA31","983522","Smith, Michael L",10830,9.15,"<32","<60.942","DOES NOT MEET","N/A",60.942,32]
["Martin Marietta","Arrowood Quarry - Charlotte","2019-09-18","#78-M Stone for Electrochemical","CA31","983524","Smith, Michael L",9789,9.0299999999999994,"<32","<67.423","DOES NOT MEET","N/A",67.423000000000002,32]
["Martin Marietta","Arrowood Quarry - Charlotte","2019-09-18","Miscellaneous Material for Electrochemical","CA31","983528","Smith, Michael L",3535,7.92,"<32","<186.704","MEETS",{"$f":"IF(OR(ISBLANK(I111), NOT(ISNUMBER(MATCH($E111, Coastal, 0)))), \"N/A\", IF(AND(5 <= $I111, $I111 <= 10),IF($H111>=5000,IF($O111<=100,IF($N111<=200,\"MEETS\",\"DOES NOT MEET\"),\"DOES NOT MEET\"),\"DOES NOT MEET\"),\"DOES NOT MEET\"))","v":"N/A"},186.70400000000001,32]
["Martin Marietta","Asheboro Quarry - Asheboro","2019-08-22","#57 Stone for Electrochemical","CA30","979357","Jackson, Brandon M",18060,9.17,"<29","<36.545","DOES NOT MEET","N/A",36.545000000000002,29]
["Martin Marietta","Asheboro Quarry - Asheboro","2019-08-22","#67 Stone for Electrochemical","CA30","979365","Jackson, Brandon M",17770,9.0500000000000007,"<29","<37.141","DOES NOT MEET","N/A",37.140999999999998,29]
["Martin Marietta","Asheboro Quarry - Asheboro","2019-08-22","#78-M Stone for Electrochemical","CA30","979366","Jackson, Brandon M",18550,9.11,"<29","<35.580","DOES NOT MEET","N/A",35.58,29]
["Martin Marietta","Asheboro Quarry - Asheboro","2010-02-04","Coarse Aggregate, #57","CA30","503816","Jackson, Brandon M",98328,7.6,27,"<200","MEETS","N/A",200,27]
["Martin Marietta","Asheboro Quarry - Asheboro","2008-07-10","Coarse Aggregate, #67","CA30","463619","Dunn, Jr., Larry E",20242,7.7,"<27","<200","MEETS","N/A",200,27]
["Martin Marietta","Bakers Quarry - Monroe","2019-11-27","#57 Stone for Electrochemical","CA32","993357","Smith, Michael L",22460,9.34,"<30","<29.386","DOES NOT MEET","N/A",29.385999999999999,30]
["Martin Marietta","Bakers Quarry - Monroe","2019-11-27","#67 Stone for Electrochemical","CA32","993358","Smith, Michael L",23130,9.3800000000000008,"<30","<28.534","DOES NOT MEET","N/A",28.533999999999999,30]
["Martin Marietta","Bakers Quarry - Monroe","2019-11-27","#78-M Stone for Electrochemical","CA32","993359","Smith, Michael L",17070,9.27,"<30","<38.664","DOES NOT MEET","N/A",38.664000000000001,30]
["Martin Marietta","Bakers Quarry - Monroe","2019-11-27","Miscellaneous Material for Electrochemical","CA32","993355","Smith, Michael L",11890,8.8800000000000008,"<30","<55.509","MEETS","N/A",55.509,30]
["Martin Marietta","Belgrade Quarry - Maysville","2015-09-30","#78-M Stone for Electrochemical","CA38","778061","Cahill, Luke R",3370,7.3,0,0,"MEETS","DOES NOT MEET",0,0]
["Martin Marietta","Benson Quarry - Benson","2023-03-29","#57 Stone for Electrochemical","CA176","1101085","Halasz, Carl M",15550,9.0399999999999991,"<31","<32.01","DOES NOT MEET","N/A",32.01,31]
["Martin Marietta","Benson Quarry - Benson","2016-03-16","#78-M Stone for Electrochemical","CA176","798244","Raines, James R",20585,8.3000000000000007,0,4.3,"MEETS","N/A",4.3,0]
["Martin Marietta","Benson Quarry - Benson","2023-04-10","Coarse Aggregate, #78M","CA176","1102300","Moore, Charles A",19260,9.44,"<31","<25.94","DOES NOT MEET","N/A",25.94,31]
["Martin Marietta","Bonds Quarry - Concord","2018-09-10","#57 Stone for Electrochemical","CA276","930587","Pegues, Jr., Henderson",14640,9.5,7.5,"<45.97","DOES NOT MEET","N/A",45.97,7.5]
["Martin Marietta","Bonds Quarry - Concord","2019-09-04","#67 Stone for Electrochemical","CA276","981560","Cero, Kevin M",19640,9.7200000000000006,"<32","<33.605","DOES NOT MEET","N/A",{"$f":"IF(LEFT(K126, 1)=\"<\", VALUE(RIGHT(K126,LEN(K126)-1)), K126)","v":33.604999999999997},{"$f":"IF(LEFT(J126, 1)=\"<\", VALUE(RIGHT(J126,LEN(J126)-1)), J126)","v":32}]
["Martin Marietta","Bonds Quarry - Concord","2019-09-04","#78-M Stone for Electrochemical","CA276","981563","Cero, Kevin M",19530,9.43,"<32","<33.794","DOES NOT MEET","N/A",33.793999999999997,32]
["Martin Marietta","Burlington Quarry - Burlington","2016-02-29","#57 Stone for Electrochemical","CA39","795917","Loshinskiy, Roman",18420,8.9,0,4,"MEETS","N/A",4,0]
["Martin Marietta","Burlington Quarry - Burlington","2019-05-31","#67 Stone for Electrochemical","CA39","966239","Waller, John M",15550,9.4499999999999993,"<30","<42.444","DOES NOT MEET","N/A",42.444000000000003,30]
["Martin Marietta","Burlington Quarry - Burlington","2019-05-31","#78-M Stone for Electrochemical","CA39","966238","Waller, John M",13960,9.25,"<30","<47.278",{"$f":"IF(AND(4.5<=$I130,$I130<=9),\"MEETS\",\"DOES NOT MEET\")","v":"DOES NOT MEET"},"N/A",47.277999999999999,30]
["Martin Marietta","Castle Hayne Quarry - Castle Hayne","2023-08-10","#57 Stone for Electrochemical","CA40","1114717","Holst, David W",20020,9.51,"<31","<24.98","DOES NOT MEET","N/A",24.98,31]
["Martin Marietta","Castle Hayne Yard - Castle Hayne","2023-09-19","#57 Stone for Electrochemical","CA319","1118569","Holst, David W",11690,8.58,"<29","<42.43","MEETS","MEETS",42.43,29]
["Martin Marietta","Castle Hayne Yard - Castle Hayne","2018-03-08","#78-M Stone for Electrochemical","CA319","900963","Oehman, Christopher E",14881,8.5,0,43.4,"MEETS","MEETS",43.4,0]
["Martin Marietta","Castle Hayne Yard - Castle Hayne","2018-07-13","Coarse Aggregate, #78M","CA319","920602","Oehman, Christopher E",16480,9.4,0,"<38.6","DOES NOT MEET","MEETS",38.6,0]
["Martin Marietta","Central Rock Quarry - Greensboro","2019-06-04","#57 Stone for Electrochemical","CA28","966790","Waller, John M",17480,9.49,"<30","<37.757","DOES NOT MEET","N/A",37.756999999999998,30]
["Martin Marietta","Central Rock Quarry - Greensboro","2019-06-04","#78-M Stone for Electrochemical","CA28","966787","Waller, John M",15200,9.49,"<30","<43.421","DOES NOT MEET","N/A",43.420999999999999,30]
["Martin Marietta","Central Rock Quarry - Greensboro","2010-02-04","Coarse Aggregate, #67","CA28","503817","Jackson, Brandon M",19120,8.8000000000000007,27,"<200","MEETS","N/A",200,27]
["Martin Marietta","Central Rock Quarry - Greensboro","2010-02-04","Coarse Aggregate, #78M","CA28","503819","Jackson, Brandon M",15674,8.4,27,"<200","MEETS","N/A",200,27]
["Martin Marietta","Charlotte Quarry - Charlotte","2019-07-10","#57 Stone for Electrochemical","CA41","972755","Pegues, Jr., Henderson",17300,9.56,"<29","<38.150","DOES NOT MEET","N/A",38.15,29]
["Martin Marietta","Charlotte Quarry - Charlotte","2019-07-10","#67 Stone for Electrochemical","CA41","972758","Pegues, Jr., Henderson",18470,9.49,"<29","<35.734","DOES NOT MEET","N/A",35.734000000000002,29]
["Martin Marietta","Charlotte Quarry - Charlotte","2019-07-10","#78-M Stone for Electrochemical","CA41","972759","Pegues, Jr., Henderson",17520,9.34,"<29","<37.671","DOES NOT MEET","N/A",37.670999999999999,29]
["Martin Marietta","Charlotte Quarry - Charlotte","2016-04-14","Miscellaneous Material for Electrochemical","CA41","802309","Adair, Mildred (Millie) L",9970,7.7,0,8.6,"MEETS","N/A",8.6,0]
["Martin Marietta","Clarks Quarry - New Bern","2020-10-13","#67 Stone for Electrochemical","CA189","1023173","Cobb, James R",2770,8.0299999999999994,"<30","<238.267","MEETS",{"$f":"IF(OR(ISBLANK(I143), NOT(ISNUMBER(MATCH($E143, Coastal, 0)))), \"N/A\", IF(AND(5 <= $I143, $I143 <= 10),IF($H143>=5000,IF($O143<=100,IF($N143<=200,\"MEETS\",\"DOES NOT MEET\"),\"DOES NOT MEET\"),\"DOES NOT MEET\"),\"DOES NOT MEET\"))","v":"DOES NOT MEET"},238.267,30]
["Martin Marietta","Clarks Quarry - New Bern","2020-10-13","#78-M Stone for Electrochemical","CA189","1023172","Cobb, James R",2542,8.1300000000000008,"<30","<259.638","MEETS","DOES NOT MEET",259.63799999999998,30]
["Martin Marietta","Clarks Quarry - New Bern","2016-08-03","Miscellaneous Material for Electrochemical","CA189","819245","Maynard, William BJ T",8163,8.4,0,31.8,"MEETS","MEETS",31.8,0]
["Martin Marietta","Cumberland Quarry","2011-10-28","#57 Stone for Electrochemical","CA339","606382","Stewart, Ernest C",11507,7.4,0,0,"MEETS","N/A",0,0]
["Martin Marietta","Cumberland Quarry","2011-06-08","ABC Stone for Electrochemical","CA339","541380","Robinson, Beatrice H",6169,7.7,0,0,"MEETS","N/A",0,0]
["Martin Marietta","Cumberland Quarry","2011-06-08","ABC Stone for Electrochemical","CA339","541382","Robinson, Beatrice H",5247,7.6,0,0,"MEETS","N/A",0,0]
["Martin Marietta","Denver Quarry - Denver","2019-09-20","#57 Stone for Electrochemical","CA169","983979","Myers, Jesse J",14160,8.98,"<32","<46.610","MEETS","N/A",46.61,32]
["Martin Marietta","Denver Quarry - Denver","2019-08-28","#67 Stone for Electrochemical","CA169","980194","Brinson, Joseph",2476,3.97,"<32","<266.559","DOES NOT MEET","N/A",266.55900000000003,32]
["Martin Marietta","Denver Quarry - Denver","2019-09-20","#78-M Stone for Electrochemical","CA169","983981","Myers, Jesse J",10780,8.52,"<32","<61.224","MEETS","N/A",61.223999999999997,32]
["Martin Marietta","East Alamance Quarry - Haw River","2018-09-10","#57 Stone for Electrochemical","CA201","930500","Waller, John M",20310,9.6,15,"<29.34","DOES NOT MEET","N/A",29.34,15]
["Martin Marietta","East Alamance Sales Yard","2016-02-08","#57 Stone for Electrochemical","CA377","793260","Westmoreland, Braxton J",19350,7,5,11.1,"MEETS","N/A",11.1,5]
["Martin Marietta","East Alamance Sales Yard","2016-02-08","#78-M Stone for Electrochemical","CA377","793261","Westmoreland, Braxton J",15330,8.3000000000000007,5,9.4,"MEETS","N/A",9.4,5]
["Martin Marietta","Fountain Quarry - Fountain","2021-06-01","#57 Stone for Electrochemical","CA42","1043178","Cobb, James R",18210,9.41,"<33","<36.244","DOES NOT MEET","MEETS",36.244,33]
["Martin Marietta","Fountain Quarry - Fountain","2021-06-01","#57 Stone for Electrochemical","CA42","1043178","Cobb, James R",18210,9.41,"<33","<36.244","DOES NOT MEET","MEETS",36.244,33]
["Martin Marietta","Fountain Quarry - Fountain","2021-06-01","#78-M Stone for Electrochemical","CA42","1043179","Cobb, James R",21470,9.34,"<33","<30.741","DOES NOT MEET","MEETS",30.741,33]
["Martin Marietta","Fountain Quarry - Fountain","2021-06-01","#78-M Stone for Electrochemical","CA42","1043179","Cobb, James R",21470,9.34,"<33","<30.741","DOES NOT MEET","MEETS",30.741,33]
["Martin Marietta","Franklin Quarry - Franklinton","2019-03-27","#57 Stone for Electrochemical","CA270","956770","Skinner, III, John L",21320,9.6,"<30","<30.957","DOES NOT MEET","N/A",30.957000000000001,30]
["Martin Marietta","Franklin Quarry - Franklinton","2019-03-27","#78-M Stone for Electrochemical","CA270","956772","Skinner, III, John L",24930,8.1,"<30","<26.474","MEETS","N/A",26.474,30]
["Martin Marietta","Fuquay Quarry - Fuquay-Varina","2019-01-31","#57 Stone for Electrochemical","CA220","947851","Skinner, III, John L",25920,9.4,0,"<25.463","DOES NOT MEET","N/A",25.463000000000001,0]
["Martin Marietta","Fuquay Quarry - Fuquay-Varina","2019-01-31","#78-M Stone for Electrochemical","CA220","947853","Skinner, III, John L",20170,9.3000000000000007,0,"<32.722","DOES NOT MEET","N/A",32.722000000000001,0]
["Martin Marietta","Garner Quarry - Garner","2019-01-29","#67 Stone for Electrochemical","CA57","947426","Skinner, III, John L",21980,9.3000000000000007,0,"<30.027","DOES NOT MEET","N/A",30.027000000000001,0]
["Martin Marietta","Garner Quarry - Garner","2019-01-29","#78-M Stone for Electrochemical","CA57","947428","Skinner, III, John L",21020,9.3000000000000007,0,"<31.399","DOES NOT MEET","N/A",31.399000000000001,0]
["Martin Marietta","Hickory Quarry - Hickory","2019-07-08","#57 Stone for Electrochemical","CA43","971761","Gosnell, Jimmy L",22040,9.4,"<29","<29.946","DOES NOT MEET","N/A",29.946000000000002,29]
["Martin Marietta","Hickory Quarry - Hickory","2019-07-08","#67 Stone for Electrochemical","CA43","971762","Gosnell, Jimmy L",22660,9.4700000000000006,"<29","<29.126","DOES NOT MEET","N/A",29.126000000000001,29]
["Martin Marietta","Hickory Quarry - Hickory","2019-07-08","#78-M Stone for Electrochemical","CA43","971764","Gosnell, Jimmy L",21930,9.4700000000000006,"<29","<30.096","DOES NOT MEET","N/A",30.096,29]
["Martin Marietta","Hicone Quarry","2003-12-02","#57 Stone for Electrochemical","CA44","320591","Cassada, James Tim",24160,7.2,26,"","MEETS",{"$f":"IF(ISBLANK(I168), \"N/A\", IF(AND(5 <= $I168, $I168 <= 10),IF($H168>=5000,IF($O168<=100,IF($N168<=200,\"MEETS\",\"DOES NOT MEET\"),\"DOES NOT MEET\"),\"DOES NOT MEET\"),\"DOES NOT MEET\"))","v":"DOES NOT MEET"},"",26]
["Martin Marietta","I-40 Sales Yard (Castle Hayne)","2002-10-03","#57 Stone for Electrochemical","CA235","278281","Allen, Daniel W",14706,8.8000000000000007,26,"","MEETS",{"$f":"IF(ISBLANK(I169), \"N/A\", IF(AND(5 <= $I169, $I169 <= 10),IF($H169>=5000,IF($O169<=100,IF($N169<=200,\"MEETS\",\"DOES NOT MEET\"),\"DOES NOT MEET\"),\"DOES NOT MEET\"),\"DOES NOT MEET\"))","v":"DOES NOT MEET"},"",26]
["Martin Marietta","Jamestown Quarry - Jamestown","2004-10-19","#57 Stone for Electrochemical","CA46","356100","Crissman, Albert Lynn",23320,8.3000000000000007,"<26","<400","MEETS",{"$f":"IF(ISBLANK(I170), \"N/A\", IF(AND(5 <= $I170, $I170 <= 10),IF($H170>=5000,IF($O170<=100,IF($N170<=200,\"MEETS\",\"DOES NOT MEET\"),\"DOES NOT MEET\"),\"DOES NOT MEET\"),\"DOES NOT MEET\"))","v":"DOES NOT MEET"},400,26]
["Martin Marietta","Jamestown Quarry - Jamestown","2019-06-04","#67 Stone for Electrochemical","CA46","966791","Waller, John M",26120,9.15,"<30","<25.268","DOES NOT MEET",{"$f":"IF(OR(ISBLANK(I171), NOT(ISNUMBER(MATCH($E171, Coastal, 0)))), \"N/A\", IF(AND(5 <= $I171, $I171 <= 10),IF($H171>=5000,IF($O171<=100,IF($N171<=200,\"MEETS\",\"DOES NOT MEET\"),\"DOES NOT MEET\"),\"DOES NOT MEET\"),\"DOES NOT MEET\"))","v":"N/A"},25.268000000000001,30]
["Martin Marietta","Jamestown Quarry - Jamestown","2019-06-04","#78-M Stone for Electrochemical","CA46","966788","Waller, John M",28310,9.1300000000000008,"<30","<23.313","DOES NOT MEET","N/A",23.312999999999999,30]
["Martin Marietta","Kannapolis Quarry - Landis","2020-02-26","#57 Stone for Electrochemical","CA47","1000981","Ealey, Lee E",24350,9.39,"<30","<27.105","DOES NOT MEET","N/A",27.105,30]
["Martin Marietta","Kannapolis Quarry - Landis","2020-02-26","#67 Stone for Electrochemical","CA47","1000982","Ealey, Lee E",16709,8.99,"<30","<39.5","MEETS","N/A",39.5,30]
["Martin Marietta","Kannapolis Quarry - Landis","2020-02-26","#78-M Stone for Electrochemical","CA47","1000984","Ealey, Lee E",20890,9.1300000000000008,"<30","<31.594","DOES NOT MEET","N/A",31.594000000000001,30]
["Martin Marietta","Kings Mountain Quarry - Kings Mountain","2019-07-01","#67 Stone for Electrochemical","CA48","970678","Gosnell, Jimmy L",13190,9.27,"<29","<50.038","DOES NOT MEET","N/A",50.037999999999997,29]
["Martin Marietta","Kings Mountain Quarry - Kings Mountain","2019-07-01","#78-M Stone for Electrochemical","CA48","970680","Gosnell, Jimmy L",12220,9.2899999999999991,"<29","<54.010","DOES NOT MEET","N/A",54.01,29]
["Martin Marietta","Lemon Springs - Sanford","2019-08-16","#57 Stone for Electrochemical","CA97","978230","Jackson, Brandon M",16210,9.4600000000000009,"<29","<40.716","DOES NOT MEET","N/A",40.716000000000001,29]
["Martin Marietta","Lemon Springs - Sanford","2019-08-16","#67 Stone for Electrochemical","CA97","978233","Jackson, Brandon M",16730,9.33,"<29","<39.450","DOES NOT MEET","N/A",39.450000000000003,29]
["Martin Marietta","Lemon Springs - Sanford","2019-08-16","#78-M Stone for Electrochemical","CA97","978234","Jackson, Brandon M",15270,9.23,"<29","<43.222","DOES NOT MEET","N/A",43.222000000000001,29]
["Martin Marietta","Mallard Creek Quarry - Charlotte","2018-11-12","#57 Stone for Electrochemical","CA188","939062","Pegues, Jr., Henderson",25090,9.6,0,"<26.3","DOES NOT MEET","N/A",26.3,0]
["Martin Marietta","Mallard Creek Quarry - Charlotte","2019-11-06","#67 Stone for Electrochemical","CA188","990713","Pegues, Jr., Henderson",17870,9.44,"<32","<36.933","DOES NOT MEET","N/A",36.933,32]
["Martin Marietta","Mallard Creek Quarry - Charlotte","2019-11-06","#78-M Stone for Electrochemical","CA188","990711","Pegues, Jr., Henderson",15450,9.34,"<32","<42.718","DOES NOT MEET","N/A",42.718000000000004,32]
["Martin Marietta","Mallard Creek Quarry - Charlotte","2014-01-02","Miscellaneous Material for Electrochemical","CA188","694428","Adair, Mildred (Millie) L",11794,8.1999999999999993,0,0,"MEETS","N/A",0,0]
["Martin Marietta","Matthews Quarry - Matthews","2019-11-25","#57 Stone for Electrochemical","CA37","993304","Smith, Michael L",19880,9.3800000000000008,"<30","<33.199","DOES NOT MEET","N/A",33.198999999999998,30]
["Martin Marietta","Matthews Quarry - Matthews","2019-11-25","#67 Stone for Electrochemical","CA37","993307","Smith, Michael L",18460,9.3699999999999992,"<30","<35.753","DOES NOT MEET","N/A",35.753,30]
["Martin Marietta","Matthews Quarry - Matthews","2019-11-25","#78-M Stone for Electrochemical","CA37","993308","Smith, Michael L",18410,9.25,"<30","<35.850","DOES NOT MEET","N/A",35.85,30]
["Martin Marietta","Matthews Quarry - Matthews","2019-12-03","Miscellaneous Material for Electrochemical","CA37","993338","Smith, Michael L",9169,8.9499999999999993,"<30","<71.982","MEETS","N/A",71.981999999999999,30]
["Martin Marietta","Onslow Quarry - Richlands","2015-09-30","#57 Stone for Electrochemical","CA259","778060","Cahill, Luke R",4480,6.8,0,0,"MEETS","DOES NOT MEET",0,0]
["Martin Marietta","Pomona Quarry - Greensboro","2019-05-28","#57 Stone for Electrochemical","CA51","965378","Waller, John M",20730,9.6,"<30","<31.838","DOES NOT MEET","N/A",{"$f":"IF(LEFT(K190, 1)=\"<\", VALUE(RIGHT(K190,LEN(K190)-1)), K190)","v":31.838000000000001},{"$f":"IF(LEFT(J190, 1)=\"<\", VALUE(RIGHT(J190,LEN(J190)-1)), J190)","v":30}]
["Martin Marietta","Pomona Quarry - Greensboro","2019-05-28","#67 Stone for Electrochemical","CA51","965377","Waller, John M",17760,9.5,"<30","<37.162","DOES NOT MEET","N/A",37.161999999999999,30]
["Martin Marietta","Pomona Quarry - Greensboro","2019-05-28","#78-M Stone for Electrochemical","CA51","965376","Waller, John M",18800,9.5,"<30","<35.106","DOES NOT MEET","N/A",35.106000000000002,30]
["Martin Marietta","Raleigh-Durham Quarry - Raleigh","2016-02-05","#57 Stone for Electrochemical","CA156","792800","Skinner, III, John L",22894,8.9,5,28.2,"MEETS","N/A",28.2,5]
["Martin Marietta","Raleigh-Durham Quarry - Raleigh","2019-01-18","#67 Stone for Electrochemical","CA156","946459","Skinner, III, John L",6298,10.7,0,"<104.795",{"$f":"IF(AND(4.5<=$I194,$I194<=9),\"MEETS\",\"DOES NOT MEET\")","v":"DOES NOT MEET"},"N/A",104.795,0]
["Martin Marietta","Raleigh-Durham Quarry - Raleigh","2019-01-18","#78-M Stone for Electrochemical","CA156","946460","Skinner, III, John L",14230,10.1,0,"<46.381","DOES NOT MEET","N/A",46.381,0]
["Martin Marietta","Reidsville Quarry - Reidsville","2019-02-13","#57 Stone for Electrochemical","CA52","949847","Westmoreland, Braxton J",17820,9.5,0,"<37.037","DOES NOT MEET","N/A",37.036999999999999,0]
["Martin Marietta","Reidsville Quarry - Reidsville","2019-02-13","#67 Stone for Electrochemical","CA52","949848","Westmoreland, Braxton J",19290,9.4,0,"<34.215","DOES NOT MEET","N/A",34.215000000000003,0]
["Martin Marietta","Reidsville Quarry - Reidsville","2019-02-13","#78-M Stone for Electrochemical","CA52","949846","Westmoreland, Braxton J",17310,9.5,0,"<38.128","DOES NOT MEET","N/A",38.128,0]
["Martin Marietta","Rock Hill Quarry - Rock Hill, SC","2017-10-30","#57 Stone for Electrochemical","CA271","885405","Adair, Mildred (Millie) L",21739,9.3000000000000007,0,28.5,"DOES NOT MEET","N/A",28.5,0]
["Martin Marietta","Rock Hill Quarry - Rock Hill, SC","2019-09-10","#67 Stone for Electrochemical","CA271","982307","Adair, Mildred (Millie) L",15260,9.52,"<32","<43.25","DOES NOT MEET","N/A",43.25,32]
["Martin Marietta","Rock Hill Quarry - Rock Hill, SC","2019-09-10","#78-M Stone for Electrochemical","CA271","982310","Adair, Mildred (Millie) L",16020,9.4700000000000006,"<32","<41.199","DOES NOT MEET","N/A",41.198999999999998,32]
["Martin Marietta","Rock Hill Quarry - Rock Hill, SC","2019-09-10","Miscellaneous Material for Electrochemical","CA271","982312","Adair, Mildred (Millie) L",9347,9.23,"<32","<70.611","DOES NOT MEET","N/A",70.611000000000004,32]
["Martin Marietta","Salem Stone Quarry - Kernersville","2020-03-10","#57 Stone for Electrochemical","CA209","1005499","Ealey, Lee E",25960,9.61,"<30","<25.424","DOES NOT MEET","N/A",25.423999999999999,30]
["Martin Marietta","Salem Stone Quarry - Kernersville","2020-03-10","#67 Stone for Electrochemical","CA209","1005503","Ealey, Lee E",22730,9.6,"<30","<29.037","DOES NOT MEET","N/A",29.036999999999999,30]
["Martin Marietta","Salem Stone Quarry - Kernersville","2020-03-10","#78-M Stone for Electrochemical","CA209","1005506","Ealey, Lee E",22540,9.2799999999999994,"<30","<29.281","DOES NOT MEET","N/A",29.280999999999999,30]
["Martin Marietta","Savannah Marine Terminal","2018-12-28","#67 Stone for Electrochemical","CA425","944230","Maynard, William BJ T",16280,9.5,0,"<40.541","DOES NOT MEET","N/A",40.540999999999997,0]
["Martin Marietta","Statesville Quarry - Statesville","2019-07-08","#57 Stone for Electrochemical","CA54","971770","Gosnell, Jimmy L",17290,9.42,"<29","<38.172","DOES NOT MEET","N/A",38.171999999999997,29]
["Martin Marietta","Statesville Quarry - Statesville","2019-10-09","#67 Stone for Electrochemical","CA54","987452","Brinson, Joseph",9875,9.41,"<30","<66.835","DOES NOT MEET","N/A",66.834999999999994,30]
["Martin Marietta","Statesville Quarry - Statesville","2019-10-09","#78-M Stone for Electrochemical","CA54","987453","Brinson, Joseph",6641,6.94,"<30","<99.383","MEETS","N/A",99.382999999999996,30]
["Martin Marietta","Statesville Quarry - Statesville","2016-09-09","Miscellaneous Material for Electrochemical","CA54","825461","Whitley, Christopher D",2408,7.3,0,192,"MEETS","N/A",192,0]
["Martin Marietta","Statesville Quarry - Statesville","2003-11-20","Stone for Erosion Control (#57)","CA54","320107","Leatherman, Barbara L",21950,6.3,26,"Negative","MEETS",{"$f":"IF(ISBLANK(I211), \"N/A\", IF(AND(5 <= $I211, $I211 <= 10),IF($H211>=5000,IF($O211<=100,IF($N211<=200,\"MEETS\",\"DOES NOT MEET\"),\"DOES NOT MEET\"),\"DOES NOT MEET\"),\"DOES NOT MEET\"))","v":"DOES NOT MEET"},"Negative",26]
["Martin Marietta","Thomasville Quarry - Thomasville","2020-03-10","#57 Stone for Electrochemical","CA102","1005546","Ealey, Lee E",22040,9.6300000000000008,"<30","<29.946","DOES NOT MEET",{"$f":"IF(OR(ISBLANK(I212), NOT(ISNUMBER(MATCH($E212, Coastal, 0)))), \"N/A\", IF(AND(5 <= $I212, $I212 <= 10),IF($H212>=5000,IF($O212<=100,IF($N212<=200,\"MEETS\",\"DOES NOT MEET\"),\"DOES NOT MEET\"),\"DOES NOT MEET\"),\"DOES NOT MEET\"))","v":"N/A"},29.946000000000002,30]
["Martin Marietta","Thomasville Quarry - Thomasville","2020-03-10","#67 Stone for Electrochemical","CA102","1005547","Ealey, Lee E",19780,9.69,"<30","<33.367","DOES NOT MEET","N/A",33.366999999999997,30]
["Martin Marietta","Thomasville Quarry - Thomasville","2020-03-10","#78-M Stone for Electrochemical","CA102","1005551","Ealey, Lee E",17700,9.57,"<30","<37.288","DOES NOT MEET","N/A",37.287999999999997,30]
["Martin Marietta","Woodleaf Quarry - Salisbury","2020-03-03","#57 Stone for Electrochemical","CA56","1005347","Ealey, Lee E",24680,9.4600000000000009,"<30","<26.742","DOES NOT MEET","N/A",26.742000000000001,30]
["Martin Marietta","Woodleaf Quarry - Salisbury","2020-03-03","#67 Stone for Electrochemical","CA56","1005348","Ealey, Lee E",16770,9.4499999999999993,"<30","<39.356","DOES NOT MEET","N/A",39.356000000000002,30]
["Martin Marietta","Woodleaf Quarry - Salisbury","2020-03-03","#78-M Stone for Electrochemical","CA56","1005350","Ealey, Lee E",17540,9.48,"<30","<37.628","DOES NOT MEET","N/A",37.628,30]
["Mathis Quarries, Inc.","Mathis Quarry","2016-05-24","#57 Stone for Electrochemical","CA359","808610","Whitley, Christopher D",17176,9.1,4.3,17.3,"DOES NOT MEET","N/A",17.3,4.3]
["Maymead Materials, Inc.","North 321 Stone","2008-10-03","#57 Stone for Electrochemical","CA273","470680","Wagoner, Roy M",15630,7.3,"<27","<200","MEETS","N/A",200,27]
["Maymead Materials, Inc.","Turnip Patch Quarry - Mountain City, TN","2019-05-23","#57 Stone for Electrochemical","CA153","965559","Church, Tracy G",20440,9.34,"<30","<32.29","DOES NOT MEET","N/A",32.29,30]
["Maymead Materials, Inc.","Turnip Patch Quarry - Mountain City, TN","2019-06-25","Select Material, Class VI","CA153","970106","Murray, Brandi S",22950,9.4600000000000009,"<29","<28.758","DOES NOT MEET","N/A",28.757999999999999,29]
["McCrary Stone","Low Gap Quarry - Burnsville","2019-03-05","#57 Stone for Electrochemical","CA244","952978","Kindley, Wallace Quint",3609,3.9,"<30","<182.876","DOES NOT MEET","N/A",182.876,30]
["McCrary Stone","Low Gap Quarry - Burnsville","2019-03-05","#78-M Stone for Electrochemical","CA244","952983","Kindley, Wallace Quint",2687,3.4,"<30","<245.627","DOES NOT MEET","N/A",245.62700000000001,30]
["McCrary Stone","Marshall Quarry - Marshall","2019-08-12","#57 Stone for Electrochemical","CA113","978212","Kindley, Wallace Quint",16190,9.3800000000000008,"<29","<40.766","DOES NOT MEET","N/A",40.765999999999998,29]
["McCrary Stone","Marshall Quarry - Marshall","2019-08-12","#78-M Stone for Electrochemical","CA113","978213","Kindley, Wallace Quint",11310,8.83,"<29","<58.355","MEETS","N/A",58.354999999999997,29]
["Mountain Materials, Inc.","Mouth of Wilson Quarry - VA","2019-07-12","#57 Stone for Electrochemical","CA180","972577","Church, Tracy G",12890,8.85,"<29","<51.202","MEETS","N/A",51.201999999999998,29]
["NC Granite Corp.","Mount Airy Quarry","2016-03-08","#57 Stone for Electrochemical","CA24","797321","Whitley, Christopher D",24913,7.8,0,6,"MEETS","N/A",6,0]
["NC Granite Corp.","Mount Airy Quarry","2016-03-08","#78-M Stone for Electrochemical","CA24","797325","Whitley, Christopher D",23436,7.9,0,5.2,"MEETS","N/A",5.2,0]
["Radford Quarries Of Boone, Inc.","Bamboo Quarry","2016-02-08","#57 Stone for Electrochemical","CA122","793016","Church, Tracy G",19073,7.4,0,6.7,"MEETS","N/A",6.7,0]
["Radford Quarries Of Boone, Inc.","Bamboo Quarry","2016-02-08","#78-M Stone for Electrochemical","CA122","793017","Church, Tracy G",20687,7.5,5,5.2,"MEETS","N/A",5.2,5]
["Radford Quarries Of Boone, Inc.","Bamboo Quarry","2019-04-26","Select Material, Class VI","CA122","960975","Winkler, Jeffrey D",21960,9.6,"<30","<30.055","DOES NOT MEET","N/A",30.055,30]
["Rogers Group, Inc.","Henrietta Quarry - Mooresboro","2019-04-30","#57 Stone for Electrochemical","CA369","961358","Rhymer, Robert C",23820,9.4,"<30","<27.696","DOES NOT MEET","N/A",27.696000000000002,30]
["Rogers Group, Inc.","Henrietta Quarry - Mooresboro","2019-04-30","#78-M Stone for Electrochemical","CA369","961359","Rhymer, Robert C",18140,8.9,"<30","<36.384","MEETS","N/A",36.384,30]
["Rogers Group, Inc.","Mitchell County Stone","2016-10-25","#57 Stone for Electrochemical","CA315","832455","Rhymer, Robert C",82508,8.1,0,0.4,"MEETS","N/A",0.4,0]
["Rogers Group, Inc.","Mitchell County Stone","2016-10-25","#78-M Stone for Electrochemical","CA315","832457","Rhymer, Robert C",42373,8.1,0,0.1,"MEETS","N/A",0.1,0]
["Rogers Group, Inc.","Mitchell County Stone","2015-07-22","Select Material, Class VI","CA315","767763","Radcliff, Roger Keith",50865,7.2,0,0,"MEETS","N/A",0,0]
["Salem Stone Corp.","Cardinal Quarries - Smethport Quarry - W. Jefferson","2016-08-02","#57 Stone for Electrochemical","CA123","819961","Church, Tracy G",14002,9.1999999999999993,0,17.3,"DOES NOT MEET","N/A",17.3,0]
["Salem Stone Corp.","Cardinal Quarries - Smethport Quarry - W. Jefferson","2016-08-02","#78-M Stone for Electrochemical","CA123","819962","Church, Tracy G",7502,8.6999999999999993,0,40.200000000000003,"MEETS","N/A",40.200000000000003,0]
["Salem Stone Corp.","Cardinal Quarries - Smethport Quarry - W. Jefferson","2016-08-02","Miscellaneous Material for Electrochemical","CA123","819964","Church, Tracy G",3880,8,0,73,"MEETS","N/A",73,0]
["Salem Stone Corp.","Cardinal Quarries - Smethport Quarry - W. Jefferson","2019-06-25","Select Material, Class VI","CA123","970103","Murray, Brandi S",13030,9.11,"<29","<50.652","DOES NOT MEET",{"$f":"IF(ISBLANK(I240), \"N/A\", IF(AND(5 <= $I240, $I240 <= 10),IF($H240>=5000,IF($O240<=100,IF($N240<=200,\"MEETS\",\"DOES NOT MEET\"),\"DOES NOT MEET\"),\"DOES NOT MEET\"),\"DOES NOT MEET\"))","v":"MEETS"},50.652000000000001,29]
["Salem Stone Corp.","Cardinal Realty - Galax Quarry - Galax, VA","2016-03-07","#57 Stone for Electrochemical","CA11","797284","Whitley, Christopher D",14977,7.8,0,5.6,"MEETS",{"$f":"IF(OR(ISBLANK(I241), NOT(ISNUMBER(MATCH($E241, Coastal, 0)))), \"N/A\", IF(AND(5 <= $I241, $I241 <= 10),IF($H241>=5000,IF($O241<=100,IF($N241<=200,\"MEETS\",\"DOES NOT MEET\"),\"DOES NOT MEET\"),\"DOES NOT MEET\"),\"DOES NOT MEET\"))","v":"N/A"},5.6,0]
["Salem Stone Corp.","Cardinal Realty - Galax Quarry - Galax, VA","2016-03-07","#78-M Stone for Electrochemical","CA11","797287","Whitley, Christopher D",12880,9.1999999999999993,0,5.5,"DOES NOT MEET","N/A",5.5,0]
["Salem Stone Corp.","Cardinal Realty - Galax Quarry - Galax, VA","2016-03-07","Miscellaneous Material for Electrochemical","CA11","797296","Whitley, Christopher D",4916,9.5,0,28,"DOES NOT MEET","N/A",28,0]
["Salem Stone Corp.","Southside Materials - S. Boston Quarry (VA)","2019-05-21","#57 Stone for Electrochemical","CA78","964760","Westmoreland, Braxton J",22400,9.6,"<30","<29.464","DOES NOT MEET","N/A",29.463999999999999,30]
["Salem Stone Corp.","Southside Materials - Shelton Quarry - Pelham","2019-02-28","#57 Stone for Electrochemical","CA75","952399","Westmoreland, Braxton J",27050,9.1,"<30","<24.399","DOES NOT MEET","N/A",24.399000000000001,30]
["Salem Stone Corp.","Southside Materials - Shelton Quarry - Pelham","2019-02-28","#67 Stone for Electrochemical","CA75","952402","Westmoreland, Braxton J",22470,9.3000000000000007,0,"<29.372","DOES NOT MEET","N/A",29.372,0]
["Salem Stone Corp.","Southside Materials - Shelton Quarry - Pelham","2019-02-28","#78-M Stone for Electrochemical","CA75","952400","Westmoreland, Braxton J",33790,7.8,0,"<19.532","MEETS","N/A",19.532,0]
["Sloan Construction Co.","Blacksburg Quarry - Blacksburg, SC","2019-08-22","#57 Stone for Electrochemical","CA382","979539","Brinson, Joseph",48690,7.52,"<29","<13.555","MEETS","N/A",13.555,29]
["Sloan Construction Co.","Blacksburg Quarry - Blacksburg, SC","2019-08-22","#67 Stone for Electrochemical","CA382","979540","Brinson, Joseph",24510,7.76,"<29","<26.928","MEETS","N/A",26.928000000000001,29]
["Sloan Construction Co.","Blacksburg Quarry - Blacksburg, SC","2019-08-22","Miscellaneous Material for Electrochemical","CA382","979542","Brinson, Joseph",27180,8.14,"<29","<24.283","MEETS","N/A",24.283000000000001,29]
["Standard Conc. Prod., Inc.","Standard Conc. Prod., Inc. - Savannah Plant","2015-07-13","#67 Stone for Electrochemical","PS16","766130","Brule, Jeffrey S",20044,9,0,0,"MEETS","N/A",0,0]
["Taylor & Murphy Const. Co., Inc.","TM-Madison County Area #3 (US19 Widening)","2011-03-23","#57 Stone for Electrochemical","CA364","534939","Lance, Kevin C",23529,8.1,146,0,"MEETS","N/A",0,146]
["Taylor & Murphy Const. Co., Inc.","TM-Madison County Area #3 (US19 Widening)","2011-03-23","#57 Stone for Electrochemical","CA364","534940","Lance, Kevin C",19305,8.1999999999999993,134,0,"MEETS","N/A",0,134]
["Taylor & Murphy Const. Co., Inc.","TM-Madison County Area #3 (US19 Widening)","2011-03-23","#57 Stone for Electrochemical","CA364","534938","Lance, Kevin C",21929,8.4,0,0,"MEETS","N/A",{"$f":"IF(LEFT(K254, 1)=\"<\", VALUE(RIGHT(K254,LEN(K254)-1)), K254)","v":0},{"$f":"IF(LEFT(J254, 1)=\"<\", VALUE(RIGHT(J254,LEN(J254)-1)), J254)","v":0}]
["Thompson Contractors","Miller Creek Quarry - Rutherfordton","2019-09-27","#57 Stone for Electrochemical","CA59","985267","Norton, Stephen S",19130,9.5299999999999994,"<30","<34.501","DOES NOT MEET","N/A",34.500999999999998,30]
["Thompson Contractors","Miller Creek Quarry - Rutherfordton","2019-09-27","#78-M Stone for Electrochemical","CA59","985270","Norton, Stephen S",14090,9.34,"<30","<46.842","DOES NOT MEET","N/A",46.841999999999999,30]
["Thompson Contractors","Miller Creek Quarry - Rutherfordton","2004-07-01","ABC Stone for Electrochemical","CA59","342623","Worley, Lester V",24120,9.1,26,"","DOES NOT MEET",{"$f":"IF(ISBLANK(I257), \"N/A\", IF(AND(5 <= $I257, $I257 <= 10),IF($H257>=5000,IF($O257<=100,IF($N257<=200,\"MEETS\",\"DOES NOT MEET\"),\"DOES NOT MEET\"),\"DOES NOT MEET\"),\"DOES NOT MEET\"))","v":"DOES NOT MEET"},"",26]
["Thompson Contractors","Miller Creek Quarry - Rutherfordton","2004-07-01","ABC Stone for Electrochemical","CA59","342622","Worley, Lester V",22050,9,26,"",{"$f":"IF(AND(4.5<=$I258,$I258<=9),\"MEETS\",\"DOES NOT MEET\")","v":"MEETS"},{"$f":"IF(ISBLANK(I258), \"N/A\", IF(AND(5 <= $I258, $I258 <= 10),IF($H258>=5000,IF($O258<=100,IF($N258<=200,\"MEETS\",\"DOES NOT MEET\"),\"DOES NOT MEET\"),\"DOES NOT MEET\"),\"DOES NOT MEET\"))","v":"DOES NOT MEET"},"",26]
["Vulcan Materials Co.","115 Quarry - N. Wilkesboro","2018-05-10","#57 Stone for Electrochemical","CA79","910653","Patrie, Garin T",19387,8.8000000000000007,0,29.4,"MEETS",{"$f":"IF(OR(ISBLANK(I259), NOT(ISNUMBER(MATCH($E259, Coastal, 0)))), \"N/A\", IF(AND(5 <= $I259, $I259 <= 10),IF($H259>=5000,IF($O259<=100,IF($N259<=200,\"MEETS\",\"DOES NOT MEET\"),\"DOES NOT MEET\"),\"DOES NOT MEET\"),\"DOES NOT MEET\"))","v":"N/A"},29.4,0]
["Vulcan Materials Co.","115 Quarry - N. Wilkesboro","2019-08-05","#67 Stone for Electrochemical","CA79","976211","Church, Tracy G",15980,9.1999999999999993,"<29","<41.302","DOES NOT MEET","N/A",41.302,29]
["Vulcan Materials Co.","115 Quarry - N. Wilkesboro","2018-05-10","#78-M Stone for Electrochemical","CA79","910655","Patrie, Garin T",10774,8.1,0,53.4,"MEETS","N/A",53.4,0]
["Vulcan Materials Co.","Blacksburg Quarry - Blacksburg, SC","2014-02-10","#57 Stone for Electrochemical","CA82","697259","Brooks, Joseph D",10797,6.2,0,0,"MEETS","N/A",0,0]
["Vulcan Materials Co.","Blacksburg Quarry - Blacksburg, SC","2019-07-30","#67 Stone for Electrochemical","CA82","975112","Gosnell, Jimmy L",12450,9.73,"<29","<53.012","DOES NOT MEET","N/A",53.012,29]
["Vulcan Materials Co.","Blacksburg Quarry - Blacksburg, SC","2019-07-30","#78-M Stone for Electrochemical","CA82","975113","Gosnell, Jimmy L",12430,9.82,"<29","<53.097","DOES NOT MEET","N/A",53.097000000000001,29]
["Vulcan Materials Co.","Boone Quarry - Boone","2019-11-22","#57 Stone for Electrochemical","CA21","993803","Church, Tracy G",81740,7.97,"<30","<8.074","MEETS","N/A",8.0739999999999998,30]
["Vulcan Materials Co.","Boone Quarry - Boone","2016-11-03","#78-M Stone for Electrochemical","CA21","833828","Church, Tracy G",35881,7.7,0,1.8,"MEETS","N/A",1.8,0]
["Vulcan Materials Co.","Boone Quarry - Boone","2018-05-11","Miscellaneous Material for Electrochemical","CA21","911785","Bumgarner, Dan F",26702,9.1999999999999993,0,"<21.68","DOES NOT MEET","N/A",21.68,0]
["Vulcan Materials Co.","Cabarrus Quarry - Concord","2019-09-24","#57 Stone for Electrochemical","CA186","984941","Cero, Kevin M",15810,9.58,"<32","<41.746","DOES NOT MEET","N/A",41.746000000000002,32]
["Vulcan Materials Co.","Cabarrus Quarry - Concord","2019-09-24","#67 Stone for Electrochemical","CA186","984943","Cero, Kevin M",17720,9.65,"<32","<37.246","DOES NOT MEET","N/A",37.246000000000002,32]
["Vulcan Materials Co.","Cabarrus Quarry - Concord","2019-09-24","#78-M Stone for Electrochemical","CA186","984945","Cero, Kevin M",15200,9.73,"<32","<43.421","DOES NOT MEET","N/A",43.420999999999999,32]
["Vulcan Materials Co.","Cabarrus Quarry - Concord","2019-09-24","Miscellaneous Material for Electrochemical","CA186","985125","Cero, Kevin M",6884,9.08,"<32","<95.874","DOES NOT MEET","N/A",95.873999999999995,32]
["Vulcan Materials Co.","Clear Creek Q. - Charlotte","2020-02-04","#57 Stone for Electrochemical","CA249","998428","Pegues, Jr., Henderson",24690,9.57,"<30","<26.731","DOES NOT MEET","N/A",26.731000000000002,30]
["Vulcan Materials Co.","Clear Creek Q. - Charlotte","2020-02-04","#67 Stone for Electrochemical","CA249","998435","Pegues, Jr., Henderson",22470,9.57,"<30","<29.372","DOES NOT MEET","N/A",29.372,30]
["Vulcan Materials Co.","Clear Creek Q. - Charlotte","2020-02-04","#78-M Stone for Electrochemical","CA249","998424","Pegues, Jr., Henderson",20190,9.4600000000000009,"<30","<32.689","DOES NOT MEET","N/A",32.689,30]
["Vulcan Materials Co.","Clear Creek Q. - Charlotte","2020-02-04","Miscellaneous Material for Electrochemical","CA249","998654","Pegues, Jr., Henderson",5334,8.91,"<30","<123.735","MEETS","N/A",123.735,30]
["Vulcan Materials Co.","East Forsyth Quarry - Kernersville","2020-02-24","#57 Stone for Electrochemical","CA139","1000306","Ealey, Lee E",19230,9.3800000000000008,"<30","<34.321","DOES NOT MEET","N/A",34.320999999999998,30]
["Vulcan Materials Co.","East Forsyth Quarry - Kernersville","2020-02-24","#67 Stone for Electrochemical","CA139","1000307","Ealey, Lee E",21680,9.36,"<30","<30.443","DOES NOT MEET","N/A",30.443000000000001,30]
["Vulcan Materials Co.","East Forsyth Quarry - Kernersville","2020-02-24","#78-M Stone for Electrochemical","CA139","1000310","Ealey, Lee E",16860,9.25,"<30","<39.146","DOES NOT MEET","N/A",39.146000000000001,30]
["Vulcan Materials Co.","Elizabeth City Yard (#216) - Elizabeth City","2022-05-11","#57 Stone for Electrochemical","CA216","1072556","Bonds, Maria M",17350,9.5500000000000007,"<28","<27.608","DOES NOT MEET","MEETS",27.608000000000001,28]
["Vulcan Materials Co.","Elizabeth City Yard (#216) - Elizabeth City","2020-09-21","#67 Stone for Electrochemical","CA216","1021106","Bonds, Maria M",19570,9.52,"<30","<33.725","DOES NOT MEET","MEETS",33.725000000000001,30]
["Vulcan Materials Co.","Elizabeth City Yard (#216) - Elizabeth City","2020-09-21","#78-M Stone for Electrochemical","CA216","1021105","Bonds, Maria M",10330,9.51,"<30","<63.892","DOES NOT MEET","MEETS",63.892000000000003,30]
["Vulcan Materials Co.","Elkin Quarry - Elkin","2006-01-04","#57 Stone for Electrochemical","CA68","400141","Wagoner, Roy M",34560,7.1,"< 30","< 200","MEETS","N/A",200,30]
["Vulcan Materials Co.","Enka Quarry - Enka","2019-09-05","#57 Stone for Electrochemical","CA69","981847","Rhymer, Robert C",12720,8.17,"<32","<51.887","MEETS","N/A",51.887,32]
["Vulcan Materials Co.","Enka Quarry - Enka","2019-09-05","#78-M Stone for Electrochemical","CA69","981853","Rhymer, Robert C",11350,8.64,"<32","<58.150","MEETS","N/A",58.15,32]
["Vulcan Materials Co.","Gold Hill Quarry - Gold Hill","2020-02-20","#57 Stone for Electrochemical","CA85","1000215","Ealey, Lee E",7432,8.4499999999999993,"<30","<88.805","MEETS","N/A",88.805000000000007,30]
["Vulcan Materials Co.","Gold Hill Quarry - Gold Hill","2020-02-20","#78-M Stone for Electrochemical","CA85","1000216","Ealey, Lee E",6092,8.35,"<30","<108.339","MEETS","N/A",108.339,30]
["Vulcan Materials Co.","Greystone Quarry - Henderson","2016-02-10","#57 Stone for Electrochemical","CA70","793394","Skinner, III, John L",24225,8.9,0,0,"MEETS","N/A",0,0]
["Vulcan Materials Co.","Greystone Quarry - Henderson","2019-04-01","#67 Stone for Electrochemical","CA70","957253","Skinner, III, John L",24930,9.5,"<30","<26.474","DOES NOT MEET","N/A",26.474,30]
["Vulcan Materials Co.","Greystone Quarry - Henderson","2019-04-01","#78-M Stone for Electrochemical","CA70","957255","Skinner, III, John L",24010,9.5,"<30","<27.489","DOES NOT MEET","N/A",27.489000000000001,30]
["Vulcan Materials Co.","Greystone Quarry - Henderson","2023-01-31","Coarse Aggregate, #78M","CA70","1095685","Moore, Charles A",12530,9.26,"<30","<39.6","DOES NOT MEET","N/A",39.6,30]
["Vulcan Materials Co.","Havre De Grace Quarry - Havre De Grace, MD","2019-08-26","#67 Stone for Electrochemical","CA345","980140","Bonds, Maria M",15510,9.25,"<29","<42.553","DOES NOT MEET",{"$f":"IF(OR(ISBLANK(I291), NOT(ISNUMBER(MATCH($E291, Coastal, 0)))), \"N/A\", IF(AND(5 <= $I291, $I291 <= 10),IF($H291>=5000,IF($O291<=100,IF($N291<=200,\"MEETS\",\"DOES NOT MEET\"),\"DOES NOT MEET\"),\"DOES NOT MEET\"),\"DOES NOT MEET\"))","v":"N/A"},42.552999999999997,29]
["Vulcan Materials Co.","Havre De Grace Quarry - Havre De Grace, MD","2016-10-26","#78-M Stone for Electrochemical","CA345","832499","Bonds, Maria M",6605,7.9,17.7,7.6,"MEETS","N/A",7.6,17.7]
["Vulcan Materials Co.","Havre De Grace Quarry - Havre De Grace, MD","2019-08-26","Miscellaneous Material for Electrochemical","CA345","980139","Bonds, Maria M",17270,9.18,"<29","<38.217","DOES NOT MEET","N/A",38.216999999999999,29]
["Vulcan Materials Co.","Hendersonville Quarry - Hendersonville","2020-07-27","#57 Stone for Electrochemical","CA81","1015163","Wood, Dean Michael M",27630,9.5399999999999991,"<30","<23.887","DOES NOT MEET","N/A",23.887,30]
["Vulcan Materials Co.","Hendersonville Quarry - Hendersonville","2022-12-13","Coarse Aggregate, #57","CA81","1092614","Allen, Daniel W",25930,9.2200000000000006,"<30","<19.14","DOES NOT MEET","N/A"]
["Vulcan Materials Co.","Jack Quarry - Petersburg, VA","2021-10-13","#57 Stone for Electrochemical","CA137","1055414","Bonds, Maria M",18960,9.74,"<28","<34.81","DOES NOT MEET","N/A"]
["Vulcan Materials Co.","Jack Quarry - Petersburg, VA","2019-08-26","#67 Stone for Electrochemical","CA137","980166","Bonds, Maria M",16700,9.56,"<29","<39.521","DOES NOT MEET","N/A"]
["Vulcan Materials Co.","Jack Quarry - Petersburg, VA","2019-08-26","#78-M Stone for Electrochemical","CA137","980164","Bonds, Maria M",17590,9.57,"<29","<37.521","DOES NOT MEET","N/A"]
["Vulcan Materials Co.","Kitty Hawk Sales Yard","2020-09-21","#57 Stone for Electrochemical","CA288","1021103","Bonds, Maria M",21740,4.3600000000000003,"<30","<30.359","DOES NOT MEET","DOES NOT MEET"]
["Vulcan Materials Co.","Kitty Hawk Sales Yard","2020-09-21","#67 Stone for Electrochemical","CA288","1021094","Bonds, Maria M",13710,9.31,"<30","<48.140","DOES NOT MEET","MEETS"]
["Vulcan Materials Co.","Kitty Hawk Sales Yard","2020-09-21","#78-M Stone for Electrochemical","CA288","1021102","Bonds, Maria M",38360,4.87,"<30","<17.205","MEETS","DOES NOT MEET"]
["Vulcan Materials Co.","Kitty Hawk Sales Yard","2020-09-21","Miscellaneous Material for Electrochemical","CA288","1021092","Bonds, Maria M",21050,8.7799999999999994,"<30","<31.354","MEETS","MEETS"]
["Vulcan Materials Co.","Lenior Quarry - Lenoir","2016-06-24","#57 Stone for Electrochemical","CA91","815305","Church, Tracy G",18751,9.1999999999999993,2.1,15,"DOES NOT MEET","N/A"]
["Vulcan Materials Co.","Lenior Quarry - Lenoir","2006-08-25","#67 Stone for Electrochemical","CA91","419987","Church, Tracy G",18904,8.1,"<30","<200","MEETS","N/A"]
["Vulcan Materials Co.","Lenior Quarry - Lenoir","2006-08-25","#67 Stone for Electrochemical","CA91","419986","Church, Tracy G",22727,7.5,"<30","<200","MEETS","N/A"]
["Vulcan Materials Co.","Lenior Quarry - Lenoir","2016-06-24","#78-M Stone for Electrochemical","CA91","815307","Church, Tracy G",17443,9.1999999999999993,2.1,15.3,"DOES NOT MEET","N/A"]
["Vulcan Materials Co.","Lenior Quarry - Lenoir","2016-06-24","Miscellaneous Material for Electrochemical","CA91","815310","Church, Tracy G",11291,8.5,2.1,25,"MEETS","N/A"]
["Vulcan Materials Co.","Morganton Quarry - Morganton","2016-04-21","#67 Stone for Electrochemical","CA7","803453","Ausley, Jeff A",22386,7.6,0,6.6,"MEETS","N/A"]
["Vulcan Materials Co.","Morganton Quarry - Morganton","2016-04-21","#78-M Stone for Electrochemical","CA7","803457","Ausley, Jeff A",13410,8.6,0,16.7,"MEETS","N/A"]
["Vulcan Materials Co.","North Quarry - Winston Salem","2020-02-25","#57 Stone for Electrochemical","CA72","1000797","Ealey, Lee E",21160,9.3800000000000008,"<30","<31.191","DOES NOT MEET","N/A"]
["Vulcan Materials Co.","North Quarry - Winston Salem","2023-01-05","#67 Stone for Electrochemical","CA72","1093747","Stanley, Nicholas D",21,9.19,"<30","<23.64","DOES NOT MEET","N/A"]
["Vulcan Materials Co.","North Quarry - Winston Salem","2020-02-25","#78-M Stone for Electrochemical","CA72","1000799","Ealey, Lee E",19050,9.24,"<30","<34.646","DOES NOT MEET","N/A"]
["Vulcan Materials Co.","Pacolet Quarry - Pacolet, SC","2019-08-01","#57 Stone for Electrochemical","CA83","975598","Gosnell, Jimmy L",3415,7.86,"<29","<193.265","MEETS","N/A"]
["Vulcan Materials Co.","Penrose Quarry - Pisgah Forest","2017-03-07","#57 Stone for Electrochemical","CA12","848230","Wood, Dean Michael M",23084,9.4,0,26.7,"DOES NOT MEET","N/A"]
["Vulcan Materials Co.","Penrose Quarry - Pisgah Forest","2017-03-07","#78-M Stone for Electrochemical","CA12","848232","Wood, Dean Michael M",22784,9.4,0,26.4,"DOES NOT MEET","N/A"]
["Vulcan Materials Co.","Pineville Quarry - Charlotte","2019-03-15","#57 Stone for Electrochemical","CA101","954939","Adair, Mildred (Millie) L",12860,9.3000000000000007,0,"<51.322","DOES NOT MEET","N/A"]
["Vulcan Materials Co.","Pineville Quarry - Charlotte","2019-03-15","#57 Stone for Electrochemical","CA101","954940","Adair, Mildred (Millie) L",24760,9.1999999999999993,"<30","<26.656","DOES NOT MEET","N/A"]
["Vulcan Materials Co.","Pineville Quarry - Charlotte","2019-08-21","#67 Stone for Electrochemical","CA101","979251","Smith, Michael L",12880,9.39,"<32","<51.242","DOES NOT MEET","N/A"]
["Vulcan Materials Co.","Pineville Quarry - Charlotte","2019-08-21","#78-M Stone for Electrochemical","CA101","979253","Smith, Michael L",12210,9.2899999999999991,"<32","<54.054","DOES NOT MEET","N/A"]
["Vulcan Materials Co.","Pineville Quarry - Charlotte","2019-08-21","Miscellaneous Material for Electrochemical","CA101","979255","Smith, Michael L",2661,7.78,"<32","<248.027","MEETS","N/A"]
["Vulcan Materials Co.","Puddledock Quarry - Prince George, VA","2019-08-26","#57 Stone for Electrochemical","CA224","980146","Bonds, Maria M",51280,4.87,"<29","<12.871","MEETS","N/A"]
["Vulcan Materials Co.","Puddledock Quarry - Prince George, VA","2019-08-26","#78-M Stone for Electrochemical","CA224","980145","Bonds, Maria M",59680,4.67,"<29","<11.059",{"$f":"IF(AND(4.5<=$I322,$I322<=9),\"MEETS\",\"DOES NOT MEET\")","v":"MEETS"},"N/A"]
["Vulcan Materials Co.","Rabun Gap - Rabun Gap, GA","2019-03-08","#57 Stone for Electrochemical","CA25","953618","Ledford, Brandon S",25660,9.5,"<30","<25.721","DOES NOT MEET",{"$f":"IF(OR(ISBLANK(I323), NOT(ISNUMBER(MATCH($E323, Coastal, 0)))), \"N/A\", IF(AND(5 <= $I323, $I323 <= 10),IF($H323>=5000,IF($O323<=100,IF($N323<=200,\"MEETS\",\"DOES NOT MEET\"),\"DOES NOT MEET\"),\"DOES NOT MEET\"),\"DOES NOT MEET\"))","v":"N/A"}]
["Vulcan Materials Co.","Rockingham Quarry - Rockingham","2023-10-25","#57 Stone for Electrochemical","CA94","1122750","Gilmore, David T",17510,9.24,"<29","<28.49","DOES NOT MEET","N/A"]
["Vulcan Materials Co.","Rockingham Quarry - Rockingham","2019-08-13","#67 Stone for Electrochemical","CA94","977703","Jordan, Daniel H",17110,9.4499999999999993,"<29","<38.574","DOES NOT MEET","N/A"]
["Vulcan Materials Co.","Rockingham Quarry - Rockingham","2019-08-13","#78-M Stone for Electrochemical","CA94","977705","Jordan, Daniel H",13960,9.42,"<29","<47.278","DOES NOT MEET","N/A"]
["Vulcan Materials Co.","Rockingham Quarry - Rockingham","2018-05-11","Miscellaneous Material for Electrochemical","CA94","911061","Jordan, Daniel H",5811,9.1999999999999993,0,99,"DOES NOT MEET","N/A"]
["Vulcan Materials Co.","Skippers Quarry - Skippers, VA","2022-03-16","#57 Stone for Electrochemical","CA55","1067918","Thomas, Grady Q",16730,9.5399999999999991,"<28","<39.45","DOES NOT MEET","MEETS"]
["Vulcan Materials Co.","Skippers Quarry - Skippers, VA","2021-02-03","#67 Stone for Electrochemical","CA55","1032639","Thomas, Grady Q",16460,9.44,"<30","<40","DOES NOT MEET","MEETS"]
["Vulcan Materials Co.","Skippers Quarry - Skippers, VA","2021-02-03","#67 Stone for Electrochemical","CA55","1032639","Thomas, Grady Q",16460,9.44,"<30","<40","DOES NOT MEET","MEETS"]
["Vulcan Materials Co.","Skippers Quarry - Skippers, VA","2022-03-16","#78-M Stone for Electrochemical","CA55","1067884","Thomas, Grady Q",15570,9.6,"<28","<42.389","DOES NOT MEET","MEETS"]
["Vulcan Materials Co.","Smith Grove Q. - Mocksville","2020-02-03","#57 Stone for Electrochemical","CA80","998601","Ealey, Lee E",24340,9.56,"<30","<27.116","DOES NOT MEET","N/A"]
["Vulcan Materials Co.","Smith Grove Q. - Mocksville","2020-02-03","#67 Stone for Electrochemical","CA80","998597","Ealey, Lee E",23390,9.52,"<30","<28.217","DOES NOT MEET","N/A"]
["Vulcan Materials Co.","Smith Grove Q. - Mocksville","2020-02-03","#78-M Stone for Electrochemical","CA80","998595","Ealey, Lee E",21020,9.4499999999999993,"<30","<31.399","DOES NOT MEET","N/A"]
["Vulcan Materials Co.","Spruce Pine Quarry - Bakersville","2019-09-16","#57 Stone for Electrochemical","CA111","983085","Norton, Stephen S",17960,9.24,"<32","<36.748","DOES NOT MEET","N/A"]
["Vulcan Materials Co.","Spruce Pine Quarry - Bakersville","2019-09-16","#78-M Stone for Electrochemical","CA111","983086","Norton, Stephen S",12260,7.61,"<32","<53.834","MEETS","N/A"]
["Vulcan Materials Co.","Spruce Pine Quarry - Bakersville","2015-07-22","Select Material, Class VI","CA111","767762","Radcliff, Roger Keith",25374,8.1999999999999993,0,0,"MEETS","N/A"]
["Vulcan Materials Co.","Stokesdale Quarry - Stokesdale","2019-02-28","#57 Stone for Electrochemical","CA76","952379","Westmoreland, Braxton J",25310,9.6,0,"<26.077","DOES NOT MEET","N/A"]
["Vulcan Materials Co.","Stokesdale Quarry - Stokesdale","2019-02-28","#67 Stone for Electrochemical","CA76","952376","Westmoreland, Braxton J",28210,9.3000000000000007,0,"<23.396","DOES NOT MEET","N/A"]
["Vulcan Materials Co.","Stokesdale Quarry - Stokesdale","2019-02-28","#78-M Stone for Electrochemical","CA76","952377","Westmoreland, Braxton J",20110,9.3000000000000007,0,"<32.819","DOES NOT MEET","N/A"]
["Vulcan Materials Co.","Whiteville Yard - Whiteville","2023-06-15","#57 Stone for Electrochemical","CA431","1109319","Gilmore, David T",20850,9.4,"<31","<24.01","DOES NOT MEET","N/A"]
["Vulcan Materials Co.","Whiteville Yard - Whiteville","2023-01-27","#67 Stone for Electrochemical","CA431","1095518","Gilmore, David T",19910,9.42,"<31","<25.11","DOES NOT MEET","N/A"]
["Wake Stone Corp.","Knightdale Quarry - Knightdale","2019-01-15","#57 Stone for Electrochemical","CA98","945614","Skinner, III, John L",22880,9.4,0,"<28.846","DOES NOT MEET","N/A"]
["Wake Stone Corp.","Knightdale Quarry - Knightdale","2020-09-14","#78-M Stone for Electrochemical","CA98","1020095","Skinner, III, John L",16560,9.51,"<30","<39.855","DOES NOT MEET","N/A"]
["Wake Stone Corp.","Knightdale Quarry - Knightdale","2020-05-19","Coarse Aggregate, #78M","CA98","1009036","Riddle, Andrew T",18200,8.74,"<30","<36","MEETS","N/A"]
["Wake Stone Corp.","Moncure Quarry - Moncure","2023-01-30","#57 Stone for Electrochemical","CA100","1095797","Gilmore, David T",20200,9.2100000000000009,"<30","<24.75","DOES NOT MEET","N/A"]
["Wake Stone Corp.","Moncure Quarry - Moncure","2019-02-05","#67 Stone for Electrochemical","CA100","948529","Jordan, Daniel H",22870,9.4,0,"<28.859","DOES NOT MEET","N/A"]
["Wake Stone Corp.","Moncure Quarry - Moncure","2020-10-14","#78-M Stone for Electrochemical","CA100","1023300","Braly, James R",14920,9.1999999999999993,"<30","<44.236","DOES NOT MEET","N/A"]
["Wake Stone Corp.","Moncure Quarry - Moncure","2019-02-05","Miscellaneous Material for Electrochemical","CA100","948576","Jordan, Daniel H",13360,9.1999999999999993,0,"<49.401","DOES NOT MEET","N/A"]
["Wake Stone Corp.","Nash County Quarry - Battleboro","2021-12-02","#57 Stone for Electrochemical","CA223","1060121","Skinner, III, John L",39110,9.24,"<33","<16.875","DOES NOT MEET","N/A"]
["Wake Stone Corp.","Nash County Quarry - Battleboro","2016-03-11","#78-M Stone for Electrochemical","CA223","797387","Raines, James R",18450,7.6,0,8.5,"MEETS","N/A"]
["Wake Stone Corp.","Triangle Quarry - Cary","2016-02-12","#57 Stone for Electrochemical","CA157","793925","Skinner, III, John L",24631,7.7,5,4,"MEETS","N/A"]
["Wake Stone Corp.","Triangle Quarry - Cary","2019-02-27","#67 Stone for Electrochemical","CA157","951911","Skinner, III, John L",19980,9.5,0,"<33.033","DOES NOT MEET","N/A"]
["Wake Stone Corp.","Triangle Quarry - Cary","2019-02-27","#78-M Stone for Electrochemical","CA157","951912","Skinner, III, John L",19140,9.4,0,"<34.483","DOES NOT MEET","N/A"]
["Young & McQueen","Dellinger Waste Area (Area 1)","2014-03-12","#57 Stone for Electrochemical","CA391","700493","Rhymer, Robert C",15074,6.5,0,0,"MEETS","N/A"]
["Young & McQueen","Dellinger Waste Area (Area 2)","2013-09-18","#57 Stone for Electrochemical","CA378","681225","Rhymer, Robert C",4484,6.9,"","","MEETS","N/A"]

{"sheet":"Historical Data CoarseAggregate","index":2,"n_rows":983,"n_cols":18,"rows_kept":983,"cut":false,"hidden":false,"merged":[]}
["Producer Name","Facility Name","Sample Date","Material Description","Facility ID","Sample ID","Sampled By","Resistivity (Ohm*cm)","pH Units","Chloride (ppm)","Sulfate (ppm)","Geosynthetic Spec","Steel Spec (Coastal Plain Aggregates Only)","SO4","Cl",null,null," Coastal Plain Aggregates"]
["Appalachian Aggregates, LLC","Bluefield Plant","2016-04-05","#57 Stone for Electrochemical","CA307","800733","Whitley, Christopher D",21432,8.4,0,4.5,{"$f":"IF(AND(4.5<=$I2,$I2<=9),\"MEETS\",\"DOES NOT MEET\")","v":"MEETS"},{"$f":"IF(OR(ISBLANK(I2), NOT(ISNUMBER(MATCH($E2, Coastal, 0)))), \"N/A\", IF(AND(5 <= $I2, $I2 <= 10),IF($H2>=5000,IF($O2<=100,IF($N2<=200,\"MEETS\",\"DOES NOT MEET\"),\"DOES NOT MEET\"),\"DOES NOT MEET\"),\"DOES NOT MEET\"))","v":"N/A"},{"$f":"IF(LEFT(K2, 1)=\"<\", VALUE(RIGHT(K2,LEN(K2)-1)), K2)","v":4.5},{"$f":"IF(LEFT(J2, 1)=\"<\", VALUE(RIGHT(J2,LEN(J2)-1)), J2)","v":0},null,null,"CA259"]
["Appalachian Aggregates, LLC","Bluefield Plant","2017-03-22","#57 Stone for Electrochemical","CA307","850413","Church, Tracy G",16706,9.4,0,36.799999999999997,"DOES NOT MEET","N/A",36.799999999999997,0,null,null,"CA380"]
["Appalachian Aggregates, LLC","Bluefield Plant","2016-04-05","Miscellaneous Material for Electrochemical","CA307","800739","Whitley, Christopher D",9766,8.6999999999999993,8.6,17.5,"MEETS","N/A",17.5,8.6,null,null,"CA319"]
["Appalachian Aggregates, LLC","Bluefield Plant","2017-03-22","Miscellaneous Material for Electrochemical","CA307","850415","Church, Tracy G",5817,8.8000000000000007,8.9,103.9,"MEETS","N/A",103.9,8.9,null,null,"CA349"]
["Ararat Rock Products","Eden Quarry - Eden","2016-02-09","#57 Stone for Electrochemical","CA374","793259","Westmoreland, Braxton J",14265,8.8000000000000007,0,10.199999999999999,"MEETS","N/A",10.199999999999999,0,null,null,"CA272"]
["Ararat Rock Products","Eden Quarry - Eden","2019-03-12","#57 Stone for Electrochemical","CA374","954433","Westmoreland, Braxton J",9873,9,0,"<66.849","MEETS","N/A",66.849000000000004,0,null,null,"CA289"]
["Ararat Rock Products","Eden Quarry - Eden","2016-02-09","#78-M Stone for Electrochemical","CA374","793258","Westmoreland, Braxton J",11488,8.6,0,9.6,"MEETS","N/A",9.6,0,null,null,"CA310"]
["Ararat Rock Products","Eden Quarry - Eden","2019-03-12","#78-M Stone for Electrochemical","CA374","954434","Westmoreland, Braxton J",7234,8.9,0,"<91.236","MEETS","N/A",91.236000000000004,0,null,null,"CA138"]
["Ararat Rock Products","Mt. Airy Quarry - Mt. Airy","2016-01-11","#57 Stone for Electrochemical","CA3","790443","Whitley, Christopher D",14205,8.6,10,0,"MEETS","N/A",0,10,null,null,"CA63"]
["Ararat Rock Products","Mt. Airy Quarry - Mt. Airy","2017-01-31","#57 Stone for Electrochemical","CA3","843860","Whitley, Christopher D",12816,8,0,48.7,"MEETS","N/A",48.7,0]
["Ararat Rock Products","Mt. Airy Quarry - Mt. Airy","2016-03-01","#78-M Stone for Electrochemical","CA3","795846","Whitley, Christopher D",15858,7.9,0,10.1,"MEETS","N/A",10.1,0]
["Ararat Rock Products","Mt. Airy Quarry - Mt. Airy","2017-01-31","#78-M Stone for Electrochemical","CA3","843861","Whitley, Christopher D",11582,8.3000000000000007,0,50.8,"MEETS","N/A",50.8,0]
["Ararat Rock Products","Mt. Airy Quarry - Mt. Airy","2016-01-11","Miscellaneous Material for Electrochemical","CA3","790444","Whitley, Christopher D",1655,7.7,10,0,"MEETS","N/A",0,10]
["Ararat Rock Products","Mt. Airy Quarry - Mt. Airy","2017-01-31","Miscellaneous Material for Electrochemical","CA3","843862","Whitley, Christopher D",9355,7.7,0,64.400000000000006,"MEETS","N/A",64.400000000000006,0]
["Argos USA LLC","Knightdale Plant #1","2005-04-18","#57 Stone for Electrochemical","RM282","373507","Wright, Shane",26030,8.4,"< 30","< 200","MEETS","N/A",200,30]
["Argos USA LLC","Knightdale Plant #1","2005-04-19","#57 Stone for Electrochemical","RM282","373508","Wright, Shane",5130,7.7,"< 30","< 200","MEETS","N/A",200,30]
["Blue Water Industries","Abingdon Quarry","2016-09-28","#57 Stone for Electrochemical","CA251","828584","Church, Tracy G",8741,7.7,0,14.2,"MEETS","N/A",14.2,0]
["Blue Water Industries","Elizabethton Quarry","2016-09-28","#57 Stone for Electrochemical","CA401","828607","Church, Tracy G",15265,7.3,0,9.6999999999999993,"MEETS","N/A",9.6999999999999993,0]
["Blue Water Industries","Midway Quarry - Mascot, TN","2014-08-29","#67 Stone for Electrochemical","CA183","725254","Medford, Robert H",12908,9.3000000000000007,0,0,"DOES NOT MEET","N/A",0,0]
["Blue Water Industries","Midway Quarry - Mascot, TN","2017-02-20","#67 Stone for Electrochemical","CA183","845872","Rhymer, Robert C",17056,9.8000000000000007,0,38.200000000000003,"DOES NOT MEET","N/A",38.200000000000003,0]
["Blue Water Industries","Watauga Quarry","2016-09-28","#57 Stone for Electrochemical","CA133","828603","Church, Tracy G",16139,6.7,0,6.1,"MEETS","N/A",6.1,0]
["Boone's Concrete Supply, LLC","Woodlawn Quarry - Marion","2002-05-07","#57 Stone for Electrochemical","CA190","257089","Tallent, Randy L",10870,8.6999999999999993,"<26","","MEETS","N/A","",26]
["Boone's Concrete Supply, LLC","Woodlawn Quarry - Marion","2016-10-28","#57 Stone for Electrochemical","CA190","832770","Ausley, Jeff A",13182,9.3000000000000007,0,0.8,"DOES NOT MEET","N/A",0.8,0]
["Boone's Concrete Supply, LLC","Woodlawn Quarry - Marion","2018-10-05","#57 Stone for Electrochemical","CA190","933918","Rhymer, Robert C",12610,9.8000000000000007,0,"<52.55","DOES NOT MEET","N/A",52.55,0]
["Boone's Concrete Supply, LLC","Woodlawn Quarry - Marion","2019-09-23","#57 Stone for Electrochemical","CA190","984072","Norton, Stephen S",12400,9.7799999999999994,"<32","<53.226","DOES NOT MEET","N/A",53.225999999999999,32]
["Boone's Concrete Supply, LLC","Woodlawn Quarry - Marion","2016-10-28","#78-M Stone for Electrochemical","CA190","832771","Ausley, Jeff A",11364,9.1999999999999993,0,5.3,"DOES NOT MEET","N/A",5.3,0]
["Boone's Concrete Supply, LLC","Woodlawn Quarry - Marion","2018-10-05","#78-M Stone for Electrochemical","CA190","933919","Rhymer, Robert C",13310,9.9,0,"<57.96","DOES NOT MEET","N/A",57.96,0]
["Boone's Concrete Supply, LLC","Woodlawn Quarry - Marion","2019-09-23","#78-M Stone for Electrochemical","CA190","984074","Norton, Stephen S",11100,9.93,"<32","<59.459","DOES NOT MEET","N/A",59.459000000000003,32]
["Boxley Materials Company","Blue Ridge Quarry - Blue Ridge, VA","2019-03-05","#78-M Stone for Electrochemical","CA334","953110","Westmoreland, Braxton J",8427,9.1999999999999993,"<30","<78.32","DOES NOT MEET","N/A",78.319999999999993,30]
["Boxley Materials Company","Fieldale Quarry - Martinsville, VA","2016-02-17","#57 Stone for Electrochemical","CA142","794069","Westmoreland, Braxton J",15154,8.3000000000000007,5.4,12.7,"MEETS","N/A",12.7,5.4]
["Boxley Materials Company","Fieldale Quarry - Martinsville, VA","2019-03-05","#57 Stone for Electrochemical","CA142","953147","Westmoreland, Braxton J",13260,8.9,0,"<49.774","MEETS","N/A",49.774000000000001,0]
["Boxley Materials Company","Fieldale Quarry - Martinsville, VA","2019-03-05","#67 Stone for Electrochemical","CA142","953148","Westmoreland, Braxton J",10830,8.6999999999999993,0,"<60.942","MEETS","N/A",60.942,0]
["Boxley Materials Company","Fieldale Quarry - Martinsville, VA","2016-02-17","#78-M Stone for Electrochemical","CA142","794068","Westmoreland, Braxton J",23105,8.9,0,6.1,"MEETS","N/A",6.1,0]
["Boxley Materials Company","Fieldale Quarry - Martinsville, VA","2019-03-05","#78-M Stone for Electrochemical","CA142","953149","Westmoreland, Braxton J",7555,8.6999999999999993,0,"<87.359","MEETS","N/A",87.358999999999995,0]
["Boxley Materials Company","Lawyers Road Quarry - Lynchburg, VA","2016-03-14","#78-M Stone for Electrochemical","CA400","798420","Fosque, Robert W",17065,7.6,0,9.5,"MEETS","N/A",9.5,0]
["Carolina Stalite Corp.","Gold Hill (Light Wt.) - Gold Hill","2017-03-03","#67 Stone for Electrochemical","CA226","847771","Tucker, Rusty J",2847,10.7,0,45.2,"DOES NOT MEET","N/A",45.2,0]
["Carolina Stalite Corp.","Gold Hill (Light Wt.) - Gold Hill","2017-04-05","#67 Stone for Electrochemical","CA226","852427","Tucker, Rusty J",929,11.8,0,22.9,"DOES NOT MEET","N/A",22.9,0]
["Carolina Stalite Corp.","Gold Hill (Light Wt.) - Gold Hill","2020-04-07","#67 Stone for Electrochemical","CA226","1004812","Whitley, Christopher D",8852,9.4499999999999993,"<30","<74.56","DOES NOT MEET","N/A",74.56,30]
["Carolina Stalite Corp.","Gold Hill (Light Wt.) - Gold Hill","2020-04-07","#78-M Stone for Electrochemical","CA226","1004822","Whitley, Christopher D",4816,9.67,"<30","<137.0","DOES NOT MEET","N/A",137,30]
["Carolina Sunrock LLC","Butner Quarry - Butner","2001-07-18","#57 Stone for Electrochemical","CA178","221988","Speaks, Dennis",47600,8,"","","MEETS","N/A","",""]
["Carolina Sunrock LLC","Butner Quarry - Butner","2001-08-22","#57 Stone for Electrochemical","CA178","227232","Speaks, Dennis",16900,9.4,"","","DOES NOT MEET","N/A","",""]
["Carolina Sunrock LLC","Butner Quarry - Butner","2001-09-13","#57 Stone for Electrochemical","CA178","230255","Speaks, Dennis",17900,9.6,"","","DOES NOT MEET","N/A","",""]
["Carolina Sunrock LLC","Butner Quarry - Butner","2001-10-02","#57 Stone for Electrochemical","CA178","232867","Nosworthy, Kenneth E",15600,9.5,"","","DOES NOT MEET","N/A","",""]
["Carolina Sunrock LLC","Butner Quarry - Butner","2001-10-09","#57 Stone for Electrochemical","CA178","233942","Speaks, Dennis",16400,8.1999999999999993,"","","MEETS","N/A","",""]
["Carolina Sunrock LLC","Butner Quarry - Butner","2001-10-12","#57 Stone for Electrochemical","CA178","234863","Speaks, Dennis",12820,7.4,"","","MEETS","N/A","",""]
["Carolina Sunrock LLC","Butner Quarry - Butner","2016-02-08","#57 Stone for Electrochemical","CA178","793015","Skinner, III, John L",19697,9.1999999999999993,0,0,"DOES NOT MEET","N/A",0,0]
["Carolina Sunrock LLC","Butner Quarry - Butner","2019-03-25","#67 Stone for Electrochemical","CA178","955934","Skinner, III, John L",10130,10.1,"<30","<65.153","DOES NOT MEET","N/A",65.153000000000006,30]
["Carolina Sunrock LLC","Butner Quarry - Butner","2016-02-08","#78-M Stone for Electrochemical","CA178","793014","Skinner, III, John L",13416,9.6,0,0,"DOES NOT MEET","N/A",0,0]
["Carolina Sunrock LLC","Butner Quarry - Butner","2019-03-25","#78-M Stone for Electrochemical","CA178","955935","Skinner, III, John L",11850,10.1,"<30","<55.696","DOES NOT MEET","N/A",55.695999999999998,30]
["Carolina Sunrock LLC","Kittrell Quarry - Kittrell","2016-02-04","#57 Stone for Electrochemical","CA304","792553","Skinner, III, John L",20044,8.6,5,33.1,{"$f":"IF(AND(4.5<=$I51,$I51<=9),\"MEETS\",\"DOES NOT MEET\")","v":"MEETS"},{"$f":"IF(OR(ISBLANK(I51), NOT(ISNUMBER(MATCH($E51, Coastal, 0)))), \"N/A\", IF(AND(5 <= $I51, $I51 <= 10),IF($H51>=5000,IF($O51<=100,IF($N51<=200,\"MEETS\",\"DOES NOT MEET\"),\"DOES NOT MEET\"),\"DOES NOT MEET\"),\"DOES NOT MEET\"))","v":"N/A"},{"$f":"IF(LEFT(K51, 1)=\"<\", VALUE(RIGHT(K51,LEN(K51)-1)), K51)","v":33.1},{"$f":"IF(LEFT(J51, 1)=\"<\", VALUE(RIGHT(J51,LEN(J51)-1)), J51)","v":5}]
["Carolina Sunrock LLC","Kittrell Quarry - Kittrell","2019-02-01","#67 Stone for Electrochemical","CA304","948021","Skinner, III, John L",20820,9.3000000000000007,0,"<31.7","DOES NOT MEET","N/A",31.7,0]
["Carolina Sunrock LLC","Kittrell Quarry - Kittrell","2016-02-04","#78-M Stone for Electrochemical","CA304","792558","Skinner, III, John L",18392,8.6,5,36,"MEETS","N/A",36,5]
["Carolina Sunrock LLC","Kittrell Quarry - Kittrell","2019-02-01","#78-M Stone for Electrochemical","CA304","948022","Skinner, III, John L",18400,9.3000000000000007,0,"<35.87","DOES NOT MEET","N/A",35.869999999999997,0]
["Carolina Sunrock LLC","Woodsdale Quarry - Roxboro","2019-01-11","#67 Stone for Electrochemical","CA329","945250","Skinner, III, John L",22230,9.5,0,"<29.69","DOES NOT MEET","N/A",29.69,0]
["Carolina Sunrock LLC","Woodsdale Quarry - Roxboro","2019-01-11","#78-M Stone for Electrochemical","CA329","945251","Skinner, III, John L",16390,9.4,0,"<40.268","DOES NOT MEET","N/A",40.268000000000001,0]
["Generic Plant (Temporary)","Generic Plant (Temporary)","2005-04-21","#57 Stone for Electrochemical","OT1112","373888","Peoples, PE, Christopher A",10880,7.4,"< 30","< 200","MEETS","N/A",200,30]
["Generic Plant (Temporary)","Generic Plant (Temporary)","2005-04-21","#57 Stone for Electrochemical","OT1112","373893","Peoples, PE, Christopher A",25780,7.8,"< 30","< 200","MEETS","N/A",200,30]
["Georgia Stone Products","Lynches River Quarry - Jefferson, SC","2016-02-11","#57 Stone for Electrochemical","CA325","793640","Jordan, Daniel H",26674,7.1,0,4.7,"MEETS","N/A",4.7,0]
["Georgia Stone Products","Lynches River Quarry - Jefferson, SC","2019-07-10","#57 Stone for Electrochemical","CA325","971836","Jordan, Daniel H",26750,9.5,"<29","<24.673","DOES NOT MEET","N/A",24.672999999999998,29]
["Georgia Stone Products","Lynches River Quarry - Jefferson, SC","2015-06-29","#67 Stone for Electrochemical","CA325","764166","Jordan, Daniel H",25773,9.3000000000000007,0,200,"DOES NOT MEET","N/A",200,0]
["Georgia Stone Products","Lynches River Quarry - Jefferson, SC","2016-02-11","#67 Stone for Electrochemical","CA325","793641","Jordan, Daniel H",30057,7.6,5.4,4.8,"MEETS","N/A",4.8,5.4]
["Georgia Stone Products","Lynches River Quarry - Jefferson, SC","2016-02-11","#78-M Stone for Electrochemical","CA325","793642","Jordan, Daniel H",21959,7.5,0,4.2,"MEETS","N/A",4.2,0]
["Georgia Stone Products","Lynches River Quarry - Jefferson, SC","2019-07-10","#78-M Stone for Electrochemical","CA325","971840","Jordan, Daniel H",25790,9.33,"<29","<25.591","DOES NOT MEET","N/A",25.591000000000001,29]
["Georgia Stone Products","Lynches River Quarry - Jefferson, SC","2018-12-06","Coarse Aggregate, #57","CA325","942219","Jordan, Daniel H",29010,9.1999999999999993,0,"<22.751","DOES NOT MEET","N/A",22.751000000000001,0]
["Georgia Stone Products","Lynches River Quarry - Jefferson, SC","2018-12-06","Coarse Aggregate, #67","CA325","942222","Jordan, Daniel H",29200,9.1999999999999993,0,"<22.603","DOES NOT MEET","N/A",22.603000000000002,0]
["Georgia Stone Products","Lynches River Quarry - Jefferson, SC","2018-12-06","Coarse Aggregate, #78M","CA325","942218","Jordan, Daniel H",22100,9.3000000000000007,0,"<29.864","DOES NOT MEET","N/A",29.864000000000001,0]
["Georgia Stone Products","Lynches River Quarry - Jefferson, SC","2015-06-29","Miscellaneous Material for Electrochemical","CA325","764178","Jordan, Daniel H",16875,8.4,0,200,"MEETS","N/A",200,0]
["Hanson Aggregates Southeast, Inc.","Crabtree Quarry - Raleigh","2016-02-19","#57 Stone for Electrochemical","CA61","794467","Skinner, III, John L",24396,7.9,0,3.8,"MEETS","N/A",3.8,0]
["Hanson Aggregates Southeast, Inc.","Crabtree Quarry - Raleigh","2019-03-13","#67 Stone for Electrochemical","CA61","954289","Skinner, III, John L",18360,8.8000000000000007,0,"<35.948","MEETS","N/A",35.948,0]
["Hanson Aggregates Southeast, Inc.","Crabtree Quarry - Raleigh","2016-02-19","#78-M Stone for Electrochemical","CA61","794468","Skinner, III, John L",17966,8.1,0,4.0999999999999996,"MEETS","N/A",4.0999999999999996,0]
["Hanson Aggregates Southeast, Inc.","Crabtree Quarry - Raleigh","2019-03-13","#78-M Stone for Electrochemical","CA61","954290","Skinner, III, John L",17680,9,0,"<37.330","MEETS","N/A",37.33,0]
["Hanson Aggregates Southeast, Inc.","Holly Springs Quarry","2005-06-21","#57 Stone for Electrochemical","CA282","381014","Townsend, Daniel A",22300,8.6,"<30","<200","MEETS","N/A",200,30]
["Hanson Aggregates Southeast, Inc.","Holly Springs Quarry","2005-08-04","#57 Stone for Electrochemical","CA282","387375","Townsend, Daniel A",25720,7.7,"<30","<200","MEETS","N/A",200,30]
["Hanson Aggregates Southeast, Inc.","Holly Springs Quarry","2016-02-26","#57 Stone for Electrochemical","CA282","795303","Skinner, III, John L",24313,8.1999999999999993,0,4.0999999999999996,"MEETS","N/A",4.0999999999999996,0]
["Hanson Aggregates Southeast, Inc.","Holly Springs Quarry","2019-03-29","#67 Stone for Electrochemical","CA282","956968","Skinner, III, John L",16520,9.3000000000000007,"<30","<39.952","DOES NOT MEET","N/A",39.951999999999998,30]
["Hanson Aggregates Southeast, Inc.","Holly Springs Quarry","2016-02-26","#78-M Stone for Electrochemical","CA282","795305","Skinner, III, John L",19585,8.6,0,5.3,"MEETS","N/A",5.3,0]
["Hanson Aggregates Southeast, Inc.","Holly Springs Quarry","2019-03-29","#78-M Stone for Electrochemical","CA282","956969","Skinner, III, John L",22360,9.3000000000000007,"<30","<29.517","DOES NOT MEET","N/A",29.516999999999999,30]
["Hanson Aggregates Southeast, Inc.","Jefferson Quarry - Jefferson, SC","2016-12-14","#57 Stone for Electrochemical","CA120","838781","Jordan, Daniel H",31827,8.1,0,0,"MEETS","N/A",0,0]
["Hanson Aggregates Southeast, Inc.","Jefferson Quarry - Jefferson, SC","2019-09-13","#57 Stone for Electrochemical","CA120","982912","Jordan, Daniel H",32700,9.15,"<32","<20.183","DOES NOT MEET","N/A",20.183,32]
["Hanson Aggregates Southeast, Inc.","Jefferson Quarry - Jefferson, SC","2019-09-13","#67 Stone for Electrochemical","CA120","982914","Jordan, Daniel H",29240,9.25,"<32","<22.573","DOES NOT MEET","N/A",22.573,32]
["Hanson Aggregates Southeast, Inc.","Jefferson Quarry - Jefferson, SC","2016-12-14","#78-M Stone for Electrochemical","CA120","838780","Jordan, Daniel H",26709,8.3000000000000007,0,0,"MEETS","N/A",0,0]
["Hanson Aggregates Southeast, Inc.","Jefferson Quarry - Jefferson, SC","2019-09-13","#78-M Stone for Electrochemical","CA120","982918","Jordan, Daniel H",55150,7.86,"<32","<11.967","MEETS","N/A",11.967000000000001,32]
["Hanson Aggregates Southeast, Inc.","Jefferson Quarry - Jefferson, SC","2018-12-07","Coarse Aggregate, #57","CA120","942231","Jordan, Daniel H",25930,9.1999999999999993,0,"<25.453","DOES NOT MEET","N/A",25.452999999999999,0]
["Hanson Aggregates Southeast, Inc.","Jefferson Quarry - Jefferson, SC","2018-12-07","Coarse Aggregate, #67","CA120","942234","Jordan, Daniel H",25150,9.1999999999999993,0,"<26.243","DOES NOT MEET","N/A",26.242999999999999,0]
["Hanson Aggregates Southeast, Inc.","Jefferson Quarry - Jefferson, SC","2018-12-07","Coarse Aggregate, #78M","CA120","942227","Jordan, Daniel H",23640,9.5,0,"<27.919","DOES NOT MEET","N/A",27.919,0]
["Hanson Aggregates Southeast, Inc.","Jefferson Quarry - Jefferson, SC","2016-12-14","Miscellaneous Material for Electrochemical","CA120","838779","Jordan, Daniel H",14691,8.1,0,0,"MEETS","N/A",0,0]
["Hanson Aggregates Southeast, Inc.","Marlboro Plant - Bennettsville","2016-02-19","#67 Stone for Electrochemical","CA34","794733","Jordan, Daniel H",186567,5.0999999999999996,0,4.5,"MEETS","N/A",4.5,0]
["Hanson Aggregates Southeast, Inc.","Marlboro Plant - Bennettsville","2018-10-24","#67 Stone for Electrochemical","CA34","936888","Jordan, Daniel H",158500,5.9,0,"<4.2","MEETS","N/A",4.2,0]
["Hanson Aggregates Southeast, Inc.","Marlboro Plant - Bennettsville","2016-02-19","#78-M Stone for Electrochemical","CA34","794732","Jordan, Daniel H",226552,6,0,4,"MEETS","N/A",4,0]
["Hanson Aggregates Southeast, Inc.","Marlboro Plant - Bennettsville","2018-10-24","#78-M Stone for Electrochemical","CA34","936887","Jordan, Daniel H",101900,5.8,0,"<6.5","MEETS","N/A",6.5,0]
["Hanson Aggregates Southeast, Inc.","Neverson Quarry - Sims","2007-04-24","#57 Stone for Electrochemical","CA66","435517","Rogerson Jr., Bobby 'Chuck'",17000,7.5,"<30","<200","MEETS","N/A",200,30]
["Hanson Aggregates Southeast, Inc.","Neverson Quarry - Sims","2007-04-24","#57 Stone for Electrochemical","CA66","435223","Rogerson Jr., Bobby 'Chuck'",25000,8,"<29","<200","MEETS","N/A",200,29]
["Hanson Aggregates Southeast, Inc.","Neverson Quarry - Sims","2007-05-11","#57 Stone for Electrochemical","CA66","436493","Rogerson Jr., Bobby 'Chuck'",25773,7.8,"<32","<200","MEETS","N/A",200,32]
["Hanson Aggregates Southeast, Inc.","Neverson Quarry - Sims","2007-06-04","#57 Stone for Electrochemical","CA66","437956","Rogerson Jr., Bobby 'Chuck'",22026,7.7,"<32 (ppm)","<200 (ppm)","MEETS","N/A",{"$error":"#VALUE!"},{"$error":"#VALUE!"}]
["Hanson Aggregates Southeast, Inc.","Neverson Quarry - Sims","2007-06-22","#57 Stone for Electrochemical","CA66","439420","Rogerson Jr., Bobby 'Chuck'",23256,8.4,"<32","<200","MEETS","N/A",200,32]
["Hanson Aggregates Southeast, Inc.","Neverson Quarry - Sims","2007-07-12","#57 Stone for Electrochemical","CA66","441333","Rogerson Jr., Bobby 'Chuck'",18484,7.8,"<32","<200","MEETS","N/A",200,32]
["Hanson Aggregates Southeast, Inc.","Neverson Quarry - Sims","2007-08-08","#57 Stone for Electrochemical","CA66","443094","Rogerson Jr., Bobby 'Chuck'",17794,7.9,"<32","<200","MEETS","N/A",200,32]
["Hanson Aggregates Southeast, Inc.","Neverson Quarry - Sims","2007-10-18","#57 Stone for Electrochemical","CA66","447669","Rogerson Jr., Bobby 'Chuck'",20964,7.8,"<32","<200","MEETS","N/A",200,32]
["Hanson Aggregates Southeast, Inc.","Neverson Quarry - Sims","2016-03-15","#57 Stone for Electrochemical","CA66","798232","Raines, James R",22080,7.7,0,5.8,"MEETS","N/A",5.8,0]
["Hanson Aggregates Southeast, Inc.","Neverson Quarry - Sims","2016-03-15","#78-M Stone for Electrochemical","CA66","798233","Raines, James R",23288,7.4,0,4.5999999999999996,"MEETS","N/A",4.5999999999999996,0]
["Hanson Aggregates Southeast, Inc.","Princeton Quarry","2013-06-12","#57 Stone for Electrochemical","CA64","669956","Gardner, Joseph Tyler",18587,7.8,0,0,"MEETS","MEETS",0,0]
["Hanson Aggregates Southeast, Inc.","Princeton Quarry","2016-03-24","#57 Stone for Electrochemical","CA64","799116","Raines, James R",13717,7.6,0,4.0999999999999996,"MEETS","MEETS",4.0999999999999996,0]
["Hanson Aggregates Southeast, Inc.","Princeton Quarry","2016-03-24","#78-M Stone for Electrochemical","CA64","799117","Raines, James R",13463,7.7,0,5.7,"MEETS","MEETS",5.7,0]
["Hanson Aggregates Southeast, Inc.","Princeton Quarry","2013-06-12","Miscellaneous Material for Electrochemical","CA64","669957","Gardner, Joseph Tyler",23809,7.8,0,0,"MEETS","MEETS",0,0]
["Hanson Aggregates Southeast, Inc.","Raleigh Quarry - Wake Forest","2001-01-05","#57 Stone for Electrochemical","CA67","171083","Clodgo, PE, David J",13500,7.2,"","","MEETS","N/A","",""]
["Hanson Aggregates Southeast, Inc.","Raleigh Quarry - Wake Forest","2001-01-05","#57 Stone for Electrochemical","CA67","171084","Clodgo, PE, David J",19200,7.4,"","","MEETS","N/A","",""]
["Hanson Aggregates Southeast, Inc.","Raleigh Quarry - Wake Forest","2001-01-24","#57 Stone for Electrochemical","CA67","173391","Clodgo, PE, David J",17200,7.8,"","","MEETS","N/A","",""]
["Hanson Aggregates Southeast, Inc.","Raleigh Quarry - Wake Forest","2016-02-12","#57 Stone for Electrochemical","CA67","793719","Skinner, III, John L",27071,9.1999999999999993,0,4.8,"DOES NOT MEET","N/A",4.8,0]
["Hanson Aggregates Southeast, Inc.","Raleigh Quarry - Wake Forest","2019-01-09","#67 Stone for Electrochemical","CA67","944668","Skinner, III, John L",21840,9.5,0,"<30.22","DOES NOT MEET","N/A",30.22,0]
["Hanson Aggregates Southeast, Inc.","Raleigh Quarry - Wake Forest","2001-02-27","#78-M Stone for Electrochemical","CA67","178171","Clodgo, PE, David J",20000,7.8,"","","MEETS","N/A","",""]
["Hanson Aggregates Southeast, Inc.","Raleigh Quarry - Wake Forest","2001-03-13","#78-M Stone for Electrochemical","CA67","180321","Clodgo, PE, David J",14500,7.7,"","","MEETS","N/A","",""]
["Hanson Aggregates Southeast, Inc.","Raleigh Quarry - Wake Forest","2001-04-19","#78-M Stone for Electrochemical","CA67","186626","Clodgo, PE, David J",16950,8.8000000000000007,"","","MEETS","N/A","",""]
["Hanson Aggregates Southeast, Inc.","Raleigh Quarry - Wake Forest","2001-05-04","#78-M Stone for Electrochemical","CA67","189001","Clodgo, PE, David J",14290,9,"","","MEETS","N/A","",""]
["Hanson Aggregates Southeast, Inc.","Raleigh Quarry - Wake Forest","2001-06-04","#78-M Stone for Electrochemical","CA67","194279","Clodgo, PE, David J",17500,8.3000000000000007,"","",{"$f":"IF(AND(4.5<=$I115,$I115<=9),\"MEETS\",\"DOES NOT MEET\")","v":"MEETS"},{"$f":"IF(OR(ISBLANK(I115), NOT(ISNUMBER(MATCH($E115, Coastal, 0)))), \"N/A\", IF(AND(5 <= $I115, $I115 <= 10),IF($H115>=5000,IF($O115<=100,IF($N115<=200,\"MEETS\",\"DOES NOT MEET\"),\"DOES NOT MEET\"),\"DOES NOT MEET\"),\"DOES NOT MEET\"))","v":"N/A"},{"$f":"IF(LEFT(K115, 1)=\"<\", VALUE(RIGHT(K115,LEN(K115)-1)), K115)","v":""},{"$f":"IF(LEFT(J115, 1)=\"<\", VALUE(RIGHT(J115,LEN(J115)-1)), J115)","v":""}]
["Hanson Aggregates Southeast, Inc.","Raleigh Quarry - Wake Forest","2016-02-12","#78-M Stone for Electrochemical","CA67","793720","Skinner, III, John L",25927,7.7,0,4.0999999999999996,"MEETS","N/A",4.0999999999999996,0]
["Hanson Aggregates Southeast, Inc.","Raleigh Quarry - Wake Forest","2019-01-09","#78-M Stone for Electrochemical","CA67","944670","Skinner, III, John L",21530,9.4,0,"<30.655","DOES NOT MEET","N/A",30.655000000000001,0]
["Hanson Aggregates Southeast, Inc.","Rocky Mount Quarry (#2)","2016-04-14","#57 Stone for Electrochemical","CA371","802197","Raines, James R",43346,7.9,0,0,"MEETS","MEETS",0,0]
["Hanson Aggregates Southeast, Inc.","Rocky Mount Quarry (#2)","2016-04-14","#78-M Stone for Electrochemical","CA371","802198","Raines, James R",10244,9.3000000000000007,0,62.7,"DOES NOT MEET","MEETS",62.7,0]
["Hanson Aggregates Southeast, Inc.","Rougemont Quarry","2004-04-08","#57 Stone for Electrochemical","CA217","331869","Silliman, Gregory H",16180,8.8000000000000007,"<26","","MEETS","N/A","",26]
["Hanson Aggregates Southeast, Inc.","Rougemont Quarry","2004-09-03","#57 Stone for Electrochemical","CA217","350905","Turlington, James E",18590,8.4,"<26","<200 mg/L","MEETS","N/A",{"$error":"#VALUE!"},26]
["Hanson Aggregates Southeast, Inc.","Rougemont Quarry","2007-01-08","#57 Stone for Electrochemical","CA217","429825","Barnhill, Noah C",17182,8.8000000000000007,"<29","<200","MEETS","N/A",200,29]
["Hanson Aggregates Southeast, Inc.","Rougemont Quarry","2016-02-16","#57 Stone for Electrochemical","CA217","793930","Skinner, III, John L",29940,9.4,5,8.3000000000000007,"DOES NOT MEET","N/A",8.3000000000000007,5]
["Hanson Aggregates Southeast, Inc.","Rougemont Quarry","2019-01-11","#67 Stone for Electrochemical","CA217","945245","Skinner, III, John L",22770,9.6999999999999993,0,"<28.986","DOES NOT MEET","N/A",28.986000000000001,0]
["Hanson Aggregates Southeast, Inc.","Rougemont Quarry","2016-02-16","#78-M Stone for Electrochemical","CA217","793932","Skinner, III, John L",26378,7.8,0,3.7,"MEETS","N/A",3.7,0]
["Hanson Aggregates Southeast, Inc.","Rougemont Quarry","2019-01-11","#78-M Stone for Electrochemical","CA217","945247","Skinner, III, John L",24460,9.6999999999999993,0,"<26.983","DOES NOT MEET","N/A",26.983000000000001,0]
["Hanson Aggregates Southeast, Inc.","Sandy Flats Quarry - Taylors, SC","2016-12-14","#57 Stone for Electrochemical","CA298","839140","Wood, Dean Michael M",18152,7.7,0,2,"MEETS","N/A",2,0]
["Hanson Aggregates Southeast, Inc.","Sandy Flats Quarry - Taylors, SC","2016-12-14","#67 Stone for Electrochemical","CA298","839142","Wood, Dean Michael M",21013,7.6,0,1.6,"MEETS","N/A",1.6,0]
["Hanson Aggregates Southeast, Inc.","Sandy Flats Quarry - Taylors, SC","2016-12-14","#78-M Stone for Electrochemical","CA298","839144","Wood, Dean Michael M",21786,7.8,0,0.9,"MEETS","N/A",0.9,0]
["Harrison Construction Co., Inc.","Dillsboro Quarry - Dillsboro","2001-10-23","#57 Stone for Electrochemical","CA15","235973","Wallace, Robert R",19600,6.8,"","","MEETS","N/A","",""]
["Harrison Construction Co., Inc.","Dillsboro Quarry - Dillsboro","2007-02-02","#57 Stone for Electrochemical","CA15","430556","Hughes, Joseph W",13966,7,"<29","<200","MEETS","N/A",200,29]
["Harrison Construction Co., Inc.","Dillsboro Quarry - Dillsboro","2007-02-13","#57 Stone for Electrochemical","CA15","431000","Hughes, Joseph W",15674,7.1,"<29","<200","MEETS","N/A",200,29]
["Harrison Construction Co., Inc.","Dillsboro Quarry - Dillsboro","2013-11-05","#57 Stone for Electrochemical","CA15","688428","Kindley, Wallace Quint",11571,5.6,0,0,"MEETS","N/A",0,0]
["Harrison Construction Co., Inc.","Dillsboro Quarry - Dillsboro","2016-10-04","#57 Stone for Electrochemical","CA15","828920","Kindley, Wallace Quint",10607,7.5,0,8,"MEETS","N/A",8,0]
["Harrison Construction Co., Inc.","Dillsboro Quarry - Dillsboro","2019-02-13","#57 Stone for Electrochemical","CA15","949672","Ledford, Brandon S",10630,8.9,0,"<62.088","MEETS","N/A",62.088000000000001,0]
["Harrison Construction Co., Inc.","Dillsboro Quarry - Dillsboro","2020-10-15","#57 Stone for Electrochemical","CA15","1024687","Wood, Dean Michael M",9992,9.0299999999999994,"<30","<66.053","DOES NOT MEET","N/A",66.052999999999997,30]
["Harrison Construction Co., Inc.","Dillsboro Quarry - Dillsboro","2016-10-04","#78-M Stone for Electrochemical","CA15","828923","Kindley, Wallace Quint",8787,7.5,0,8.1999999999999993,"MEETS","N/A",8.1999999999999993,0]
["Harrison Construction Co., Inc.","Dillsboro Quarry - Dillsboro","2019-02-13","#78-M Stone for Electrochemical","CA15","949677","Ledford, Brandon S",9607,8.8000000000000007,0,"<68.7","MEETS","N/A",68.7,0]
["Harrison Construction Co., Inc.","Franklin Quarry - Franklin","2019-01-17","#57 Stone for Electrochemical","CA16","946029","Ledford, Brandon S",20250,7.8,0,"<32.593","MEETS","N/A",32.593000000000004,0]
["Harrison Construction Co., Inc.","Franklin Quarry - Franklin","2019-01-17","#78-M Stone for Electrochemical","CA16","946030","Ledford, Brandon S",11820,8.4,0,"<55.838","MEETS","N/A",55.838000000000001,0]
["Harrison Construction Co., Inc.","Hayesville Quarry - Hayesville","2016-07-15","#57 Stone for Electrochemical","CA195","816317","Ledford, Brandon S",17449,8.8000000000000007,2.1,28.9,"MEETS","N/A",28.9,2.1]
["Harrison Construction Co., Inc.","Hayesville Quarry - Hayesville","2016-07-15","#78-M Stone for Electrochemical","CA195","816298","Ledford, Brandon S",8467,8.6999999999999993,2.1,28.4,"MEETS","N/A",28.4,2.1]
["Harrison Construction Co., Inc.","Massey Branch Quarry - Robbinsville","2001-08-09","#57 Stone for Electrochemical","CA193","225525","Wallace, Robert R",83300,7.9,"","","MEETS","N/A","",""]
["Harrison Construction Co., Inc.","Massey Branch Quarry - Robbinsville","2001-10-22","#78-M Stone for Electrochemical","CA193","235848","Wallace, Robert R",8300,5.7,"","","MEETS","N/A","",""]
["Harrison Construction Co., Inc.","Waynesville Quarry - Waynesville","2001-11-15","#57 Stone for Electrochemical","CA1","239065","Wallace, Robert R",13900,6.8,"","","MEETS","N/A","",""]
["Harrison Construction Co., Inc.","Waynesville Quarry - Waynesville","2002-09-09","#57 Stone for Electrochemical","CA1","274805","Rhymer, Robert C",17241,7.2,26,"","MEETS","N/A","",26]
["Harrison Construction Co., Inc.","Waynesville Quarry - Waynesville","2003-11-07","#57 Stone for Electrochemical","CA1","318042","Rhymer, Robert C",18480,6.2,26,"","MEETS","N/A","",26]
["Harrison Construction Co., Inc.","Waynesville Quarry - Waynesville","2015-05-19","#57 Stone for Electrochemical","CA1","758295","Wood, Dean Michael M",12604,8.1999999999999993,0,0,"MEETS","N/A",0,0]
["Harrison Construction Co., Inc.","Waynesville Quarry - Waynesville","2016-09-26","#57 Stone for Electrochemical","CA1","827845","Kindley, Wallace Quint",10436,7.7,0,12.9,"MEETS","N/A",12.9,0]
["Harrison Construction Co., Inc.","Waynesville Quarry - Waynesville","2019-07-29","#57 Stone for Electrochemical","CA1","974809","Kindley, Wallace Quint",12180,9.0299999999999994,"<29","<54.187","DOES NOT MEET","N/A",54.186999999999998,29]
["Harrison Construction Co., Inc.","Waynesville Quarry - Waynesville","2005-11-15","#67 Stone for Electrochemical","CA1","396660","Rhymer, Robert C",9649,7.5,"<30","<200","MEETS","N/A",200,30]
["Harrison Construction Co., Inc.","Waynesville Quarry - Waynesville","2006-06-27","#67 Stone for Electrochemical","CA1","414550","Rhymer, Robert C",15500,8.4,"<30","<200","MEETS","N/A",200,30]
["Harrison Construction Co., Inc.","Waynesville Quarry - Waynesville","2007-01-12","#67 Stone for Electrochemical","CA1","429458","Rhymer, Robert C",19120,7.8,"<29","<200","MEETS","N/A",200,29]
["Harrison Construction Co., Inc.","Waynesville Quarry - Waynesville","2007-01-12","#67 Stone for Electrochemical","CA1","429464","Rhymer, Robert C",17182,7.8,"<29","<200","MEETS","N/A",200,29]
["Harrison Construction Co., Inc.","Waynesville Quarry - Waynesville","2007-01-17","#67 Stone for Electrochemical","CA1","429606","Rhymer, Robert C",18182,7.9,"<29","<200","MEETS","N/A",200,29]
["Harrison Construction Co., Inc.","Waynesville Quarry - Waynesville","2007-01-24","#67 Stone for Electrochemical","CA1","429979","Rhymer, Robert C",12642,7.4,"<29",400,"MEETS","N/A",400,29]
["Harrison Construction Co., Inc.","Waynesville Quarry - Waynesville","2007-01-31","#67 Stone for Electrochemical","CA1","430400","Rhymer, Robert C",16393,7,"<29","<200","MEETS","N/A",200,29]
["Harrison Construction Co., Inc.","Waynesville Quarry - Waynesville","2008-08-18","#67 Stone for Electrochemical","CA1","466540","Mosteller, Billy",10752,7,"<27","<200","MEETS","N/A",200,27]
["Harrison Construction Co., Inc.","Waynesville Quarry - Waynesville","2008-12-09","#67 Stone for Electrochemical","CA1","475184","Hughes, Joseph W",6309,7.6,"<27","<200","MEETS","N/A",200,27]
["Harrison Construction Co., Inc.","Waynesville Quarry - Waynesville","2016-09-26","#78-M Stone for Electrochemical","CA1","827849","Kindley, Wallace Quint",7825,7.6,0,15.3,"MEETS","N/A",15.3,0]
["Harrison Construction Co., Inc.","Waynesville Quarry - Waynesville","2019-07-29","#78-M Stone for Electrochemical","CA1","974813","Kindley, Wallace Quint",8835,8.83,"<29","<74.70","MEETS","N/A",74.7,29]
["Hedrick Industries","Aquadale Quarry - Norwood","2017-03-21","#57 Stone for Electrochemical","CA274","850258","Thomas, Mark D",16108,8.6999999999999993,0,36.4,"MEETS","N/A",36.4,0]
["Hedrick Industries","Aquadale Quarry - Norwood","2019-09-24","#57 Stone for Electrochemical","CA274","984751","Smith, Michael L",11040,8.92,"<32","<59.783","MEETS","N/A",59.783000000000001,32]
["Hedrick Industries","Aquadale Quarry - Norwood","2019-09-24","#67 Stone for Electrochemical","CA274","984693","Smith, Michael L",14180,9.02,"<32","<46.544","DOES NOT MEET","N/A",46.543999999999997,32]
["Hedrick Industries","Aquadale Quarry - Norwood","2017-03-21","#78-M Stone for Electrochemical","CA274","850259","Thomas, Mark D",14539,8.8000000000000007,0,40.799999999999997,"MEETS","N/A",40.799999999999997,0]
["Hedrick Industries","Aquadale Quarry - Norwood","2019-09-24","#78-M Stone for Electrochemical","CA274","984802","Smith, Michael L",9018,8.86,"<32","<73.187","MEETS","N/A",73.186999999999998,32]
["Hedrick Industries","Grove Stone Quarry - Black Mountain","2019-04-23","#57 Stone for Electrochemical","CA146","960223","Rhymer, Robert C",17500,9.4,"<30","<37.714","DOES NOT MEET","N/A",37.713999999999999,30]
["Hedrick Industries","Grove Stone Quarry - Black Mountain","2016-04-08","#67 Stone for Electrochemical","CA146","801531","Rhymer, Robert C",11593,7,0,21,"MEETS","N/A",21,0]
["Hedrick Industries","Grove Stone Quarry - Black Mountain","2016-04-08","#78-M Stone for Electrochemical","CA146","801532","Rhymer, Robert C",6964,7.3,0,49.1,"MEETS","N/A",49.1,0]
["Hedrick Industries","Grove Stone Quarry - Black Mountain","2019-04-23","#78-M Stone for Electrochemical","CA146","960224","Rhymer, Robert C",16900,9.1999999999999993,"<30","<39.053","DOES NOT MEET","N/A",39.052999999999997,30]
["Hedrick Industries","Lake Norman Quarry - Stanley","2016-12-13","#57 Stone for Electrochemical","CA168","838934","Kindley, Wallace Quint",13631,7.9,0,7.2,"MEETS","N/A",7.2,0]
["Hedrick Industries","Lake Norman Quarry - Stanley","2018-06-14","#57 Stone for Electrochemical","CA168","916129","Gosnell, Jimmy L",11102,9.4,0,"<53.55","DOES NOT MEET","N/A",53.55,0]
["Hedrick Industries","Lake Norman Quarry - Stanley","2018-07-05","#57 Stone for Electrochemical","CA168","920649","Gosnell, Jimmy L",12180,9.3000000000000007,0,"<55.57","DOES NOT MEET","N/A",55.57,0]
["Hedrick Industries","Lake Norman Quarry - Stanley","2019-07-12","#57 Stone for Electrochemical","CA168","972391","Gosnell, Jimmy L",7776,9.24,"<29","<84.877","DOES NOT MEET","N/A",84.876999999999995,29]
["Hedrick Industries","Lake Norman Quarry - Stanley","2018-06-14","#67 Stone for Electrochemical","CA168","916130","Gosnell, Jimmy L",14839,9.5,0,"<38.39","DOES NOT MEET","N/A",38.39,0]
["Hedrick Industries","Lake Norman Quarry - Stanley","2018-07-05","#67 Stone for Electrochemical","CA168","920645","Gosnell, Jimmy L",8206,9.1,0,"<69.45","DOES NOT MEET","N/A",69.45,0]
["Hedrick Industries","Lake Norman Quarry - Stanley","2019-07-12","#67 Stone for Electrochemical","CA168","972392","Gosnell, Jimmy L",7067,9.24,"<29","<71.467","DOES NOT MEET","N/A",71.466999999999999,29]
["Hedrick Industries","Lake Norman Quarry - Stanley","2016-12-13","#78-M Stone for Electrochemical","CA168","838935","Kindley, Wallace Quint",10028,7.7,0,21.7,"MEETS","N/A",21.7,0]
["Hedrick Industries","Lake Norman Quarry - Stanley","2018-06-14","#78-M Stone for Electrochemical","CA168","916131","Gosnell, Jimmy L",10046,9.1999999999999993,0,"<58.92",{"$f":"IF(AND(4.5<=$I179,$I179<=9),\"MEETS\",\"DOES NOT MEET\")","v":"DOES NOT MEET"},{"$f":"IF(OR(ISBLANK(I179), NOT(ISNUMBER(MATCH($E179, Coastal, 0)))), \"N/A\", IF(AND(5 <= $I179, $I179 <= 10),IF($H179>=5000,IF($O179<=100,IF($N179<=200,\"MEETS\",\"DOES NOT MEET\"),\"DOES NOT MEET\"),\"DOES NOT MEET\"),\"DOES NOT MEET\"))","v":"N/A"},{"$f":"IF(LEFT(K179, 1)=\"<\", VALUE(RIGHT(K179,LEN(K179)-1)), K179)","v":58.92},{"$f":"IF(LEFT(J179, 1)=\"<\", VALUE(RIGHT(J179,LEN(J179)-1)), J179)","v":0}]
["Hedrick Industries","Lake Norman Quarry - Stanley","2018-07-05","#78-M Stone for Electrochemical","CA168","920652","Gosnell, Jimmy L",9305,9.1,0,"<69.98","DOES NOT MEET","N/A",69.98,0]
["Hedrick Industries","Lake Norman Quarry - Stanley","2019-07-12","#78-M Stone for Electrochemical","CA168","972393","Gosnell, Jimmy L",8980,9.0399999999999991,"<29","<73.497","DOES NOT MEET","N/A",73.497,29]
["Hedrick Industries","North Buncombe Quarry - Asheville","2016-10-10","#57 Stone for Electrochemical","CA131","829874","Kindley, Wallace Quint",3131,3.8,8.9,85.4,"DOES NOT MEET","N/A",85.4,8.9]
["Hedrick Industries","North Buncombe Quarry - Asheville","2019-04-29","#57 Stone for Electrochemical","CA131","961081","Kindley, Wallace Quint",10350,9.1,"<30","<63.678","DOES NOT MEET","N/A",63.677999999999997,30]
["Hedrick Industries","North Buncombe Quarry - Asheville","2016-10-10","#78-M Stone for Electrochemical","CA131","829878","Kindley, Wallace Quint",1901,3.7,13.3,95.3,"DOES NOT MEET","N/A",95.3,13.3]
["Hedrick Industries","North Buncombe Quarry - Asheville","2019-04-29","#78-M Stone for Electrochemical","CA131","961088","Kindley, Wallace Quint",8953,9.1,"<30","<73.718","DOES NOT MEET","N/A",73.718000000000004,30]
["Hedrick Industries","South McDowell Quarry - Marion","2008-03-12","#57 Stone for Electrochemical","CA283","456086","Houck, Michael Brandon",18248,7.7,"<32","<200","MEETS","N/A",200,32]
["Hedrick Industries","South McDowell Quarry - Marion","2016-01-29","#57 Stone for Electrochemical","CA283","791780","Rhymer, Robert C",26364,7.6,5,5.3,"MEETS","N/A",5.3,5]
["Hedrick Industries","South McDowell Quarry - Marion","2017-01-13","#57 Stone for Electrochemical","CA283","841894","Rhymer, Robert C",22026,7.9,0,29.3,"MEETS","N/A",29.3,0]
["Hedrick Industries","South McDowell Quarry - Marion","2019-01-24","#57 Stone for Electrochemical","CA283","946847","Rhymer, Robert C",22238,9.3000000000000007,0,"<29.679","DOES NOT MEET","N/A",29.678999999999998,0]
["Hedrick Industries","South McDowell Quarry - Marion","2016-01-29","#78-M Stone for Electrochemical","CA283","791781","Rhymer, Robert C",22994,7.6,0,7.5,"MEETS","N/A",7.5,0]
["Hedrick Industries","South McDowell Quarry - Marion","2017-01-13","#78-M Stone for Electrochemical","CA283","841896","Rhymer, Robert C",21088,7.8,0,30.3,"MEETS","N/A",30.3,0]
["Hedrick Industries","South McDowell Quarry - Marion","2019-01-24","#78-M Stone for Electrochemical","CA283","946849","Rhymer, Robert C",26700,9.1999999999999993,0,"<24.719","DOES NOT MEET","N/A",24.719000000000001,0]
["J.T. Russell & Sons, Inc.","Troy Sales Yard","2016-05-19","#57 Stone for Electrochemical","CA403","807584","Tucker, Rusty J",72098,7.4,0,5.3,"MEETS","N/A",5.3,0]
["LBM Industries","Hewitt Quarry - Topton","2001-02-26","#57 Stone for Electrochemical","CA23","178164","Wallace, Robert R",15600,8.6,"","","MEETS","N/A","",""]
["LBM Industries","Hewitt Quarry - Topton","2011-07-26","#57 Stone for Electrochemical","CA23","595688","Cross, Adam D",17301,8.9,0,0,"MEETS","N/A",0,0]
["LBM Industries","Hewitt Quarry - Topton","2011-07-26","#78-M Stone for Electrochemical","CA23","595694","Cross, Adam D",15432,8.8000000000000007,0,0,"MEETS","N/A",0,0]
["LBM Industries","Whitewater Falls Quarry - Sapphire","2003-02-24","#57 Stone for Electrochemical","CA119","290231","Rhymer, Robert C",43478,7.2,26,"","MEETS","N/A","",26]
["LBM Industries","Whitewater Falls Quarry - Sapphire","2016-05-24","#57 Stone for Electrochemical","CA119","808244","Wood, Dean Michael M",23987,7.8,2.1,13.6,"MEETS","N/A",13.6,2.1]
["LBM Industries","Whitewater Falls Quarry - Sapphire","2019-08-21","#57 Stone for Electrochemical","CA119","979122","Wood, Dean Michael M",39270,9.1,"<32","<16.807","DOES NOT MEET","N/A",16.806999999999999,32]
["LBM Industries","Whitewater Falls Quarry - Sapphire","2016-05-24","#78-M Stone for Electrochemical","CA119","808249","Wood, Dean Michael M",16584,7.7,2.1,12.6,"MEETS","N/A",12.6,2.1]
["LBM Industries","Whitewater Falls Quarry - Sapphire","2019-08-21","#78-M Stone for Electrochemical","CA119","979124","Wood, Dean Michael M",24020,9.58,"<32","<27.477","DOES NOT MEET","N/A",27.477,32]
["Luck Stone Corporation","Eden Quarry - Eden","2023-04-03","#78-M Stone for Electrochemical","CA374","1101668","Stanley, Nicholas D",11100,9.2200000000000006,"<31","<44.64","DOES NOT MEET","N/A",44.64,31]
["Luck Stone Corporation","Pittsboro Quarry - Moncure","2016-03-29","#57 Stone for Electrochemical","CA292","799654","Jackson, Brandon M",16218,7.6,0,7.7,"MEETS","N/A",7.7,0]
["Luck Stone Corporation","Pittsboro Quarry - Moncure","2018-11-30","#57 Stone for Electrochemical","CA292","941282","Jackson, Brandon M",20320,9.5,"<30","<32.48","DOES NOT MEET","N/A",32.479999999999997,30]
["Luck Stone Corporation","Pittsboro Quarry - Moncure","2016-03-29","#67 Stone for Electrochemical","CA292","799656","Jackson, Brandon M",20833,8.6,0,6.1,"MEETS","N/A",6.1,0]
["Luck Stone Corporation","Pittsboro Quarry - Moncure","2016-03-29","#78-M Stone for Electrochemical","CA292","799662","Jackson, Brandon M",13873,7.9,0,11.3,"MEETS","N/A",11.3,0]
["Luck Stone Corporation","Pittsboro Quarry - Moncure","2018-11-30","#78-M Stone for Electrochemical","CA292","941283","Jackson, Brandon M",18920,9.4,0,".<34.88","DOES NOT MEET","N/A",".<34.88",0]
["Luck Stone Corporation","Pittsboro Quarry - Moncure","2016-03-29","Miscellaneous Material for Electrochemical","CA292","799661","Jackson, Brandon M",3383,7.3,0,123,"MEETS","N/A",123,0]
["Martin Marietta","American Stone - Carrboro","2016-03-02","#57 Stone for Electrochemical","CA2","795851","Fosque, Robert W",22989,8.9,0,4,"MEETS","N/A",4,0]
["Martin Marietta","American Stone - Carrboro","2016-03-02","#67 Stone for Electrochemical","CA2","795848","Fosque, Robert W",25170,8.9,0,4.0999999999999996,"MEETS","N/A",4.0999999999999996,0]
["Martin Marietta","American Stone - Carrboro","2019-02-13","#67 Stone for Electrochemical","CA2","949790","Westmoreland, Braxton J",16170,9.8000000000000007,0,"<40.816","DOES NOT MEET","N/A",40.816000000000003,0]
["Martin Marietta","American Stone - Carrboro","2016-03-02","#78-M Stone for Electrochemical","CA2","795847","Fosque, Robert W",23496,7.7,0,4.8,"MEETS","N/A",4.8,0]
["Martin Marietta","American Stone - Carrboro","2019-02-13","#78-M Stone for Electrochemical","CA2","949792","Westmoreland, Braxton J",14230,8.9,0,"<46.381","MEETS","N/A",46.381,0]
["Martin Marietta","Arrowood Quarry - Charlotte","2016-02-24","#57 Stone for Electrochemical","CA31","796031","Adair, Mildred (Millie) L",22826,7.7,0,9.6999999999999993,"MEETS","N/A",9.6999999999999993,0]
["Martin Marietta","Arrowood Quarry - Charlotte","2016-02-24","#67 Stone for Electrochemical","CA31","796029","Adair, Mildred (Millie) L",16639,7.6,0,11.2,"MEETS","N/A",11.2,0]
["Martin Marietta","Arrowood Quarry - Charlotte","2017-12-11","#67 Stone for Electrochemical","CA31","889712","Adair, Mildred (Millie) L",14221,8.9,20.7,46.2,"MEETS","N/A",46.2,20.7]
["Martin Marietta","Arrowood Quarry - Charlotte","2018-12-13","#67 Stone for Electrochemical","CA31","942687","Adair, Mildred (Millie) L",22930,9.6,0,"<28.783","DOES NOT MEET","N/A",28.783000000000001,0]
["Martin Marietta","Arrowood Quarry - Charlotte","2019-09-18","#67 Stone for Electrochemical","CA31","983522","Smith, Michael L",10830,9.15,"<32","<60.942","DOES NOT MEET","N/A",60.942,32]
["Martin Marietta","Arrowood Quarry - Charlotte","2016-02-24","#78-M Stone for Electrochemical","CA31","796030","Adair, Mildred (Millie) L",19139,7.7,0,10.199999999999999,"MEETS","N/A",10.199999999999999,0]
["Martin Marietta","Arrowood Quarry - Charlotte","2017-12-11","#78-M Stone for Electrochemical","CA31","889713","Adair, Mildred (Millie) L",15785,7.7,0,41.8,"MEETS","N/A",41.8,0]
["Martin Marietta","Arrowood Quarry - Charlotte","2018-12-13","#78-M Stone for Electrochemical","CA31","942688","Adair, Mildred (Millie) L",16010,9.4,0,"<41.224","DOES NOT MEET","N/A",41.223999999999997,0]
["Martin Marietta","Arrowood Quarry - Charlotte","2019-09-18","#78-M Stone for Electrochemical","CA31","983524","Smith, Michael L",9789,9.0299999999999994,"<32","<67.423","DOES NOT MEET","N/A",67.423000000000002,32]
["Martin Marietta","Arrowood Quarry - Charlotte","2013-12-09","Miscellaneous Material for Electrochemical","CA31","692533","Adair, Mildred (Millie) L",7446,6.7,0,0,"MEETS","N/A",0,0]
["Martin Marietta","Arrowood Quarry - Charlotte","2015-06-26","Miscellaneous Material for Electrochemical","CA31","763931","Adair, Mildred (Millie) L",2106,7.7,0,200,"MEETS","N/A",200,0]
["Martin Marietta","Arrowood Quarry - Charlotte","2015-07-23","Miscellaneous Material for Electrochemical","CA31","767814","Adair, Mildred (Millie) L",8013,8.4,0,0,"MEETS","N/A",0,0]
["Martin Marietta","Arrowood Quarry - Charlotte","2016-02-22","Miscellaneous Material for Electrochemical","CA31","796285","Adair, Mildred (Millie) L",2182,7.5,0,198.3,"MEETS","N/A",198.3,0]
["Martin Marietta","Arrowood Quarry - Charlotte","2017-12-11","Miscellaneous Material for Electrochemical","CA31","889716","Adair, Mildred (Millie) L",5754,8.6,4.0999999999999996,115.1,"MEETS","N/A",115.1,4.0999999999999996]
["Martin Marietta","Arrowood Quarry - Charlotte","2018-12-13","Miscellaneous Material for Electrochemical","CA31","942689","Adair, Mildred (Millie) L",6783,9.1,0,"<97.302","DOES NOT MEET","N/A",97.302000000000007,0]
["Martin Marietta","Arrowood Quarry - Charlotte","2019-09-18","Miscellaneous Material for Electrochemical","CA31","983528","Smith, Michael L",3535,7.92,"<32","<186.704","MEETS","N/A",186.70400000000001,32]
["Martin Marietta","Asheboro Quarry - Asheboro","2010-03-19","#57 Stone for Electrochemical","CA30","507243","Jackson, Brandon M",65963,7.5,27,"<200","MEETS","N/A",200,27]
["Martin Marietta","Asheboro Quarry - Asheboro","2016-06-17","#57 Stone for Electrochemical","CA30","811640","Tucker, Rusty J",19387,9,2.1,12,"MEETS","N/A",12,2.1]
["Martin Marietta","Asheboro Quarry - Asheboro","2018-11-27","#57 Stone for Electrochemical","CA30","940712","Jackson, Brandon M",26010,9.3000000000000007,0,"<25.375","DOES NOT MEET","N/A",25.375,0]
["Martin Marietta","Asheboro Quarry - Asheboro","2019-08-22","#57 Stone for Electrochemical","CA30","979357","Jackson, Brandon M",18060,9.17,"<29","<36.545","DOES NOT MEET","N/A",36.545000000000002,29]
["Martin Marietta","Asheboro Quarry - Asheboro","2016-06-17","#67 Stone for Electrochemical","CA30","811641","Tucker, Rusty J",22594,9,2.1,6.6,"MEETS","N/A",6.6,2.1]
["Martin Marietta","Asheboro Quarry - Asheboro","2018-11-27","#67 Stone for Electrochemical","CA30","940713","Jackson, Brandon M",20780,9.3000000000000007,0,"<31.76","DOES NOT MEET","N/A",31.76,0]
["Martin Marietta","Asheboro Quarry - Asheboro","2019-08-22","#67 Stone for Electrochemical","CA30","979365","Jackson, Brandon M",17770,9.0500000000000007,"<29","<37.141","DOES NOT MEET","N/A",37.140999999999998,29]
["Martin Marietta","Asheboro Quarry - Asheboro","2010-03-31","#78-M Stone for Electrochemical","CA30","507501","Jackson, Brandon M",71022,7.2,27,"<200","MEETS","N/A",200,27]
["Martin Marietta","Asheboro Quarry - Asheboro","2016-06-17","#78-M Stone for Electrochemical","CA30","811642","Tucker, Rusty J",18650,8.6999999999999993,2.1,21.5,"MEETS","N/A",21.5,2.1]
["Martin Marietta","Asheboro Quarry - Asheboro","2018-11-27","#78-M Stone for Electrochemical","CA30","940714","Jackson, Brandon M",19470,9.3000000000000007,0,"<33.9","DOES NOT MEET","N/A",33.9,0]
["Martin Marietta","Asheboro Quarry - Asheboro","2019-08-22","#78-M Stone for Electrochemical","CA30","979366","Jackson, Brandon M",18550,9.11,"<29","<35.580","DOES NOT MEET","N/A",35.58,29]
["Martin Marietta","Asheboro Quarry - Asheboro","2010-02-04","Coarse Aggregate, #57","CA30","503816","Jackson, Brandon M",98328,7.6,27,"<200","MEETS","N/A",200,27]
["Martin Marietta","Asheboro Quarry - Asheboro","2008-07-10","Coarse Aggregate, #67","CA30","463619","Dunn, Jr., Larry E",20242,7.7,"<27","<200","MEETS","N/A",200,27]
["Martin Marietta","Bakers Quarry - Monroe","2002-02-28","#57 Stone for Electrochemical","CA32","248847","Allen, Daniel W",15630,8.5,"<32","",{"$f":"IF(AND(4.5<=$I243,$I243<=9),\"MEETS\",\"DOES NOT MEET\")","v":"MEETS"},{"$f":"IF(OR(ISBLANK(I243), NOT(ISNUMBER(MATCH($E243, Coastal, 0)))), \"N/A\", IF(AND(5 <= $I243, $I243 <= 10),IF($H243>=5000,IF($O243<=100,IF($N243<=200,\"MEETS\",\"DOES NOT MEET\"),\"DOES NOT MEET\"),\"DOES NOT MEET\"),\"DOES NOT MEET\"))","v":"N/A"},{"$f":"IF(LEFT(K243, 1)=\"<\", VALUE(RIGHT(K243,LEN(K243)-1)), K243)","v":""},{"$f":"IF(LEFT(J243, 1)=\"<\", VALUE(RIGHT(J243,LEN(J243)-1)), J243)","v":32}]
["Martin Marietta","Bakers Quarry - Monroe","2019-11-27","#57 Stone for Electrochemical","CA32","993357","Smith, Michael L",22460,9.34,"<30","<29.386","DOES NOT MEET","N/A",29.385999999999999,30]
["Martin Marietta","Bakers Quarry - Monroe","2019-11-27","#67 Stone for Electrochemical","CA32","993358","Smith, Michael L",23130,9.3800000000000008,"<30","<28.534","DOES NOT MEET","N/A",28.533999999999999,30]
["Martin Marietta","Bakers Quarry - Monroe","2009-07-30","#78-M Stone for Electrochemical","CA32","491118","Rasmussen, Roger",12121,7.5,"<27","<200","MEETS","N/A",200,27]
["Martin Marietta","Bakers Quarry - Monroe","2019-11-27","#78-M Stone for Electrochemical","CA32","993359","Smith, Michael L",17070,9.27,"<30","<38.664","DOES NOT MEET","N/A",38.664000000000001,30]
["Martin Marietta","Bakers Quarry - Monroe","2015-06-24","Miscellaneous Material for Electrochemical","CA32","763935","Adair, Mildred (Millie) L",11515,9,0,200,"MEETS","N/A",200,0]
["Martin Marietta","Bakers Quarry - Monroe","2019-11-27","Miscellaneous Material for Electrochemical","CA32","993355","Smith, Michael L",11890,8.8800000000000008,"<30","<55.509","MEETS","N/A",55.509,30]
["Martin Marietta","Belgrade Quarry - Maysville","2015-09-30","#78-M Stone for Electrochemical","CA38","778061","Cahill, Luke R",3370,7.3,0,0,"MEETS","DOES NOT MEET",0,0]
["Martin Marietta","Benson Quarry - Benson","2008-01-30","#57 Stone for Electrochemical","CA176","453085","Rogerson Jr., Bobby 'Chuck'",21052,7.3,"<32","<200","MEETS","N/A",200,32]
["Martin Marietta","Benson Quarry - Benson","2008-03-25","#57 Stone for Electrochemical","CA176","456244","Rogerson Jr., Bobby 'Chuck'",19047,8.1999999999999993,"<32","<200","MEETS","N/A",200,32]
["Martin Marietta","Benson Quarry - Benson","2008-09-19","#57 Stone for Electrochemical","CA176","469418","Rogerson Jr., Bobby 'Chuck'",22989,7.7,"<27","<200","MEETS","N/A",200,27]
["Martin Marietta","Benson Quarry - Benson","2008-10-03","#57 Stone for Electrochemical","CA176","470005","Allen, Daniel W",24938,7,"<27","<200","MEETS","N/A",200,27]
["Martin Marietta","Benson Quarry - Benson","2013-10-17","#57 Stone for Electrochemical","CA176","685810","Blackman, Troy J",17649,7.4,0,0,"MEETS","N/A",0,0]
["Martin Marietta","Benson Quarry - Benson","2016-03-16","#57 Stone for Electrochemical","CA176","798243","Raines, James R",27917,7.7,0,0,"MEETS","N/A",0,0]
["Martin Marietta","Benson Quarry - Benson","2023-03-29","#57 Stone for Electrochemical","CA176","1101085","Halasz, Carl M",15550,9.0399999999999991,"<31","<32.01","DOES NOT MEET","N/A",32.01,31]
["Martin Marietta","Benson Quarry - Benson","2016-03-16","#78-M Stone for Electrochemical","CA176","798244","Raines, James R",20585,8.3000000000000007,0,4.3,"MEETS","N/A",4.3,0]
["Martin Marietta","Benson Quarry - Benson","2023-04-10","Coarse Aggregate, #78M","CA176","1102300","Moore, Charles A",19260,9.44,"<31","<25.94","DOES NOT MEET","N/A",25.94,31]
["Martin Marietta","Bonds Quarry - Concord","2014-04-11","#57 Stone for Electrochemical","CA276","704680","Conte, Darrell J",18695,7.1,0,0,"MEETS","N/A",0,0]
["Martin Marietta","Bonds Quarry - Concord","2014-08-13","#57 Stone for Electrochemical","CA276","722211","Conte, Darrell J",19716,8.6,0,200,"MEETS","N/A",200,0]
["Martin Marietta","Bonds Quarry - Concord","2014-08-14","#57 Stone for Electrochemical","CA276","722481","Conte, Darrell J",19406,9,0,200,"MEETS","N/A",200,0]
["Martin Marietta","Bonds Quarry - Concord","2016-09-19","#57 Stone for Electrochemical","CA276","826542","Pegues, Jr., Henderson",18889,7.7,0,3.9,"MEETS","N/A",3.9,0]
["Martin Marietta","Bonds Quarry - Concord","2018-09-10","#57 Stone for Electrochemical","CA276","930587","Pegues, Jr., Henderson",14640,9.5,7.5,"<45.97","DOES NOT MEET","N/A",45.97,7.5]
["Martin Marietta","Bonds Quarry - Concord","2016-09-19","#67 Stone for Electrochemical","CA276","826544","Pegues, Jr., Henderson",20833,7.7,0,2.2999999999999998,"MEETS","N/A",2.2999999999999998,0]
["Martin Marietta","Bonds Quarry - Concord","2017-09-05","#67 Stone for Electrochemical","CA276","875549","Pegues, Jr., Henderson",18727,8.5,0,34.799999999999997,"MEETS","N/A",34.799999999999997,0]
["Martin Marietta","Bonds Quarry - Concord","2018-09-10","#67 Stone for Electrochemical","CA276","930596","Pegues, Jr., Henderson",19120,9.4,0,"<34.48","DOES NOT MEET","N/A",34.479999999999997,0]
["Martin Marietta","Bonds Quarry - Concord","2019-09-04","#67 Stone for Electrochemical","CA276","981560","Cero, Kevin M",19640,9.7200000000000006,"<32","<33.605","DOES NOT MEET","N/A",33.604999999999997,32]
["Martin Marietta","Bonds Quarry - Concord","2016-09-19","#78-M Stone for Electrochemical","CA276","826543","Pegues, Jr., Henderson",18709,7.7,0,4.4000000000000004,"MEETS","N/A",4.4000000000000004,0]
["Martin Marietta","Bonds Quarry - Concord","2017-09-05","#78-M Stone for Electrochemical","CA276","875548","Pegues, Jr., Henderson",21848,8.5,0,28.5,"MEETS","N/A",28.5,0]
["Martin Marietta","Bonds Quarry - Concord","2018-09-10","#78-M Stone for Electrochemical","CA276","930585","Pegues, Jr., Henderson",18650,9.3000000000000007,0,"<34.56","DOES NOT MEET","N/A",34.56,0]
["Martin Marietta","Bonds Quarry - Concord","2019-09-04","#78-M Stone for Electrochemical","CA276","981563","Cero, Kevin M",19530,9.43,"<32","<33.794","DOES NOT MEET","N/A",33.793999999999997,32]
["Martin Marietta","Burlington Quarry - Burlington","2000-07-22","#57 Stone for Electrochemical","CA39","145220","Owens, Daniel B",20800,8,"","","MEETS","N/A","",""]
["Martin Marietta","Burlington Quarry - Burlington","2000-10-09","#57 Stone for Electrochemical","CA39","158706","Miller, Michael R",18900,8.8000000000000007,"","","MEETS","N/A","",""]
["Martin Marietta","Burlington Quarry - Burlington","2016-02-29","#57 Stone for Electrochemical","CA39","795917","Loshinskiy, Roman",18420,8.9,0,4,"MEETS","N/A",4,0]
["Martin Marietta","Burlington Quarry - Burlington","2019-05-31","#67 Stone for Electrochemical","CA39","966239","Waller, John M",15550,9.4499999999999993,"<30","<42.444","DOES NOT MEET","N/A",42.444000000000003,30]
["Martin Marietta","Burlington Quarry - Burlington","2016-02-29","#78-M Stone for Electrochemical","CA39","795919","Loshinskiy, Roman",15755,8.6,0,8.5,"MEETS","N/A",8.5,0]
["Martin Marietta","Burlington Quarry - Burlington","2019-05-31","#78-M Stone for Electrochemical","CA39","966238","Waller, John M",13960,9.25,"<30","<47.278","DOES NOT MEET","N/A",47.277999999999999,30]
["Martin Marietta","Castle Hayne Quarry - Castle Hayne","2016-08-16","#57 Stone for Electrochemical","CA40","821247","Cahill, Luke R",4174,8.1999999999999993,4.3,69.2,"MEETS","N/A",69.2,4.3]
["Martin Marietta","Castle Hayne Quarry - Castle Hayne","2023-08-10","#57 Stone for Electrochemical","CA40","1114717","Holst, David W",20020,9.51,"<31","<24.98","DOES NOT MEET","N/A",24.98,31]
["Martin Marietta","Castle Hayne Yard - Castle Hayne","2009-06-17","#57 Stone for Electrochemical","CA319","488138","Jackson, Anthony M",8673,7,"<27","<200","MEETS","MEETS",200,27]
["Martin Marietta","Castle Hayne Yard - Castle Hayne","2009-07-24","#57 Stone for Electrochemical","CA319","490758","Walker, Steven E",17036,7.3,"<27","<200","MEETS","MEETS",200,27]
["Martin Marietta","Castle Hayne Yard - Castle Hayne","2009-07-24","#57 Stone for Electrochemical","CA319","490759","Walker, Steven E",17986,7.5,"<27","<200","MEETS","MEETS",200,27]
["Martin Marietta","Castle Hayne Yard - Castle Hayne","2016-08-16","#57 Stone for Electrochemical","CA319","821246","Cahill, Luke R",20125,9.3000000000000007,0,3.8,"DOES NOT MEET","MEETS",3.8,0]
["Martin Marietta","Castle Hayne Yard - Castle Hayne","2023-09-08","#57 Stone for Electrochemical","CA319","1117394","Holst, David W",19430,9.35,"<31","<25.72","DOES NOT MEET","MEETS",25.72,31]
["Martin Marietta","Castle Hayne Yard - Castle Hayne","2023-09-19","#57 Stone for Electrochemical","CA319","1118569","Holst, David W",11690,8.58,"<29","<42.43","MEETS","MEETS",42.43,29]
["Martin Marietta","Castle Hayne Yard - Castle Hayne","2017-12-01","#78-M Stone for Electrochemical","CA319","888789","Brotherton, Christopher R",22573,8.6999999999999993,0,28.2,"MEETS","MEETS",28.2,0]
["Martin Marietta","Castle Hayne Yard - Castle Hayne","2018-03-08","#78-M Stone for Electrochemical","CA319","900963","Oehman, Christopher E",14881,8.5,0,43.4,"MEETS","MEETS",43.4,0]
["Martin Marietta","Castle Hayne Yard - Castle Hayne","2018-07-13","Coarse Aggregate, #78M","CA319","920602","Oehman, Christopher E",16480,9.4,0,"<38.6","DOES NOT MEET","MEETS",38.6,0]
["Martin Marietta","Central Rock Quarry - Greensboro","2009-01-22","#57 Stone for Electrochemical","CA28","477054","Lockhart, Clifford M",21692,8.1,"<27","<200","MEETS","N/A",200,27]
["Martin Marietta","Central Rock Quarry - Greensboro","2009-06-25","#57 Stone for Electrochemical","CA28","488542","Brady, Michael Dean",26525,7.4,"<27","<200","MEETS","N/A",200,27]
["Martin Marietta","Central Rock Quarry - Greensboro","2016-02-16","#57 Stone for Electrochemical","CA28","793947","Westmoreland, Braxton J",27322,8.8000000000000007,5.4,6.3,"MEETS","N/A",6.3,5.4]
["Martin Marietta","Central Rock Quarry - Greensboro","2019-06-04","#57 Stone for Electrochemical","CA28","966790","Waller, John M",17480,9.49,"<30","<37.757","DOES NOT MEET","N/A",37.756999999999998,30]
["Martin Marietta","Central Rock Quarry - Greensboro","2010-05-11","#78-M Stone for Electrochemical","CA28","510893","Jackson, Brandon M",13315,7.4,27,200,"MEETS","N/A",200,27]
["Martin Marietta","Central Rock Quarry - Greensboro","2010-07-23","#78-M Stone for Electrochemical","CA28","517355","Owens, Daniel B",12000,7.1,27,200,"MEETS","N/A",200,27]
["Martin Marietta","Central Rock Quarry - Greensboro","2010-08-12","#78-M Stone for Electrochemical","CA28","519429","Johnson, Don W",15503,8.1999999999999993,"<28",0,"MEETS","N/A",0,28]
["Martin Marietta","Central Rock Quarry - Greensboro","2011-02-03","#78-M Stone for Electrochemical","CA28","531273","Johnson, Don W",14556,7.7,0,0,"MEETS","N/A",0,0]
["Martin Marietta","Central Rock Quarry - Greensboro","2011-03-23","#78-M Stone for Electrochemical","CA28","534979","Owens, F. David",16103,8.1,204,0,"MEETS","N/A",0,204]
["Martin Marietta","Central Rock Quarry - Greensboro","2016-02-16","#78-M Stone for Electrochemical","CA28","793945","Westmoreland, Braxton J",13635,8.4,0,10.1,"MEETS","N/A",10.1,0]
["Martin Marietta","Central Rock Quarry - Greensboro","2019-06-04","#78-M Stone for Electrochemical","CA28","966787","Waller, John M",15200,9.49,"<30","<43.421","DOES NOT MEET","N/A",43.420999999999999,30]
["Martin Marietta","Central Rock Quarry - Greensboro","2010-02-04","Coarse Aggregate, #67","CA28","503817","Jackson, Brandon M",19120,8.8000000000000007,27,"<200","MEETS","N/A",200,27]
["Martin Marietta","Central Rock Quarry - Greensboro","2010-02-04","Coarse Aggregate, #78M","CA28","503819","Jackson, Brandon M",15674,8.4,27,"<200","MEETS","N/A",200,27]
["Martin Marietta","Charlotte Quarry - Charlotte","2016-04-14","#57 Stone for Electrochemical","CA41","802303","Adair, Mildred (Millie) L",21124,8.8000000000000007,0,6.2,"MEETS","N/A",6.2,0]
["Martin Marietta","Charlotte Quarry - Charlotte","2016-09-08","#57 Stone for Electrochemical","CA41","825038","Adair, Mildred (Millie) L",17937,7.9,0,3.9,"MEETS","N/A",3.9,0]
["Martin Marietta","Charlotte Quarry - Charlotte","2019-07-10","#57 Stone for Electrochemical","CA41","972755","Pegues, Jr., Henderson",17300,9.56,"<29","<38.150","DOES NOT MEET","N/A",38.15,29]
["Martin Marietta","Charlotte Quarry - Charlotte","2016-09-08","#67 Stone for Electrochemical","CA41","825039","Adair, Mildred (Millie) L",21882,7.7,0,2.2999999999999998,"MEETS","N/A",2.2999999999999998,0]
["Martin Marietta","Charlotte Quarry - Charlotte","2017-06-19","#67 Stone for Electrochemical","CA41","864022","Adair, Mildred (Millie) L",15608,9.3000000000000007,0,38.4,{"$f":"IF(AND(4.5<=$I307,$I307<=9),\"MEETS\",\"DOES NOT MEET\")","v":"DOES NOT MEET"},{"$f":"IF(OR(ISBLANK(I307), NOT(ISNUMBER(MATCH($E307, Coastal, 0)))), \"N/A\", IF(AND(5 <= $I307, $I307 <= 10),IF($H307>=5000,IF($O307<=100,IF($N307<=200,\"MEETS\",\"DOES NOT MEET\"),\"DOES NOT MEET\"),\"DOES NOT MEET\"),\"DOES NOT MEET\"))","v":"N/A"},{"$f":"IF(LEFT(K307, 1)=\"<\", VALUE(RIGHT(K307,LEN(K307)-1)), K307)","v":38.4},{"$f":"IF(LEFT(J307, 1)=\"<\", VALUE(RIGHT(J307,LEN(J307)-1)), J307)","v":0}]
["Martin Marietta","Charlotte Quarry - Charlotte","2019-07-10","#67 Stone for Electrochemical","CA41","972758","Pegues, Jr., Henderson",18470,9.49,"<29","<35.734","DOES NOT MEET","N/A",35.734000000000002,29]
["Martin Marietta","Charlotte Quarry - Charlotte","2016-04-14","#78-M Stone for Electrochemical","CA41","802306","Adair, Mildred (Millie) L",17123,8.4,0,10.7,"MEETS","N/A",10.7,0]
["Martin Marietta","Charlotte Quarry - Charlotte","2016-09-08","#78-M Stone for Electrochemical","CA41","825040","Adair, Mildred (Millie) L",15936,7.6,0,4.0999999999999996,"MEETS","N/A",4.0999999999999996,0]
["Martin Marietta","Charlotte Quarry - Charlotte","2017-06-19","#78-M Stone for Electrochemical","CA41","864025","Adair, Mildred (Millie) L",14885,9.1999999999999993,0,41.2,"DOES NOT MEET","N/A",41.2,0]
["Martin Marietta","Charlotte Quarry - Charlotte","2019-07-10","#78-M Stone for Electrochemical","CA41","972759","Pegues, Jr., Henderson",17520,9.34,"<29","<37.671","DOES NOT MEET","N/A",37.670999999999999,29]
["Martin Marietta","Charlotte Quarry - Charlotte","2014-01-13","Miscellaneous Material for Electrochemical","CA41","694430","Adair, Mildred (Millie) L",9930,8.6999999999999993,0,0,"MEETS","N/A",0,0]
["Martin Marietta","Charlotte Quarry - Charlotte","2016-04-14","Miscellaneous Material for Electrochemical","CA41","802309","Adair, Mildred (Millie) L",9970,7.7,0,8.6,"MEETS","N/A",8.6,0]
["Martin Marietta","Clarks Quarry - New Bern","2015-06-18","#67 Stone for Electrochemical","CA189","762704","Maynard, William BJ T",2670,8,0,0,"MEETS","DOES NOT MEET",0,0]
["Martin Marietta","Clarks Quarry - New Bern","2015-07-06","#67 Stone for Electrochemical","CA189","765168","Maynard, William BJ T",2415,7.5,0,200,"MEETS","DOES NOT MEET",200,0]
["Martin Marietta","Clarks Quarry - New Bern","2015-07-06","#67 Stone for Electrochemical","CA189","765444","Maynard, William BJ T",2437,8.1,0,200,"MEETS","DOES NOT MEET",200,0]
["Martin Marietta","Clarks Quarry - New Bern","2015-07-06","#67 Stone for Electrochemical","CA189","765445","Maynard, William BJ T",1750,7.3,0,200,"MEETS","DOES NOT MEET",200,0]
["Martin Marietta","Clarks Quarry - New Bern","2015-09-10","#67 Stone for Electrochemical","CA189","775400","Maynard, William BJ T",2465,7.2,"",300,"MEETS","DOES NOT MEET",300,""]
["Martin Marietta","Clarks Quarry - New Bern","2016-08-03","#67 Stone for Electrochemical","CA189","819246","Maynard, William BJ T",4431,8,0,60.6,"MEETS","DOES NOT MEET",60.6,0]
["Martin Marietta","Clarks Quarry - New Bern","2017-08-11","#67 Stone for Electrochemical","CA189","873120","Hughes, Sr., Daniel P",880,6.8,0,400,"MEETS","DOES NOT MEET",400,0]
["Martin Marietta","Clarks Quarry - New Bern","2019-09-13","#67 Stone for Electrochemical","CA189","982797","Cobb, James R",4048,8.2200000000000006,"<32","<163.043","MEETS","DOES NOT MEET",163.04300000000001,32]
["Martin Marietta","Clarks Quarry - New Bern","2020-10-13","#67 Stone for Electrochemical","CA189","1023173","Cobb, James R",2770,8.0299999999999994,"<30","<238.267","MEETS","DOES NOT MEET",238.267,30]
["Martin Marietta","Clarks Quarry - New Bern","2019-09-13","#78-M Stone for Electrochemical","CA189","982804","Cobb, James R",3934,8.0500000000000007,"<32","<167.768","MEETS","DOES NOT MEET",167.768,32]
["Martin Marietta","Clarks Quarry - New Bern","2020-10-13","#78-M Stone for Electrochemical","CA189","1023172","Cobb, James R",2542,8.1300000000000008,"<30","<259.638","MEETS","DOES NOT MEET",259.63799999999998,30]
["Martin Marietta","Clarks Quarry - New Bern","2016-08-03","Miscellaneous Material for Electrochemical","CA189","819245","Maynard, William BJ T",8163,8.4,0,31.8,"MEETS","MEETS",31.8,0]
["Martin Marietta","Cumberland Quarry","2011-06-08","#57 Stone for Electrochemical","CA339","543022","Robinson, Beatrice H",6169,7.7,0,0,"MEETS","N/A",0,0]
["Martin Marietta","Cumberland Quarry","2011-06-08","#57 Stone for Electrochemical","CA339","543023","Robinson, Beatrice H",5247,7.6,0,0,"MEETS","N/A",0,0]
["Martin Marietta","Cumberland Quarry","2011-09-20","#57 Stone for Electrochemical","CA339","601600","Robinson, David S",14814,7.9,0,0,"MEETS","N/A",0,0]
["Martin Marietta","Cumberland Quarry","2011-10-13","#57 Stone for Electrochemical","CA339","604133","Stewart, Ernest C",10870,7.5,0,0,"MEETS","N/A",0,0]
["Martin Marietta","Cumberland Quarry","2011-10-17","#57 Stone for Electrochemical","CA339","604733","Stewart, Ernest C",14025,7.6,0,0,"MEETS","N/A",0,0]
["Martin Marietta","Cumberland Quarry","2011-10-20","#57 Stone for Electrochemical","CA339","605176","Stewart, Ernest C",13888,7.5,0,0,"MEETS","N/A",0,0]
["Martin Marietta","Cumberland Quarry","2011-10-25","#57 Stone for Electrochemical","CA339","605644","Stewart, Ernest C",11695,7.5,0,0,"MEETS","N/A",0,0]
["Martin Marietta","Cumberland Quarry","2011-10-28","#57 Stone for Electrochemical","CA339","606382","Stewart, Ernest C",11507,7.4,0,0,"MEETS","N/A",0,0]
["Martin Marietta","Cumberland Quarry","2011-06-08","ABC Stone for Electrochemical","CA339","541380","Robinson, Beatrice H",6169,7.7,0,0,"MEETS","N/A",0,0]
["Martin Marietta","Cumberland Quarry","2011-06-08","ABC Stone for Electrochemical","CA339","541382","Robinson, Beatrice H",5247,7.6,0,0,"MEETS","N/A",0,0]
["Martin Marietta","Denver Quarry - Denver","2016-12-20","#57 Stone for Electrochemical","CA169","839457","Brinson, Joseph",13631,7.8,0,5,"MEETS","N/A",5,0]
["Martin Marietta","Denver Quarry - Denver","2019-07-25","#57 Stone for Electrochemical","CA169","974525","Gosnell, Jimmy L",3976,4.6100000000000003,"<29","<165.996","MEETS","N/A",165.99600000000001,29]
["Martin Marietta","Denver Quarry - Denver","2019-08-28","#57 Stone for Electrochemical","CA169","980193","Brinson, Joseph",2399,4.54,"<32","<275.115","MEETS","N/A",275.11500000000001,32]
["Martin Marietta","Denver Quarry - Denver","2019-09-20","#57 Stone for Electrochemical","CA169","983979","Myers, Jesse J",14160,8.98,"<32","<46.610","MEETS","N/A",46.61,32]
["Martin Marietta","Denver Quarry - Denver","2016-12-20","#67 Stone for Electrochemical","CA169","839459","Brinson, Joseph",18560,7.7,0,1.5,"MEETS","N/A",1.5,0]
["Martin Marietta","Denver Quarry - Denver","2018-09-26","#67 Stone for Electrochemical","CA169","932757","Gosnell, Jimmy L",18940,9.1999999999999993,0,"<37.17","DOES NOT MEET","N/A",37.17,0]
["Martin Marietta","Denver Quarry - Denver","2019-07-25","#67 Stone for Electrochemical","CA169","974526","Gosnell, Jimmy L",28270,9.61,"<29","<23.346","DOES NOT MEET","N/A",23.346,29]
["Martin Marietta","Denver Quarry - Denver","2019-08-28","#67 Stone for Electrochemical","CA169","980194","Brinson, Joseph",2476,3.97,"<32","<266.559","DOES NOT MEET","N/A",266.55900000000003,32]
["Martin Marietta","Denver Quarry - Denver","2016-12-20","#78-M Stone for Electrochemical","CA169","839461","Brinson, Joseph",10254,7.5,0,16.399999999999999,"MEETS","N/A",16.399999999999999,0]
["Martin Marietta","Denver Quarry - Denver","2018-09-26","#78-M Stone for Electrochemical","CA169","932759","Gosnell, Jimmy L",8341,8.6,0,"<84.02","MEETS","N/A",84.02,0]
["Martin Marietta","Denver Quarry - Denver","2019-07-25","#78-M Stone for Electrochemical","CA169","974527","Gosnell, Jimmy L",3053,6.05,"<29","<216.181","MEETS","N/A",216.18100000000001,29]
["Martin Marietta","Denver Quarry - Denver","2019-08-28","#78-M Stone for Electrochemical","CA169","980195","Brinson, Joseph",2501,4.78,"<32","<263.894","MEETS","N/A",263.89400000000001,32]
["Martin Marietta","Denver Quarry - Denver","2019-09-20","#78-M Stone for Electrochemical","CA169","983981","Myers, Jesse J",10780,8.52,"<32","<61.224","MEETS","N/A",61.223999999999997,32]
["Martin Marietta","East Alamance Quarry - Haw River","2018-09-10","#57 Stone for Electrochemical","CA201","930500","Waller, John M",20310,9.6,15,"<29.34","DOES NOT MEET","N/A",29.34,15]
["Martin Marietta","East Alamance Sales Yard","2016-02-08","#57 Stone for Electrochemical","CA377","793260","Westmoreland, Braxton J",19350,7,5,11.1,"MEETS","N/A",11.1,5]
["Martin Marietta","East Alamance Sales Yard","2016-02-08","#78-M Stone for Electrochemical","CA377","793261","Westmoreland, Braxton J",15330,8.3000000000000007,5,9.4,"MEETS","N/A",9.4,5]
["Martin Marietta","Fountain Quarry - Fountain","2010-02-15","#57 Stone for Electrochemical","CA42","504586","Harrell, William H",23474,8.3000000000000007,27,"<200","MEETS","MEETS",200,27]
["Martin Marietta","Fountain Quarry - Fountain","2010-02-25","#57 Stone for Electrochemical","CA42","505150","Galloway, Brandon W",23148,8.6999999999999993,"<27",200,"MEETS","MEETS",200,27]
["Martin Marietta","Fountain Quarry - Fountain","2010-03-10","#57 Stone for Electrochemical","CA42","506007","Galloway, Brandon W",15128,8.1999999999999993,27,"<200","MEETS","MEETS",200,27]
["Martin Marietta","Fountain Quarry - Fountain","2010-03-23","#57 Stone for Electrochemical","CA42","507094","Galloway, Brandon W",17182,7.4,27,"<200","MEETS","MEETS",200,27]
["Martin Marietta","Fountain Quarry - Fountain","2010-11-16","#57 Stone for Electrochemical","CA42","527184","Harrell, William H",17513,8.1,0,0,"MEETS","MEETS",0,0]
["Martin Marietta","Fountain Quarry - Fountain","2011-03-01","#57 Stone for Electrochemical","CA42","533381","Harrison, Willie A",22779,8.4,0,0,"MEETS","MEETS",0,0]
["Martin Marietta","Fountain Quarry - Fountain","2011-03-01","#57 Stone for Electrochemical","CA42","533382","Harrison, Willie A",23474,8.5,0,0,"MEETS","MEETS",0,0]
["Martin Marietta","Fountain Quarry - Fountain","2011-03-01","#57 Stone for Electrochemical","CA42","533383","Harrison, Willie A",18552,8.5,0,0,"MEETS","MEETS",0,0]
["Martin Marietta","Fountain Quarry - Fountain","2011-03-04","#57 Stone for Electrochemical","CA42","533548","Harrison, Willie A",18587,8.6999999999999993,0,0,"MEETS","MEETS",0,0]
["Martin Marietta","Fountain Quarry - Fountain","2011-03-04","#57 Stone for Electrochemical","CA42","533549","Harrison, Willie A",32894,7.9,0,0,"MEETS","MEETS",0,0]
["Martin Marietta","Fountain Quarry - Fountain","2011-03-08","#57 Stone for Electrochemical","CA42","534075","Harrison, Willie A",16103,8.6,0,0,"MEETS","MEETS",0,0]
["Martin Marietta","Fountain Quarry - Fountain","2011-03-23","#57 Stone for Electrochemical","CA42","535055","Harrison, Willie A",18867,7.9,0,0,"MEETS","MEETS",0,0]
["Martin Marietta","Fountain Quarry - Fountain","2011-03-25","#57 Stone for Electrochemical","CA42","535416","Harrison, Willie A",12804,8,0,0,"MEETS","MEETS",0,0]
["Martin Marietta","Fountain Quarry - Fountain","2011-05-18","#57 Stone for Electrochemical","CA42","539592","Harrison, Willie A",10384,8.3000000000000007,0,0,"MEETS","MEETS",0,0]
["Martin Marietta","Fountain Quarry - Fountain","2011-05-20","#57 Stone for Electrochemical","CA42","539899","Harrison, Willie A",10753,7.9,0,0,"MEETS","MEETS",0,0]
["Martin Marietta","Fountain Quarry - Fountain","2015-09-28","#57 Stone for Electrochemical","CA42","777688","Cobb, James R",15179,9,0,0,"MEETS","MEETS",0,0]
["Martin Marietta","Fountain Quarry - Fountain","2016-02-19","#57 Stone for Electrochemical","CA42","794449","Cobb, James R",25304,8.5,0,0,"MEETS","MEETS",0,0]
["Martin Marietta","Fountain Quarry - Fountain","2020-09-25","#57 Stone for Electrochemical","CA42","1021240","Cobb, James R",22540,9.2200000000000006,"<30","<29.281","DOES NOT MEET","MEETS",29.280999999999999,30]
["Martin Marietta","Fountain Quarry - Fountain","2021-06-01","#57 Stone for Electrochemical","CA42","1043178","Cobb, James R",18210,9.41,"<33","<36.244",{"$f":"IF(AND(4.5<=$I371,$I371<=9),\"MEETS\",\"DOES NOT MEET\")","v":"DOES NOT MEET"},{"$f":"IF(OR(ISBLANK(I371), NOT(ISNUMBER(MATCH($E371, Coastal, 0)))), \"N/A\", IF(AND(5 <= $I371, $I371 <= 10),IF($H371>=5000,IF($O371<=100,IF($N371<=200,\"MEETS\",\"DOES NOT MEET\"),\"DOES NOT MEET\"),\"DOES NOT MEET\"),\"DOES NOT MEET\"))","v":"MEETS"},{"$f":"IF(LEFT(K371, 1)=\"<\", VALUE(RIGHT(K371,LEN(K371)-1)), K371)","v":36.244},{"$f":"IF(LEFT(J371, 1)=\"<\", VALUE(RIGHT(J371,LEN(J371)-1)), J371)","v":33}]
["Martin Marietta","Fountain Quarry - Fountain","2021-06-01","#57 Stone for Electrochemical","CA42","1043178","Cobb, James R",18210,9.41,"<33","<36.244","DOES NOT MEET","MEETS",36.244,33]
["Martin Marietta","Fountain Quarry - Fountain","2016-02-19","#78-M Stone for Electrochemical","CA42","794440","Cobb, James R",10144,8.1999999999999993,0,0,"MEETS","MEETS",0,0]
["Martin Marietta","Fountain Quarry - Fountain","2019-06-25","#78-M Stone for Electrochemical","CA42","969843","Cobb, James R",18720,9.4499999999999993,"<29","<35.256","DOES NOT MEET","MEETS",35.256,29]
["Martin Marietta","Fountain Quarry - Fountain","2020-09-25","#78-M Stone for Electrochemical","CA42","1021241","Cobb, James R",14210,9.44,"<30","<46.446","DOES NOT MEET","MEETS",46.445999999999998,30]
["Martin Marietta","Fountain Quarry - Fountain","2021-06-01","#78-M Stone for Electrochemical","CA42","1043179","Cobb, James R",21470,9.34,"<33","<30.741","DOES NOT MEET","MEETS",30.741,33]
["Martin Marietta","Fountain Quarry - Fountain","2021-06-01","#78-M Stone for Electrochemical","CA42","1043179","Cobb, James R",21470,9.34,"<33","<30.741","DOES NOT MEET","MEETS",30.741,33]
["Martin Marietta","Franklin Quarry - Franklinton","2004-07-21","#57 Stone for Electrochemical","CA270","345128","Joyner, PE, W. Steve",19500,8,26,"","MEETS","N/A","",26]
["Martin Marietta","Franklin Quarry - Franklinton","2004-08-09","#57 Stone for Electrochemical","CA270","347343","Joyner, PE, W. Steve",18410,7.8,26,"<200 mg/L","MEETS","N/A",{"$error":"#VALUE!"},26]
["Martin Marietta","Franklin Quarry - Franklinton","2004-08-12","#57 Stone for Electrochemical","CA270","347953","Myrick, William T",20220,7.8,"<26","<200 mg/L","MEETS","N/A",{"$error":"#VALUE!"},26]
["Martin Marietta","Franklin Quarry - Franklinton","2004-08-17","#57 Stone for Electrochemical","CA270","348529","Myrick, William T",17150,7.2,"<26","<200 mg/L","MEETS","N/A",{"$error":"#VALUE!"},26]
["Martin Marietta","Franklin Quarry - Franklinton","2004-08-23","#57 Stone for Electrochemical","CA270","349194","Myrick, William T",28360,7.4,"<26","<200 mg/L","MEETS","N/A",{"$error":"#VALUE!"},26]
["Martin Marietta","Franklin Quarry - Franklinton","2004-10-07","#57 Stone for Electrochemical","CA270","354557","Myrick, William T",20450,8.4,"<26","<200","MEETS","N/A",200,26]
["Martin Marietta","Franklin Quarry - Franklinton","2004-10-19","#57 Stone for Electrochemical","CA270","355849","Contino, Daniel L",16770,8.6,"<26","<200","MEETS","N/A",200,26]
["Martin Marietta","Franklin Quarry - Franklinton","2004-10-26","#57 Stone for Electrochemical","CA270","356652","Contino, Daniel L",21700,8.8000000000000007,"<26","<200","MEETS","N/A",200,26]
["Martin Marietta","Franklin Quarry - Franklinton","2004-10-29","#57 Stone for Electrochemical","CA270","357022","Myrick, William T",20550,8.5,"<26","<400","MEETS","N/A",400,26]
["Martin Marietta","Franklin Quarry - Franklinton","2016-02-12","#57 Stone for Electrochemical","CA270","793723","Skinner, III, John L",26652,9.1999999999999993,0,4.4000000000000004,"DOES NOT MEET","N/A",4.4000000000000004,0]
["Martin Marietta","Franklin Quarry - Franklinton","2019-03-27","#57 Stone for Electrochemical","CA270","956770","Skinner, III, John L",21320,9.6,"<30","<30.957","DOES NOT MEET","N/A",30.957000000000001,30]
["Martin Marietta","Franklin Quarry - Franklinton","2016-02-12","#78-M Stone for Electrochemical","CA270","793725","Skinner, III, John L",38926,7.7,0,4.5,"MEETS","N/A",4.5,0]
["Martin Marietta","Franklin Quarry - Franklinton","2019-03-27","#78-M Stone for Electrochemical","CA270","956772","Skinner, III, John L",24930,8.1,"<30","<26.474","MEETS","N/A",26.474,30]
["Martin Marietta","Fuquay Quarry - Fuquay-Varina","2001-01-22","#57 Stone for Electrochemical","CA220","173147","Townsend, Daniel A",23800,8.5,"","","MEETS","N/A","",""]
["Martin Marietta","Fuquay Quarry - Fuquay-Varina","2001-02-28","#57 Stone for Electrochemical","CA220","178836","Townsend, Daniel A",22700,8.3000000000000007,"","","MEETS","N/A","",""]
["Martin Marietta","Fuquay Quarry - Fuquay-Varina","2016-02-11","#57 Stone for Electrochemical","CA220","793622","Skinner, III, John L",53591,7.4,0,4.0999999999999996,"MEETS","N/A",4.0999999999999996,0]
["Martin Marietta","Fuquay Quarry - Fuquay-Varina","2019-01-31","#57 Stone for Electrochemical","CA220","947851","Skinner, III, John L",25920,9.4,0,"<25.463","DOES NOT MEET","N/A",25.463000000000001,0]
["Martin Marietta","Fuquay Quarry - Fuquay-Varina","2016-02-11","#78-M Stone for Electrochemical","CA220","793623","Skinner, III, John L",33179,7.7,0,4.0999999999999996,"MEETS","N/A",4.0999999999999996,0]
["Martin Marietta","Fuquay Quarry - Fuquay-Varina","2019-01-31","#78-M Stone for Electrochemical","CA220","947853","Skinner, III, John L",20170,9.3000000000000007,0,"<32.722","DOES NOT MEET","N/A",32.722000000000001,0]
["Martin Marietta","Garner Quarry - Garner","2016-02-09","#67 Stone for Electrochemical","CA57","793217","Skinner, III, John L",33367,8.1,0,3,"MEETS","N/A",3,0]
["Martin Marietta","Garner Quarry - Garner","2019-01-29","#67 Stone for Electrochemical","CA57","947426","Skinner, III, John L",21980,9.3000000000000007,0,"<30.027","DOES NOT MEET","N/A",30.027000000000001,0]
["Martin Marietta","Garner Quarry - Garner","2016-02-09","#78-M Stone for Electrochemical","CA57","793218","Skinner, III, John L",25176,8.4,0,3.5,"MEETS","N/A",3.5,0]
["Martin Marietta","Garner Quarry - Garner","2019-01-29","#78-M Stone for Electrochemical","CA57","947428","Skinner, III, John L",21020,9.3000000000000007,0,"<31.399","DOES NOT MEET","N/A",31.399000000000001,0]
["Martin Marietta","Hickory Quarry - Hickory","2000-08-21","#57 Stone for Electrochemical","CA43","150122","Parsons, Benjamin R",22700,7.9,"","","MEETS","N/A","",""]
["Martin Marietta","Hickory Quarry - Hickory","2000-09-22","#57 Stone for Electrochemical","CA43","156110","Houser, Ben M",18500,8.3000000000000007,"","","MEETS","N/A","",""]
["Martin Marietta","Hickory Quarry - Hickory","2000-10-04","#57 Stone for Electrochemical","CA43","157799","Houser, Ben M",16700,7.5,"","","MEETS","N/A","",""]
["Martin Marietta","Hickory Quarry - Hickory","2012-07-17","#57 Stone for Electrochemical","CA43","632520","Robinson, Lee E",46948,5.3,0,0,"MEETS","N/A",0,0]
["Martin Marietta","Hickory Quarry - Hickory","2012-08-20","#57 Stone for Electrochemical","CA43","637231","Robinson, Lee E",20703,5.3,0,0,"MEETS","N/A",0,0]
["Martin Marietta","Hickory Quarry - Hickory","2012-08-24","#57 Stone for Electrochemical","CA43","637848","Robinson, Lee E",22222,5.6,0,0,"MEETS","N/A",0,0]
["Martin Marietta","Hickory Quarry - Hickory","2012-09-07","#57 Stone for Electrochemical","CA43","639682","Winkler, Jeffrey D",13192,5.2,0,0,"MEETS","N/A",0,0]
["Martin Marietta","Hickory Quarry - Hickory","2012-11-07","#57 Stone for Electrochemical","CA43","647293","Robinson, Lee E",7800,5.5,0,0,"MEETS","N/A",0,0]
["Martin Marietta","Hickory Quarry - Hickory","2012-12-10","#57 Stone for Electrochemical","CA43","651129","Winkler, Jeffrey D",15600,7.1,0,0,"MEETS","N/A",0,0]
["Martin Marietta","Hickory Quarry - Hickory","2013-01-04","#57 Stone for Electrochemical","CA43","652733","Winkler, Jeffrey D",21881,8.1999999999999993,0,0,"MEETS","N/A",0,0]
["Martin Marietta","Hickory Quarry - Hickory","2019-07-08","#57 Stone for Electrochemical","CA43","971761","Gosnell, Jimmy L",22040,9.4,"<29","<29.946","DOES NOT MEET","N/A",29.946000000000002,29]
["Martin Marietta","Hickory Quarry - Hickory","2018-09-26","#67 Stone for Electrochemical","CA43","932400","Brinson, Joseph",19770,9.5,0,"<36.20","DOES NOT MEET","N/A",36.200000000000003,0]
["Martin Marietta","Hickory Quarry - Hickory","2019-07-08","#67 Stone for Electrochemical","CA43","971762","Gosnell, Jimmy L",22660,9.4700000000000006,"<29","<29.126","DOES NOT MEET","N/A",29.126000000000001,29]
["Martin Marietta","Hickory Quarry - Hickory","2018-09-26","#78-M Stone for Electrochemical","CA43","932402","Brinson, Joseph",18250,9.3000000000000007,0,"<39.75","DOES NOT MEET","N/A",39.75,0]
["Martin Marietta","Hickory Quarry - Hickory","2019-07-08","#78-M Stone for Electrochemical","CA43","971764","Gosnell, Jimmy L",21930,9.4700000000000006,"<29","<30.096","DOES NOT MEET","N/A",30.096,29]
["Martin Marietta","Hicone Quarry","2003-10-21","#57 Stone for Electrochemical","CA44","316519","Cassada, James Tim",20760,7.8,26,"","MEETS","N/A","",26]
["Martin Marietta","Hicone Quarry","2003-10-21","#57 Stone for Electrochemical","CA44","316521","Cassada, James Tim",21450,7.7,26,"","MEETS","N/A","",26]
["Martin Marietta","Hicone Quarry","2003-10-22","#57 Stone for Electrochemical","CA44","316279","Fosque, Robert W",28730,7.7,26,"","MEETS","N/A","",26]
["Martin Marietta","Hicone Quarry","2003-10-24","#57 Stone for Electrochemical","CA44","316593","Cassada, James Tim",19870,7.7,26,"","MEETS","N/A","",26]
["Martin Marietta","Hicone Quarry","2003-11-13","#57 Stone for Electrochemical","CA44","318708","Dearing, Michael D",25220,6.7,26,"","MEETS","N/A","",26]
["Martin Marietta","Hicone Quarry","2003-12-02","#57 Stone for Electrochemical","CA44","320591","Cassada, James Tim",24160,7.2,26,"","MEETS","N/A","",26]
["Martin Marietta","I-40 Sales Yard (Castle Hayne)","2002-02-25","#57 Stone for Electrochemical","CA235","248413","Allen, Daniel W",16950,7.3,"","","MEETS","N/A","",""]
["Martin Marietta","I-40 Sales Yard (Castle Hayne)","2002-05-03","#57 Stone for Electrochemical","CA235","257037","Allen, Daniel W",15873,8.5,"<26","","MEETS","N/A","",26]
["Martin Marietta","I-40 Sales Yard (Castle Hayne)","2002-06-28","#57 Stone for Electrochemical","CA235","265004","Allen, Daniel W",19231,6.2,"<26","","MEETS","N/A","",26]
["Martin Marietta","I-40 Sales Yard (Castle Hayne)","2002-08-15","#57 Stone for Electrochemical","CA235","271897","Allen, Daniel W",11765,8.5,26,"","MEETS","N/A","",26]
["Martin Marietta","I-40 Sales Yard (Castle Hayne)","2002-10-03","#57 Stone for Electrochemical","CA235","278281","Allen, Daniel W",14706,8.8000000000000007,26,"","MEETS","N/A","",26]
["Martin Marietta","Jamestown Quarry - Jamestown","2001-04-30","#57 Stone for Electrochemical","CA46","188454","Vincent, Timothy L",23810,9.1999999999999993,"","","DOES NOT MEET","N/A","",""]
["Martin Marietta","Jamestown Quarry - Jamestown","2001-05-14","#57 Stone for Electrochemical","CA46","190423","Vincent, Timothy L",20800,9,"","","MEETS","N/A","",""]
["Martin Marietta","Jamestown Quarry - Jamestown","2001-05-24","#57 Stone for Electrochemical","CA46","192989","Vincent, Timothy L",23800,9,"","","MEETS","N/A","",""]
["Martin Marietta","Jamestown Quarry - Jamestown","2001-06-06","#57 Stone for Electrochemical","CA46","194725","Vincent, Timothy L",25000,9,"","","MEETS","N/A","",""]
["Martin Marietta","Jamestown Quarry - Jamestown","2001-06-14","#57 Stone for Electrochemical","CA46","196561","Vincent, Timothy L",24400,8.8000000000000007,"","","MEETS","N/A","",""]
["Martin Marietta","Jamestown Quarry - Jamestown","2001-06-18","#57 Stone for Electrochemical","CA46","197127","Vincent, Timothy L",25600,9,"","","MEETS","N/A","",""]
["Martin Marietta","Jamestown Quarry - Jamestown","2001-06-21","#57 Stone for Electrochemical","CA46","197877","Vincent, Timothy L",25000,9.1999999999999993,"","","DOES NOT MEET","N/A","",""]
["Martin Marietta","Jamestown Quarry - Jamestown","2001-06-25","#57 Stone for Electrochemical","CA46","198363","Vincent, Timothy L",38460,8.3000000000000007,"","","MEETS","N/A","",""]
["Martin Marietta","Jamestown Quarry - Jamestown","2001-08-21","#57 Stone for Electrochemical","CA46","226898","Vincent, Timothy L",37000,8.1999999999999993,"","",{"$f":"IF(AND(4.5<=$I435,$I435<=9),\"MEETS\",\"DOES NOT MEET\")","v":"MEETS"},{"$f":"IF(OR(ISBLANK(I435), NOT(ISNUMBER(MATCH($E435, Coastal, 0)))), \"N/A\", IF(AND(5 <= $I435, $I435 <= 10),IF($H435>=5000,IF($O435<=100,IF($N435<=200,\"MEETS\",\"DOES NOT MEET\"),\"DOES NOT MEET\"),\"DOES NOT MEET\"),\"DOES NOT MEET\"))","v":"N/A"},{"$f":"IF(LEFT(K435, 1)=\"<\", VALUE(RIGHT(K435,LEN(K435)-1)), K435)","v":""},{"$f":"IF(LEFT(J435, 1)=\"<\", VALUE(RIGHT(J435,LEN(J435)-1)), J435)","v":""}]
["Martin Marietta","Jamestown Quarry - Jamestown","2004-10-19","#57 Stone for Electrochemical","CA46","356100","Crissman, Albert Lynn",23320,8.3000000000000007,"<26","<400","MEETS","N/A",400,26]
["Martin Marietta","Jamestown Quarry - Jamestown","2019-06-04","#67 Stone for Electrochemical","CA46","966791","Waller, John M",26120,9.15,"<30","<25.268","DOES NOT MEET","N/A",25.268000000000001,30]
["Martin Marietta","Jamestown Quarry - Jamestown","2019-06-04","#78-M Stone for Electrochemical","CA46","966788","Waller, John M",28310,9.1300000000000008,"<30","<23.313","DOES NOT MEET","N/A",23.312999999999999,30]
["Martin Marietta","Kannapolis Quarry - Landis","2018-03-28","#57 Stone for Electrochemical","CA47","903949","Wagoner, Roy M",22868,9,0,23.5,"MEETS","N/A",23.5,0]
["Martin Marietta","Kannapolis Quarry - Landis","2019-01-14","#57 Stone for Electrochemical","CA47","945417","Ealey, Lee E",24430,9.4,0,"<27.016","DOES NOT MEET","N/A",27.015999999999998,0]
["Martin Marietta","Kannapolis Quarry - Landis","2020-02-26","#57 Stone for Electrochemical","CA47","1000981","Ealey, Lee E",24350,9.39,"<30","<27.105","DOES NOT MEET","N/A",27.105,30]
["Martin Marietta","Kannapolis Quarry - Landis","2019-01-14","#67 Stone for Electrochemical","CA47","945419","Ealey, Lee E",24950,9.1,0,"<26.453","DOES NOT MEET","N/A",26.452999999999999,0]
["Martin Marietta","Kannapolis Quarry - Landis","2020-02-26","#67 Stone for Electrochemical","CA47","1000982","Ealey, Lee E",16709,8.99,"<30","<39.5","MEETS","N/A",39.5,30]
["Martin Marietta","Kannapolis Quarry - Landis","2018-03-28","#78-M Stone for Electrochemical","CA47","903950","Wagoner, Roy M",24149,8.9,0,22.4,"MEETS","N/A",22.4,0]
["Martin Marietta","Kannapolis Quarry - Landis","2019-01-14","#78-M Stone for Electrochemical","CA47","945421","Ealey, Lee E",21550,9.1999999999999993,0,"<30.626","DOES NOT MEET","N/A",30.626000000000001,0]
["Martin Marietta","Kannapolis Quarry - Landis","2020-02-26","#78-M Stone for Electrochemical","CA47","1000984","Ealey, Lee E",20890,9.1300000000000008,"<30","<31.594","DOES NOT MEET","N/A",31.594000000000001,30]
["Martin Marietta","Kings Mountain Quarry - Kings Mountain","2007-12-13","#67 Stone for Electrochemical","CA48","450960","Bullock, Charles D",11223,7.7,"<32","<200","MEETS","N/A",200,32]
["Martin Marietta","Kings Mountain Quarry - Kings Mountain","2017-10-30","#67 Stone for Electrochemical","CA48","883910","Brinson, Joseph",11674,9.6,0,51.4,"DOES NOT MEET","N/A",51.4,0]
["Martin Marietta","Kings Mountain Quarry - Kings Mountain","2017-11-17","#67 Stone for Electrochemical","CA48","886932","Brinson, Joseph",8651,9.9,0,76.3,"DOES NOT MEET","N/A",76.3,0]
["Martin Marietta","Kings Mountain Quarry - Kings Mountain","2018-06-01","#67 Stone for Electrochemical","CA48","913644","Brinson, Joseph",13679,9.1999999999999993,0,45.3,"DOES NOT MEET","N/A",45.3,0]
["Martin Marietta","Kings Mountain Quarry - Kings Mountain","2019-07-01","#67 Stone for Electrochemical","CA48","970678","Gosnell, Jimmy L",13190,9.27,"<29","<50.038","DOES NOT MEET","N/A",50.037999999999997,29]
["Martin Marietta","Kings Mountain Quarry - Kings Mountain","2017-10-30","#78-M Stone for Electrochemical","CA48","883913","Brinson, Joseph",12404,9.5,0,48.8,"DOES NOT MEET","N/A",48.8,0]
["Martin Marietta","Kings Mountain Quarry - Kings Mountain","2018-06-01","#78-M Stone for Electrochemical","CA48","913645","Brinson, Joseph",13462,9.3000000000000007,4,45.4,"DOES NOT MEET","N/A",45.4,4]
["Martin Marietta","Kings Mountain Quarry - Kings Mountain","2019-07-01","#78-M Stone for Electrochemical","CA48","970680","Gosnell, Jimmy L",12220,9.2899999999999991,"<29","<54.010","DOES NOT MEET","N/A",54.01,29]
["Martin Marietta","Lemon Springs - Sanford","2016-02-19","#57 Stone for Electrochemical","CA97","794469","Jackson, Brandon M",27716,8.6999999999999993,0,4,"MEETS","N/A",4,0]
["Martin Marietta","Lemon Springs - Sanford","2018-10-29","#57 Stone for Electrochemical","CA97","937182","Jackson, Brandon M",32090,9.4,0,"<20.6","DOES NOT MEET","N/A",20.6,0]
["Martin Marietta","Lemon Springs - Sanford","2019-08-16","#57 Stone for Electrochemical","CA97","978230","Jackson, Brandon M",16210,9.4600000000000009,"<29","<40.716","DOES NOT MEET","N/A",40.716000000000001,29]
["Martin Marietta","Lemon Springs - Sanford","2016-02-19","#67 Stone for Electrochemical","CA97","794474","Jackson, Brandon M",25608,8.6,0,0,"MEETS","N/A",0,0]
["Martin Marietta","Lemon Springs - Sanford","2018-10-29","#67 Stone for Electrochemical","CA97","937183","Jackson, Brandon M",22810,9,0,"<28.9","MEETS","N/A",28.9,0]
["Martin Marietta","Lemon Springs - Sanford","2019-08-16","#67 Stone for Electrochemical","CA97","978233","Jackson, Brandon M",16730,9.33,"<29","<39.450","DOES NOT MEET","N/A",39.450000000000003,29]
["Martin Marietta","Lemon Springs - Sanford","2016-02-19","#78-M Stone for Electrochemical","CA97","794477","Jackson, Brandon M",22188,8.6999999999999993,0,0,"MEETS","N/A",0,0]
["Martin Marietta","Lemon Springs - Sanford","2018-10-29","#78-M Stone for Electrochemical","CA97","937184","Jackson, Brandon M",16280,9.1999999999999993,0,"<40.5","DOES NOT MEET","N/A",40.5,0]
["Martin Marietta","Lemon Springs - Sanford","2019-08-16","#78-M Stone for Electrochemical","CA97","978234","Jackson, Brandon M",15270,9.23,"<29","<43.222","DOES NOT MEET","N/A",43.222000000000001,29]
["Martin Marietta","Mallard Creek Quarry - Charlotte","2016-02-22","#57 Stone for Electrochemical","CA188","794798","Pegues, Jr., Henderson",23987,9.1,0,4.5,"DOES NOT MEET","N/A",4.5,0]
["Martin Marietta","Mallard Creek Quarry - Charlotte","2016-11-01","#57 Stone for Electrochemical","CA188","832994","Pegues, Jr., Henderson",23095,9,0,0.6,"MEETS","N/A",0.6,0]
["Martin Marietta","Mallard Creek Quarry - Charlotte","2017-11-07","#57 Stone for Electrochemical","CA188","885610","Pegues, Jr., Henderson",18570,9.1999999999999993,0,31.9,"DOES NOT MEET","N/A",31.9,0]
["Martin Marietta","Mallard Creek Quarry - Charlotte","2017-11-30","#57 Stone for Electrochemical","CA188","888671","Pegues, Jr., Henderson",19026,9.5,0,34.4,"DOES NOT MEET","N/A",34.4,0]
["Martin Marietta","Mallard Creek Quarry - Charlotte","2018-08-02","#57 Stone for Electrochemical","CA188","924255","Thomas, Mark D",18720,9.6,0,"<27.91","DOES NOT MEET","N/A",27.91,0]
["Martin Marietta","Mallard Creek Quarry - Charlotte","2018-08-02","#57 Stone for Electrochemical","CA188","927542","Thomas, Mark D",18720,9.6,0,"<27.91","DOES NOT MEET","N/A",27.91,0]
["Martin Marietta","Mallard Creek Quarry - Charlotte","2018-11-12","#57 Stone for Electrochemical","CA188","939062","Pegues, Jr., Henderson",25090,9.6,0,"<26.3","DOES NOT MEET","N/A",26.3,0]
["Martin Marietta","Mallard Creek Quarry - Charlotte","2016-02-22","#67 Stone for Electrochemical","CA188","794806","Pegues, Jr., Henderson",26399,9.1,0,4.0999999999999996,"DOES NOT MEET","N/A",4.0999999999999996,0]
["Martin Marietta","Mallard Creek Quarry - Charlotte","2016-11-01","#67 Stone for Electrochemical","CA188","832992","Pegues, Jr., Henderson",19051,8.6999999999999993,0,0,"MEETS","N/A",0,0]
["Martin Marietta","Mallard Creek Quarry - Charlotte","2017-11-07","#67 Stone for Electrochemical","CA188","885612","Pegues, Jr., Henderson",23272,9.3000000000000007,0,28.3,"DOES NOT MEET","N/A",28.3,0]
["Martin Marietta","Mallard Creek Quarry - Charlotte","2017-11-30","#67 Stone for Electrochemical","CA188","888673","Pegues, Jr., Henderson",20040,9.1999999999999993,0,33,"DOES NOT MEET","N/A",33,0]
["Martin Marietta","Mallard Creek Quarry - Charlotte","2018-11-12","#67 Stone for Electrochemical","CA188","939061","Pegues, Jr., Henderson",26290,9.6,0,"<25.1","DOES NOT MEET","N/A",25.1,0]
["Martin Marietta","Mallard Creek Quarry - Charlotte","2019-11-06","#67 Stone for Electrochemical","CA188","990713","Pegues, Jr., Henderson",17870,9.44,"<32","<36.933","DOES NOT MEET","N/A",36.933,32]
["Martin Marietta","Mallard Creek Quarry - Charlotte","2016-02-22","#78-M Stone for Electrochemical","CA188","794807","Pegues, Jr., Henderson",26274,8.9,5.4,4.0999999999999996,"MEETS","N/A",4.0999999999999996,5.4]
["Martin Marietta","Mallard Creek Quarry - Charlotte","2016-11-01","#78-M Stone for Electrochemical","CA188","832990","Pegues, Jr., Henderson",23381,8.6999999999999993,0,0.8,"MEETS","N/A",0.8,0]
["Martin Marietta","Mallard Creek Quarry - Charlotte","2017-11-07","#78-M Stone for Electrochemical","CA188","885614","Pegues, Jr., Henderson",16912,9.3000000000000007,0,35.700000000000003,"DOES NOT MEET","N/A",35.700000000000003,0]
["Martin Marietta","Mallard Creek Quarry - Charlotte","2017-11-30","#78-M Stone for Electrochemical","CA188","888674","Pegues, Jr., Henderson",21179,9.5,0,31.2,"DOES NOT MEET","N/A",31.2,0]
["Martin Marietta","Mallard Creek Quarry - Charlotte","2018-11-12","#78-M Stone for Electrochemical","CA188","939060","Pegues, Jr., Henderson",22440,9.4,0,"<29.4","DOES NOT MEET","N/A",29.4,0]
["Martin Marietta","Mallard Creek Quarry - Charlotte","2019-11-06","#78-M Stone for Electrochemical","CA188","990711","Pegues, Jr., Henderson",15450,9.34,"<32","<42.718","DOES NOT MEET","N/A",42.718000000000004,32]
["Martin Marietta","Mallard Creek Quarry - Charlotte","2014-01-02","Miscellaneous Material for Electrochemical","CA188","694428","Adair, Mildred (Millie) L",11794,8.1999999999999993,0,0,"MEETS","N/A",0,0]
["Martin Marietta","Matthews Quarry - Matthews","2013-09-17","#57 Stone for Electrochemical","CA37","681166","Gerdus, Raymond R",20276,9.4,0,0,"DOES NOT MEET","N/A",0,0]
["Martin Marietta","Matthews Quarry - Matthews","2019-11-25","#57 Stone for Electrochemical","CA37","993304","Smith, Michael L",19880,9.3800000000000008,"<30","<33.199","DOES NOT MEET","N/A",33.198999999999998,30]
["Martin Marietta","Matthews Quarry - Matthews","2019-11-25","#67 Stone for Electrochemical","CA37","993307","Smith, Michael L",18460,9.3699999999999992,"<30","<35.753","DOES NOT MEET","N/A",35.753,30]
["Martin Marietta","Matthews Quarry - Matthews","2019-11-25","#78-M Stone for Electrochemical","CA37","993308","Smith, Michael L",18410,9.25,"<30","<35.850","DOES NOT MEET","N/A",35.85,30]
["Martin Marietta","Matthews Quarry - Matthews","2014-01-21","Miscellaneous Material for Electrochemical","CA37","695351","Thomas, Mark D",12788,8.1,0,0,"MEETS","N/A",0,0]
["Martin Marietta","Matthews Quarry - Matthews","2014-12-08","Miscellaneous Material for Electrochemical","CA37","738409","Thomas, Mark D",7605,8,0,0,"MEETS","N/A",0,0]
["Martin Marietta","Matthews Quarry - Matthews","2019-12-03","Miscellaneous Material for Electrochemical","CA37","993338","Smith, Michael L",9169,8.9499999999999993,"<30","<71.982","MEETS","N/A",71.981999999999999,30]
["Martin Marietta","Onslow Quarry - Richlands","2015-09-30","#57 Stone for Electrochemical","CA259","778060","Cahill, Luke R",4480,6.8,0,0,"MEETS","DOES NOT MEET",0,0]
["Martin Marietta","Pomona Quarry - Greensboro","2000-06-09","#57 Stone for Electrochemical","CA51","138744","Ferguson, Darrell L",22700,8,"","","MEETS","N/A","",""]
["Martin Marietta","Pomona Quarry - Greensboro","2000-06-10","#57 Stone for Electrochemical","CA51","138747","Ferguson, Darrell L",22700,8.3000000000000007,"","","MEETS","N/A","",""]
["Martin Marietta","Pomona Quarry - Greensboro","2000-06-13","#57 Stone for Electrochemical","CA51","138751","Ferguson, Darrell L",22200,8.5,"","","MEETS","N/A","",""]
["Martin Marietta","Pomona Quarry - Greensboro","2000-06-22","#57 Stone for Electrochemical","CA51","141018","Ferguson, Darrell L",21700,8.1999999999999993,"","","MEETS","N/A","",""]
["Martin Marietta","Pomona Quarry - Greensboro","2000-06-24","#57 Stone for Electrochemical","CA51","141019","Ferguson, Darrell L",25000,8.9,"","","MEETS","N/A","",""]
["Martin Marietta","Pomona Quarry - Greensboro","2000-06-29","#57 Stone for Electrochemical","CA51","141347","Ferguson, Darrell L",23800,8.9,"","","MEETS","N/A","",""]
["Martin Marietta","Pomona Quarry - Greensboro","2000-06-30","#57 Stone for Electrochemical","CA51","141348","Ferguson, Darrell L",24400,9,"","","MEETS","N/A","",""]
["Martin Marietta","Pomona Quarry - Greensboro","2000-07-10","#57 Stone for Electrochemical","CA51","142800","Ferguson, Darrell L",19200,8.6,"","",{"$f":"IF(AND(4.5<=$I499,$I499<=9),\"MEETS\",\"DOES NOT MEET\")","v":"MEETS"},{"$f":"IF(OR(ISBLANK(I499), NOT(ISNUMBER(MATCH($E499, Coastal, 0)))), \"N/A\", IF(AND(5 <= $I499, $I499 <= 10),IF($H499>=5000,IF($O499<=100,IF($N499<=200,\"MEETS\",\"DOES NOT MEET\"),\"DOES NOT MEET\"),\"DOES NOT MEET\"),\"DOES NOT MEET\"))","v":"N/A"},{"$f":"IF(LEFT(K499, 1)=\"<\", VALUE(RIGHT(K499,LEN(K499)-1)), K499)","v":""},{"$f":"IF(LEFT(J499, 1)=\"<\", VALUE(RIGHT(J499,LEN(J499)-1)), J499)","v":""}]
["Martin Marietta","Pomona Quarry - Greensboro","2000-07-12","#57 Stone for Electrochemical","CA51","143407","Ferguson, Darrell L",20800,8.9,"","","MEETS","N/A","",""]
["Martin Marietta","Pomona Quarry - Greensboro","2000-07-14","#57 Stone for Electrochemical","CA51","145154","Ferguson, Darrell L",20800,8.3000000000000007,"","","MEETS","N/A","",""]
["Martin Marietta","Pomona Quarry - Greensboro","2000-07-17","#57 Stone for Electrochemical","CA51","145156","Ferguson, Darrell L",18500,8.6999999999999993,"","","MEETS","N/A","",""]
["Martin Marietta","Pomona Quarry - Greensboro","2000-07-19","#57 Stone for Electrochemical","CA51","145157","Ferguson, Darrell L",21700,8.9,"","","MEETS","N/A","",""]
["Martin Marietta","Pomona Quarry - Greensboro","2000-07-27","#57 Stone for Electrochemical","CA51","146750","Ferguson, Darrell L",20800,8.1999999999999993,"","","MEETS","N/A","",""]
["Martin Marietta","Pomona Quarry - Greensboro","2001-08-20","#57 Stone for Electrochemical","CA51","228157","Coates, Thomas W",19600,7.9,"","","MEETS","N/A","",""]
["Martin Marietta","Pomona Quarry - Greensboro","2001-12-08","#57 Stone for Electrochemical","CA51","242516","Smith, Joe A",17240,8.6,"","","MEETS","N/A","",""]
["Martin Marietta","Pomona Quarry - Greensboro","2001-12-17","#57 Stone for Electrochemical","CA51","242899","Smith, Joe A",15625,8.1999999999999993,"","","MEETS","N/A","",""]
["Martin Marietta","Pomona Quarry - Greensboro","2004-05-06","#57 Stone for Electrochemical","CA51","335650","Lorenz, PE, Kris",22220,7.9,26,"","MEETS","N/A","",26]
["Martin Marietta","Pomona Quarry - Greensboro","2005-01-24","#57 Stone for Electrochemical","CA51","364980","Lorenz, PE, Kris",17940,8.4,"< 30","< 200","MEETS","N/A",200,30]
["Martin Marietta","Pomona Quarry - Greensboro","2005-05-31","#57 Stone for Electrochemical","CA51","378581","Baughman, Scott A",14440,7.6,"< 30","< 200","MEETS","N/A",200,30]
["Martin Marietta","Pomona Quarry - Greensboro","2005-06-29","#57 Stone for Electrochemical","CA51","382281","Stafford, Jeffrey L",18830,7.9,"<30","<200","MEETS","N/A",200,30]
["Martin Marietta","Pomona Quarry - Greensboro","2005-09-16","#57 Stone for Electrochemical","CA51","390287","Lorenz, PE, Kris",21670,7.7,"<30","<200","MEETS","N/A",200,30]
["Martin Marietta","Pomona Quarry - Greensboro","2005-10-18","#57 Stone for Electrochemical","CA51","394308","Lorenz, PE, Kris",14490,8,"<30","<200","MEETS","N/A",200,30]
["Martin Marietta","Pomona Quarry - Greensboro","2005-10-18","#57 Stone for Electrochemical","CA51","394307","Lorenz, PE, Kris",21850,7.8,"<30","<200","MEETS","N/A",200,30]
["Martin Marietta","Pomona Quarry - Greensboro","2005-10-18","#57 Stone for Electrochemical","CA51","394309","Lorenz, PE, Kris",23620,8.1999999999999993,"<30","<200","MEETS","N/A",200,30]
["Martin Marietta","Pomona Quarry - Greensboro","2005-10-18","#57 Stone for Electrochemical","CA51","394310","Lorenz, PE, Kris",21490,8.1999999999999993,"<30","<200","MEETS","N/A",200,30]
["Martin Marietta","Pomona Quarry - Greensboro","2005-10-20","#57 Stone for Electrochemical","CA51","394189","Lorenz, PE, Kris",27490,8.1,"<30","<200","MEETS","N/A",200,30]
["Martin Marietta","Pomona Quarry - Greensboro","2005-10-20","#57 Stone for Electrochemical","CA51","394190","Lorenz, PE, Kris",26640,8.1999999999999993,"<30","<200","MEETS","N/A",200,30]
["Martin Marietta","Pomona Quarry - Greensboro","2005-10-20","#57 Stone for Electrochemical","CA51","394191","Lorenz, PE, Kris",24620,8,"<30","<200","MEETS","N/A",200,30]
["Martin Marietta","Pomona Quarry - Greensboro","2005-10-21","#57 Stone for Electrochemical","CA51","394305","Lorenz, PE, Kris",24800,8.3000000000000007,"<30","<200","MEETS","N/A",200,30]
["Martin Marietta","Pomona Quarry - Greensboro","2005-10-21","#57 Stone for Electrochemical","CA51","394303","Lorenz, PE, Kris",25180,8,"<30","<200","MEETS","N/A",200,30]
["Martin Marietta","Pomona Quarry - Greensboro","2005-10-21","#57 Stone for Electrochemical","CA51","394311","Lorenz, PE, Kris",21960,8.1999999999999993,"<30","<200","MEETS","N/A",200,30]
["Martin Marietta","Pomona Quarry - Greensboro","2005-11-08","#57 Stone for Electrochemical","CA51","396848","Lorenz, PE, Kris",22020,7.8,"<30","<200","MEETS","N/A",200,30]
["Martin Marietta","Pomona Quarry - Greensboro","2005-12-13","#57 Stone for Electrochemical","CA51","399316","Lorenz, PE, Kris",23250,7.5,"<30","<200","MEETS","N/A",200,30]
["Martin Marietta","Pomona Quarry - Greensboro","2005-12-13","#57 Stone for Electrochemical","CA51","399317","Lorenz, PE, Kris",26990,8.4,"<30","<200","MEETS","N/A",200,30]
["Martin Marietta","Pomona Quarry - Greensboro","2005-12-13","#57 Stone for Electrochemical","CA51","399319","Lorenz, PE, Kris",22250,8.6,"<30","<200","MEETS","N/A",200,30]
["Martin Marietta","Pomona Quarry - Greensboro","2005-12-13","#57 Stone for Electrochemical","CA51","399320","Lorenz, PE, Kris",26810,8.8000000000000007,"<30","<200","MEETS","N/A",200,30]
["Martin Marietta","Pomona Quarry - Greensboro","2005-12-13","#57 Stone for Electrochemical","CA51","399318","Lorenz, PE, Kris",26050,8.5,"<30","<200","MEETS","N/A",200,30]
["Martin Marietta","Pomona Quarry - Greensboro","2006-01-23","#57 Stone for Electrochemical","CA51","402062","Lorenz, PE, Kris",27600,8.9,"<30","<200","MEETS","N/A",200,30]
["Martin Marietta","Pomona Quarry - Greensboro","2006-01-23","#57 Stone for Electrochemical","CA51","402063","Lorenz, PE, Kris",28040,8.9,"<30","<200","MEETS","N/A",200,30]
["Martin Marietta","Pomona Quarry - Greensboro","2006-01-23","#57 Stone for Electrochemical","CA51","402064","Lorenz, PE, Kris",26170,9,"<30","<200","MEETS","N/A",200,30]
["Martin Marietta","Pomona Quarry - Greensboro","2006-01-23","#57 Stone for Electrochemical","CA51","402065","Lorenz, PE, Kris",26030,8.9,"<30","<200","MEETS","N/A",200,30]
["Martin Marietta","Pomona Quarry - Greensboro","2006-01-23","#57 Stone for Electrochemical","CA51","402066","Lorenz, PE, Kris",26820,9.1,"<30","<200","DOES NOT MEET","N/A",200,30]
["Martin Marietta","Pomona Quarry - Greensboro","2006-01-27","#57 Stone for Electrochemical","CA51","402070","Lorenz, PE, Kris",26620,9.1,"<30","<200","DOES NOT MEET","N/A",200,30]
["Martin Marietta","Pomona Quarry - Greensboro","2006-01-30","#57 Stone for Electrochemical","CA51","402061","Lorenz, PE, Kris",25530,8.6999999999999993,"<30","<200","MEETS","N/A",200,30]
["Martin Marietta","Pomona Quarry - Greensboro","2006-02-15","#57 Stone for Electrochemical","CA51","403654","Register, Kenneth D",25150,7.2,"<30","<200","MEETS","N/A",200,30]
["Martin Marietta","Pomona Quarry - Greensboro","2006-03-07","#57 Stone for Electrochemical","CA51","404997","Lorenz, PE, Kris",17110,7.7,"<30","<200","MEETS","N/A",200,30]
["Martin Marietta","Pomona Quarry - Greensboro","2006-03-07","#57 Stone for Electrochemical","CA51","404999","Lorenz, PE, Kris",16630,7.8,"<30","<200","MEETS","N/A",200,30]
["Martin Marietta","Pomona Quarry - Greensboro","2006-03-08","#57 Stone for Electrochemical","CA51","405000","Lorenz, PE, Kris",16930,7.9,"<30","<200","MEETS","N/A",200,30]
["Martin Marietta","Pomona Quarry - Greensboro","2006-04-05","#57 Stone for Electrochemical","CA51","408360","Lorenz, PE, Kris",13470,8.4,"<30","<200","MEETS","N/A",200,30]
["Martin Marietta","Pomona Quarry - Greensboro","2006-04-05","#57 Stone for Electrochemical","CA51","408359","Lorenz, PE, Kris",20460,8.6999999999999993,"<30","<200","MEETS","N/A",200,30]
["Martin Marietta","Pomona Quarry - Greensboro","2006-04-05","#57 Stone for Electrochemical","CA51","408358","Lorenz, PE, Kris",22750,8.6999999999999993,"<30","<200","MEETS","N/A",200,30]
["Martin Marietta","Pomona Quarry - Greensboro","2006-04-07","#57 Stone for Electrochemical","CA51","408367","Lorenz, PE, Kris",19310,8.6999999999999993,"<30","<200","MEETS","N/A",200,30]
["Martin Marietta","Pomona Quarry - Greensboro","2006-04-07","#57 Stone for Electrochemical","CA51","408366","Lorenz, PE, Kris",24640,8.6999999999999993,"<30","<200","MEETS","N/A",200,30]
["Martin Marietta","Pomona Quarry - Greensboro","2006-04-17","#57 Stone for Electrochemical","CA51","408374","Lorenz, PE, Kris",23370,8.1,"<30","<200","MEETS","N/A",200,30]
["Martin Marietta","Pomona Quarry - Greensboro","2006-04-17","#57 Stone for Electrochemical","CA51","408369","Lorenz, PE, Kris",23390,8.1999999999999993,"<30","<200","MEETS","N/A",200,30]
["Martin Marietta","Pomona Quarry - Greensboro","2006-08-07","#57 Stone for Electrochemical","CA51","419357","Lorenz, PE, Kris",25000,8.9,"<30","<200","MEETS","N/A",200,30]
["Martin Marietta","Pomona Quarry - Greensboro","2006-08-08","#57 Stone for Electrochemical","CA51","419356","Lorenz, PE, Kris",23000,8.9,"<30","<200","MEETS","N/A",200,30]
["Martin Marietta","Pomona Quarry - Greensboro","2006-08-08","#57 Stone for Electrochemical","CA51","419359","Lorenz, PE, Kris",25000,8.8000000000000007,"<30","<200","MEETS","N/A",200,30]
["Martin Marietta","Pomona Quarry - Greensboro","2006-08-09","#57 Stone for Electrochemical","CA51","419355","Lorenz, PE, Kris",26000,8.8000000000000007,"<30","<200","MEETS","N/A",200,30]
["Martin Marietta","Pomona Quarry - Greensboro","2006-08-09","#57 Stone for Electrochemical","CA51","419358","Lorenz, PE, Kris",27000,8.9,"<30","<200","MEETS","N/A",200,30]
["Martin Marietta","Pomona Quarry - Greensboro","2006-08-25","#57 Stone for Electrochemical","CA51","420087","Lorenz, PE, Kris",22883,8.1999999999999993,"<30","<200","MEETS","N/A",200,30]
["Martin Marietta","Pomona Quarry - Greensboro","2006-08-25","#57 Stone for Electrochemical","CA51","420089","Lorenz, PE, Kris",24876,8.1999999999999993,"<30","<200","MEETS","N/A",200,30]
["Martin Marietta","Pomona Quarry - Greensboro","2006-08-25","#57 Stone for Electrochemical","CA51","420088","Lorenz, PE, Kris",23364,8.3000000000000007,"<30","<200","MEETS","N/A",200,30]
["Martin Marietta","Pomona Quarry - Greensboro","2006-08-28","#57 Stone for Electrochemical","CA51","420092","Lorenz, PE, Kris",25707,8,"<30","<200","MEETS","N/A",200,30]
["Martin Marietta","Pomona Quarry - Greensboro","2006-08-28","#57 Stone for Electrochemical","CA51","420090","Lorenz, PE, Kris",25381,8.4,"<30","<200","MEETS","N/A",200,30]
["Martin Marietta","Pomona Quarry - Greensboro","2006-08-28","#57 Stone for Electrochemical","CA51","420091","Lorenz, PE, Kris",24213,8.3000000000000007,"<30","<200","MEETS","N/A",200,30]
["Martin Marietta","Pomona Quarry - Greensboro","2006-08-29","#57 Stone for Electrochemical","CA51","420094","Lorenz, PE, Kris",23419,7.9,"<30","<200","MEETS","N/A",200,30]
["Martin Marietta","Pomona Quarry - Greensboro","2006-08-29","#57 Stone for Electrochemical","CA51","420093","Lorenz, PE, Kris",22222,8.3000000000000007,"<30","<200","MEETS","N/A",200,30]
["Martin Marietta","Pomona Quarry - Greensboro","2006-09-28","#57 Stone for Electrochemical","CA51","423630","Lorenz, PE, Kris",20000,8.4,"<30","<200","MEETS","N/A",200,30]
["Martin Marietta","Pomona Quarry - Greensboro","2006-09-28","#57 Stone for Electrochemical","CA51","423631","Lorenz, PE, Kris",24000,8.3000000000000007,"<30","<200","MEETS","N/A",200,30]
["Martin Marietta","Pomona Quarry - Greensboro","2006-10-02","#57 Stone for Electrochemical","CA51","423632","Lorenz, PE, Kris",20000,9.1,"<30","<200","DOES NOT MEET","N/A",200,30]
["Martin Marietta","Pomona Quarry - Greensboro","2006-10-02","#57 Stone for Electrochemical","CA51","423633","Lorenz, PE, Kris",19000,9.1999999999999993,"<30","<200",{"$f":"IF(AND(4.5<=$I563,$I563<=9),\"MEETS\",\"DOES NOT MEET\")","v":"DOES NOT MEET"},{"$f":"IF(OR(ISBLANK(I563), NOT(ISNUMBER(MATCH($E563, Coastal, 0)))), \"N/A\", IF(AND(5 <= $I563, $I563 <= 10),IF($H563>=5000,IF($O563<=100,IF($N563<=200,\"MEETS\",\"DOES NOT MEET\"),\"DOES NOT MEET\"),\"DOES NOT MEET\"),\"DOES NOT MEET\"))","v":"N/A"},{"$f":"IF(LEFT(K563, 1)=\"<\", VALUE(RIGHT(K563,LEN(K563)-1)), K563)","v":200},{"$f":"IF(LEFT(J563, 1)=\"<\", VALUE(RIGHT(J563,LEN(J563)-1)), J563)","v":30}]
["Martin Marietta","Pomona Quarry - Greensboro","2006-12-27","#57 Stone for Electrochemical","CA51","428955","Baldwin, Arnold L",22222,7.3,"<29","<200","MEETS","N/A",200,29]
["Martin Marietta","Pomona Quarry - Greensboro","2007-02-19","#57 Stone for Electrochemical","CA51","431346","Loshinskiy, Roman",20284,7.5,"<29",200,"MEETS","N/A",200,29]
["Martin Marietta","Pomona Quarry - Greensboro","2014-08-29","#57 Stone for Electrochemical","CA51","725653","Fritts, Michael J",16587,8.8000000000000007,0,100,"MEETS","N/A",100,0]
["Martin Marietta","Pomona Quarry - Greensboro","2016-02-04","#57 Stone for Electrochemical","CA51","792599","Westmoreland, Braxton J",14000,8.8000000000000007,0,48.5,"MEETS","N/A",48.5,0]
["Martin Marietta","Pomona Quarry - Greensboro","2019-05-28","#57 Stone for Electrochemical","CA51","965378","Waller, John M",20730,9.6,"<30","<31.838","DOES NOT MEET","N/A",31.838000000000001,30]
["Martin Marietta","Pomona Quarry - Greensboro","2019-05-28","#67 Stone for Electrochemical","CA51","965377","Waller, John M",17760,9.5,"<30","<37.162","DOES NOT MEET","N/A",37.161999999999999,30]
["Martin Marietta","Pomona Quarry - Greensboro","2016-02-04","#78-M Stone for Electrochemical","CA51","792600","Westmoreland, Braxton J",23218,9.1,5,28.8,"DOES NOT MEET","N/A",28.8,5]
["Martin Marietta","Pomona Quarry - Greensboro","2019-05-28","#78-M Stone for Electrochemical","CA51","965376","Waller, John M",18800,9.5,"<30","<35.106","DOES NOT MEET","N/A",35.106000000000002,30]
["Martin Marietta","Raleigh-Durham Quarry - Raleigh","2016-02-05","#57 Stone for Electrochemical","CA156","792800","Skinner, III, John L",22894,8.9,5,28.2,"MEETS","N/A",28.2,5]
["Martin Marietta","Raleigh-Durham Quarry - Raleigh","2019-01-18","#67 Stone for Electrochemical","CA156","946459","Skinner, III, John L",6298,10.7,0,"<104.795","DOES NOT MEET","N/A",104.795,0]
["Martin Marietta","Raleigh-Durham Quarry - Raleigh","2016-02-05","#78-M Stone for Electrochemical","CA156","792801","Skinner, III, John L",19080,8.6999999999999993,5,34.200000000000003,"MEETS","N/A",34.200000000000003,5]
["Martin Marietta","Raleigh-Durham Quarry - Raleigh","2019-01-18","#78-M Stone for Electrochemical","CA156","946460","Skinner, III, John L",14230,10.1,0,"<46.381","DOES NOT MEET","N/A",46.381,0]
["Martin Marietta","Reidsville Quarry - Reidsville","2016-02-09","#57 Stone for Electrochemical","CA52","793249","Loshinskiy, Roman",21400,8.9,0,4.4000000000000004,"MEETS","N/A",4.4000000000000004,0]
["Martin Marietta","Reidsville Quarry - Reidsville","2019-02-13","#57 Stone for Electrochemical","CA52","949847","Westmoreland, Braxton J",17820,9.5,0,"<37.037","DOES NOT MEET","N/A",37.036999999999999,0]
["Martin Marietta","Reidsville Quarry - Reidsville","2019-02-13","#67 Stone for Electrochemical","CA52","949848","Westmoreland, Braxton J",19290,9.4,0,"<34.215","DOES NOT MEET","N/A",34.215000000000003,0]
["Martin Marietta","Reidsville Quarry - Reidsville","2016-02-09","#78-M Stone for Electrochemical","CA52","793250","Loshinskiy, Roman",21487,9.3000000000000007,0,4.4000000000000004,"DOES NOT MEET","N/A",4.4000000000000004,0]
["Martin Marietta","Reidsville Quarry - Reidsville","2019-02-13","#78-M Stone for Electrochemical","CA52","949846","Westmoreland, Braxton J",17310,9.5,0,"<38.128","DOES NOT MEET","N/A",38.128,0]
["Martin Marietta","Rock Hill Quarry - Rock Hill, SC","2017-09-26","#57 Stone for Electrochemical","CA271","878996","Adair, Mildred (Millie) L",23084,9.6,0,27,"DOES NOT MEET","N/A",27,0]
["Martin Marietta","Rock Hill Quarry - Rock Hill, SC","2017-10-30","#57 Stone for Electrochemical","CA271","885405","Adair, Mildred (Millie) L",21739,9.3000000000000007,0,28.5,"DOES NOT MEET","N/A",28.5,0]
["Martin Marietta","Rock Hill Quarry - Rock Hill, SC","2017-09-26","#67 Stone for Electrochemical","CA271","878994","Adair, Mildred (Millie) L",20309,9.5,0,30.6,"DOES NOT MEET","N/A",30.6,0]
["Martin Marietta","Rock Hill Quarry - Rock Hill, SC","2019-09-10","#67 Stone for Electrochemical","CA271","982307","Adair, Mildred (Millie) L",15260,9.52,"<32","<43.25","DOES NOT MEET","N/A",43.25,32]
["Martin Marietta","Rock Hill Quarry - Rock Hill, SC","2017-09-26","#78-M Stone for Electrochemical","CA271","878992","Adair, Mildred (Millie) L",21000,9.1999999999999993,0,31.3,"DOES NOT MEET","N/A",31.3,0]
["Martin Marietta","Rock Hill Quarry - Rock Hill, SC","2017-10-30","#78-M Stone for Electrochemical","CA271","885403","Adair, Mildred (Millie) L",22366,8.9,0,27.4,"MEETS","N/A",27.4,0]
["Martin Marietta","Rock Hill Quarry - Rock Hill, SC","2019-09-10","#78-M Stone for Electrochemical","CA271","982310","Adair, Mildred (Millie) L",16020,9.4700000000000006,"<32","<41.199","DOES NOT MEET","N/A",41.198999999999998,32]
["Martin Marietta","Rock Hill Quarry - Rock Hill, SC","2017-09-26","Miscellaneous Material for Electrochemical","CA271","878999","Adair, Mildred (Millie) L",11268,9.1,2.4,55.3,"DOES NOT MEET","N/A",55.3,2.4]
["Martin Marietta","Rock Hill Quarry - Rock Hill, SC","2017-10-30","Miscellaneous Material for Electrochemical","CA271","885412","Adair, Mildred (Millie) L",15755,8.9,0,38.6,"MEETS","N/A",38.6,0]
["Martin Marietta","Rock Hill Quarry - Rock Hill, SC","2019-09-10","Miscellaneous Material for Electrochemical","CA271","982312","Adair, Mildred (Millie) L",9347,9.23,"<32","<70.611","DOES NOT MEET","N/A",70.611000000000004,32]
["Martin Marietta","Salem Stone Quarry - Kernersville","2019-01-17","#57 Stone for Electrochemical","CA209","946023","Ealey, Lee E",18020,9.1,0,"<36.626","DOES NOT MEET","N/A",36.625999999999998,0]
["Martin Marietta","Salem Stone Quarry - Kernersville","2020-03-10","#57 Stone for Electrochemical","CA209","1005499","Ealey, Lee E",25960,9.61,"<30","<25.424","DOES NOT MEET","N/A",25.423999999999999,30]
["Martin Marietta","Salem Stone Quarry - Kernersville","2019-01-17","#67 Stone for Electrochemical","CA209","946025","Ealey, Lee E",19860,9.1999999999999993,0,"<33.233","DOES NOT MEET","N/A",33.232999999999997,0]
["Martin Marietta","Salem Stone Quarry - Kernersville","2020-03-10","#67 Stone for Electrochemical","CA209","1005503","Ealey, Lee E",22730,9.6,"<30","<29.037","DOES NOT MEET","N/A",29.036999999999999,30]
["Martin Marietta","Salem Stone Quarry - Kernersville","2019-01-17","#78-M Stone for Electrochemical","CA209","946026","Ealey, Lee E",13150,8.9,0,"<50.190","MEETS","N/A",50.19,0]
["Martin Marietta","Salem Stone Quarry - Kernersville","2020-03-10","#78-M Stone for Electrochemical","CA209","1005506","Ealey, Lee E",22540,9.2799999999999994,"<30","<29.281","DOES NOT MEET","N/A",29.280999999999999,30]
["Martin Marietta","Savannah Marine Terminal","2018-12-28","#67 Stone for Electrochemical","CA425","944230","Maynard, William BJ T",16280,9.5,0,"<40.541","DOES NOT MEET","N/A",40.540999999999997,0]
["Martin Marietta","Statesville Quarry - Statesville","2010-04-30","#57 Stone for Electrochemical","CA54","510028","Leatherman, Barbara L",10030,7.5,27,"<200","MEETS","N/A",200,27]
["Martin Marietta","Statesville Quarry - Statesville","2010-05-05","#57 Stone for Electrochemical","CA54","511657","McAlpin, Bryson E",5035,7.3,27,200,"MEETS","N/A",200,27]
["Martin Marietta","Statesville Quarry - Statesville","2010-09-28","#57 Stone for Electrochemical","CA54","523346","Leatherman, Barbara L",13831,8.3000000000000007,0,0,"MEETS","N/A",0,0]
["Martin Marietta","Statesville Quarry - Statesville","2011-02-01","#57 Stone for Electrochemical","CA54","531909","Chroust, Richard A",16393,8.1999999999999993,0,0,"MEETS","N/A",0,0]
["Martin Marietta","Statesville Quarry - Statesville","2011-02-01","#57 Stone for Electrochemical","CA54","531910","Chroust, Richard A",12019,8.4,0,0,"MEETS","N/A",0,0]
["Martin Marietta","Statesville Quarry - Statesville","2011-03-07","#57 Stone for Electrochemical","CA54","533566","McAlpin, Bryson E",17094,8.1,0,0,"MEETS","N/A",0,0]
["Martin Marietta","Statesville Quarry - Statesville","2011-04-14","#57 Stone for Electrochemical","CA54","536762","Leatherman, Barbara L",12690,6.2,34,0,"MEETS","N/A",0,34]
["Martin Marietta","Statesville Quarry - Statesville","2011-09-20","#57 Stone for Electrochemical","CA54","601653","Chroust, Richard A",11074,8.1,0,0,"MEETS","N/A",0,0]
["Martin Marietta","Statesville Quarry - Statesville","2011-11-28","#57 Stone for Electrochemical","CA54","609996","Chroust, Richard A",12135,7.7,0,0,"MEETS","N/A",0,0]
["Martin Marietta","Statesville Quarry - Statesville","2011-12-07","#57 Stone for Electrochemical","CA54","609997","Chroust, Richard A",10438,7.8,0,0,"MEETS","N/A",0,0]
["Martin Marietta","Statesville Quarry - Statesville","2011-12-12","#57 Stone for Electrochemical","CA54","609998","Chroust, Richard A",9699,7.7,0,0,"MEETS","N/A",0,0]
["Martin Marietta","Statesville Quarry - Statesville","2012-01-03","#57 Stone for Electrochemical","CA54","611427","Chroust, Richard A",13297,7.7,0,0,"MEETS","N/A",0,0]
["Martin Marietta","Statesville Quarry - Statesville","2012-01-19","#57 Stone for Electrochemical","CA54","612903","Chroust, Richard A",15082,7.9,0,0,"MEETS","N/A",0,0]
["Martin Marietta","Statesville Quarry - Statesville","2012-02-07","#57 Stone for Electrochemical","CA54","615198","Robertson, David D",12515,7.7,0,0,"MEETS","N/A",0,0]
["Martin Marietta","Statesville Quarry - Statesville","2012-02-23","#57 Stone for Electrochemical","CA54","616547","Robertson, David D",11820,7,0,0,"MEETS","N/A",0,0]
["Martin Marietta","Statesville Quarry - Statesville","2012-03-07","#57 Stone for Electrochemical","CA54","617647","Chroust, Richard A",9372,8,0,0,"MEETS","N/A",0,0]
["Martin Marietta","Statesville Quarry - Statesville","2012-03-19","#57 Stone for Electrochemical","CA54","619730","Poole, Fred H",11976,7.4,0,0,"MEETS","N/A",0,0]
["Martin Marietta","Statesville Quarry - Statesville","2016-09-09","#57 Stone for Electrochemical","CA54","825451","Whitley, Christopher D",13848,7.6,0,13,"MEETS","N/A",13,0]
["Martin Marietta","Statesville Quarry - Statesville","2018-05-09","#57 Stone for Electrochemical","CA54","911141","Brinson, Joseph",12514,8.6,0,45.1,"MEETS","N/A",45.1,0]
["Martin Marietta","Statesville Quarry - Statesville","2019-07-08","#57 Stone for Electrochemical","CA54","971770","Gosnell, Jimmy L",17290,9.42,"<29","<38.172","DOES NOT MEET","N/A",38.171999999999997,29]
["Martin Marietta","Statesville Quarry - Statesville","2016-09-09","#67 Stone for Electrochemical","CA54","825455","Whitley, Christopher D",11279,7.7,0,23.9,"MEETS","N/A",23.9,0]
["Martin Marietta","Statesville Quarry - Statesville","2018-05-09","#67 Stone for Electrochemical","CA54","911140","Brinson, Joseph",10220,8.6999999999999993,0,55,"MEETS","N/A",55,0]
["Martin Marietta","Statesville Quarry - Statesville","2019-07-08","#67 Stone for Electrochemical","CA54","971771","Gosnell, Jimmy L",16220,9.4600000000000009,"<29","<40.691","DOES NOT MEET","N/A",40.691000000000003,29]
["Martin Marietta","Statesville Quarry - Statesville","2019-10-09","#67 Stone for Electrochemical","CA54","987452","Brinson, Joseph",9875,9.41,"<30","<66.835","DOES NOT MEET","N/A",66.834999999999994,30]
["Martin Marietta","Statesville Quarry - Statesville","2016-09-09","#78-M Stone for Electrochemical","CA54","825458","Whitley, Christopher D",10212,7.4,0,26.4,"MEETS","N/A",26.4,0]
["Martin Marietta","Statesville Quarry - Statesville","2018-05-09","#78-M Stone for Electrochemical","CA54","911138","Brinson, Joseph",12492,8.6,0,45.2,"MEETS","N/A",45.2,0]
["Martin Marietta","Statesville Quarry - Statesville","2019-07-08","#78-M Stone for Electrochemical","CA54","971772","Gosnell, Jimmy L",12810,9.25,"<29","<51.522","DOES NOT MEET","N/A",51.521999999999998,29]
["Martin Marietta","Statesville Quarry - Statesville","2019-10-09","#78-M Stone for Electrochemical","CA54","987453","Brinson, Joseph",6641,6.94,"<30","<99.383","MEETS","N/A",99.382999999999996,30]
["Martin Marietta","Statesville Quarry - Statesville","2016-09-09","Miscellaneous Material for Electrochemical","CA54","825461","Whitley, Christopher D",2408,7.3,0,192,"MEETS","N/A",192,0]
["Martin Marietta","Statesville Quarry - Statesville","2003-11-20","Stone for Erosion Control (#57)","CA54","320107","Leatherman, Barbara L",21950,6.3,26,"Negative",{"$f":"IF(AND(4.5<=$I627,$I627<=9),\"MEETS\",\"DOES NOT MEET\")","v":"MEETS"},{"$f":"IF(OR(ISBLANK(I627), NOT(ISNUMBER(MATCH($E627, Coastal, 0)))), \"N/A\", IF(AND(5 <= $I627, $I627 <= 10),IF($H627>=5000,IF($O627<=100,IF($N627<=200,\"MEETS\",\"DOES NOT MEET\"),\"DOES NOT MEET\"),\"DOES NOT MEET\"),\"DOES NOT MEET\"))","v":"N/A"},{"$f":"IF(LEFT(K627, 1)=\"<\", VALUE(RIGHT(K627,LEN(K627)-1)), K627)","v":"Negative"},{"$f":"IF(LEFT(J627, 1)=\"<\", VALUE(RIGHT(J627,LEN(J627)-1)), J627)","v":26}]
["Martin Marietta","Thomasville Quarry - Thomasville","2016-03-22","#57 Stone for Electrochemical","CA102","798932","Wallace, Weston G",11218,7.9,0,20.2,"MEETS","N/A",20.2,0]
["Martin Marietta","Thomasville Quarry - Thomasville","2019-01-09","#57 Stone for Electrochemical","CA102","944782","Ealey, Lee E",19530,8.8000000000000007,0,"<33.794","MEETS","N/A",33.793999999999997,0]
["Martin Marietta","Thomasville Quarry - Thomasville","2020-03-10","#57 Stone for Electrochemical","CA102","1005546","Ealey, Lee E",22040,9.6300000000000008,"<30","<29.946","DOES NOT MEET","N/A",29.946000000000002,30]
["Martin Marietta","Thomasville Quarry - Thomasville","2019-01-09","#67 Stone for Electrochemical","CA102","944783","Ealey, Lee E",17600,8.6999999999999993,0,"<37.500","MEETS","N/A",37.5,0]
["Martin Marietta","Thomasville Quarry - Thomasville","2020-03-10","#67 Stone for Electrochemical","CA102","1005547","Ealey, Lee E",19780,9.69,"<30","<33.367","DOES NOT MEET","N/A",33.366999999999997,30]
["Martin Marietta","Thomasville Quarry - Thomasville","2016-05-02","#78-M Stone for Electrochemical","CA102","800404","Wallace, Weston G",18477,9.4,4.3,10.199999999999999,"DOES NOT MEET","N/A",10.199999999999999,4.3]
["Martin Marietta","Thomasville Quarry - Thomasville","2019-01-09","#78-M Stone for Electrochemical","CA102","944784","Ealey, Lee E",15880,8.9,0,"<41.562","MEETS","N/A",41.561999999999998,0]
["Martin Marietta","Thomasville Quarry - Thomasville","2020-03-10","#78-M Stone for Electrochemical","CA102","1005551","Ealey, Lee E",17700,9.57,"<30","<37.288","DOES NOT MEET","N/A",37.287999999999997,30]
["Martin Marietta","Woodleaf Quarry - Salisbury","2007-05-01","#57 Stone for Electrochemical","CA56","435765","Tucker, PE, Mezak",18692,7.1,"<32","<200","MEETS","N/A",200,32]
["Martin Marietta","Woodleaf Quarry - Salisbury","2019-01-11","#57 Stone for Electrochemical","CA56","945303","Ealey, Lee E",24360,8.6999999999999993,0,"<27.094","MEETS","N/A",27.094000000000001,0]
["Martin Marietta","Woodleaf Quarry - Salisbury","2020-03-03","#57 Stone for Electrochemical","CA56","1005347","Ealey, Lee E",24680,9.4600000000000009,"<30","<26.742","DOES NOT MEET","N/A",26.742000000000001,30]
["Martin Marietta","Woodleaf Quarry - Salisbury","2019-01-11","#67 Stone for Electrochemical","CA56","945308","Ealey, Lee E",17820,7.7,0,"<37.037","MEETS","N/A",37.036999999999999,0]
["Martin Marietta","Woodleaf Quarry - Salisbury","2020-03-03","#67 Stone for Electrochemical","CA56","1005348","Ealey, Lee E",16770,9.4499999999999993,"<30","<39.356","DOES NOT MEET","N/A",39.356000000000002,30]
["Martin Marietta","Woodleaf Quarry - Salisbury","2015-08-20","#78-M Stone for Electrochemical","CA56","771927","McLain Jr, Raeford L",23186,8.9,0,0,"MEETS","N/A",0,0]
["Martin Marietta","Woodleaf Quarry - Salisbury","2019-01-11","#78-M Stone for Electrochemical","CA56","945309","Ealey, Lee E",23480,9.1,0,"<28.109","DOES NOT MEET","N/A",28.109000000000002,0]
["Martin Marietta","Woodleaf Quarry - Salisbury","2020-03-03","#78-M Stone for Electrochemical","CA56","1005350","Ealey, Lee E",17540,9.48,"<30","<37.628","DOES NOT MEET","N/A",37.628,30]
["Mathis Quarries, Inc.","Mathis Quarry","2016-05-24","#57 Stone for Electrochemical","CA359","808610","Whitley, Christopher D",17176,9.1,4.3,17.3,"DOES NOT MEET","N/A",17.3,4.3]
["Maymead Materials, Inc.","North 321 Stone","2008-10-03","#57 Stone for Electrochemical","CA273","470680","Wagoner, Roy M",15630,7.3,"<27","<200","MEETS","N/A",200,27]
["Maymead Materials, Inc.","Turnip Patch Quarry - Mountain City, TN","2011-09-28","#57 Stone for Electrochemical","CA153","602434","Watson, Richard F",17301,7.7,0,0,"MEETS","N/A",0,0]
["Maymead Materials, Inc.","Turnip Patch Quarry - Mountain City, TN","2014-05-20","#57 Stone for Electrochemical","CA153","710365","Watson, Richard F",16912,8,0,0,"MEETS","N/A",0,0]
["Maymead Materials, Inc.","Turnip Patch Quarry - Mountain City, TN","2014-05-20","#57 Stone for Electrochemical","CA153","710874","Church, Tracy G",16801,7.1,0,0,"MEETS","N/A",0,0]
["Maymead Materials, Inc.","Turnip Patch Quarry - Mountain City, TN","2016-11-03","#57 Stone for Electrochemical","CA153","833841","Church, Tracy G",15676,8.6,0,0.2,"MEETS","N/A",0.2,0]
["Maymead Materials, Inc.","Turnip Patch Quarry - Mountain City, TN","2019-05-23","#57 Stone for Electrochemical","CA153","965559","Church, Tracy G",20440,9.34,"<30","<32.29","DOES NOT MEET","N/A",32.29,30]
["Maymead Materials, Inc.","Turnip Patch Quarry - Mountain City, TN","2019-06-25","Select Material, Class VI","CA153","970106","Murray, Brandi S",22950,9.4600000000000009,"<29","<28.758","DOES NOT MEET","N/A",28.757999999999999,29]
["McCrary Stone","Low Gap Quarry - Burnsville","2014-05-20","#57 Stone for Electrochemical","CA244","710302","Rhymer, Robert C",9425,7.4,0,0,"MEETS","N/A",0,0]
["McCrary Stone","Low Gap Quarry - Burnsville","2016-10-27","#57 Stone for Electrochemical","CA244","832505","Kindley, Wallace Quint",7651,8,0,8.1999999999999993,"MEETS","N/A",8.1999999999999993,0]
["McCrary Stone","Low Gap Quarry - Burnsville","2019-03-05","#57 Stone for Electrochemical","CA244","952978","Kindley, Wallace Quint",3609,3.9,"<30","<182.876","DOES NOT MEET","N/A",182.876,30]
["McCrary Stone","Low Gap Quarry - Burnsville","2016-10-27","#78-M Stone for Electrochemical","CA244","832511","Kindley, Wallace Quint",5543,7.8,0,39.799999999999997,"MEETS","N/A",39.799999999999997,0]
["McCrary Stone","Low Gap Quarry - Burnsville","2019-03-05","#78-M Stone for Electrochemical","CA244","952983","Kindley, Wallace Quint",2687,3.4,"<30","<245.627","DOES NOT MEET","N/A",245.62700000000001,30]
["McCrary Stone","Marshall Quarry - Marshall","2016-10-17","#57 Stone for Electrochemical","CA113","830770","Kindley, Wallace Quint",10481,8.9,0,13.7,"MEETS","N/A",13.7,0]
["McCrary Stone","Marshall Quarry - Marshall","2018-09-14","#57 Stone for Electrochemical","CA113","931133","Kindley, Wallace Quint",18240,9.4,0,"<39.59","DOES NOT MEET","N/A",39.590000000000003,0]
["McCrary Stone","Marshall Quarry - Marshall","2019-08-12","#57 Stone for Electrochemical","CA113","978212","Kindley, Wallace Quint",16190,9.3800000000000008,"<29","<40.766","DOES NOT MEET","N/A",40.765999999999998,29]
["McCrary Stone","Marshall Quarry - Marshall","2016-10-17","#78-M Stone for Electrochemical","CA113","830773","Kindley, Wallace Quint",8170,7.9,0,12.7,"MEETS","N/A",12.7,0]
["McCrary Stone","Marshall Quarry - Marshall","2018-09-14","#78-M Stone for Electrochemical","CA113","931134","Kindley, Wallace Quint",14510,9.3000000000000007,0,"<49.37","DOES NOT MEET","N/A",49.37,0]
["McCrary Stone","Marshall Quarry - Marshall","2019-08-12","#78-M Stone for Electrochemical","CA113","978213","Kindley, Wallace Quint",11310,8.83,"<29","<58.355","MEETS","N/A",58.354999999999997,29]
["Mountain Materials, Inc.","Mouth of Wilson Quarry - VA","2019-07-12","#57 Stone for Electrochemical","CA180","972577","Church, Tracy G",12890,8.85,"<29","<51.202","MEETS","N/A",51.201999999999998,29]
["NC Granite Corp.","Mount Airy Quarry","2016-03-08","#57 Stone for Electrochemical","CA24","797321","Whitley, Christopher D",24913,7.8,0,6,"MEETS","N/A",6,0]
["NC Granite Corp.","Mount Airy Quarry","2016-03-08","#78-M Stone for Electrochemical","CA24","797325","Whitley, Christopher D",23436,7.9,0,5.2,"MEETS","N/A",5.2,0]
["Radford Quarries Of Boone, Inc.","Bamboo Quarry","2016-02-08","#57 Stone for Electrochemical","CA122","793016","Church, Tracy G",19073,7.4,0,6.7,"MEETS","N/A",6.7,0]
["Radford Quarries Of Boone, Inc.","Bamboo Quarry","2016-02-08","#78-M Stone for Electrochemical","CA122","793017","Church, Tracy G",20687,7.5,5,5.2,"MEETS","N/A",5.2,5]
["Radford Quarries Of Boone, Inc.","Bamboo Quarry","2019-04-26","Select Material, Class VI","CA122","960975","Winkler, Jeffrey D",21960,9.6,"<30","<30.055","DOES NOT MEET","N/A",30.055,30]
["Rogers Group, Inc.","Henrietta Quarry - Mooresboro","2015-05-20","#57 Stone for Electrochemical","CA369","758512","Towery, Robby D",26978,9.1999999999999993,0,0,"DOES NOT MEET","N/A",0,0]
["Rogers Group, Inc.","Henrietta Quarry - Mooresboro","2016-02-19","#57 Stone for Electrochemical","CA369","794432","Rhymer, Robert C",24845,7.8,0,4.2,"MEETS","N/A",4.2,0]
["Rogers Group, Inc.","Henrietta Quarry - Mooresboro","2016-08-15","#57 Stone for Electrochemical","CA369","821774","Towery, Robby D",24832,7.8,0,3.7,"MEETS","N/A",3.7,0]
["Rogers Group, Inc.","Henrietta Quarry - Mooresboro","2019-02-20","#57 Stone for Electrochemical","CA369","951020","Norton, Stephen S",24650,9.3000000000000007,0,"<26.775","DOES NOT MEET","N/A",26.774999999999999,0]
["Rogers Group, Inc.","Henrietta Quarry - Mooresboro","2019-04-30","#57 Stone for Electrochemical","CA369","961358","Rhymer, Robert C",23820,9.4,"<30","<27.696","DOES NOT MEET","N/A",27.696000000000002,30]
["Rogers Group, Inc.","Henrietta Quarry - Mooresboro","2016-02-19","#78-M Stone for Electrochemical","CA369","794434","Rhymer, Robert C",23618,8.1999999999999993,0,4.0999999999999996,"MEETS","N/A",4.0999999999999996,0]
["Rogers Group, Inc.","Henrietta Quarry - Mooresboro","2019-02-20","#78-M Stone for Electrochemical","CA369","951025","Norton, Stephen S",23720,9.3000000000000007,0,"<27.825","DOES NOT MEET","N/A",27.824999999999999,0]
["Rogers Group, Inc.","Henrietta Quarry - Mooresboro","2019-04-30","#78-M Stone for Electrochemical","CA369","961359","Rhymer, Robert C",18140,8.9,"<30","<36.384","MEETS","N/A",36.384,30]
["Rogers Group, Inc.","Mitchell County Stone","2015-03-30","#57 Stone for Electrochemical","CA315","750748","Rhymer, Robert C",52966,7.8,100,200,"MEETS","N/A",200,100]
["Rogers Group, Inc.","Mitchell County Stone","2016-10-25","#57 Stone for Electrochemical","CA315","832455","Rhymer, Robert C",82508,8.1,0,0.4,"MEETS","N/A",0.4,0]
["Rogers Group, Inc.","Mitchell County Stone","2016-10-25","#78-M Stone for Electrochemical","CA315","832457","Rhymer, Robert C",42373,8.1,0,0.1,"MEETS","N/A",0.1,0]
["Rogers Group, Inc.","Mitchell County Stone","2015-07-22","Select Material, Class VI","CA315","767763","Radcliff, Roger Keith",50865,7.2,0,0,"MEETS","N/A",0,0]
["Salem Stone Corp.","Cardinal Quarries - Smethport Quarry - W. Jefferson","2016-08-02","#57 Stone for Electrochemical","CA123","819961","Church, Tracy G",14002,9.1999999999999993,0,17.3,"DOES NOT MEET","N/A",17.3,0]
["Salem Stone Corp.","Cardinal Quarries - Smethport Quarry - W. Jefferson","2016-08-02","#78-M Stone for Electrochemical","CA123","819962","Church, Tracy G",7502,8.6999999999999993,0,40.200000000000003,"MEETS","N/A",40.200000000000003,0]
["Salem Stone Corp.","Cardinal Quarries - Smethport Quarry - W. Jefferson","2016-08-02","Miscellaneous Material for Electrochemical","CA123","819964","Church, Tracy G",3880,8,0,73,"MEETS","N/A",73,0]
["Salem Stone Corp.","Cardinal Quarries - Smethport Quarry - W. Jefferson","2019-06-25","Select Material, Class VI","CA123","970103","Murray, Brandi S",13030,9.11,"<29","<50.652","DOES NOT MEET","N/A",50.652000000000001,29]
["Salem Stone Corp.","Cardinal Realty - Galax Quarry - Galax, VA","2016-03-07","#57 Stone for Electrochemical","CA11","797284","Whitley, Christopher D",14977,7.8,0,5.6,"MEETS","N/A",5.6,0]
["Salem Stone Corp.","Cardinal Realty - Galax Quarry - Galax, VA","2016-03-07","#78-M Stone for Electrochemical","CA11","797287","Whitley, Christopher D",12880,9.1999999999999993,0,5.5,"DOES NOT MEET","N/A",5.5,0]
["Salem Stone Corp.","Cardinal Realty - Galax Quarry - Galax, VA","2016-03-07","Miscellaneous Material for Electrochemical","CA11","797296","Whitley, Christopher D",4916,9.5,0,28,"DOES NOT MEET","N/A",28,0]
["Salem Stone Corp.","Southside Materials - S. Boston Quarry (VA)","2019-05-21","#57 Stone for Electrochemical","CA78","964760","Westmoreland, Braxton J",22400,9.6,"<30","<29.464","DOES NOT MEET","N/A",29.463999999999999,30]
["Salem Stone Corp.","Southside Materials - Shelton Quarry - Pelham","2016-02-17","#57 Stone for Electrochemical","CA75","794123","Loshinskiy, Roman",31201,8.6,0,4.8,"MEETS","N/A",4.8,0]
["Salem Stone Corp.","Southside Materials - Shelton Quarry - Pelham","2019-02-28","#57 Stone for Electrochemical","CA75","952399","Westmoreland, Braxton J",27050,9.1,"<30","<24.399","DOES NOT MEET","N/A",24.399000000000001,30]
["Salem Stone Corp.","Southside Materials - Shelton Quarry - Pelham","2019-02-28","#67 Stone for Electrochemical","CA75","952402","Westmoreland, Braxton J",22470,9.3000000000000007,0,"<29.372",{"$f":"IF(AND(4.5<=$I691,$I691<=9),\"MEETS\",\"DOES NOT MEET\")","v":"DOES NOT MEET"},{"$f":"IF(OR(ISBLANK(I691), NOT(ISNUMBER(MATCH($E691, Coastal, 0)))), \"N/A\", IF(AND(5 <= $I691, $I691 <= 10),IF($H691>=5000,IF($O691<=100,IF($N691<=200,\"MEETS\",\"DOES NOT MEET\"),\"DOES NOT MEET\"),\"DOES NOT MEET\"),\"DOES NOT MEET\"))","v":"N/A"},{"$f":"IF(LEFT(K691, 1)=\"<\", VALUE(RIGHT(K691,LEN(K691)-1)), K691)","v":29.372},{"$f":"IF(LEFT(J691, 1)=\"<\", VALUE(RIGHT(J691,LEN(J691)-1)), J691)","v":0}]
["Salem Stone Corp.","Southside Materials - Shelton Quarry - Pelham","2016-02-17","#78-M Stone for Electrochemical","CA75","794124","Loshinskiy, Roman",48780,7.3,0,5,"MEETS","N/A",5,0]
["Salem Stone Corp.","Southside Materials - Shelton Quarry - Pelham","2019-02-28","#78-M Stone for Electrochemical","CA75","952400","Westmoreland, Braxton J",33790,7.8,0,"<19.532","MEETS","N/A",19.532,0]
["Sloan Construction Co.","Blacksburg Quarry - Blacksburg, SC","2016-11-22","#57 Stone for Electrochemical","CA382","836475","Brinson, Joseph",79114,7.7,0,1.8,"MEETS","N/A",1.8,0]
["Sloan Construction Co.","Blacksburg Quarry - Blacksburg, SC","2018-10-04","#57 Stone for Electrochemical","CA382","934376","Gosnell, Jimmy L",42310,7.9,0,"<17.71","MEETS","N/A",17.71,0]
["Sloan Construction Co.","Blacksburg Quarry - Blacksburg, SC","2019-08-22","#57 Stone for Electrochemical","CA382","979539","Brinson, Joseph",48690,7.52,"<29","<13.555","MEETS","N/A",13.555,29]
["Sloan Construction Co.","Blacksburg Quarry - Blacksburg, SC","2016-11-22","#67 Stone for Electrochemical","CA382","836476","Brinson, Joseph",68027,7.4,0,0,"MEETS","N/A",0,0]
["Sloan Construction Co.","Blacksburg Quarry - Blacksburg, SC","2019-08-22","#67 Stone for Electrochemical","CA382","979540","Brinson, Joseph",24510,7.76,"<29","<26.928","MEETS","N/A",26.928000000000001,29]
["Sloan Construction Co.","Blacksburg Quarry - Blacksburg, SC","2016-11-22","Miscellaneous Material for Electrochemical","CA382","836477","Brinson, Joseph",53937,6.9,0,0,"MEETS","N/A",0,0]
["Sloan Construction Co.","Blacksburg Quarry - Blacksburg, SC","2019-08-22","Miscellaneous Material for Electrochemical","CA382","979542","Brinson, Joseph",27180,8.14,"<29","<24.283","MEETS","N/A",24.283000000000001,29]
["Standard Conc. Prod., Inc.","Standard Conc. Prod., Inc. - Savannah Plant","2015-05-06","#67 Stone for Electrochemical","PS16","756002","Brule, Jeffrey S",18769,7.6,0,0,"MEETS","N/A",0,0]
["Standard Conc. Prod., Inc.","Standard Conc. Prod., Inc. - Savannah Plant","2015-07-13","#67 Stone for Electrochemical","PS16","766130","Brule, Jeffrey S",20044,9,0,0,"MEETS","N/A",0,0]
["Taylor & Murphy Const. Co., Inc.","TM-Madison County Area #3 (US19 Widening)","2011-03-23","#57 Stone for Electrochemical","CA364","534939","Lance, Kevin C",23529,8.1,146,0,"MEETS","N/A",0,146]
["Taylor & Murphy Const. Co., Inc.","TM-Madison County Area #3 (US19 Widening)","2011-03-23","#57 Stone for Electrochemical","CA364","534940","Lance, Kevin C",19305,8.1999999999999993,134,0,"MEETS","N/A",0,134]
["Taylor & Murphy Const. Co., Inc.","TM-Madison County Area #3 (US19 Widening)","2011-03-23","#57 Stone for Electrochemical","CA364","534938","Lance, Kevin C",21929,8.4,0,0,"MEETS","N/A",0,0]
["Thompson Contractors","Miller Creek Quarry - Rutherfordton","2016-08-18","#57 Stone for Electrochemical","CA59","821705","Rhymer, Robert C",20678,9.1,0,2.8,"DOES NOT MEET","N/A",2.8,0]
["Thompson Contractors","Miller Creek Quarry - Rutherfordton","2018-10-02","#57 Stone for Electrochemical","CA59","933259","Rhymer, Robert C",20720,9.5,0,"<32.26","DOES NOT MEET","N/A",32.26,0]
["Thompson Contractors","Miller Creek Quarry - Rutherfordton","2019-09-27","#57 Stone for Electrochemical","CA59","985267","Norton, Stephen S",19130,9.5299999999999994,"<30","<34.501","DOES NOT MEET","N/A",34.500999999999998,30]
["Thompson Contractors","Miller Creek Quarry - Rutherfordton","2016-10-14","#78-M Stone for Electrochemical","CA59","830322","Rhymer, Robert C",22109,8.4,0,0.9,"MEETS","N/A",0.9,0]
["Thompson Contractors","Miller Creek Quarry - Rutherfordton","2018-10-02","#78-M Stone for Electrochemical","CA59","933261","Rhymer, Robert C",21950,9.5,0,"<32.34","DOES NOT MEET","N/A",32.340000000000003,0]
["Thompson Contractors","Miller Creek Quarry - Rutherfordton","2019-09-27","#78-M Stone for Electrochemical","CA59","985270","Norton, Stephen S",14090,9.34,"<30","<46.842","DOES NOT MEET","N/A",46.841999999999999,30]
["Thompson Contractors","Miller Creek Quarry - Rutherfordton","2004-07-01","ABC Stone for Electrochemical","CA59","342622","Worley, Lester V",22050,9,26,"","MEETS","N/A","",26]
["Thompson Contractors","Miller Creek Quarry - Rutherfordton","2004-07-01","ABC Stone for Electrochemical","CA59","342623","Worley, Lester V",24120,9.1,26,"","DOES NOT MEET","N/A","",26]
["Vulcan Materials Co.","115 Quarry - N. Wilkesboro","2001-06-22","#57 Stone for Electrochemical","CA79","198025","Parsons, Benjamin R",4590,4.5,"","","MEETS","N/A","",""]
["Vulcan Materials Co.","115 Quarry - N. Wilkesboro","2001-06-28","#57 Stone for Electrochemical","CA79","219773","Parsons, Benjamin R",3400,4.5,"","","MEETS","N/A","",""]
["Vulcan Materials Co.","115 Quarry - N. Wilkesboro","2001-06-29","#57 Stone for Electrochemical","CA79","219898","Smith, David L",37000,7.2,"","","MEETS","N/A","",""]
["Vulcan Materials Co.","115 Quarry - N. Wilkesboro","2001-06-29","#57 Stone for Electrochemical","CA79","219897","Smith, David L",16400,8.1999999999999993,"","","MEETS","N/A","",""]
["Vulcan Materials Co.","115 Quarry - N. Wilkesboro","2001-07-02","#57 Stone for Electrochemical","CA79","219849","Parsons, Benjamin R",21740,8.1999999999999993,"","","MEETS","N/A","",""]
["Vulcan Materials Co.","115 Quarry - N. Wilkesboro","2001-07-02","#57 Stone for Electrochemical","CA79","219850","Parsons, Benjamin R",22220,8.1999999999999993,"","","MEETS","N/A","",""]
["Vulcan Materials Co.","115 Quarry - N. Wilkesboro","2016-07-29","#57 Stone for Electrochemical","CA79","819485","Whitley, Christopher D",14470,9.1999999999999993,0,15.9,"DOES NOT MEET","N/A",15.9,0]
["Vulcan Materials Co.","115 Quarry - N. Wilkesboro","2018-03-20","#57 Stone for Electrochemical","CA79","902327","Cox, Justin Ryan",17765,9.1,0,29.1,"DOES NOT MEET","N/A",29.1,0]
["Vulcan Materials Co.","115 Quarry - N. Wilkesboro","2018-05-10","#57 Stone for Electrochemical","CA79","910653","Patrie, Garin T",19387,8.8000000000000007,0,29.4,"MEETS","N/A",29.4,0]
["Vulcan Materials Co.","115 Quarry - N. Wilkesboro","2016-07-29","#67 Stone for Electrochemical","CA79","819513","Whitley, Christopher D",7746,8.6999999999999993,0,40.9,"MEETS","N/A",40.9,0]
["Vulcan Materials Co.","115 Quarry - N. Wilkesboro","2018-05-10","#67 Stone for Electrochemical","CA79","910654","Patrie, Garin T",13541,8.6,0,42.4,"MEETS","N/A",42.4,0]
["Vulcan Materials Co.","115 Quarry - N. Wilkesboro","2019-08-05","#67 Stone for Electrochemical","CA79","976211","Church, Tracy G",15980,9.1999999999999993,"<29","<41.302","DOES NOT MEET","N/A",41.302,29]
["Vulcan Materials Co.","115 Quarry - N. Wilkesboro","2016-07-29","#78-M Stone for Electrochemical","CA79","819580","Whitley, Christopher D",10981,9.1999999999999993,0,24.7,"DOES NOT MEET","N/A",24.7,0]
["Vulcan Materials Co.","115 Quarry - N. Wilkesboro","2018-05-10","#78-M Stone for Electrochemical","CA79","910655","Patrie, Garin T",10774,8.1,0,53.4,"MEETS","N/A",53.4,0]
["Vulcan Materials Co.","Blacksburg Quarry - Blacksburg, SC","2014-02-10","#57 Stone for Electrochemical","CA82","697259","Brooks, Joseph D",10797,6.2,0,0,"MEETS","N/A",0,0]
["Vulcan Materials Co.","Blacksburg Quarry - Blacksburg, SC","2018-07-05","#67 Stone for Electrochemical","CA82","920661","Gosnell, Jimmy L",7313,10,0,"<89.94","DOES NOT MEET","N/A",89.94,0]
["Vulcan Materials Co.","Blacksburg Quarry - Blacksburg, SC","2019-07-30","#67 Stone for Electrochemical","CA82","975112","Gosnell, Jimmy L",12450,9.73,"<29","<53.012","DOES NOT MEET","N/A",53.012,29]
["Vulcan Materials Co.","Blacksburg Quarry - Blacksburg, SC","2018-07-05","#78-M Stone for Electrochemical","CA82","920663","Gosnell, Jimmy L",5389,10.1,0,18.3,"DOES NOT MEET","N/A",18.3,0]
["Vulcan Materials Co.","Blacksburg Quarry - Blacksburg, SC","2019-07-30","#78-M Stone for Electrochemical","CA82","975113","Gosnell, Jimmy L",12430,9.82,"<29","<53.097","DOES NOT MEET","N/A",53.097000000000001,29]
["Vulcan Materials Co.","Boone Quarry - Boone","2016-11-03","#57 Stone for Electrochemical","CA21","833824","Church, Tracy G",50251,8.3000000000000007,0,0,"MEETS","N/A",0,0]
["Vulcan Materials Co.","Boone Quarry - Boone","2019-11-22","#57 Stone for Electrochemical","CA21","993803","Church, Tracy G",81740,7.97,"<30","<8.074","MEETS","N/A",8.0739999999999998,30]
["Vulcan Materials Co.","Boone Quarry - Boone","2016-11-03","#78-M Stone for Electrochemical","CA21","833828","Church, Tracy G",35881,7.7,0,1.8,"MEETS","N/A",1.8,0]
["Vulcan Materials Co.","Boone Quarry - Boone","2018-05-11","Miscellaneous Material for Electrochemical","CA21","911785","Bumgarner, Dan F",26702,9.1999999999999993,0,"<21.68","DOES NOT MEET","N/A",21.68,0]
["Vulcan Materials Co.","Cabarrus Quarry - Concord","2004-01-28","#57 Stone for Electrochemical","CA186","324504","Lynn, Ronald F",21770,8.1,26,"","MEETS","N/A","",26]
["Vulcan Materials Co.","Cabarrus Quarry - Concord","2011-11-01","#57 Stone for Electrochemical","CA186","606228","Bryan, Aric J",14513,7.6,0,0,"MEETS","N/A",0,0]
["Vulcan Materials Co.","Cabarrus Quarry - Concord","2017-09-18","#57 Stone for Electrochemical","CA186","877802","Adair, Mildred (Millie) L",17250,9.5,0,37.5,"DOES NOT MEET","N/A",37.5,0]
["Vulcan Materials Co.","Cabarrus Quarry - Concord","2018-05-09","#57 Stone for Electrochemical","CA186","910981","Pegues, Jr., Henderson",16984,8.9,0,34,"MEETS","N/A",34,0]
["Vulcan Materials Co.","Cabarrus Quarry - Concord","2018-08-02","#57 Stone for Electrochemical","CA186","924257","Thomas, Mark D",20720,9.6,0,"<30.14","DOES NOT MEET","N/A",30.14,0]
["Vulcan Materials Co.","Cabarrus Quarry - Concord","2018-08-02","#57 Stone for Electrochemical","CA186","927538","Thomas, Mark D",20720,9.6,0,"<30.14","DOES NOT MEET","N/A",30.14,0]
["Vulcan Materials Co.","Cabarrus Quarry - Concord","2018-10-18","#57 Stone for Electrochemical","CA186","935923","Cero, Kevin M",22150,9.5,0,"<29.8","DOES NOT MEET","N/A",29.8,0]
["Vulcan Materials Co.","Cabarrus Quarry - Concord","2019-09-24","#57 Stone for Electrochemical","CA186","984941","Cero, Kevin M",15810,9.58,"<32","<41.746","DOES NOT MEET","N/A",41.746000000000002,32]
["Vulcan Materials Co.","Cabarrus Quarry - Concord","2013-11-12","#67 Stone for Electrochemical","CA186","689282","Carriker, Pamela D",18525,6.6,0,0,"MEETS","N/A",0,0]
["Vulcan Materials Co.","Cabarrus Quarry - Concord","2018-08-27","#67 Stone for Electrochemical","CA186","929279","Thomas, Mark D",20750,9.6,0,"<29.38","DOES NOT MEET","N/A",29.38,0]
["Vulcan Materials Co.","Cabarrus Quarry - Concord","2018-10-18","#67 Stone for Electrochemical","CA186","935924","Cero, Kevin M",20140,9.1,0,"<32.7","DOES NOT MEET","N/A",32.700000000000003,0]
["Vulcan Materials Co.","Cabarrus Quarry - Concord","2019-09-24","#67 Stone for Electrochemical","CA186","984943","Cero, Kevin M",17720,9.65,"<32","<37.246","DOES NOT MEET","N/A",37.246000000000002,32]
["Vulcan Materials Co.","Cabarrus Quarry - Concord","2017-09-18","#78-M Stone for Electrochemical","CA186","877705","Adair, Mildred (Millie) L",19117,9.4,0,33.4,"DOES NOT MEET","N/A",33.4,0]
["Vulcan Materials Co.","Cabarrus Quarry - Concord","2018-05-09","#78-M Stone for Electrochemical","CA186","910982","Pegues, Jr., Henderson",12953,9,0,43.5,"MEETS","N/A",43.5,0]
["Vulcan Materials Co.","Cabarrus Quarry - Concord","2018-10-18","#78-M Stone for Electrochemical","CA186","935925","Cero, Kevin M",17010,9.4,0,"<38.7","DOES NOT MEET","N/A",38.700000000000003,0]
["Vulcan Materials Co.","Cabarrus Quarry - Concord","2019-09-24","#78-M Stone for Electrochemical","CA186","984945","Cero, Kevin M",15200,9.73,"<32","<43.421","DOES NOT MEET","N/A",43.420999999999999,32]
["Vulcan Materials Co.","Cabarrus Quarry - Concord","2017-09-18","Miscellaneous Material for Electrochemical","CA186","877672","Adair, Mildred (Millie) L",3644,8,4.7,172.8,"MEETS","N/A",172.8,4.7]
["Vulcan Materials Co.","Cabarrus Quarry - Concord","2019-09-24","Miscellaneous Material for Electrochemical","CA186","985125","Cero, Kevin M",6884,9.08,"<32","<95.874","DOES NOT MEET","N/A",95.873999999999995,32]
["Vulcan Materials Co.","Clear Creek Q. - Charlotte","2017-02-01","#57 Stone for Electrochemical","CA249","843620","Pegues, Jr., Henderson",26954,8.4,0,23.3,{"$f":"IF(AND(4.5<=$I755,$I755<=9),\"MEETS\",\"DOES NOT MEET\")","v":"MEETS"},{"$f":"IF(OR(ISBLANK(I755), NOT(ISNUMBER(MATCH($E755, Coastal, 0)))), \"N/A\", IF(AND(5 <= $I755, $I755 <= 10),IF($H755>=5000,IF($O755<=100,IF($N755<=200,\"MEETS\",\"DOES NOT MEET\"),\"DOES NOT MEET\"),\"DOES NOT MEET\"),\"DOES NOT MEET\"))","v":"N/A"},{"$f":"IF(LEFT(K755, 1)=\"<\", VALUE(RIGHT(K755,LEN(K755)-1)), K755)","v":23.3},{"$f":"IF(LEFT(J755, 1)=\"<\", VALUE(RIGHT(J755,LEN(J755)-1)), J755)","v":0}]
["Vulcan Materials Co.","Clear Creek Q. - Charlotte","2017-04-04","#57 Stone for Electrochemical","CA249","852263","Pegues, Jr., Henderson",19425,9.6,0,30.9,"DOES NOT MEET","N/A",30.9,0]
["Vulcan Materials Co.","Clear Creek Q. - Charlotte","2018-02-05","#57 Stone for Electrochemical","CA249","895551","Pegues, Jr., Henderson",27847,8.6,0,25.4,"MEETS","N/A",25.4,0]
["Vulcan Materials Co.","Clear Creek Q. - Charlotte","2018-05-09","#57 Stone for Electrochemical","CA249","910980","Pegues, Jr., Henderson",22743,9.3000000000000007,0,26,"DOES NOT MEET","N/A",26,0]
["Vulcan Materials Co.","Clear Creek Q. - Charlotte","2019-02-13","#57 Stone for Electrochemical","CA249","950363","Pegues, Jr., Henderson",20970,9.4,0,"<31.474","DOES NOT MEET","N/A",31.474,0]
["Vulcan Materials Co.","Clear Creek Q. - Charlotte","2020-02-04","#57 Stone for Electrochemical","CA249","998428","Pegues, Jr., Henderson",24690,9.57,"<30","<26.731","DOES NOT MEET","N/A",26.731000000000002,30]
["Vulcan Materials Co.","Clear Creek Q. - Charlotte","2016-02-22","#67 Stone for Electrochemical","CA249","794809","Pegues, Jr., Henderson",27533,8.8000000000000007,0,4.5999999999999996,"MEETS","N/A",4.5999999999999996,0]
["Vulcan Materials Co.","Clear Creek Q. - Charlotte","2017-02-01","#67 Stone for Electrochemical","CA249","843624","Pegues, Jr., Henderson",25272,8,0,24.7,"MEETS","N/A",24.7,0]
["Vulcan Materials Co.","Clear Creek Q. - Charlotte","2018-02-05","#67 Stone for Electrochemical","CA249","895552","Pegues, Jr., Henderson",23507,8.8000000000000007,0,28.5,"MEETS","N/A",28.5,0]
["Vulcan Materials Co.","Clear Creek Q. - Charlotte","2019-02-13","#67 Stone for Electrochemical","CA249","950364","Pegues, Jr., Henderson",22960,9.5,0,"<28.746","DOES NOT MEET","N/A",28.745999999999999,0]
["Vulcan Materials Co.","Clear Creek Q. - Charlotte","2020-02-04","#67 Stone for Electrochemical","CA249","998435","Pegues, Jr., Henderson",22470,9.57,"<30","<29.372","DOES NOT MEET","N/A",29.372,30]
["Vulcan Materials Co.","Clear Creek Q. - Charlotte","2016-02-22","#78-M Stone for Electrochemical","CA249","794810","Pegues, Jr., Henderson",21487,9.1,0,6.2,"DOES NOT MEET","N/A",6.2,0]
["Vulcan Materials Co.","Clear Creek Q. - Charlotte","2017-02-01","#78-M Stone for Electrochemical","CA249","843616","Pegues, Jr., Henderson",21749,8,0,28.9,"MEETS","N/A",28.9,0]
["Vulcan Materials Co.","Clear Creek Q. - Charlotte","2018-02-05","#78-M Stone for Electrochemical","CA249","895553","Pegues, Jr., Henderson",21146,8.6999999999999993,0,32.299999999999997,"MEETS","N/A",32.299999999999997,0]
["Vulcan Materials Co.","Clear Creek Q. - Charlotte","2019-02-13","#78-M Stone for Electrochemical","CA249","950362","Pegues, Jr., Henderson",21190,9.5,0,"<31.147","DOES NOT MEET","N/A",31.146999999999998,0]
["Vulcan Materials Co.","Clear Creek Q. - Charlotte","2020-02-04","#78-M Stone for Electrochemical","CA249","998424","Pegues, Jr., Henderson",20190,9.4600000000000009,"<30","<32.689","DOES NOT MEET","N/A",32.689,30]
["Vulcan Materials Co.","Clear Creek Q. - Charlotte","2020-02-04","Miscellaneous Material for Electrochemical","CA249","998654","Pegues, Jr., Henderson",5334,8.91,"<30","<123.735","MEETS","N/A",123.735,30]
["Vulcan Materials Co.","East Forsyth Quarry - Kernersville","2019-01-17","#57 Stone for Electrochemical","CA139","946089","Ealey, Lee E",21440,9.4,0,"<30.784","DOES NOT MEET","N/A",30.783999999999999,0]
["Vulcan Materials Co.","East Forsyth Quarry - Kernersville","2020-02-24","#57 Stone for Electrochemical","CA139","1000306","Ealey, Lee E",19230,9.3800000000000008,"<30","<34.321","DOES NOT MEET","N/A",34.320999999999998,30]
["Vulcan Materials Co.","East Forsyth Quarry - Kernersville","2019-01-17","#67 Stone for Electrochemical","CA139","946091","Ealey, Lee E",12350,9.6999999999999993,"<30","<53.441","DOES NOT MEET","N/A",53.441000000000003,30]
["Vulcan Materials Co.","East Forsyth Quarry - Kernersville","2020-02-24","#67 Stone for Electrochemical","CA139","1000307","Ealey, Lee E",21680,9.36,"<30","<30.443","DOES NOT MEET","N/A",30.443000000000001,30]
["Vulcan Materials Co.","East Forsyth Quarry - Kernersville","2019-01-17","#78-M Stone for Electrochemical","CA139","946093","Ealey, Lee E",13000,9.3000000000000007,0,"<50.769","DOES NOT MEET","N/A",50.768999999999998,0]
["Vulcan Materials Co.","East Forsyth Quarry - Kernersville","2020-02-24","#78-M Stone for Electrochemical","CA139","1000310","Ealey, Lee E",16860,9.25,"<30","<39.146","DOES NOT MEET","N/A",39.146000000000001,30]
["Vulcan Materials Co.","Elizabeth City Yard (#216) - Elizabeth City","2022-05-11","#57 Stone for Electrochemical","CA216","1072556","Bonds, Maria M",17350,9.5500000000000007,"<28","<27.608","DOES NOT MEET","MEETS",27.608000000000001,28]
["Vulcan Materials Co.","Elizabeth City Yard (#216) - Elizabeth City","2020-09-21","#67 Stone for Electrochemical","CA216","1021106","Bonds, Maria M",19570,9.52,"<30","<33.725","DOES NOT MEET","MEETS",33.725000000000001,30]
["Vulcan Materials Co.","Elizabeth City Yard (#216) - Elizabeth City","2020-09-21","#78-M Stone for Electrochemical","CA216","1021105","Bonds, Maria M",10330,9.51,"<30","<63.892","DOES NOT MEET","MEETS",63.892000000000003,30]
["Vulcan Materials Co.","Elkin Quarry - Elkin","2001-12-19","#57 Stone for Electrochemical","CA68","243010","Wagoner, Roy M",16950,8.1999999999999993,"","","MEETS","N/A","",""]
["Vulcan Materials Co.","Elkin Quarry - Elkin","2002-01-16","#57 Stone for Electrochemical","CA68","244840","Wagoner, Roy M",19231,7.3,"","","MEETS","N/A","",""]
["Vulcan Materials Co.","Elkin Quarry - Elkin","2002-02-01","#57 Stone for Electrochemical","CA68","246000","Wagoner, Roy M",18519,7.1,"","","MEETS","N/A","",""]
["Vulcan Materials Co.","Elkin Quarry - Elkin","2002-02-22","#57 Stone for Electrochemical","CA68","248839","Wagoner, Roy M",19610,7.8,"<32","","MEETS","N/A","",32]
["Vulcan Materials Co.","Elkin Quarry - Elkin","2005-01-07","#57 Stone for Electrochemical","CA68","363269","Wagoner, Roy M",21620,7.2,"< 30","< 200","MEETS","N/A",200,30]
["Vulcan Materials Co.","Elkin Quarry - Elkin","2005-09-29","#57 Stone for Electrochemical","CA68","392253","Wagoner, Roy M",22500,8.1,"<30","<200","MEETS","N/A",200,30]
["Vulcan Materials Co.","Elkin Quarry - Elkin","2005-12-08","#57 Stone for Electrochemical","CA68","398494","Wagoner, Roy M",22990,8.6,"<30","<200","MEETS","N/A",200,30]
["Vulcan Materials Co.","Elkin Quarry - Elkin","2006-01-04","#57 Stone for Electrochemical","CA68","400141","Wagoner, Roy M",34560,7.1,"< 30","< 200","MEETS","N/A",200,30]
["Vulcan Materials Co.","Enka Quarry - Enka","2008-05-21","#57 Stone for Electrochemical","CA69","460345","Harmon, Ronnie D",11961,6.5,"<27","<200","MEETS","N/A",200,27]
["Vulcan Materials Co.","Enka Quarry - Enka","2008-07-24","#57 Stone for Electrochemical","CA69","464697","Harmon, Ronnie D",10787,5.9,"<27","<200","MEETS","N/A",200,27]
["Vulcan Materials Co.","Enka Quarry - Enka","2008-09-10","#57 Stone for Electrochemical","CA69","468267","Ammons, Larry W",8058,6.1,"<27","<200","MEETS","N/A",200,27]
["Vulcan Materials Co.","Enka Quarry - Enka","2009-01-05","#57 Stone for Electrochemical","CA69","476121","Young, Ernest R",17699,6.4,"<27","<400","MEETS","N/A",400,27]
["Vulcan Materials Co.","Enka Quarry - Enka","2009-05-19","#57 Stone for Electrochemical","CA69","485268","Ammons, Larry W",19685,6.2,"<27","<200","MEETS","N/A",200,27]
["Vulcan Materials Co.","Enka Quarry - Enka","2009-06-24","#57 Stone for Electrochemical","CA69","488187","Ammons, Larry W",31250,6.9,"<27","<200","MEETS","N/A",200,27]
["Vulcan Materials Co.","Enka Quarry - Enka","2016-10-10","#57 Stone for Electrochemical","CA69","829644","Rhymer, Robert C",13104,6.7,0,24.7,"MEETS","N/A",24.7,0]
["Vulcan Materials Co.","Enka Quarry - Enka","2018-10-05","#57 Stone for Electrochemical","CA69","933926","Rhymer, Robert C",11760,5.0999999999999996,0,"<64.35","MEETS","N/A",64.349999999999994,0]
["Vulcan Materials Co.","Enka Quarry - Enka","2019-09-05","#57 Stone for Electrochemical","CA69","981847","Rhymer, Robert C",12720,8.17,"<32","<51.887","MEETS","N/A",51.887,32]
["Vulcan Materials Co.","Enka Quarry - Enka","2014-04-24","#78-M Stone for Electrochemical","CA69","706599","Rhymer, Robert C",7148,4.5,0,0,"MEETS","N/A",0,0]
["Vulcan Materials Co.","Enka Quarry - Enka","2016-10-10","#78-M Stone for Electrochemical","CA69","829646","Rhymer, Robert C",9479,5.2,0,8.6,"MEETS","N/A",8.6,0]
["Vulcan Materials Co.","Enka Quarry - Enka","2018-10-05","#78-M Stone for Electrochemical","CA69","933927","Rhymer, Robert C",5134,4.7,0,41.1,"MEETS","N/A",41.1,0]
["Vulcan Materials Co.","Enka Quarry - Enka","2019-09-05","#78-M Stone for Electrochemical","CA69","981853","Rhymer, Robert C",11350,8.64,"<32","<58.150","MEETS","N/A",58.15,32]
["Vulcan Materials Co.","Gold Hill Quarry - Gold Hill","2019-01-09","#57 Stone for Electrochemical","CA85","944780","Ealey, Lee E",18430,9.1999999999999993,0,"<35.811","DOES NOT MEET","N/A",35.811,0]
["Vulcan Materials Co.","Gold Hill Quarry - Gold Hill","2020-02-20","#57 Stone for Electrochemical","CA85","1000215","Ealey, Lee E",7432,8.4499999999999993,"<30","<88.805","MEETS","N/A",88.805000000000007,30]
["Vulcan Materials Co.","Gold Hill Quarry - Gold Hill","2019-01-09","#78-M Stone for Electrochemical","CA85","944781","Ealey, Lee E",10870,8.3000000000000007,0,"<60.718","MEETS","N/A",60.718000000000004,0]
["Vulcan Materials Co.","Gold Hill Quarry - Gold Hill","2019-08-13","#78-M Stone for Electrochemical","CA85","977727","Jordan, Daniel H",7103,8.41,"<29","<92.92","MEETS","N/A",92.92,29]
["Vulcan Materials Co.","Gold Hill Quarry - Gold Hill","2020-02-20","#78-M Stone for Electrochemical","CA85","1000216","Ealey, Lee E",6092,8.35,"<30","<108.339","MEETS","N/A",108.339,30]
["Vulcan Materials Co.","Greystone Quarry - Henderson","2016-02-10","#57 Stone for Electrochemical","CA70","793394","Skinner, III, John L",24225,8.9,0,0,"MEETS","N/A",0,0]
["Vulcan Materials Co.","Greystone Quarry - Henderson","2019-04-01","#67 Stone for Electrochemical","CA70","957253","Skinner, III, John L",24930,9.5,"<30","<26.474","DOES NOT MEET","N/A",26.474,30]
["Vulcan Materials Co.","Greystone Quarry - Henderson","2016-02-10","#78-M Stone for Electrochemical","CA70","793395","Skinner, III, John L",23719,8.6999999999999993,0,0.8,"MEETS","N/A",0.8,0]
["Vulcan Materials Co.","Greystone Quarry - Henderson","2019-04-01","#78-M Stone for Electrochemical","CA70","957255","Skinner, III, John L",24010,9.5,"<30","<27.489","DOES NOT MEET","N/A",27.489000000000001,30]
["Vulcan Materials Co.","Greystone Quarry - Henderson","2023-01-31","Coarse Aggregate, #78M","CA70","1095685","Moore, Charles A",12530,9.26,"<30","<39.6","DOES NOT MEET","N/A",39.6,30]
["Vulcan Materials Co.","Havre De Grace Quarry - Havre De Grace, MD","2016-10-26","#67 Stone for Electrochemical","CA345","832514","Bonds, Maria M",15838,8.3000000000000007,0,3.7,"MEETS","N/A",3.7,0]
["Vulcan Materials Co.","Havre De Grace Quarry - Havre De Grace, MD","2019-08-26","#67 Stone for Electrochemical","CA345","980140","Bonds, Maria M",15510,9.25,"<29","<42.553","DOES NOT MEET","N/A",42.552999999999997,29]
["Vulcan Materials Co.","Havre De Grace Quarry - Havre De Grace, MD","2016-10-26","#78-M Stone for Electrochemical","CA345","832499","Bonds, Maria M",6605,7.9,17.7,7.6,"MEETS","N/A",7.6,17.7]
["Vulcan Materials Co.","Havre De Grace Quarry - Havre De Grace, MD","2019-08-26","Miscellaneous Material for Electrochemical","CA345","980139","Bonds, Maria M",17270,9.18,"<29","<38.217","DOES NOT MEET","N/A",38.216999999999999,29]
["Vulcan Materials Co.","Hendersonville Quarry - Hendersonville","2009-06-19","#57 Stone for Electrochemical","CA81","487918","Eubanks, Patrick A",22222,8,"<27","<200","MEETS","N/A",200,27]
["Vulcan Materials Co.","Hendersonville Quarry - Hendersonville","2009-09-28","#57 Stone for Electrochemical","CA81","496223","Eubanks, Patrick A",6978,7.6,27,"<200","MEETS","N/A",200,27]
["Vulcan Materials Co.","Hendersonville Quarry - Hendersonville","2020-07-27","#57 Stone for Electrochemical","CA81","1015163","Wood, Dean Michael M",27630,9.5399999999999991,"<30","<23.887","DOES NOT MEET","N/A",23.887,30]
["Vulcan Materials Co.","Hendersonville Quarry - Hendersonville","2022-12-13","Coarse Aggregate, #57","CA81","1092614","Allen, Daniel W",25930,9.2200000000000006,"<30","<19.14",{"$f":"IF(AND(4.5<=$I819,$I819<=9),\"MEETS\",\"DOES NOT MEET\")","v":"DOES NOT MEET"},{"$f":"IF(OR(ISBLANK(I819), NOT(ISNUMBER(MATCH($E819, Coastal, 0)))), \"N/A\", IF(AND(5 <= $I819, $I819 <= 10),IF($H819>=5000,IF($O819<=100,IF($N819<=200,\"MEETS\",\"DOES NOT MEET\"),\"DOES NOT MEET\"),\"DOES NOT MEET\"),\"DOES NOT MEET\"))","v":"N/A"},{"$f":"IF(LEFT(K819, 1)=\"<\", VALUE(RIGHT(K819,LEN(K819)-1)), K819)","v":19.14},{"$f":"IF(LEFT(J819, 1)=\"<\", VALUE(RIGHT(J819,LEN(J819)-1)), J819)","v":30}]
["Vulcan Materials Co.","Jack Quarry - Petersburg, VA","2021-10-13","#57 Stone for Electrochemical","CA137","1055414","Bonds, Maria M",18960,9.74,"<28","<34.81","DOES NOT MEET","N/A",34.81,28]
["Vulcan Materials Co.","Jack Quarry - Petersburg, VA","2016-10-26","#67 Stone for Electrochemical","CA137","832488","Bonds, Maria M",15921,9.5,0,2.1,"DOES NOT MEET","N/A",2.1,0]
["Vulcan Materials Co.","Jack Quarry - Petersburg, VA","2019-08-26","#67 Stone for Electrochemical","CA137","980166","Bonds, Maria M",16700,9.56,"<29","<39.521","DOES NOT MEET","N/A",39.521000000000001,29]
["Vulcan Materials Co.","Jack Quarry - Petersburg, VA","2016-10-26","#78-M Stone for Electrochemical","CA137","832483","Bonds, Maria M",19763,9,0,1.2,"MEETS","N/A",1.2,0]
["Vulcan Materials Co.","Jack Quarry - Petersburg, VA","2019-08-26","#78-M Stone for Electrochemical","CA137","980164","Bonds, Maria M",17590,9.57,"<29","<37.521","DOES NOT MEET","N/A",37.521000000000001,29]
["Vulcan Materials Co.","Kitty Hawk Sales Yard","2020-09-21","#57 Stone for Electrochemical","CA288","1021103","Bonds, Maria M",21740,4.3600000000000003,"<30","<30.359","DOES NOT MEET","DOES NOT MEET",30.359000000000002,30]
["Vulcan Materials Co.","Kitty Hawk Sales Yard","2020-09-21","#67 Stone for Electrochemical","CA288","1021094","Bonds, Maria M",13710,9.31,"<30","<48.140","DOES NOT MEET","MEETS",48.14,30]
["Vulcan Materials Co.","Kitty Hawk Sales Yard","2020-09-21","#78-M Stone for Electrochemical","CA288","1021102","Bonds, Maria M",38360,4.87,"<30","<17.205","MEETS","DOES NOT MEET",17.204999999999998,30]
["Vulcan Materials Co.","Kitty Hawk Sales Yard","2020-09-21","Miscellaneous Material for Electrochemical","CA288","1021092","Bonds, Maria M",21050,8.7799999999999994,"<30","<31.354","MEETS","MEETS",31.353999999999999,30]
["Vulcan Materials Co.","Lenior Quarry - Lenoir","2001-07-11","#57 Stone for Electrochemical","CA91","220852","Parsons, Benjamin R",21300,7.9,"","","MEETS","N/A","",""]
["Vulcan Materials Co.","Lenior Quarry - Lenoir","2001-07-18","#57 Stone for Electrochemical","CA91","221880","Parsons, Benjamin R",26300,8.1,"","","MEETS","N/A","",""]
["Vulcan Materials Co.","Lenior Quarry - Lenoir","2006-06-20","#57 Stone for Electrochemical","CA91","414102","Church, Tracy G",19720,8.5,"<30","<200","MEETS","N/A",200,30]
["Vulcan Materials Co.","Lenior Quarry - Lenoir","2007-08-21","#57 Stone for Electrochemical","CA91","443687","Wagoner, Roy M",17513,6.9,"<32","<200","MEETS","N/A",200,32]
["Vulcan Materials Co.","Lenior Quarry - Lenoir","2007-09-19","#57 Stone for Electrochemical","CA91","445706","Wagoner, Roy M",26667,7.7,"<32","<200","MEETS","N/A",200,32]
["Vulcan Materials Co.","Lenior Quarry - Lenoir","2016-06-24","#57 Stone for Electrochemical","CA91","815305","Church, Tracy G",18751,9.1999999999999993,2.1,15,"DOES NOT MEET","N/A",15,2.1]
["Vulcan Materials Co.","Lenior Quarry - Lenoir","2006-08-04","#67 Stone for Electrochemical","CA91","417668","Church, Tracy G",22370,8,"<30","<200","MEETS","N/A",200,30]
["Vulcan Materials Co.","Lenior Quarry - Lenoir","2006-08-25","#67 Stone for Electrochemical","CA91","419986","Church, Tracy G",22727,7.5,"<30","<200","MEETS","N/A",200,30]
["Vulcan Materials Co.","Lenior Quarry - Lenoir","2006-08-25","#67 Stone for Electrochemical","CA91","419987","Church, Tracy G",18904,8.1,"<30","<200","MEETS","N/A",200,30]
["Vulcan Materials Co.","Lenior Quarry - Lenoir","2016-06-24","#78-M Stone for Electrochemical","CA91","815307","Church, Tracy G",17443,9.1999999999999993,2.1,15.3,"DOES NOT MEET","N/A",15.3,2.1]
["Vulcan Materials Co.","Lenior Quarry - Lenoir","2016-06-24","Miscellaneous Material for Electrochemical","CA91","815310","Church, Tracy G",11291,8.5,2.1,25,"MEETS","N/A",25,2.1]
["Vulcan Materials Co.","Morganton Quarry - Morganton","2016-04-21","#67 Stone for Electrochemical","CA7","803453","Ausley, Jeff A",22386,7.6,0,6.6,"MEETS","N/A",6.6,0]
["Vulcan Materials Co.","Morganton Quarry - Morganton","2016-04-21","#78-M Stone for Electrochemical","CA7","803457","Ausley, Jeff A",13410,8.6,0,16.7,"MEETS","N/A",16.7,0]
["Vulcan Materials Co.","North Quarry - Winston Salem","2016-03-23","#57 Stone for Electrochemical","CA72","798936","Wallace, Weston G",29586,7.8,0,113.8,"MEETS","N/A",113.8,0]
["Vulcan Materials Co.","North Quarry - Winston Salem","2018-02-23","#57 Stone for Electrochemical","CA72","899210","Wagoner, Roy M",22178,9.1,0,26.7,"DOES NOT MEET","N/A",26.7,0]
["Vulcan Materials Co.","North Quarry - Winston Salem","2019-01-17","#57 Stone for Electrochemical","CA72","946011","Ealey, Lee E",19660,9.1999999999999993,0,"<33.571","DOES NOT MEET","N/A",33.570999999999998,0]
["Vulcan Materials Co.","North Quarry - Winston Salem","2020-02-25","#57 Stone for Electrochemical","CA72","1000797","Ealey, Lee E",21160,9.3800000000000008,"<30","<31.191","DOES NOT MEET","N/A",31.190999999999999,30]
["Vulcan Materials Co.","North Quarry - Winston Salem","2018-02-23","#67 Stone for Electrochemical","CA72","899208","Wagoner, Roy M",24313,8.6999999999999993,0,24.1,"MEETS","N/A",24.1,0]
["Vulcan Materials Co.","North Quarry - Winston Salem","2019-01-17","#67 Stone for Electrochemical","CA72","946015","Ealey, Lee E",18650,9,0,"<33.389","MEETS","N/A",33.389000000000003,0]
["Vulcan Materials Co.","North Quarry - Winston Salem","2020-02-25","#67 Stone for Electrochemical","CA72","1000798","Ealey, Lee E",22070,9.36,"<30","<29.905","DOES NOT MEET","N/A",29.905000000000001,30]
["Vulcan Materials Co.","North Quarry - Winston Salem","2023-01-05","#67 Stone for Electrochemical","CA72","1093747","Stanley, Nicholas D",21,9.19,"<30","<23.64","DOES NOT MEET","N/A",23.64,30]
["Vulcan Materials Co.","North Quarry - Winston Salem","2016-03-23","#78-M Stone for Electrochemical","CA72","798939","Wallace, Weston G",20812,7.5,0,7.7,"MEETS","N/A",7.7,0]
["Vulcan Materials Co.","North Quarry - Winston Salem","2018-02-23","#78-M Stone for Electrochemical","CA72","899209","Wagoner, Roy M",18871,8.8000000000000007,0,33.1,"MEETS","N/A",33.1,0]
["Vulcan Materials Co.","North Quarry - Winston Salem","2019-01-17","#78-M Stone for Electrochemical","CA72","946018","Ealey, Lee E",16130,8.8000000000000007,0,"<40.918","MEETS","N/A",40.917999999999999,0]
["Vulcan Materials Co.","North Quarry - Winston Salem","2020-02-25","#78-M Stone for Electrochemical","CA72","1000799","Ealey, Lee E",19050,9.24,"<30","<34.646","DOES NOT MEET","N/A",34.646000000000001,30]
["Vulcan Materials Co.","Pacolet Quarry - Pacolet, SC","2018-10-10","#57 Stone for Electrochemical","CA83","935069","Gosnell, Jimmy L",2088,8.1999999999999993,0,274,"MEETS","N/A",274,0]
["Vulcan Materials Co.","Pacolet Quarry - Pacolet, SC","2019-08-01","#57 Stone for Electrochemical","CA83","975598","Gosnell, Jimmy L",3415,7.86,"<29","<193.265","MEETS","N/A",193.26499999999999,29]
["Vulcan Materials Co.","Penrose Quarry - Pisgah Forest","2016-06-14","#57 Stone for Electrochemical","CA12","811081","Wood, Dean Michael M",24213,9.1999999999999993,2.1,0.8,"DOES NOT MEET","N/A",0.8,2.1]
["Vulcan Materials Co.","Penrose Quarry - Pisgah Forest","2017-03-07","#57 Stone for Electrochemical","CA12","848230","Wood, Dean Michael M",23084,9.4,0,26.7,"DOES NOT MEET","N/A",26.7,0]
["Vulcan Materials Co.","Penrose Quarry - Pisgah Forest","2016-06-14","#78-M Stone for Electrochemical","CA12","811085","Wood, Dean Michael M",23354,9,2.1,0.5,"MEETS","N/A",0.5,2.1]
["Vulcan Materials Co.","Penrose Quarry - Pisgah Forest","2017-03-07","#78-M Stone for Electrochemical","CA12","848232","Wood, Dean Michael M",22784,9.4,0,26.4,"DOES NOT MEET","N/A",26.4,0]
["Vulcan Materials Co.","Pineville Quarry - Charlotte","2016-10-06","#57 Stone for Electrochemical","CA101","829482","Adair, Mildred (Millie) L",10259,7.4,4.4000000000000004,14.2,"MEETS","N/A",14.2,4.4000000000000004]
["Vulcan Materials Co.","Pineville Quarry - Charlotte","2019-03-15","#57 Stone for Electrochemical","CA101","954939","Adair, Mildred (Millie) L",12860,9.3000000000000007,0,"<51.322","DOES NOT MEET","N/A",51.322000000000003,0]
["Vulcan Materials Co.","Pineville Quarry - Charlotte","2019-03-15","#57 Stone for Electrochemical","CA101","954940","Adair, Mildred (Millie) L",24760,9.1999999999999993,"<30","<26.656","DOES NOT MEET","N/A",26.655999999999999,30]
["Vulcan Materials Co.","Pineville Quarry - Charlotte","2016-02-24","#67 Stone for Electrochemical","CA101","796025","Adair, Mildred (Millie) L",19395,7.7,0,8.3000000000000007,"MEETS","N/A",8.3000000000000007,0]
["Vulcan Materials Co.","Pineville Quarry - Charlotte","2016-10-06","#67 Stone for Electrochemical","CA101","829481","Adair, Mildred (Millie) L",9940,7.6,0,19.7,"MEETS","N/A",19.7,0]
["Vulcan Materials Co.","Pineville Quarry - Charlotte","2017-12-05","#67 Stone for Electrochemical","CA101","889566","Adair, Mildred (Millie) L",19209,9.3000000000000007,4.0999999999999996,34.5,"DOES NOT MEET","N/A",34.5,4.0999999999999996]
["Vulcan Materials Co.","Pineville Quarry - Charlotte","2018-12-12","#67 Stone for Electrochemical","CA101","942471","Adair, Mildred (Millie) L",19680,9.4,0,"<33.537","DOES NOT MEET","N/A",33.536999999999999,0]
["Vulcan Materials Co.","Pineville Quarry - Charlotte","2019-03-15","#67 Stone for Electrochemical","CA101","954942","Adair, Mildred (Millie) L",12860,9.3000000000000007,0,"<51.322","DOES NOT MEET","N/A",51.322000000000003,0]
["Vulcan Materials Co.","Pineville Quarry - Charlotte","2019-03-15","#67 Stone for Electrochemical","CA101","954941","Adair, Mildred (Millie) L",24760,9.1999999999999993,"<30","<26.656","DOES NOT MEET","N/A",26.655999999999999,30]
["Vulcan Materials Co.","Pineville Quarry - Charlotte","2019-08-21","#67 Stone for Electrochemical","CA101","979251","Smith, Michael L",12880,9.39,"<32","<51.242","DOES NOT MEET","N/A",51.241999999999997,32]
["Vulcan Materials Co.","Pineville Quarry - Charlotte","2016-02-24","#78-M Stone for Electrochemical","CA101","796026","Adair, Mildred (Millie) L",12945,7.5,5.4,15.5,"MEETS","N/A",15.5,5.4]
["Vulcan Materials Co.","Pineville Quarry - Charlotte","2016-10-06","#78-M Stone for Electrochemical","CA101","829483","Adair, Mildred (Millie) L",9099,7.6,4.4000000000000004,20,"MEETS","N/A",20,4.4000000000000004]
["Vulcan Materials Co.","Pineville Quarry - Charlotte","2017-12-05","#78-M Stone for Electrochemical","CA101","889568","Adair, Mildred (Millie) L",10894,8.8000000000000007,4.0999999999999996,60,"MEETS","N/A",60,4.0999999999999996]
["Vulcan Materials Co.","Pineville Quarry - Charlotte","2018-12-12","#78-M Stone for Electrochemical","CA101","942472","Adair, Mildred (Millie) L",10030,9.1,0,"<65.803","DOES NOT MEET","N/A",65.802999999999997,0]
["Vulcan Materials Co.","Pineville Quarry - Charlotte","2019-03-15","#78-M Stone for Electrochemical","CA101","954946","Adair, Mildred (Millie) L",7593,9,"<30","<86.922","MEETS","N/A",86.921999999999997,30]
["Vulcan Materials Co.","Pineville Quarry - Charlotte","2019-03-15","#78-M Stone for Electrochemical","CA101","954945","Adair, Mildred (Millie) L",23010,9.3000000000000007,0,"<28.683","DOES NOT MEET","N/A",28.683,0]
["Vulcan Materials Co.","Pineville Quarry - Charlotte","2019-08-21","#78-M Stone for Electrochemical","CA101","979253","Smith, Michael L",12210,9.2899999999999991,"<32","<54.054","DOES NOT MEET","N/A",54.054000000000002,32]
["Vulcan Materials Co.","Pineville Quarry - Charlotte","2016-02-24","Miscellaneous Material for Electrochemical","CA101","796027","Adair, Mildred (Millie) L",5187,7.7,0,76.5,"MEETS","N/A",76.5,0]
["Vulcan Materials Co.","Pineville Quarry - Charlotte","2017-12-05","Miscellaneous Material for Electrochemical","CA101","889576","Adair, Mildred (Millie) L",2972,8.1,4.0999999999999996,62.8,"MEETS","N/A",62.8,4.0999999999999996]
["Vulcan Materials Co.","Pineville Quarry - Charlotte","2018-12-12","Miscellaneous Material for Electrochemical","CA101","942490","Adair, Mildred (Millie) L",13760,9.1,0,"<47.965","DOES NOT MEET","N/A",47.965000000000003,0]
["Vulcan Materials Co.","Pineville Quarry - Charlotte","2019-03-15","Miscellaneous Material for Electrochemical","CA101","954943","Adair, Mildred (Millie) L",6899,8.9,0,"<95.666","MEETS","N/A",95.665999999999997,0]
["Vulcan Materials Co.","Pineville Quarry - Charlotte","2019-03-15","Miscellaneous Material for Electrochemical","CA101","954944","Adair, Mildred (Millie) L",14850,9,"<30","<44.444","MEETS","N/A",44.444000000000003,30]
["Vulcan Materials Co.","Pineville Quarry - Charlotte","2019-08-21","Miscellaneous Material for Electrochemical","CA101","979255","Smith, Michael L",2661,7.78,"<32","<248.027","MEETS","N/A",248.02699999999999,32]
["Vulcan Materials Co.","Puddledock Quarry - Prince George, VA","2016-10-26","#57 Stone for Electrochemical","CA224","832533","Bonds, Maria M",36088,5,0,3.3,{"$f":"IF(AND(4.5<=$I883,$I883<=9),\"MEETS\",\"DOES NOT MEET\")","v":"MEETS"},{"$f":"IF(OR(ISBLANK(I883), NOT(ISNUMBER(MATCH($E883, Coastal, 0)))), \"N/A\", IF(AND(5 <= $I883, $I883 <= 10),IF($H883>=5000,IF($O883<=100,IF($N883<=200,\"MEETS\",\"DOES NOT MEET\"),\"DOES NOT MEET\"),\"DOES NOT MEET\"),\"DOES NOT MEET\"))","v":"N/A"},{"$f":"IF(LEFT(K883, 1)=\"<\", VALUE(RIGHT(K883,LEN(K883)-1)), K883)","v":3.3},{"$f":"IF(LEFT(J883, 1)=\"<\", VALUE(RIGHT(J883,LEN(J883)-1)), J883)","v":0}]
["Vulcan Materials Co.","Puddledock Quarry - Prince George, VA","2019-08-26","#57 Stone for Electrochemical","CA224","980146","Bonds, Maria M",51280,4.87,"<29","<12.871","MEETS","N/A",12.871,29]
["Vulcan Materials Co.","Puddledock Quarry - Prince George, VA","2016-10-26","#78-M Stone for Electrochemical","CA224","832529","Bonds, Maria M",43668,7.3,0,3.4,"MEETS","N/A",3.4,0]
["Vulcan Materials Co.","Puddledock Quarry - Prince George, VA","2019-08-26","#78-M Stone for Electrochemical","CA224","980145","Bonds, Maria M",59680,4.67,"<29","<11.059","MEETS","N/A",11.058999999999999,29]
["Vulcan Materials Co.","Rabun Gap - Rabun Gap, GA","2019-03-08","#57 Stone for Electrochemical","CA25","953618","Ledford, Brandon S",25660,9.5,"<30","<25.721","DOES NOT MEET","N/A",25.721,30]
["Vulcan Materials Co.","Rockingham Quarry - Rockingham","2009-05-11","#57 Stone for Electrochemical","CA94","484532","Jackson, Anthony M",19157,8.6,"<27","<200","MEETS","N/A",200,27]
["Vulcan Materials Co.","Rockingham Quarry - Rockingham","2009-05-20","#57 Stone for Electrochemical","CA94","485948","Jackson, Anthony M",13850,6.7,"<27","<200","MEETS","N/A",200,27]
["Vulcan Materials Co.","Rockingham Quarry - Rockingham","2009-05-20","#57 Stone for Electrochemical","CA94","485949","Jackson, Anthony M",14245,6.5,"<27","<200","MEETS","N/A",200,27]
["Vulcan Materials Co.","Rockingham Quarry - Rockingham","2016-06-09","#57 Stone for Electrochemical","CA94","810587","Tucker, Rusty J",18142,9.3000000000000007,2.1,11.2,"DOES NOT MEET","N/A",11.2,2.1]
["Vulcan Materials Co.","Rockingham Quarry - Rockingham","2018-05-11","#57 Stone for Electrochemical","CA94","911055","Jordan, Daniel H",13935,9.6999999999999993,0,41.1,"DOES NOT MEET","N/A",41.1,0]
["Vulcan Materials Co.","Rockingham Quarry - Rockingham","2018-10-15","#57 Stone for Electrochemical","CA94","935253","Jordan, Daniel H",19540,9.6,0,"<35.83","DOES NOT MEET","N/A",35.83,0]
["Vulcan Materials Co.","Rockingham Quarry - Rockingham","2019-08-13","#57 Stone for Electrochemical","CA94","977702","Jordan, Daniel H",17630,9.43,"<29","<37.436","DOES NOT MEET","N/A",37.436,29]
["Vulcan Materials Co.","Rockingham Quarry - Rockingham","2023-10-25","#57 Stone for Electrochemical","CA94","1122750","Gilmore, David T",17510,9.24,"<29","<28.49","DOES NOT MEET","N/A",28.49,29]
["Vulcan Materials Co.","Rockingham Quarry - Rockingham","2016-06-09","#67 Stone for Electrochemical","CA94","810585","Tucker, Rusty J",16748,9.3000000000000007,2.1,10.199999999999999,"DOES NOT MEET","N/A",10.199999999999999,2.1]
["Vulcan Materials Co.","Rockingham Quarry - Rockingham","2018-05-11","#67 Stone for Electrochemical","CA94","911058","Jordan, Daniel H",15896,9.5,0,36.799999999999997,"DOES NOT MEET","N/A",36.799999999999997,0]
["Vulcan Materials Co.","Rockingham Quarry - Rockingham","2018-10-15","#67 Stone for Electrochemical","CA94","935254","Jordan, Daniel H",15380,9.6,0,"<44.66","DOES NOT MEET","N/A",44.66,0]
["Vulcan Materials Co.","Rockingham Quarry - Rockingham","2019-08-13","#67 Stone for Electrochemical","CA94","977703","Jordan, Daniel H",17110,9.4499999999999993,"<29","<38.574","DOES NOT MEET","N/A",38.573999999999998,29]
["Vulcan Materials Co.","Rockingham Quarry - Rockingham","2016-06-09","#78-M Stone for Electrochemical","CA94","810584","Tucker, Rusty J",12031,9.4,2.1,12.7,"DOES NOT MEET","N/A",12.7,2.1]
["Vulcan Materials Co.","Rockingham Quarry - Rockingham","2018-05-11","#78-M Stone for Electrochemical","CA94","911059","Jordan, Daniel H",11663,9.4,0,50.3,"DOES NOT MEET","N/A",50.3,0]
["Vulcan Materials Co.","Rockingham Quarry - Rockingham","2018-10-15","#78-M Stone for Electrochemical","CA94","935255","Jordan, Daniel H",15630,9.5,0,"<46.60","DOES NOT MEET","N/A",46.6,0]
["Vulcan Materials Co.","Rockingham Quarry - Rockingham","2019-08-13","#78-M Stone for Electrochemical","CA94","977705","Jordan, Daniel H",13960,9.42,"<29","<47.278","DOES NOT MEET","N/A",47.277999999999999,29]
["Vulcan Materials Co.","Rockingham Quarry - Rockingham","2018-05-11","Miscellaneous Material for Electrochemical","CA94","911061","Jordan, Daniel H",5811,9.1999999999999993,0,99,"DOES NOT MEET","N/A",99,0]
["Vulcan Materials Co.","Skippers Quarry - Skippers, VA","2018-02-07","#57 Stone for Electrochemical","CA55","897059","Thomas, Grady Q",8547,9.1,13.7,73.900000000000006,"DOES NOT MEET","MEETS",73.900000000000006,13.7]
["Vulcan Materials Co.","Skippers Quarry - Skippers, VA","2020-02-05","#57 Stone for Electrochemical","CA55","998836","Thomas, Grady Q",11680,9.23,"<30","<56.507","DOES NOT MEET","MEETS",56.506999999999998,30]
["Vulcan Materials Co.","Skippers Quarry - Skippers, VA","2022-03-16","#57 Stone for Electrochemical","CA55","1067918","Thomas, Grady Q",16730,9.5399999999999991,"<28","<39.45","DOES NOT MEET","MEETS",39.450000000000003,28]
["Vulcan Materials Co.","Skippers Quarry - Skippers, VA","2016-02-10","#67 Stone for Electrochemical","CA55","793423","Thomas, Grady Q",24384,8.9,0,0,"MEETS","MEETS",0,0]
["Vulcan Materials Co.","Skippers Quarry - Skippers, VA","2017-02-07","#67 Stone for Electrochemical","CA55","844601","Thomas, Grady Q",12830,8.8000000000000007,13.3,48.7,"MEETS","MEETS",48.7,13.3]
["Vulcan Materials Co.","Skippers Quarry - Skippers, VA","2019-02-21","#67 Stone for Electrochemical","CA55","952208","Thomas, Grady Q",15800,9.6,"<30","<41.772","DOES NOT MEET","MEETS",41.771999999999998,30]
["Vulcan Materials Co.","Skippers Quarry - Skippers, VA","2021-02-03","#67 Stone for Electrochemical","CA55","1032639","Thomas, Grady Q",16460,9.44,"<30","<40","DOES NOT MEET","MEETS",40,30]
["Vulcan Materials Co.","Skippers Quarry - Skippers, VA","2021-02-03","#67 Stone for Electrochemical","CA55","1032639","Thomas, Grady Q",16460,9.44,"<30","<40","DOES NOT MEET","MEETS",40,30]
["Vulcan Materials Co.","Skippers Quarry - Skippers, VA","2016-02-10","#78-M Stone for Electrochemical","CA55","793424","Thomas, Grady Q",9311,9.6999999999999993,10,6.5,"DOES NOT MEET","MEETS",6.5,10]
["Vulcan Materials Co.","Skippers Quarry - Skippers, VA","2017-02-07","#78-M Stone for Electrochemical","CA55","844605","Thomas, Grady Q",11986,8.3000000000000007,8.9,51,"MEETS","MEETS",51,8.9]
["Vulcan Materials Co.","Skippers Quarry - Skippers, VA","2018-02-07","#78-M Stone for Electrochemical","CA55","897111","Thomas, Grady Q",11421,9.3000000000000007,4.5999999999999996,54.9,"DOES NOT MEET","MEETS",54.9,4.5999999999999996]
["Vulcan Materials Co.","Skippers Quarry - Skippers, VA","2019-02-21","#78-M Stone for Electrochemical","CA55","952200","Thomas, Grady Q",16500,9.5,"<30","<40","DOES NOT MEET","MEETS",40,30]
["Vulcan Materials Co.","Skippers Quarry - Skippers, VA","2020-02-05","#78-M Stone for Electrochemical","CA55","998832","Thomas, Grady Q",15140,9.33,"<30","<43.593","DOES NOT MEET","MEETS",43.593000000000004,30]
["Vulcan Materials Co.","Skippers Quarry - Skippers, VA","2021-02-03","#78-M Stone for Electrochemical","CA55","1032624","Thomas, Grady Q",10200,9.3699999999999992,"<30","<64.706","DOES NOT MEET","MEETS",64.706000000000003,30]
["Vulcan Materials Co.","Skippers Quarry - Skippers, VA","2021-02-03","#78-M Stone for Electrochemical","CA55","1032624","Thomas, Grady Q",10200,9.3699999999999992,"<30","<64.706","DOES NOT MEET","MEETS",64.706000000000003,30]
["Vulcan Materials Co.","Skippers Quarry - Skippers, VA","2022-03-16","#78-M Stone for Electrochemical","CA55","1067884","Thomas, Grady Q",15570,9.6,"<28","<42.389","DOES NOT MEET","MEETS",42.389000000000003,28]
["Vulcan Materials Co.","Smith Grove Q. - Mocksville","2016-04-26","#57 Stone for Electrochemical","CA80","803857","Wallace, Weston G",22007,8.1,0,7.1,"MEETS","N/A",7.1,0]
["Vulcan Materials Co.","Smith Grove Q. - Mocksville","2019-01-11","#57 Stone for Electrochemical","CA80","945366","Ealey, Lee E",26940,9.4,0,"<24.499","DOES NOT MEET","N/A",24.498999999999999,0]
["Vulcan Materials Co.","Smith Grove Q. - Mocksville","2020-02-03","#57 Stone for Electrochemical","CA80","998601","Ealey, Lee E",24340,9.56,"<30","<27.116","DOES NOT MEET","N/A",27.116,30]
["Vulcan Materials Co.","Smith Grove Q. - Mocksville","2017-05-01","#67 Stone for Electrochemical","CA80","858504","Wagoner, Roy M",11566,9.3000000000000007,0,55.8,"DOES NOT MEET","N/A",55.8,0]
["Vulcan Materials Co.","Smith Grove Q. - Mocksville","2019-01-11","#67 Stone for Electrochemical","CA80","945372","Ealey, Lee E",16320,8.1,0,"<40.441","MEETS","N/A",40.441000000000003,0]
["Vulcan Materials Co.","Smith Grove Q. - Mocksville","2020-02-03","#67 Stone for Electrochemical","CA80","998597","Ealey, Lee E",23390,9.52,"<30","<28.217","DOES NOT MEET","N/A",28.216999999999999,30]
["Vulcan Materials Co.","Smith Grove Q. - Mocksville","2016-04-26","#78-M Stone for Electrochemical","CA80","803858","Wallace, Weston G",20838,8.5,0,11.7,"MEETS","N/A",11.7,0]
["Vulcan Materials Co.","Smith Grove Q. - Mocksville","2019-01-11","#78-M Stone for Electrochemical","CA80","945373","Ealey, Lee E",24220,9.4,0,"<27.250","DOES NOT MEET","N/A",27.25,0]
["Vulcan Materials Co.","Smith Grove Q. - Mocksville","2020-02-03","#78-M Stone for Electrochemical","CA80","998595","Ealey, Lee E",21020,9.4499999999999993,"<30","<31.399","DOES NOT MEET","N/A",31.399000000000001,30]
["Vulcan Materials Co.","Spruce Pine Quarry - Bakersville","2016-10-14","#57 Stone for Electrochemical","CA111","830560","Ausley, Jeff A",19387,6.7,0,4.8,"MEETS","N/A",4.8,0]
["Vulcan Materials Co.","Spruce Pine Quarry - Bakersville","2018-10-08","#57 Stone for Electrochemical","CA111","934014","Rhymer, Robert C",17310,9.3000000000000007,0,"<43.38","DOES NOT MEET","N/A",43.38,0]
["Vulcan Materials Co.","Spruce Pine Quarry - Bakersville","2019-09-16","#57 Stone for Electrochemical","CA111","983085","Norton, Stephen S",17960,9.24,"<32","<36.748","DOES NOT MEET","N/A",36.747999999999998,32]
["Vulcan Materials Co.","Spruce Pine Quarry - Bakersville","2016-10-14","#78-M Stone for Electrochemical","CA111","830562","Ausley, Jeff A",16706,8.8000000000000007,0,4.8,"MEETS","N/A",4.8,0]
["Vulcan Materials Co.","Spruce Pine Quarry - Bakersville","2018-10-08","#78-M Stone for Electrochemical","CA111","934015","Rhymer, Robert C",7640,8.3000000000000007,0,"<86.3","MEETS","N/A",86.3,0]
["Vulcan Materials Co.","Spruce Pine Quarry - Bakersville","2019-09-16","#78-M Stone for Electrochemical","CA111","983086","Norton, Stephen S",12260,7.61,"<32","<53.834","MEETS","N/A",53.834000000000003,32]
["Vulcan Materials Co.","Spruce Pine Quarry - Bakersville","2015-07-22","Select Material, Class VI","CA111","767762","Radcliff, Roger Keith",25374,8.1999999999999993,0,0,"MEETS","N/A",0,0]
["Vulcan Materials Co.","Stokesdale Quarry - Stokesdale","2016-03-03","#57 Stone for Electrochemical","CA76","796400","Fosque, Robert W",28769,8.8000000000000007,0,4.5,"MEETS","N/A",4.5,0]
["Vulcan Materials Co.","Stokesdale Quarry - Stokesdale","2019-02-28","#57 Stone for Electrochemical","CA76","952379","Westmoreland, Braxton J",25310,9.6,0,"<26.077","DOES NOT MEET","N/A",26.077000000000002,0]
["Vulcan Materials Co.","Stokesdale Quarry - Stokesdale","2016-03-03","#67 Stone for Electrochemical","CA76","796398","Fosque, Robert W",24600,9,0,5.0999999999999996,"MEETS","N/A",5.0999999999999996,0]
["Vulcan Materials Co.","Stokesdale Quarry - Stokesdale","2019-02-28","#67 Stone for Electrochemical","CA76","952376","Westmoreland, Braxton J",28210,9.3000000000000007,0,"<23.396","DOES NOT MEET","N/A",23.396000000000001,0]
["Vulcan Materials Co.","Stokesdale Quarry - Stokesdale","2016-03-03","#78-M Stone for Electrochemical","CA76","796401","Fosque, Robert W",23635,8.4,0,6,"MEETS","N/A",6,0]
["Vulcan Materials Co.","Stokesdale Quarry - Stokesdale","2019-02-28","#78-M Stone for Electrochemical","CA76","952377","Westmoreland, Braxton J",20110,9.3000000000000007,0,"<32.819","DOES NOT MEET","N/A",32.819000000000003,0]
["Vulcan Materials Co.","Whiteville Yard - Whiteville","2023-06-15","#57 Stone for Electrochemical","CA431","1109319","Gilmore, David T",20850,9.4,"<31","<24.01","DOES NOT MEET","N/A",24.01,31]
["Vulcan Materials Co.","Whiteville Yard - Whiteville","2023-01-27","#67 Stone for Electrochemical","CA431","1095518","Gilmore, David T",19910,9.42,"<31","<25.11","DOES NOT MEET","N/A",25.11,31]
["Wake Stone Corp.","Knightdale Quarry - Knightdale","2005-01-10","#57 Stone for Electrochemical","CA98","363425","Smith, David L",23580,7.5,"<30","<200","MEETS","N/A",200,30]
["Wake Stone Corp.","Knightdale Quarry - Knightdale","2005-01-20","#57 Stone for Electrochemical","CA98","364751","Ray, Roy Lynn",17210,8.1,"< 30","< 200","MEETS","N/A",200,30]
["Wake Stone Corp.","Knightdale Quarry - Knightdale","2005-02-01","#57 Stone for Electrochemical","CA98","365875","Wright, Shane",18590,7.8,"< 30","< 200",{"$f":"IF(AND(4.5<=$I947,$I947<=9),\"MEETS\",\"DOES NOT MEET\")","v":"MEETS"},{"$f":"IF(OR(ISBLANK(I947), NOT(ISNUMBER(MATCH($E947, Coastal, 0)))), \"N/A\", IF(AND(5 <= $I947, $I947 <= 10),IF($H947>=5000,IF($O947<=100,IF($N947<=200,\"MEETS\",\"DOES NOT MEET\"),\"DOES NOT MEET\"),\"DOES NOT MEET\"),\"DOES NOT MEET\"))","v":"N/A"},{"$f":"IF(LEFT(K947, 1)=\"<\", VALUE(RIGHT(K947,LEN(K947)-1)), K947)","v":200},{"$f":"IF(LEFT(J947, 1)=\"<\", VALUE(RIGHT(J947,LEN(J947)-1)), J947)","v":30}]
["Wake Stone Corp.","Knightdale Quarry - Knightdale","2005-02-10","#57 Stone for Electrochemical","CA98","366749","Wright, Shane",17040,8.6999999999999993,"< 30","< 200","MEETS","N/A",200,30]
["Wake Stone Corp.","Knightdale Quarry - Knightdale","2005-02-17","#57 Stone for Electrochemical","CA98","367623","Wright, Shane",18490,8.4,"< 30","< 200","MEETS","N/A",200,30]
["Wake Stone Corp.","Knightdale Quarry - Knightdale","2005-02-23","#57 Stone for Electrochemical","CA98","368058","Wright, Shane",15010,8.1,"< 30","< 200","MEETS","N/A",200,30]
["Wake Stone Corp.","Knightdale Quarry - Knightdale","2005-03-21","#57 Stone for Electrochemical","CA98","370779","Wright, Shane",4536,7.8,30,"< 200","MEETS","N/A",200,30]
["Wake Stone Corp.","Knightdale Quarry - Knightdale","2005-03-22","#57 Stone for Electrochemical","CA98","370781","Wright, Shane",5923,7.8,"< 30","< 200","MEETS","N/A",200,30]
["Wake Stone Corp.","Knightdale Quarry - Knightdale","2005-04-07","#57 Stone for Electrochemical","CA98","372371","Wright, Shane",21630,6.8,"< 30","< 200","MEETS","N/A",200,30]
["Wake Stone Corp.","Knightdale Quarry - Knightdale","2005-04-07","#57 Stone for Electrochemical","CA98","372457","Wright, Shane",27090,6.6,"< 30","< 200","MEETS","N/A",200,30]
["Wake Stone Corp.","Knightdale Quarry - Knightdale","2016-02-09","#57 Stone for Electrochemical","CA98","793146","Skinner, III, John L",23463,8.9,0,0.9,"MEETS","N/A",0.9,0]
["Wake Stone Corp.","Knightdale Quarry - Knightdale","2019-01-15","#57 Stone for Electrochemical","CA98","945614","Skinner, III, John L",22880,9.4,0,"<28.846","DOES NOT MEET","N/A",28.846,0]
["Wake Stone Corp.","Knightdale Quarry - Knightdale","2016-02-09","#78-M Stone for Electrochemical","CA98","793147","Skinner, III, John L",26738,8.6,0,3.4,"MEETS","N/A",3.4,0]
["Wake Stone Corp.","Knightdale Quarry - Knightdale","2019-01-15","#78-M Stone for Electrochemical","CA98","945616","Skinner, III, John L",22190,9.3000000000000007,0,"<29.743","DOES NOT MEET","N/A",29.742999999999999,0]
["Wake Stone Corp.","Knightdale Quarry - Knightdale","2020-01-29","#78-M Stone for Electrochemical","CA98","997869","Skinner, III, John L",19800,9.5,"<30","<33.333","DOES NOT MEET","N/A",33.332999999999998,30]
["Wake Stone Corp.","Knightdale Quarry - Knightdale","2020-02-25","#78-M Stone for Electrochemical","CA98","1000356","Skinner, III, John L",17070,9.1999999999999993,"<30","<38.664","DOES NOT MEET","N/A",38.664000000000001,30]
["Wake Stone Corp.","Knightdale Quarry - Knightdale","2020-09-14","#78-M Stone for Electrochemical","CA98","1020095","Skinner, III, John L",16560,9.51,"<30","<39.855","DOES NOT MEET","N/A",39.854999999999997,30]
["Wake Stone Corp.","Knightdale Quarry - Knightdale","2020-03-13","Coarse Aggregate, #78M","CA98","1002358","Cheeves, Patrick",16340,9.26,"<30","<40.392","DOES NOT MEET","N/A",40.392000000000003,30]
["Wake Stone Corp.","Knightdale Quarry - Knightdale","2020-05-19","Coarse Aggregate, #78M","CA98","1009036","Riddle, Andrew T",18200,8.74,"<30","<36","MEETS","N/A",36,30]
["Wake Stone Corp.","Moncure Quarry - Moncure","2018-03-29","#57 Stone for Electrochemical","CA100","904079","Jackson, Brandon M",15901,7.7,0,35.700000000000003,"MEETS","N/A",35.700000000000003,0]
["Wake Stone Corp.","Moncure Quarry - Moncure","2019-02-05","#57 Stone for Electrochemical","CA100","948524","Jordan, Daniel H",23830,9.4,0,"<27.696","DOES NOT MEET","N/A",27.696000000000002,0]
["Wake Stone Corp.","Moncure Quarry - Moncure","2020-10-14","#57 Stone for Electrochemical","CA100","1023283","Braly, James R",18550,9.49,"<30","<35.58","DOES NOT MEET","N/A",35.58,30]
["Wake Stone Corp.","Moncure Quarry - Moncure","2023-01-30","#57 Stone for Electrochemical","CA100","1095797","Gilmore, David T",20200,9.2100000000000009,"<30","<24.75","DOES NOT MEET","N/A",24.75,30]
["Wake Stone Corp.","Moncure Quarry - Moncure","2018-03-29","#67 Stone for Electrochemical","CA100","904090","Jackson, Brandon M",11848,8.9,0,47.1,"MEETS","N/A",47.1,0]
["Wake Stone Corp.","Moncure Quarry - Moncure","2019-02-05","#67 Stone for Electrochemical","CA100","948529","Jordan, Daniel H",22870,9.4,0,"<28.859","DOES NOT MEET","N/A",28.859000000000002,0]
["Wake Stone Corp.","Moncure Quarry - Moncure","2018-03-29","#78-M Stone for Electrochemical","CA100","904091","Jackson, Brandon M",15179,8.8000000000000007,0,36.200000000000003,"MEETS","N/A",36.200000000000003,0]
["Wake Stone Corp.","Moncure Quarry - Moncure","2019-02-05","#78-M Stone for Electrochemical","CA100","948535","Jordan, Daniel H",17350,9.3000000000000007,0,"<38.040","DOES NOT MEET","N/A",38.04,0]
["Wake Stone Corp.","Moncure Quarry - Moncure","2020-10-14","#78-M Stone for Electrochemical","CA100","1023300","Braly, James R",14920,9.1999999999999993,"<30","<44.236","DOES NOT MEET","N/A",44.235999999999997,30]
["Wake Stone Corp.","Moncure Quarry - Moncure","2019-02-05","Miscellaneous Material for Electrochemical","CA100","948576","Jordan, Daniel H",13360,9.1999999999999993,0,"<49.401","DOES NOT MEET","N/A",49.401000000000003,0]
["Wake Stone Corp.","Nash County Quarry - Battleboro","2016-03-11","#57 Stone for Electrochemical","CA223","797386","Raines, James R",24746,8,0,4.5,"MEETS","N/A",4.5,0]
["Wake Stone Corp.","Nash County Quarry - Battleboro","2021-12-02","#57 Stone for Electrochemical","CA223","1060121","Skinner, III, John L",39110,9.24,"<33","<16.875","DOES NOT MEET","N/A",16.875,33]
["Wake Stone Corp.","Nash County Quarry - Battleboro","2016-03-11","#78-M Stone for Electrochemical","CA223","797387","Raines, James R",18450,7.6,0,8.5,"MEETS","N/A",8.5,0]
["Wake Stone Corp.","Triangle Quarry - Cary","2010-11-09","#57 Stone for Electrochemical","CA157","526544","Dacey, Aaron H",24509,8.1999999999999993,0,0,"MEETS","N/A",0,0]
["Wake Stone Corp.","Triangle Quarry - Cary","2016-02-12","#57 Stone for Electrochemical","CA157","793925","Skinner, III, John L",24631,7.7,5,4,"MEETS","N/A",4,5]
["Wake Stone Corp.","Triangle Quarry - Cary","2019-02-27","#67 Stone for Electrochemical","CA157","951911","Skinner, III, John L",19980,9.5,0,"<33.033","DOES NOT MEET","N/A",33.033000000000001,0]
["Wake Stone Corp.","Triangle Quarry - Cary","2016-02-12","#78-M Stone for Electrochemical","CA157","793927","Skinner, III, John L",21538,9.1,0,4.4000000000000004,"DOES NOT MEET","N/A",4.4000000000000004,0]
["Wake Stone Corp.","Triangle Quarry - Cary","2019-02-27","#78-M Stone for Electrochemical","CA157","951912","Skinner, III, John L",19140,9.4,0,"<34.483","DOES NOT MEET","N/A",34.482999999999997,0]
["Young & McQueen","Dellinger Waste Area (Area 1)","2014-03-12","#57 Stone for Electrochemical","CA391","700493","Rhymer, Robert C",15074,6.5,0,0,"MEETS","N/A",0,0]
["Young & McQueen","Dellinger Waste Area (Area 2)","2013-09-18","#57 Stone for Electrochemical","CA378","681225","Rhymer, Robert C",4484,6.9,"","","MEETS","N/A","",""]

{"sheet":"Historical Data FineAggregate","index":3,"n_rows":351,"n_cols":15,"rows_kept":351,"cut":false,"hidden":false,"merged":[]}
["Producer Name","Facility Name","Sample Date","Material Description","Facility ID","Sample ID","Sampled By","Resistivity (Ohm*cm)","pH Units:","Chloride (ppm)","Sulfate (ppm)","Geosynthetic Spec","Steel Spec","SO4","Cl"]
["3rd Generation Ventures, LLC","Parkton Barrow Pit","2023-07-20","Sand, 2S - Chemistry Check","FA647","1112653","Gilliam, Christopher",80040,5.45,"<31","<7.70",{"$f":"IF(ISBLANK(I2),\"N/A\",IF(AND(4.5<=$I2,$I2<=9), \"MEETS\",\"DOES NOT MEET\"))","v":"MEETS"},{"$f":"IF(ISBLANK(I2), \"N/A\", IF(AND(5 <= $I2, $I2 <= 10),IF($H2>=3000,IF($O2<=100,IF($N2<=200,\"MEETS\",\"DOES NOT MEET\"),\"DOES NOT MEET\"),\"DOES NOT MEET\"),\"DOES NOT MEET\"))","v":"MEETS"},{"$f":"IF(LEFT(K2, 1)=\"<\", VALUE(RIGHT(K2,LEN(K2)-1)), K2)","v":7.7},{"$f":"IF(LEFT(J2, 1)=\"<\", VALUE(RIGHT(J2,LEN(J2)-1)), J2)","v":31}]
["3rd Generation Ventures, LLC","Parkton Barrow Pit","2023-07-20","Sand, 2S - Chemistry Check","FA647","1112656","Gilliam, Christopher",106720,5.62,"<31","<6.16","MEETS","MEETS",6.16,31]
["3rd Generation Ventures, LLC","Parkton Barrow Pit","2023-07-20","Sand, 2S - Chemistry Check","FA647","1112655","Gilliam, Christopher",226780,5.8,"<31","<5.87","MEETS","MEETS",5.87,31]
["American Materials Co.","Bailey Mine - Linden","2014-10-29","Sand, 2S - Chemistry Check","FA483","733305","Russell, Jonathan T",26695,6,0,0,"MEETS","MEETS",0,0]
["American Materials Co.","Bailey Mine - Linden","2014-10-29","Sand, 2S - Chemistry Check","FA483","733315","Russell, Jonathan T",35039,5.3,0,0,"MEETS","MEETS",0,0]
["American Materials Co.","Bailey Mine - Linden","2014-10-29","Sand, 2S - Chemistry Check","FA483","733313","Russell, Jonathan T",34953,5.0999999999999996,0,0,"MEETS","MEETS",0,0]
["American Materials Co.","Bailey Mine - Linden","2014-12-10","Sand, 2S - Chemistry Check","FA483","739129","Russell, Jonathan T",33134,7.1,0,0,"MEETS","MEETS",0,0]
["American Materials Co.","Bailey Mine - Linden","2014-12-11","Sand, 2S - Chemistry Check","FA483","739135","Russell, Jonathan T",69013,6.4,0,0,"MEETS","MEETS",0,0]
["American Materials Co.","Bailey Mine - Linden","2014-12-15","Sand, 2S - Chemistry Check","FA483","739132","Russell, Jonathan T",44743,5.8,0,0,"MEETS","MEETS",0,0]
["American Materials Co.","Bailey Mine - Linden","2015-05-04","Sand, 2S - Chemistry Check","FA483","756586","Russell, Jonathan T",79491,6.8,0,0,"MEETS","MEETS",0,0]
["American Materials Co.","Bailey Mine - Linden","2015-05-05","Sand, 2S - Chemistry Check","FA483","756587","Russell, Jonathan T",81967,5.0999999999999996,0,0,"MEETS","MEETS",0,0]
["American Materials Co.","Bailey Mine - Linden","2015-06-17","Sand, 2S - Chemistry Check","FA483","763246","Russell, Jonathan T",49432,6,0,0,"MEETS","MEETS",0,0]
["American Materials Co.","Bailey Mine - Linden","2015-07-16","Sand, 2S - Chemistry Check","FA483","766765","Russell, Jonathan T",52521,5.8,0,200,"MEETS","MEETS",200,0]
["American Materials Co.","Bailey Mine - Linden","2015-08-24","Sand, 2S - Chemistry Check","FA483","773443","Russell, Jonathan T",69013,6.2,0,0,"MEETS","MEETS",0,0]
["American Materials Co.","Bailey Mine - Linden","2015-08-26","Sand, 2S - Chemistry Check","FA483","773446","Russell, Jonathan T",60132,5.7,0,0,"MEETS","MEETS",0,0]
["American Materials Co.","Bailey Mine - Linden","2015-08-27","Sand, 2S - Chemistry Check","FA483","773447","Russell, Jonathan T",60350,5.4,0,0,"MEETS","MEETS",0,0]
["American Materials Co.","Bailey Mine - Linden","2020-07-08","Screenings - Chemistry Check","FA483","1013296","Gilliam, Christopher",68034,5.43,"<30","<9.701","MEETS","MEETS",9.7010000000000005,30]
["American Materials Co.","Bailey Mine - Linden","2020-07-08","Screenings - Chemistry Check","FA483","1013293","Gilliam, Christopher",70035,5.61,"<30","<9.424","MEETS","MEETS",9.4239999999999995,30]
["American Materials Co.","Bailey Mine - Linden","2021-01-21","Screenings - Chemistry Check","FA483","1031287","Flynt, Harry J",146740,5.63,"<30","<16.57","MEETS","MEETS",16.57,30]
["American Materials Co.","Bailey Mine - Linden","2021-01-21","Screenings - Chemistry Check","FA483","1031287","Flynt, Harry J",146740,5.63,"<30","<16.57","MEETS","MEETS",16.57,30]
["American Materials Co.","Bailey Mine - Linden","2021-05-04","Screenings - Chemistry Check","FA483","1040512","Dudley, Roy Glenn",55028,5.37,"<33","<27.848","MEETS","MEETS",27.847999999999999,33]
["American Materials Co.","Bailey Mine - Linden","2021-05-04","Screenings - Chemistry Check","FA483","1040512","Dudley, Roy Glenn",55028,5.37,"<33","<27.848","MEETS","MEETS",27.847999999999999,33]
["American Materials Co.","Bailey Mine - Linden","2021-07-22","Screenings - Chemistry Check","FA483","1047762","Dudley, Roy Glenn",45857,5.55,"<33","<17.00","MEETS","MEETS",17,33]
["American Materials Co.","Bailey Mine - Linden","2021-08-27","Screenings - Chemistry Check","FA483","1051375","Dudley, Roy Glenn",80040,5.27,"<33","<21.415","MEETS","MEETS",21.414999999999999,33]
["American Materials Co.","Bailey Mine - Linden","2022-05-18","Screenings - Chemistry Check","FA483","1073179","Dudley, Roy Glenn",93380,5.45,"<28","<13.89","MEETS","MEETS",13.89,28]
["American Materials Co.","Bailey Mine - Linden","2023-03-10","Screenings - Chemistry Check","FA483","1099421","Dudley, Roy Glenn",55110,5.6,"<30","<9.392","MEETS","MEETS",9.3919999999999995,30]
["American Materials Co.","Black Creek Plant - Mt. Croghan, SC","2016-03-22","Sand, 2MS","FA422","798885","Jordan, Daniel H",127113,7.4,0,11.2,"MEETS","MEETS",11.2,0]
["American Materials Co.","Black Creek Plant - Mt. Croghan, SC","2019-06-12","Sand, 2MS - Chemistry Check","FA422","968053","Jordan, Daniel H",23730,7.54,"<30","<27.813","MEETS","MEETS",27.812999999999999,30]
["American Materials Co.","Black Creek Plant - Mt. Croghan, SC","2016-03-04","Select Material, Class III, Type 3 - Chemistry Check","FA422","797150","Jordan, Daniel H",96618,5.5,0,5.0999999999999996,"MEETS","MEETS",5.0999999999999996,0]
["American Materials Co.","Dupree Mine - Greenville","2016-03-29","Sand, 2S - Chemistry Check","FA478","799594","Cobb, James R",21245,4.8,0,16.3,"MEETS","DOES NOT MEET",16.3,0]
["American Materials Co.","Dupree Mine - Greenville","2018-02-14","Sand, 2S - Chemistry Check","FA478","897182","Cobb, James R",22442,5.2,0,28.4,"MEETS","MEETS",28.4,0]
["American Materials Co.","Dupree Mine - Greenville","2019-06-25","Sand, 2S - Chemistry Check","FA478","969846","Cobb, James R",34300,5.1100000000000003,"<29","<19.242","MEETS","MEETS",19.242000000000001,29]
["American Materials Co.","Dupree Mine - Greenville","2020-09-22","Sand, 2S - Chemistry Check","FA478","1020735","Harris, Kevin T",100050,4.91,"<30","<19.125","MEETS","DOES NOT MEET",19.125,30]
["American Materials Co.","Dupree Mine - Greenville","2021-06-04","Sand, 2S - Chemistry Check","FA478","1043510","Cobb, James R",34684,4.1500000000000004,"<33","<46.742","DOES NOT MEET","DOES NOT MEET",46.741999999999997,33]
["American Materials Co.","Dupree Mine - Greenville","2021-06-04","Sand, 2S - Chemistry Check","FA478","1043510","Cobb, James R",34684,4.1500000000000004,"<33","<46.742","DOES NOT MEET","DOES NOT MEET",46.741999999999997,33]
["American Materials Co.","Ivanhoe Pit - Ivanhoe","2022-12-22","Screenings - Chemistry Check","FA253","1093308","Cahill, Luke R",83375,5.72,"<30","<32.42","MEETS","MEETS",32.42,30]
["American Materials Co.","Sumter County Pit - Sumter, SC","2019-06-25","Sand, 2S - Chemistry Check","FA607","969961","Jordan, Daniel H",79610,5.05,"<29","<8.29","MEETS","MEETS",8.2899999999999991,29]
["American Materials Co.","Wade Pit - Wade","2016-05-10","Sand, 2S - Chemistry Check","FA211","805958","Murphy, Billy J",91075,5.8,0,7.3,"MEETS","MEETS",7.3,0]
["APAC-Atlantic - Thompson-Arthur","Candor Pit","2016-02-19","Sand, 2S - Chemistry Check","FA60","794457","Jackson, Brandon M",126183,6.7,0,5,"MEETS","MEETS",5,0]
["APAC-Atlantic - Thompson-Arthur","Candor Pit","2019-08-12","Sand, 2S - Chemistry Check","FA60","977381","Jackson, Brandon M",68040,5.0999999999999996,"<29","<9.7002","MEETS","MEETS",9.7002000000000006,29]
["B.E. Singleton & Sons, Inc.","Talley-Whichard Pitt","2016-06-13","Sand, 2S - Chemistry Check","FA488","810903","Cobb, James R",109613,6.8,2.1,15.1,"MEETS","MEETS",15.1,2.1]
["B.E. Singleton & Sons, Inc.","Talley-Whichard Pitt","2018-03-27","Sand, 2S - Chemistry Check","FA488","903394","Cobb, James R",2203,4,21.6,30.5,"DOES NOT MEET","DOES NOT MEET",30.5,21.6]
["Best Sand & Gravel, Inc.","Brooks Pit - Goldsboro","2016-04-07","Sand, 2S - Chemistry Check","FA340","801024","Raines, James R",16537,7.3,0,0,"MEETS","MEETS",0,0]
["Blue Water Industries","Midway Quarry - Mascot, TN","2014-08-29","Sand, 2MS - Chemistry Check","FA168","725256","Medford, Robert H",5931,9.1999999999999993,0,0,"DOES NOT MEET","MEETS",0,0]
["Blue Water Industries","Midway Quarry - Mascot, TN","2017-02-20","Sand, 2MS - Chemistry Check","FA168","845874","Rhymer, Robert C",4405,9.4,8.9,37.4,"DOES NOT MEET","MEETS",37.4,8.9]
["Boone's Concrete Supply, LLC","Woodlawn Quarry - Marion","2019-09-23","Screenings - Chemistry Check","FA546","984076","Norton, Stephen S",12950,10,"<32","<50.965","DOES NOT MEET","MEETS",50.965000000000003,32]
["Boxley Materials Company","Blue Ridge Quarry - Blue Ridge, VA","2019-03-05","Sand, 2MS - Chemistry Check","FA362","953113","Westmoreland, Braxton J",4005,8.8000000000000007,"<30","<164.794","MEETS","MEETS",164.79400000000001,30]
["Boxley Materials Company","Fieldale Quarry - Martinsville, VA","2016-02-17","Sand, 2MS - Chemistry Check","CA142","794066","Westmoreland, Braxton J",6061,7.7,0,57.1,"MEETS","MEETS",57.1,0]
["Boxley Materials Company","Fieldale Quarry - Martinsville, VA","2019-03-05","Sand, 2MS - Chemistry Check","FA373","953150","Westmoreland, Braxton J",6135,8,0,"<107.579","MEETS","MEETS",107.57899999999999,0]
["Carolina Sand","Burke County Pit","2016-12-14","Sand, 2S - Chemistry Check","FA334","839021","Ausley, Jeff A",35486,6.7,0,4.5999999999999996,"MEETS","MEETS",4.5999999999999996,0]
["Carolina Sunrock LLC","Butner Quarry - Butner","2016-02-08","Sand, 2MS - Chemistry Check","FA171","793012","Skinner, III, John L",7930,10,0,9,"DOES NOT MEET","MEETS",9,0]
["Carolina Sunrock LLC","Butner Quarry - Butner","2019-03-25","Sand, 2MS - Chemistry Check","FA171","955937","Skinner, III, John L",6505,10.3,"<30","<101.46","DOES NOT MEET","DOES NOT MEET",101.46,30]
["Carolina Sunrock LLC","Kittrell Quarry - Kittrell","2019-02-01","Sand, 2MS - Chemistry Check","FA397","948023","Skinner, III, John L",6444,10.6,0,"<102.421","DOES NOT MEET","DOES NOT MEET",102.42100000000001,0]
["Carolina Sunrock LLC","Kittrell Quarry - Kittrell","2016-02-04","Screenings - Chemistry Check","CA304","792563","Skinner, III, John L",9872,7.9,5,67.7,"MEETS","MEETS",67.7,5]
["Carolina Sunrock LLC","Woodsdale Quarry - Roxboro","2019-01-11","Sand, 2MS - Chemistry Check","FA440","945252","Skinner, III, John L",13210,9.1,0,"<49.962","DOES NOT MEET","MEETS",49.962000000000003,0]
["Commercial Ready Mix Products, Inc.","Bent River Pit","2016-06-08","Sand, 2S - Chemistry Check","FA460","810508","Thomas, Grady Q",45393,6.4,2.1,14.8,"MEETS","MEETS",14.8,2.1]
["Commercial Ready Mix Products, Inc.","Bent River Pit","2019-07-02","Sand, 2S - Chemistry Check","FA460","970953","Thomas, Grady Q",23650,4.9800000000000004,"<29","<27.907","MEETS","DOES NOT MEET",27.907,29]
["Commercial Ready Mix Products, Inc.","Bent River Pit","2022-06-22","Sand, 2S - Chemistry Check","FA460","1076920","Thomas, Grady Q",153410,6.52,"<28","<10.39",{"$f":"IF(ISBLANK(I59),\"N/A\",IF(AND(4.5<=$I59,$I59<=9), \"MEETS\",\"DOES NOT MEET\"))","v":"MEETS"},{"$f":"IF(ISBLANK(I59), \"N/A\", IF(AND(5 <= $I59, $I59 <= 10),IF($H59>=3000,IF($O59<=100,IF($N59<=200,\"MEETS\",\"DOES NOT MEET\"),\"DOES NOT MEET\"),\"DOES NOT MEET\"),\"DOES NOT MEET\"))","v":"MEETS"},{"$f":"IF(LEFT(K59, 1)=\"<\", VALUE(RIGHT(K59,LEN(K59)-1)), K59)","v":10.39},{"$f":"IF(LEFT(J59, 1)=\"<\", VALUE(RIGHT(J59,LEN(J59)-1)), J59)","v":28}]
["Commercial Ready Mix Products, Inc.","Newsome Pit #2 - Pendleton","2016-06-10","Sand, 2S - Chemistry Check","FA317","810907","Thomas, Grady Q",47103,5.0999999999999996,2.1,16.100000000000001,"MEETS","MEETS",16.100000000000001,2.1]
["Commercial Ready Mix Products, Inc.","Newsome Pit #2 - Pendleton","2019-07-02","Sand, 2S - Chemistry Check","FA317","970968","Thomas, Grady Q",80320,5.5,"<29","<8.217","MEETS","MEETS",8.2170000000000005,29]
["Commercial Ready Mix Products, Inc.","Newsome Pit #2 - Pendleton","2020-07-09","Sand, 2S - Chemistry Check","FA317","1013570","Thomas, Grady Q",260130,6.33,"<30","<2.537","MEETS","MEETS",2.5369999999999999,30]
["Commercial Ready Mix Products, Inc.","Newsome Pit #2 - Pendleton","2021-06-16","Sand, 2S - Chemistry Check","FA317","1045198","Thomas, Grady Q",193430,6.17,"<33","<23.75","MEETS","MEETS",23.75,33]
["Commercial Ready Mix Products, Inc.","Newsome Pit #2 - Pendleton","2021-06-16","Sand, 2S - Chemistry Check","FA317","1045198","Thomas, Grady Q",193430,6.17,"<33","<23.75","MEETS","MEETS",23.75,33]
["Commercial Ready Mix Products, Inc.","Newsome Pit #2 - Pendleton","2022-06-22","Sand, 2S - Chemistry Check","FA317","1076913","Thomas, Grady Q",126730,5.89,"<28","<11.32","MEETS","MEETS",11.32,28]
["Covia Holdings Corporation","Marston Facility - Marston","2019-08-16","Screenings - Chemistry Check","FA617","978801","Jordan, Daniel H",91790,6.91,"<29","<7.1903","MEETS","MEETS",7.1902999999999997,29]
["Dawson Contracting Inc","Ashley Heights Sand","2016-02-03","Sand, 2S - Chemistry Check","FA494","792505","Jordan, Daniel H",90498,6.5,0,6.9,"MEETS","MEETS",6.9,0]
["Edge Aggregates Inc","Great Pit","2016-04-18","Sand, 2S - Chemistry Check","FA254","803141","Raines, James R",49727,5.0999999999999996,0,7.1,"MEETS","MEETS",7.1,0]
["Ernie Everett Site Prep., Inc.","Shepard Pit - Kinston","2019-06-25","Sand, 2S - Chemistry Check","FA605","969847","Cobb, James R",65280,5.58,"<29","<10.11","MEETS","MEETS",10.11,29]
["Ernie Everett Site Prep., Inc.","Shepard Pit - Kinston","2020-09-21","Sand, 2S - Chemistry Check","FA605","1020626","Harris, Kevin T",140070,5.39,"<30",12,"MEETS","MEETS",12,30]
["Ernie Everett Site Prep., Inc.","Shepard Pit - Kinston","2021-06-14","Sand, 2S - Chemistry Check","FA605","1044555","Cobb, James R",173420,5.66,60,"<10.886","MEETS","MEETS",10.885999999999999,60]
["Ernie Everett Site Prep., Inc.","Shepard Pit - Kinston","2021-06-14","Sand, 2S - Chemistry Check","FA605","1044555","Cobb, James R",173420,5.66,60,"<10.886","MEETS","MEETS",10.885999999999999,60]
["Georgia Stone Products","Lynches River Quarry - Jefferson, SC","2016-02-11","Sand, 2MS - Chemistry Check","FA425","793639","Jordan, Daniel H",23154,7.3,0,9.1999999999999993,"MEETS","MEETS",9.1999999999999993,0]
["Georgia Stone Products","Lynches River Quarry - Jefferson, SC","2018-12-06","Screenings, Washed","FA425","942224","Jordan, Daniel H",21340,9.1,0,"<30.928","DOES NOT MEET","MEETS",30.928000000000001,0]
["GS Materials, Inc.","Blue Water Sand & Gravel - Mill Creek Pit","2016-04-15","Sand, 2S - Chemistry Check","FA489","803132","Raines, James R",46729,4.9000000000000004,0,8,"MEETS","DOES NOT MEET",8,0]
["GS Materials, Inc.","Emery Pit - Jackson Springs","2016-04-15","Sand, 2S - Chemistry Check","FA113","802369","Jackson, Brandon M",73529,6.8,0,4.2,"MEETS","MEETS",4.2,0]
["GS Materials, Inc.","Emery Pit - Jackson Springs","2019-08-12","Sand, 2S - Chemistry Check","FA113","977380","Jackson, Brandon M",48450,4.88,"<29","<13.622","MEETS","DOES NOT MEET",13.622,29]
["GS Materials, Inc.","Hall Pit - Lemon Springs","2011-07-25","Sand, 2S - Chemistry Check","FA122","595665","Gowl, Adam L",51572,5,0,0,"MEETS","MEETS",0,0]
["GS Materials, Inc.","Hall Pit - Lemon Springs","2016-03-08","Sand, 2S - Chemistry Check","FA122","796684","Murphy, Billy J",117385,5.4,0,6.1,"MEETS","MEETS",6.1,0]
["Hanson Aggregates Southeast, Inc.","Brewer (Pageland #1) - Jefferson, SC","2016-02-10","Sand, 2MS - Chemistry Check","FA64","793426","Jordan, Daniel H",63052,7.3,0,9.5,"MEETS","MEETS",9.5,0]
["Hanson Aggregates Southeast, Inc.","Brewer (Pageland #1) - Jefferson, SC","2019-06-12","Sand, 2MS - Chemistry Check","FA64","968057","Jordan, Daniel H",34930,6.41,"<30","<18.895","MEETS","MEETS",18.895,30]
["Hanson Aggregates Southeast, Inc.","Crabtree Quarry - Raleigh","2016-02-19","Screenings - Chemistry Check","CA61","794472","Skinner, III, John L",13367,8.3000000000000007,0,8.6,"MEETS","MEETS",8.6,0]
["Hanson Aggregates Southeast, Inc.","Crabtree Quarry - Raleigh","2019-03-13","Screenings - Chemistry Check","FA568","954291","Skinner, III, John L",6379,8,0,"<103.464","MEETS","MEETS",103.464,0]
["Hanson Aggregates Southeast, Inc.","Holly Springs Quarry","2016-02-26","Screenings - Chemistry Check","CA282","795306","Skinner, III, John L",7553,7.9,0,27.8,"MEETS","MEETS",27.8,0]
["Hanson Aggregates Southeast, Inc.","Holly Springs Quarry","2019-03-29","Screenings - Chemistry Check","FA513","956970","Skinner, III, John L",8079,8.8000000000000007,"<30","<81.693","MEETS","MEETS",81.692999999999998,30]
["Hanson Aggregates Southeast, Inc.","Jefferson Quarry - Jefferson, SC","2016-02-10","Screenings - Chemistry Check","CA120","793427","Jordan, Daniel H",10508,7.2,5.4,8.6999999999999993,"MEETS","MEETS",8.6999999999999993,5.4]
["Hanson Aggregates Southeast, Inc.","Jefferson Quarry - Jefferson, SC","2019-09-13","Screenings - Chemistry Check","FA587","982920","Jordan, Daniel H",16120,8.4700000000000006,"<32","<40.943","MEETS","MEETS",40.942999999999998,32]
["Hanson Aggregates Southeast, Inc.","Jefferson Quarry - Jefferson, SC","2018-12-07","Screenings, Washed","FA587","942236","Jordan, Daniel H",17700,9.1999999999999993,0,"<37.288","DOES NOT MEET","MEETS",37.287999999999997,0]
["Hanson Aggregates Southeast, Inc.","Marlboro S&G - Bennettsville","2020-11-04","Sand, 2S","FA10","1025750","Jordan, Daniel H",420210,5.65,"<30","<8.436","MEETS","MEETS",8.4359999999999999,30]
["Hanson Aggregates Southeast, Inc.","Marlboro S&G - Bennettsville","2016-02-19","Sand, 2S - Chemistry Check","FA10","794731","Jordan, Daniel H",109565,4.8,0,4.2,"MEETS","DOES NOT MEET",4.2,0]
["Hanson Aggregates Southeast, Inc.","Marlboro S&G - Bennettsville","2018-10-24","Sand, 2S - Chemistry Check","FA10","936891","Jordan, Daniel H",102100,5.4,0,"<6.4","MEETS","MEETS",6.4,0]
["Hanson Aggregates Southeast, Inc.","Marlboro S&G - Bennettsville","2019-06-19","Sand, 2S - Chemistry Check","FA10","968878","Jordan, Daniel H",142100,5.07,"<29","<4.645","MEETS","MEETS",4.6449999999999996,29]
["Hanson Aggregates Southeast, Inc.","Morehead City Sales Yard","2017-09-14","Screenings - Chemistry Check","FA570","876864","Bartlett, Jr., Charles T",5669,8.8000000000000007,0,86.2,"MEETS","MEETS",86.2,0]
["Hanson Aggregates Southeast, Inc.","Neverson Quarry - Sims","2016-03-15","Sand, 2MS - Chemistry Check","CA66","798235","Raines, James R",25867,7.9,0,4.5,"MEETS","MEETS",4.5,0]
["Hanson Aggregates Southeast, Inc.","Princeton Quarry","2016-03-24","Screenings - Chemistry Check","CA64","799118","Raines, James R",6472,8.4,10,14.1,"MEETS","MEETS",14.1,10]
["Hanson Aggregates Southeast, Inc.","Raleigh Quarry - Wake Forest","2016-02-12","Screenings - Chemistry Check","CA67","793722","Skinner, III, John L",17053,7.4,0,0,"MEETS","MEETS",0,0]
["Hanson Aggregates Southeast, Inc.","Raleigh Quarry - Wake Forest","2019-01-09","Screenings, Washed","FA515","944673","Skinner, III, John L",15740,9.3000000000000007,0,"<41.931","DOES NOT MEET","MEETS",41.930999999999997,0]
["Hanson Aggregates Southeast, Inc.","Rocky Mount Quarry (#2)","2016-04-14","Sand, 2MS - Chemistry Check","FA491","802199","Raines, James R",19135,8.4,0,38.799999999999997,"MEETS","MEETS",38.799999999999997,0]
["Hanson Aggregates Southeast, Inc.","Rougemont Quarry","2016-02-16","Sand, 2MS - Chemistry Check","FA464","793937","Skinner, III, John L",19128,8.3000000000000007,0,9.8000000000000007,"MEETS","MEETS",9.8000000000000007,0]
["Hanson Aggregates Southeast, Inc.","Rougemont Quarry","2019-01-11","Sand, 2MS - Chemistry Check","FA464","945248","Skinner, III, John L",19060,9.4,0,"<34.627","DOES NOT MEET","MEETS",34.627000000000002,0]
["Hanson Aggregates Southeast, Inc.","Sandy Flats Quarry - Taylors, SC","2016-12-14","Sand, 2MS - Chemistry Check","FA438","839146","Wood, Dean Michael M",14616,7.8,0,5.6,"MEETS","MEETS",5.6,0]
["Harrison Construction Co., Inc.","Dillsboro Quarry - Dillsboro","2016-10-04","Screenings - Chemistry Check","FA573","828925","Kindley, Wallace Quint",1382,7.3,0,33.5,"MEETS","DOES NOT MEET",33.5,0]
["Harrison Construction Co., Inc.","Hayesville Quarry - Hayesville","2016-07-15","Screenings - Chemistry Check","FA542","816297","Ledford, Brandon S",2440,7.8,2.1,144.69999999999999,"MEETS","DOES NOT MEET",144.69999999999999,2.1]
["Harrison Construction Co., Inc.","Waynesville Quarry - Waynesville","2016-09-26","Screenings - Chemistry Check","FA564","827851","Kindley, Wallace Quint",2380,7.5,0,40.9,"MEETS","DOES NOT MEET",40.9,0]
["Harrison Construction Co., Inc.","Waynesville Quarry - Waynesville","2019-07-29","Screenings - Chemistry Check","FA564","974815","Kindley, Wallace Quint",2712,7.95,"<32","<243.363","MEETS","DOES NOT MEET",243.363,32]
["Hedrick Industries","Aquadale Quarry - Norwood","2017-03-21","Sand, 2MS","FA479","850263","Thomas, Mark D",2023,8,0,96.6,"MEETS","DOES NOT MEET",96.6,0]
["Hedrick Industries","B.V. Hedrick Gravel & Sand - Lilesville","2016-03-24","Sand, 2S - Chemistry Check","CA379","799231","Jackson, Brandon M",185254,7.2,0,6.2,"MEETS","MEETS",6.2,0]
["Hedrick Industries","B.V. Hedrick Gravel & Sand - Lilesville","2019-06-25","Sand, 2S - Chemistry Check","FA221","969726","Jordan, Daniel H",130300,5.84,"<29","<5.065","MEETS","MEETS",5.0650000000000004,29]
["Hedrick Industries","Grove Stone Quarry - Black Mountain","2016-04-08","Screenings - Chemistry Check","FA400","801536","Rhymer, Robert C",8157,7.5,0,38.799999999999997,"MEETS","MEETS",38.799999999999997,0]
["Hedrick Industries","Grove Stone Quarry - Black Mountain","2019-04-23","Screenings, Washed","FA400","960226","Rhymer, Robert C",10150,8.4,"<30","<65.025","MEETS","MEETS",65.025000000000006,30]
["Hedrick Industries","Grove Stone Quarry - Black Mountain","2016-12-12","Yearly Quality Check for Fine Aggregate (Strength, Soundness, etc.)","FA400","838364","Rhymer, Robert C",6575,7.3,0,22.2,"MEETS","MEETS",22.2,0]
["Hedrick Industries","Lake Norman Quarry","2016-12-13","Sand, 2MS - Chemistry Check","FA226","838936","Kindley, Wallace Quint",10284,8.5,0,3.8,"MEETS","MEETS",3.8,0]
["Hedrick Industries","Lake Norman Quarry","2018-06-14","Sand, 2MS - Chemistry Check","FA226","916133","Gosnell, Jimmy L",14518,9.1999999999999993,0,"<39.80","DOES NOT MEET","MEETS",39.799999999999997,0]
["Hedrick Industries","Lake Norman Quarry","2018-07-05","Sand, 2MS - Chemistry Check","FA226","920656","Gosnell, Jimmy L",5972,8.6999999999999993,0,59.4,"MEETS","MEETS",59.4,0]
["Hedrick Industries","Lake Norman Quarry","2019-07-12","Sand, 2MS - Chemistry Check","FA226","972394","Gosnell, Jimmy L",4117,8.24,"<29","<160.311","MEETS","MEETS",160.31100000000001,29]
["Hedrick Industries","Norman Sand Pit (D&J) - Candor, NC","2019-07-12","Sand, 2S - Chemistry Check","FA111","972349","Jackson, Brandon M",44790,4.88,"<29","<14.735","MEETS","DOES NOT MEET",14.734999999999999,29]
["Hedrick Industries","North Buncombe Quarry - Asheville","2016-10-10","Screenings - Chemistry Check","FA126","829882","Kindley, Wallace Quint",867,3.4,17.7,43.7,"DOES NOT MEET","DOES NOT MEET",43.7,17.7]
["Hedrick Industries","North Buncombe Quarry - Asheville","2019-04-29","Screenings - Chemistry Check","FA126","961055","Kindley, Wallace Quint",767,3.6,"<30",">800<1200","DOES NOT MEET","DOES NOT MEET",">800<1200",30]
["Hedrick Industries","Piedmont (Pageland #3) - Pageland, SC","2016-03-18","Sand, 2MS","FA239","798283","Jordan, Daniel H",25530,6.8,0,12.8,"MEETS","MEETS",12.8,0]
["Hedrick Industries","Piedmont (Pageland #3) - Pageland, SC","2019-06-12","Sand, 2MS - Chemistry Check","FA239","968059","Jordan, Daniel H",40530,6.44,"<30","<16.284","MEETS","MEETS",16.283999999999999,30]
["Hedrick Industries","South McDowell Quarry - Marion","2021-02-16","Sand, 2MS - Chemistry Check","FA415","1033182","Rhymer, Robert C",14090,8.7200000000000006,"<33","<46.842","MEETS","MEETS",46.841999999999999,33]
["Hedrick Industries","South McDowell Quarry - Marion","2021-02-16","Sand, 2MS - Chemistry Check","FA415","1033182","Rhymer, Robert C",14090,8.7200000000000006,"<33","<46.842","MEETS","MEETS",46.841999999999999,33]
["Hedrick Industries","South McDowell Quarry - Marion","2016-01-29","Screenings - Chemistry Check","CA283","792270","Rhymer, Robert C",9497,7,5.4,33.6,{"$f":"IF(ISBLANK(I123),\"N/A\",IF(AND(4.5<=$I123,$I123<=9), \"MEETS\",\"DOES NOT MEET\"))","v":"MEETS"},{"$f":"IF(ISBLANK(I123), \"N/A\", IF(AND(5 <= $I123, $I123 <= 10),IF($H123>=3000,IF($O123<=100,IF($N123<=200,\"MEETS\",\"DOES NOT MEET\"),\"DOES NOT MEET\"),\"DOES NOT MEET\"),\"DOES NOT MEET\"))","v":"MEETS"},{"$f":"IF(LEFT(K123, 1)=\"<\", VALUE(RIGHT(K123,LEN(K123)-1)), K123)","v":33.6},{"$f":"IF(LEFT(J123, 1)=\"<\", VALUE(RIGHT(J123,LEN(J123)-1)), J123)","v":5.4}]
["Hedrick Industries","South McDowell Quarry - Marion","2017-01-13","Screenings - Chemistry Check","FA415","841899","Rhymer, Robert C",10930,7.5,0,55.9,"MEETS","MEETS",55.9,0]
["Hedrick Industries","South McDowell Quarry - Marion","2019-01-24","Screenings, Washed","FA415","946851","Rhymer, Robert C",17770,8.6999999999999993,0,"<37.141","MEETS","MEETS",37.140999999999998,0]
["LBM Industries","Hewitt Quarry - Topton","2011-01-05","Sand, 2MS - Chemistry Check","FA247","529435","Rhymer, Robert C",11000,7.7,0,0,"MEETS","MEETS",0,0]
["LBM Industries","Whitewater Falls - Sapphire","2016-05-24","Sand, 2MS - Chemistry Check","FA162","808253","Wood, Dean Michael M",12303,7.9,2.1,24.8,"MEETS","MEETS",24.8,2.1]
["LBM Industries","Whitewater Falls - Sapphire","2016-05-24","Screenings - Chemistry Check","FA162","808254","Wood, Dean Michael M",14663,8.6,2.1,9.3000000000000007,"MEETS","MEETS",9.3000000000000007,2.1]
["Luck Stone Corporation","Pittsboro Quarry - Moncure","2018-11-30","Screenings - Chemistry Check","FA561","941285","Jackson, Brandon M",13310,9.4,0,"<49.59","DOES NOT MEET","MEETS",49.59,0]
["Mar-Mac Sand and Gravel, LLC","Mar-Mac Sand & Gravel - Goldsboro","2016-04-15","Sand, 2S - Chemistry Check","FA336","803130","Raines, James R",1812,3.1,8.6,146,"DOES NOT MEET","DOES NOT MEET",146,8.6]
["Martin Marietta","Arrowood Quarry - Charlotte","2016-12-06","Sand, 2MS - Chemistry Check","FA203","837865","Adair, Mildred (Millie) L",3339,7.3,8.9,8.5,"MEETS","MEETS",8.5,8.9]
["Martin Marietta","Benson Quarry - Benson","2016-03-16","Screenings - Chemistry Check","CA176","798245","Raines, James R",10971,8,0,8.1,"MEETS","MEETS",8.1,0]
["Martin Marietta","Bonds Quarry - Concord","2019-04-09","Sand, 2MS","FA392","958526","Pegues, Jr., Henderson",7606,8.6999999999999993,"<30","<86.774","MEETS","MEETS",86.774000000000001,30]
["Martin Marietta","Bonds Quarry - Concord","2016-09-19","Sand, 2MS - Chemistry Check","FA392","826548","Pegues, Jr., Henderson",3953,7.3,0,103.2,"MEETS","MEETS",103.2,0]
["Martin Marietta","Bonds Quarry - Concord","2017-09-05","Sand, 2MS - Chemistry Check","FA392","875547","Pegues, Jr., Henderson",18015,8.3000000000000007,0,75.900000000000006,"MEETS","MEETS",75.900000000000006,0]
["Martin Marietta","Bonds Quarry - Concord","2018-09-10","Sand, 2MS - Chemistry Check","FA392","930605","Pegues, Jr., Henderson",4721,8.3000000000000007,0,83.6,"MEETS","MEETS",83.6,0]
["Martin Marietta","Burlington Quarry - Burlington","2016-02-29","Screenings - Chemistry Check","CA39","795925","Loshinskiy, Roman",8518,8.1999999999999993,0,29.3,"MEETS","MEETS",29.3,0]
["Martin Marietta","Burlington Quarry - Burlington","2019-05-31","Screenings - Chemistry Check","FA497","966240","Waller, John M",7640,8.83,"<30","<86.387","MEETS","MEETS",86.387,30]
["Martin Marietta","Central Rock Quarry - Greensboro","2019-06-04","Screenings - Chemistry Check","FA496","966794","Waller, John M",6334,8.65,"<30","<104.2","MEETS","MEETS",104.2,30]
["Martin Marietta","Central Rock Quarry - Greensboro","2017-07-05","Select Material, Class III, Type 1","FA496","866376","Cravens, Lane T",9091,7.3,4.7,62.2,"MEETS","MEETS",62.2,4.7]
["Martin Marietta","Charlotte Quarry - Charlotte","2016-09-08","Sand, 2MS - Chemistry Check","FA562","825585","Adair, Mildred (Millie) L",6112,7.5,0,50.7,"MEETS","MEETS",50.7,0]
["Martin Marietta","Charlotte Quarry - Charlotte","2017-06-19","Screenings - Chemistry Check","FA562","864046","Adair, Mildred (Millie) L",5144,8.4,4.7,120.3,"MEETS","MEETS",120.3,4.7]
["Martin Marietta","Charlotte Quarry - Charlotte","2019-07-10","Screenings, Washed","FA562","972773","Pegues, Jr., Henderson",5792,8.36,"<29","<113.950","MEETS","MEETS",113.95,29]
["Martin Marietta","Clarks Quarry - New Bern","2016-08-03","Sand, 2MS - Chemistry Check","FA214","819242","Maynard, William BJ T",932,7.4,0,612,"MEETS","DOES NOT MEET",612,0]
["Martin Marietta","Clarks Quarry - New Bern","2019-09-25","Sand, 2MS - Chemistry Check","FA214","984815","Cobb, James R",1669,7.92,"<32","<395.446","MEETS","DOES NOT MEET",395.44600000000003,32]
["Martin Marietta","Clarks Quarry - New Bern","2020-10-13","Sand, 2MS - Chemistry Check","FA214","1023174","Cobb, James R",2735,7.69,"<30","<842.8","MEETS","DOES NOT MEET",842.8,30]
["Martin Marietta","Clarks Quarry - New Bern","2022-01-25","Sand, 2MS - Chemistry Check","FA214","1063337","Cobb, James R",2868,7.95,"<28","<337.251","MEETS","DOES NOT MEET",337.25099999999998,28]
["Martin Marietta","Denver Quarry - Denver","2016-12-20","Sand, 2MS - Chemistry Check","FA377","839463","Brinson, Joseph",2731,7.7,0,74,"MEETS","DOES NOT MEET",74,0]
["Martin Marietta","Denver Quarry - Denver","2017-02-06","Sand, 2MS - Chemistry Check","FA377","844563","Brinson, Joseph",6693,7.3,0,92,"MEETS","MEETS",92,0]
["Martin Marietta","Denver Quarry - Denver","2018-09-26","Sand, 2MS - Chemistry Check","FA377","932760","Gosnell, Jimmy L",4548,8.1,0,93.6,"MEETS","MEETS",93.6,0]
["Martin Marietta","Denver Quarry - Denver","2019-07-25","Sand, 2MS - Chemistry Check","FA377","974528","Gosnell, Jimmy L",1219,3.92,"<29",">400<800","DOES NOT MEET","DOES NOT MEET",">400<800",29]
["Martin Marietta","Denver Quarry - Denver","2019-08-28","Sand, 2MS - Chemistry Check","FA377","980196","Brinson, Joseph",3357,7.5,"<32","<196.604","MEETS","MEETS",196.60400000000001,32]
["Martin Marietta","Denver Quarry - Denver","2019-09-20","Sand, 2MS - Chemistry Check","FA377","983982","Myers, Jesse J",5025,7.89,"<32","<131.343","MEETS","MEETS",131.34299999999999,32]
["Martin Marietta","Edmund Pit - Lexington, SC","2013-10-03","Sand, 2S - Chemistry Check","FA265","683832","Rhymer, Robert C",43178,7.1,0,0,"MEETS","MEETS",0,0]
["Martin Marietta","Fountain Quarry - Fountain","2016-02-19","Screenings - Chemistry Check","CA42","794454","Cobb, James R",8496,8.3000000000000007,0,13.3,"MEETS","MEETS",13.3,0]
["Martin Marietta","Fountain Quarry - Fountain","2019-06-25","Screenings - Chemistry Check","FA572","969849","Cobb, James R",4103,8.69,"<29","<160.858","MEETS","MEETS",160.858,29]
["Martin Marietta","Fountain Quarry - Fountain","2020-09-25","Screenings - Chemistry Check","FA572","1021242","Cobb, James R",11339,9.1999999999999993,"<30","<98.758","DOES NOT MEET","MEETS",98.757999999999996,30]
["Martin Marietta","Fountain Quarry - Fountain","2021-06-01","Screenings - Chemistry Check","FA572","1043180","Cobb, James R",2535,8.16,53,"<302.613","MEETS","DOES NOT MEET",302.613,53]
["Martin Marietta","Fountain Quarry - Fountain","2021-06-01","Screenings - Chemistry Check","FA572","1043180","Cobb, James R",2535,8.16,53,"<302.613","MEETS","DOES NOT MEET",302.613,53]
["Martin Marietta","Franklin Quarry - Franklinton","2016-02-12","Sand, 2MS - Chemistry Check","FA349","793726","Skinner, III, John L",14188,7.8,0,10.8,"MEETS","MEETS",10.8,0]
["Martin Marietta","Franklin Quarry - Franklinton","2019-03-27","Sand, 2MS - Chemistry Check","FA349","956774","Skinner, III, John L",14320,8.6999999999999993,"<30","<46.089","MEETS","MEETS",46.088999999999999,30]
["Martin Marietta","Garner Quarry - Garner","2016-02-09","Sand, 2MS - Chemistry Check","FA382","793219","Skinner, III, John L",18765,8.1999999999999993,5,2.4,"MEETS","MEETS",2.4,5]
["Martin Marietta","Garner Quarry - Garner","2019-01-29","Screenings - Chemistry Check","FA382","947430","Skinner, III, John L",15190,9.1,0,"<43.45","DOES NOT MEET","MEETS",43.45,0]
["Martin Marietta","Hickory Quarry - Hickory","2018-09-26","Screenings - Chemistry Check","FA541","932403","Brinson, Joseph",11010,8.8000000000000007,0,"<65.53","MEETS","MEETS",65.53,0]
["Martin Marietta","Hickory Quarry - Hickory","2019-07-08","Screenings - Chemistry Check","FA541","971767","Gosnell, Jimmy L",18600,9.0500000000000007,"<29","<35.484","DOES NOT MEET","MEETS",35.484000000000002,29]
["Martin Marietta","Jamestown Quarry - Jamestown","2019-06-04","Sand, 2MS - Chemistry Check","FA251","966795","Waller, John M",13850,9.17,"<30","<47.653","DOES NOT MEET","MEETS",47.652999999999999,30]
["Martin Marietta","Kings Mountain Quarry - Kings Mountain","2017-10-30","Screenings - Chemistry Check","FA414","883907","Brinson, Joseph",1107,7.8,0,274.5,"MEETS","DOES NOT MEET",274.5,0]
["Martin Marietta","Kings Mountain Quarry - Kings Mountain","2017-11-17","Screenings - Chemistry Check","FA414","886931","Brinson, Joseph",1644,7.3,8.3000000000000007,163,"MEETS","DOES NOT MEET",163,8.3000000000000007]
["Martin Marietta","Kings Mountain Quarry - Kings Mountain","2018-06-01","Screenings - Chemistry Check","FA414","913647","Brinson, Joseph",4233,8.6,8,52.2,"MEETS","MEETS",52.2,8]
["Martin Marietta","Kings Mountain Quarry - Kings Mountain","2019-07-01","Screenings - Chemistry Check","FA414","970681","Gosnell, Jimmy L",1946,7.96,"<29","<339.157","MEETS","DOES NOT MEET",339.15699999999998,29]
["Martin Marietta","Lemon Springs - Sanford","2016-02-19","Screenings - Chemistry Check","CA97","794479","Jackson, Brandon M",10602,8.5,0,10.7,"MEETS","MEETS",10.7,0]
["Martin Marietta","Lemon Springs - Sanford","2019-08-16","Screenings - Chemistry Check","FA518","978240","Jackson, Brandon M",9415,9.15,"<29","<70.10","DOES NOT MEET","MEETS",70.099999999999994,29]
["Martin Marietta","Lemon Springs - Sanford","2018-10-29","Select Material, Class III, Type 3 - Chemistry Check","FA518","937185","Jackson, Brandon M",10060,8.6,0,"<65.6","MEETS","MEETS",65.599999999999994,0]
["Martin Marietta","Lemon Springs - Sanford","2023-07-20","Select Material, Class III, Type 3 - Chemistry Check","FA518","1112650","Gilliam, Christopher",4502,8.67,"<31","<98.30","MEETS","MEETS",98.3,31]
["Martin Marietta","Lemon Springs - Sanford","2023-07-20","Select Material, Class III, Type 3 - Chemistry Check","FA518","1112649","Gilliam, Christopher",2735,7.83,"<31","<241.6","MEETS","DOES NOT MEET",241.6,31]
["Martin Marietta","Lemon Springs - Sanford","2023-07-20","Select Material, Class III, Type 3 - Chemistry Check","FA518","1112652","Gilliam, Christopher",2001,7.82,"<31","<240.9","MEETS","DOES NOT MEET",240.9,31]
["Martin Marietta","Loamy Sand and Gravel - Bethune, SC","2016-02-05","Sand, 2S - Chemistry Check","FA429","793009","Jordan, Daniel H",94967,5.0999999999999996,5,2.1,"MEETS","MEETS",2.1,5]
["Martin Marietta","Loamy Sand and Gravel - Bethune, SC","2019-06-21","Sand, 2S - Chemistry Check","FA429","969545","Jordan, Daniel H",82960,5.48,"<29","<7.956","MEETS","MEETS",7.9560000000000004,29]
["Martin Marietta","Mallard Creek Quarry - Charlotte","2016-02-22","Sand, 2MS - Chemistry Check","FA423","794786","Pegues, Jr., Henderson",18875,8.8000000000000007,0,4.2,"MEETS","MEETS",4.2,0]
["Martin Marietta","Mallard Creek Quarry - Charlotte","2016-11-01","Sand, 2MS - Chemistry Check","FA423","832986","Pegues, Jr., Henderson",12887,9.1,0,3.5,"DOES NOT MEET","MEETS",3.5,0]
["Martin Marietta","Mallard Creek Quarry - Charlotte","2018-11-12","Sand, 2MS - Chemistry Check","FA423","939052","Pegues, Jr., Henderson",10080,9.1999999999999993,0,"<65.5","DOES NOT MEET","MEETS",65.5,0]
["Martin Marietta","Mallard Creek Quarry - Charlotte","2019-11-06","Sand, 2MS - Chemistry Check","FA423","990709","Pegues, Jr., Henderson",8025,8.94,"<32","<82.243","MEETS","MEETS",82.242999999999995,32]
["Martin Marietta","Mallard Creek Quarry - Charlotte","2017-11-07","Screenings - Chemistry Check","FA423","885615","Pegues, Jr., Henderson",11131,9,3.6,55.7,"MEETS","MEETS",55.7,3.6]
["Martin Marietta","Matthews Quarry - Matthews","2015-11-12","Sand, 2MS - Chemistry Check","CA37","783957","Adair, Mildred (Millie) L",3383,7.6,5,300,"MEETS","DOES NOT MEET",300,5]
["Martin Marietta","Pomona Quarry - Greensboro","2016-02-04","Sand, 2MS - Chemistry Check","CA51","792603","Westmoreland, Braxton J",24498,9.1,0,27.3,"DOES NOT MEET","MEETS",27.3,0]
["Martin Marietta","Pomona Quarry - Greensboro","2019-05-28","Sand, 2MS - Chemistry Check","FA163","965380","Waller, John M",10610,8.9,"<30","<62.205","MEETS","MEETS",62.204999999999998,30]
["Martin Marietta","Raleigh-Durham Quarry - Raleigh","2016-02-05","Screenings - Chemistry Check","CA156","792804","Skinner, III, John L",10752,8.6,0,62.1,{"$f":"IF(ISBLANK(I187),\"N/A\",IF(AND(4.5<=$I187,$I187<=9), \"MEETS\",\"DOES NOT MEET\"))","v":"MEETS"},{"$f":"IF(ISBLANK(I187), \"N/A\", IF(AND(5 <= $I187, $I187 <= 10),IF($H187>=3000,IF($O187<=100,IF($N187<=200,\"MEETS\",\"DOES NOT MEET\"),\"DOES NOT MEET\"),\"DOES NOT MEET\"),\"DOES NOT MEET\"))","v":"MEETS"},{"$f":"IF(LEFT(K187, 1)=\"<\", VALUE(RIGHT(K187,LEN(K187)-1)), K187)","v":62.1},{"$f":"IF(LEFT(J187, 1)=\"<\", VALUE(RIGHT(J187,LEN(J187)-1)), J187)","v":0}]
["Martin Marietta","Raleigh-Durham Quarry - Raleigh","2019-01-18","Screenings - Chemistry Check","FA578","946462","Skinner, III, John L",12420,9.4,0,"<53.140","DOES NOT MEET","MEETS",53.14,0]
["Martin Marietta","Reidsville Quarry - Reidsville","2016-02-09","Screenings - Chemistry Check","CA52","793251","Loshinskiy, Roman",16518,9,5,18.899999999999999,"MEETS","MEETS",18.899999999999999,5]
["Martin Marietta","Salem Stone Quarry - Kernersville","2013-06-04","Sand, 2MS - Chemistry Check","FA305","668916","Vincent, Timothy L",4250,7.3,0,0,"MEETS","MEETS",0,0]
["Martin Marietta","Salem Stone Quarry - Kernersville","2013-08-20","Sand, 2MS - Chemistry Check","FA305","677612","Vincent, Timothy L",7413,7.3,0,0,"MEETS","MEETS",0,0]
["Martin Marietta","Statesville Quarry - Statesville","2018-05-11","Screenings - Chemistry Check","FA534","911143","Brinson, Joseph",2254,7.7,0,158,"MEETS","DOES NOT MEET",158,0]
["Martin Marietta","Statesville Quarry - Statesville","2018-06-18","Screenings - Chemistry Check","FA534","916197","Brinson, Joseph",1181,7.7,4,239.9,"MEETS","DOES NOT MEET",239.9,4]
["Martin Marietta","Statesville Quarry - Statesville","2018-07-03","Screenings - Chemistry Check","FA534","918694","Brinson, Joseph",2318,8.4,0,144,"MEETS","DOES NOT MEET",144,0]
["Martin Marietta","Statesville Quarry - Statesville","2019-07-08","Screenings - Chemistry Check","FA534","971773","Gosnell, Jimmy L",3285,7.89,"<29","<200.913","MEETS","DOES NOT MEET",200.91300000000001,29]
["Martin Marietta","Statesville Quarry - Statesville","2019-09-12","Screenings - Chemistry Check","FA534","982694","Brinson, Joseph",2262,7.73,"<32","<291.777","MEETS","DOES NOT MEET",291.77699999999999,32]
["Martin Marietta","Statesville Quarry - Statesville","2019-10-09","Screenings - Chemistry Check","FA534","987454","Brinson, Joseph",2276,7.81,"<30","<289.982","MEETS","DOES NOT MEET",289.98200000000003,30]
["Matthews Sand and Gravel","Matthews 3 Pit","2016-04-05","Sand, 2S - Chemistry Check","FA472","801023","Raines, James R",71531,7.3,0,0,"MEETS","MEETS",0,0]
["Matthews Sand and Gravel","Matthews Pit #4 - Princeton","2020-10-14","Sand, 2S - Chemistry Check","FA616","1023373","Calestru, Steliana",113390,5.51,"<30","<14.502","MEETS","MEETS",14.502000000000001,30]
["McCrary Stone","Low Gap Quarry - Burnsville","2016-10-27","Screenings - Chemistry Check","FA540","832526","Kindley, Wallace Quint",2322,7.6,0,60.4,"MEETS","DOES NOT MEET",60.4,0]
["McCrary Stone","Low Gap Quarry - Burnsville","2019-03-05","Screenings - Chemistry Check","FA540","952987","Kindley, Wallace Quint",1371,3.1,"<30","<481.4","DOES NOT MEET","DOES NOT MEET",481.4,30]
["McCrary Stone","Marshall Quarry - Marshall","2016-10-17","Screenings - Chemistry Check","FA557","830775","Kindley, Wallace Quint",5718,8.1,0,36.6,"MEETS","MEETS",36.6,0]
["McCrary Stone","Marshall Quarry - Marshall","2018-09-14","Screenings - Chemistry Check","FA557","931135","Kindley, Wallace Quint",8707,9,0,"<79.89","MEETS","MEETS",79.89,0]
["McCrary Stone","Marshall Quarry - Marshall","2019-08-12","Screenings - Chemistry Check","FA557","978217","Kindley, Wallace Quint",6053,9.07,"<29","<109.0","DOES NOT MEET","MEETS",109,29]
["Mid-East Services, Inc.","Massengill Mine","2016-04-05","Sand, 2S - Chemistry Check","FA384","801022","Raines, James R",87108,7.4,0,5.2,"MEETS","MEETS",5.2,0]
["Neuse Sand And Gravel","Tilghman Pit","2016-02-11","Sand, 2S - Chemistry Check","FA446","793688","Cobb, James R",19829,4.4000000000000004,0,14.3,"DOES NOT MEET","DOES NOT MEET",14.3,0]
["Neuse Sand And Gravel","Tilghman Pit","2018-02-15","Sand, 2S - Chemistry Check","FA446","897315","Cobb, James R",93197,7.5,0,7.1,"MEETS","MEETS",7.1,0]
["Oldcastle Stone Products - Bonsal Mining","Lilesville Pit","2016-03-23","Sand, 2S","FA6","799217","Jackson, Brandon M",139121,6.8,0,6.1,"MEETS","MEETS",6.1,0]
["Osprey Minerals","Osprey Sand Pit - Mt. Croghan","2019-06-12","Sand, 2S - Chemistry Check","FA603","968060","Jordan, Daniel H",51310,5.54,"<30","<12.863","MEETS","MEETS",12.863,30]
["Pea Creek Mines","Pea Creek Mines","2016-02-09","Sand, 2S - Chemistry Check","FA447","793199","Cobb, James R",11682,3.9,0,18.5,"DOES NOT MEET","DOES NOT MEET",18.5,0]
["Pea Creek Mines","Pea Creek Mines","2019-06-26","Sand, 2S - Chemistry Check","FA447","970248","Cobb, James R",28120,4.7699999999999996,"<29","<23.471","MEETS","DOES NOT MEET",23.471,29]
["Rogers Group, Inc.","Henrietta Quarry - Mooresboro","2016-02-19","Screenings - Chemistry Check","CA369","794436","Rhymer, Robert C",7663,8,5.4,24.7,"MEETS","MEETS",24.7,5.4]
["Rogers Group, Inc.","Henrietta Quarry - Mooresboro","2019-02-20","Screenings, Washed","FA528","951033","Norton, Stephen S",23970,9.1999999999999993,0,"<27.534","DOES NOT MEET","MEETS",27.533999999999999,0]
["Rogers Group, Inc.","Henrietta Quarry - Mooresboro","2019-04-30","Screenings, Washed","FA528","961360","Rhymer, Robert C",22130,8.6999999999999993,"<30","<29.824","MEETS","MEETS",29.824000000000002,30]
["Salem Stone Corp.","Southside Materials - S. Boston Quarry (VA)","2019-05-21","Screenings - Chemistry Check","FA197","964761","Westmoreland, Braxton J",7227,9,"<30","<91.324","MEETS","MEETS",91.323999999999998,30]
["Salem Stone Corp.","Southside Materials - Shelton Quarry - Pelham","2016-02-17","Screenings - Chemistry Check","CA75","794125","Loshinskiy, Roman",23469,8.3000000000000007,0,0,"MEETS","MEETS",0,0]
["Salem Stone Corp.","Southside Materials - Shelton Quarry - Pelham","2019-02-28","Screenings - Chemistry Check","FA533","952403","Westmoreland, Braxton J",18390,9,0,"<35.889","MEETS","MEETS",35.889000000000003,0]
["SC Rock","Goretown Mine -- Longs, SC","2016-02-03","Screenings - Chemistry Check","FA344","792514","Walker, Steven E",6510,8.1999999999999993,0,37.9,"MEETS","MEETS",37.9,0]
["Sloan Construction Co.","Blacksburg Quarry - Blacksburg, SC","2018-10-04","Sand, 2MS - Chemistry Check","FA476","934379","Gosnell, Jimmy L",16620,7,0,"<45.38","MEETS","MEETS",45.38,0]
["Sloan Construction Co.","Blacksburg Quarry - Blacksburg, SC","2019-08-22","Sand, 2MS - Chemistry Check","FA476","979544","Brinson, Joseph",14950,8.3000000000000007,"<29","<44.147","MEETS","MEETS",44.146999999999998,29]
["Sloan Construction Co.","Blacksburg Quarry - Blacksburg, SC","2016-11-22","Screenings - Chemistry Check","FA476","836479","Brinson, Joseph",19342,5.4,0,8.6999999999999993,"MEETS","MEETS",8.6999999999999993,0]
["Stony Creek Sand and Gravel, LLC","Stony Creek Sand & Gravel - Carson, VA","2016-04-22","Sand, 2S - Chemistry Check","FA503","803774","Raines, James R",8210,4.0999999999999996,4.3,31.3,"DOES NOT MEET","DOES NOT MEET",31.3,4.3]
["Thomas Cement, Inc.","Simpson Mine - Pageland, SC","2016-02-05","Sand, 2S - Chemistry Check","FA456","793008","Jordan, Daniel H",68540,5.0999999999999996,5,1.7,"MEETS","MEETS",1.7,5]
["Thomas Cement, Inc.","Simpson Mine - Pageland, SC","2019-06-25","Sand, 2S - Chemistry Check","FA456","969963","Jordan, Daniel H",66420,4.9000000000000004,"<29","<9.937","MEETS","DOES NOT MEET",9.9369999999999994,29]
["Thompson Contractors","Miller Creek Quarry - Rutherfordton","2018-10-02","Screenings - Chemistry Check","FA585","933262","Rhymer, Robert C",9296,8.8000000000000007,0,"<71.87","MEETS","MEETS",71.87,0]
["Thompson Contractors","Miller Creek Quarry - Rutherfordton","2019-09-27","Screenings - Chemistry Check","FA585","985275","Norton, Stephen S",9480,8.84,"<30","<69.620","MEETS","MEETS",69.62,30]
["Titan Mid-Atlantic Aggregates LLC","Branchville Sand Plant - Sebrell Farms","2020-01-22","Sand, 2S - Chemistry Check","FA613","997214","Bonds, Maria M",36700,6.25,"<30","<17.894","MEETS","MEETS",17.893999999999998,30]
["Titan Mid-Atlantic Aggregates LLC","Branchville Sand Plant - Sebrell Farms","2021-04-27","Sand, 2S - Chemistry Check","FA613","1040031","Bonds, Maria M",34684,7.57,"<33","<44.504","MEETS","MEETS",44.503999999999998,33]
["Titan Mid-Atlantic Aggregates LLC","Branchville Sand Plant - Sebrell Farms","2021-04-27","Sand, 2S - Chemistry Check","FA613","1040031","Bonds, Maria M",34684,7.57,"<33","<44.504","MEETS","MEETS",44.503999999999998,33]
["Titan Mid-Atlantic Aggregates LLC","Branchville Sand Plant - Sebrell Farms","2022-03-14","Sand, 2S - Chemistry Check","FA613","1067389","Bonds, Maria M",48691,6.08,"<28","<29.204","MEETS","MEETS",29.204000000000001,28]
["Titan Mid-Atlantic Aggregates LLC","Waverly Sand","2019-06-26","Sand, 2S - Chemistry Check","FA589","970946","Thomas, Grady Q",43060,5.0199999999999996,"<29","<15.327","MEETS","MEETS",15.327,29]
["Vulcan Materials Co.","Blacksburg Quarry - Blacksburg, SC","2018-07-05","Screenings - Chemistry Check","FA550","920668","Gosnell, Jimmy L",4436,9.8000000000000007,0,63.4,"DOES NOT MEET","MEETS",63.4,0]
["Vulcan Materials Co.","Blacksburg Quarry - Blacksburg, SC","2019-07-30","Screenings - Chemistry Check","FA550","975114","Gosnell, Jimmy L",8724,9.35,"<29","<75.653","DOES NOT MEET","MEETS",75.653000000000006,29]
["Vulcan Materials Co.","Cabarrus Quarry -- Concord","2018-10-18","Sand, 2MS - Chemistry Check","FA339","935931","Cero, Kevin M",7516,9,0,"<87.8","MEETS","MEETS",87.8,0]
["Vulcan Materials Co.","East Forsyth Quarry - Kernersville","2013-05-30","Sand, 2MS - Chemistry Check","FA158","668582","Vincent, Timothy L",9852,7.6,0,0,"MEETS","MEETS",0,0]
["Vulcan Materials Co.","Elizabeth City Yard (#216) - Elizabeth City","2020-09-21","Screenings - Chemistry Check","FA539","1021107","Bonds, Maria M",14674,9.24,"<30","<75.334","DOES NOT MEET","MEETS",75.334000000000003,30]
["Vulcan Materials Co.","Enka Quarry - Enka","2013-05-29","Sand, 2MS - Chemistry Check","CA69","668686","Rhymer, Robert C",4277,5.4,0,0,"MEETS","MEETS",0,0]
["Vulcan Materials Co.","Enka Quarry - Enka","2018-10-05","Screenings - Chemistry Check","FA458","933928","Rhymer, Robert C",493,4,0,">1200","DOES NOT MEET","DOES NOT MEET",">1200",0]
["Vulcan Materials Co.","Enka Quarry - Enka","2019-09-05","Screenings, Washed","FA458","981857","Rhymer, Robert C",873,5.14,"<32",">400<800","MEETS","DOES NOT MEET",">400<800",32]
["Vulcan Materials Co.","Greystone Quarry - Henderson","2016-02-10","Sand, 2MS - Chemistry Check","FA183","793398","Skinner, III, John L",14501,8.5,0,10.9,"MEETS","MEETS",10.9,0]
["Vulcan Materials Co.","Greystone Quarry - Henderson","2019-04-01","Sand, 2MS - Chemistry Check","FA183","957256","Skinner, III, John L",14610,9.1,"<30","<45.175","DOES NOT MEET","MEETS",45.174999999999997,30]
["Vulcan Materials Co.","Havre De Grace Quarry - Havre De Grace, MD","2016-10-26","Screenings - Chemistry Check","FA584","832493","Bonds, Maria M",2755,7.9,17.7,70.5,"MEETS","DOES NOT MEET",70.5,17.7]
["Vulcan Materials Co.","Havre De Grace Quarry - Havre De Grace, MD","2019-08-26","Screenings - Chemistry Check","FA584","980141","Bonds, Maria M",3264,8.17,"<29","<202.206","MEETS","DOES NOT MEET",202.20599999999999,29]
["Vulcan Materials Co.","Jack Quarry - Petersburg, VA","2016-10-26","Screenings - Chemistry Check","FA549","832475","Bonds, Maria M",7880,9,0,12.3,"MEETS","MEETS",12.3,0]
["Vulcan Materials Co.","Jack Quarry - Petersburg, VA","2019-08-26","Screenings - Chemistry Check","FA549","980162","Bonds, Maria M",6465,9.1300000000000008,"<29","<102.088","DOES NOT MEET","MEETS",102.08799999999999,29]
["Vulcan Materials Co.","Kitty Hawk Sales Yard","2020-09-21","Sand, 2S - Chemistry Check","FA338","1021098","Bonds, Maria M",43355,4.3099999999999996,"<30","<30.192","DOES NOT MEET","DOES NOT MEET",30.192,30]
["Vulcan Materials Co.","Kitty Hawk Sales Yard","2020-09-21","Screenings - Chemistry Check","FA338","1021097","Bonds, Maria M",17676,8.74,"<30","<59.621","MEETS","MEETS",59.621000000000002,30]
["Vulcan Materials Co.","Morganton Quarry - Morganton","2016-04-21","Screenings - Chemistry Check","FA85","803463","Ausley, Jeff A",10686,8.5,0,0,"MEETS","MEETS",0,0]
["Vulcan Materials Co.","Morganton Quarry - Morganton","2016-12-06","Screenings - Chemistry Check","FA85","838536","Ausley, Jeff A",7402,7.7,0,26.3,"MEETS","MEETS",26.3,0]
["Vulcan Materials Co.","North Quarry - Winston Salem","2016-03-23","Sand, 2MS - Chemistry Check","CA72","798945","Wallace, Weston G",24278,8,0,7.1,"MEETS","MEETS",7.1,0]
["Vulcan Materials Co.","North Quarry - Winston Salem","2020-08-19","Select Material, Class III, Type 1","FA466","1017748","Carpenter, Gregory S",16008,8.82,"<30","<71.467",{"$f":"IF(ISBLANK(I251),\"N/A\",IF(AND(4.5<=$I251,$I251<=9), \"MEETS\",\"DOES NOT MEET\"))","v":"MEETS"},{"$f":"IF(ISBLANK(I251), \"N/A\", IF(AND(5 <= $I251, $I251 <= 10),IF($H251>=3000,IF($O251<=100,IF($N251<=200,\"MEETS\",\"DOES NOT MEET\"),\"DOES NOT MEET\"),\"DOES NOT MEET\"),\"DOES NOT MEET\"))","v":"MEETS"},{"$f":"IF(LEFT(K251, 1)=\"<\", VALUE(RIGHT(K251,LEN(K251)-1)), K251)","v":71.466999999999999},{"$f":"IF(LEFT(J251, 1)=\"<\", VALUE(RIGHT(J251,LEN(J251)-1)), J251)","v":30}]
["Vulcan Materials Co.","North Quarry - Winston Salem","2020-08-19","Select Material, Class III, Type 1","FA466","1017747","Carpenter, Gregory S",7337,8.6,"<30","<141.056","MEETS","MEETS",141.05600000000001,30]
["Vulcan Materials Co.","North Quarry - Winston Salem","2020-08-19","Select Material, Class III, Type 1","FA466","1017749","Carpenter, Gregory S",10005,8.6999999999999993,"<30","<117.312","MEETS","MEETS",117.312,30]
["Vulcan Materials Co.","North Quarry - Winston Salem","2020-09-15","Select Material, Class III, Type 1","FA466","1028505","Edwards, Justin D",5403,7.92,"<30","<87.5","MEETS","MEETS",87.5,30]
["Vulcan Materials Co.","North Quarry - Winston Salem","2020-10-14","Select Material, Class III, Type 1","FA466","1028506","Edwards, Justin D",5203,8.02,"<30","<113","MEETS","MEETS",113,30]
["Vulcan Materials Co.","Pacolet Quarry - Pacolet, SC","2018-10-10","Sand, 2MS - Chemistry Check","FA212","935070","Gosnell, Jimmy L",1035,7.6,0,640,"MEETS","DOES NOT MEET",640,0]
["Vulcan Materials Co.","Pacolet Quarry - Pacolet, SC","2019-08-01","Sand, 2MS - Chemistry Check","FA212","975600","Gosnell, Jimmy L",1466,7.41,"<29",">400<800","MEETS","DOES NOT MEET",">400<800",29]
["Vulcan Materials Co.","Penrose Quarry - Pisgah Forest","2016-06-14","Screenings - Chemistry Check","FA229","811091","Wood, Dean Michael M",14872,8.8000000000000007,2.1,13.2,"MEETS","MEETS",13.2,2.1]
["Vulcan Materials Co.","Penrose Quarry - Pisgah Forest","2017-03-07","Screenings - Chemistry Check","FA229","848244","Wood, Dean Michael M",16044,9.1999999999999993,0,37.4,"DOES NOT MEET","MEETS",37.4,0]
["Vulcan Materials Co.","Pineville Quarry - Charlotte","2016-10-06","Screenings - Chemistry Check","FA266","832586","Adair, Mildred (Millie) L",1872,7.6,0,93.3,"MEETS","DOES NOT MEET",93.3,0]
["Vulcan Materials Co.","Puddledock Quarry - Prince George, VA","2016-10-26","Sand, 2S - Chemistry Check","FA172","832522","Bonds, Maria M",48146,4.7,0,0,"MEETS","DOES NOT MEET",0,0]
["Vulcan Materials Co.","Puddledock Quarry - Prince George, VA","2019-08-26","Sand, 2S - Chemistry Check","FA172","980143","Bonds, Maria M",52160,4.99,"<29","<12.653","MEETS","DOES NOT MEET",12.653,29]
["Vulcan Materials Co.","Rockingham Quarry - Rockingham","2016-06-09","Sand, 2MS - Chemistry Check","FA374","810588","Tucker, Rusty J",9407,8.9,2.1,16.7,"MEETS","MEETS",16.7,2.1]
["Vulcan Materials Co.","Rockingham Quarry - Rockingham","2018-10-15","Screenings - Chemistry Check","FA374","935256","Jordan, Daniel H",8249,8.6999999999999993,0,"<92.08","MEETS","MEETS",92.08,0]
["Vulcan Materials Co.","Rockingham Quarry - Rockingham","2019-08-13","Screenings - Chemistry Check","FA374","977732","Jordan, Daniel H",5849,8.7200000000000006,"<29","<112.8","MEETS","MEETS",112.8,29]
["Vulcan Materials Co.","Rockingham Quarry - Rockingham","2023-03-29","Screenings - Chemistry Check","FA374","1101082","Gilmore, David T",11270,7.65,"<31","<435.1","MEETS","DOES NOT MEET",435.1,31]
["Vulcan Materials Co.","Skippers Quarry - Skippers, VA","2016-02-10","Screenings - Chemistry Check","CA55","793425","Thomas, Grady Q",7440,8.9,10,37.700000000000003,"MEETS","MEETS",37.700000000000003,10]
["Vulcan Materials Co.","Skippers Quarry - Skippers, VA","2017-02-07","Screenings - Chemistry Check","FA531","844774","Thomas, Grady Q",5382,7.9,22.1,18,"MEETS","MEETS",18,22.1]
["Vulcan Materials Co.","Skippers Quarry - Skippers, VA","2018-02-07","Screenings - Chemistry Check","FA531","897125","Thomas, Grady Q",4174,7.9,27.4,39.4,"MEETS","MEETS",39.4,27.4]
["Vulcan Materials Co.","Skippers Quarry - Skippers, VA","2019-02-21","Screenings - Chemistry Check","FA531","952209","Thomas, Grady Q",6189,9.1,"<30","<106.641","DOES NOT MEET","MEETS",106.64100000000001,30]
["Vulcan Materials Co.","Skippers Quarry - Skippers, VA","2020-02-05","Screenings - Chemistry Check","FA531","998861","Thomas, Grady Q",6484,8.8000000000000007,"<30","<101.789","MEETS","MEETS",101.789,30]
["Vulcan Materials Co.","Skippers Quarry - Skippers, VA","2021-02-03","Screenings - Chemistry Check","FA531","1032715","Thomas, Grady Q",20010,9.24,"<30","<72.695","DOES NOT MEET","MEETS",72.694999999999993,30]
["Vulcan Materials Co.","Skippers Quarry - Skippers, VA","2021-02-03","Screenings - Chemistry Check","FA531","1032715","Thomas, Grady Q",20010,9.24,"<30","<72.695","DOES NOT MEET","MEETS",72.694999999999993,30]
["Vulcan Materials Co.","Skippers Quarry - Skippers, VA","2022-03-16","Screenings - Chemistry Check","FA531","1067930","Thomas, Grady Q",12673,9.2100000000000009,34,"<128.705","DOES NOT MEET","MEETS",128.70500000000001,34]
["Vulcan Materials Co.","Smith Grove Q. - Mocksville","2016-04-26","Sand, 2MS - Chemistry Check","FA76","803859","Wallace, Weston G",6254,6.2,0,49,"MEETS","MEETS",49,0]
["Vulcan Materials Co.","Spruce Pine Quarry - Bakersville","2015-08-11","Sand, 2MS - Chemistry Check","CA111","770808","Rhymer, Robert C",931966,7.2,0,300,"MEETS","DOES NOT MEET",300,0]
["Vulcan Materials Co.","Spruce Pine Quarry - Bakersville","2016-12-06","Screenings - Chemistry Check","FA558","838537","Ausley, Jeff A",4955,7,0,48,"MEETS","MEETS",48,0]
["Vulcan Materials Co.","Spruce Pine Quarry - Bakersville","2018-10-08","Screenings - Chemistry Check","FA558","934018","Rhymer, Robert C",6614,8.5,0,50,"MEETS","MEETS",50,0]
["Vulcan Materials Co.","Spruce Pine Quarry - Bakersville","2019-09-16","Screenings - Chemistry Check","FA558","983094","Norton, Stephen S",3326,7.47,"<32","<198.437","MEETS","MEETS",198.43700000000001,32]
["Vulcan Materials Co.","Stokesdale Quarry - Stokesdale","2016-03-03","Screenings - Chemistry Check","CA76","796410","Fosque, Robert W",24661,8.5,0,4.8,"MEETS","MEETS",4.8,0]
["Vulcan Materials Co.","Stokesdale Quarry - Stokesdale","2019-02-28","Screenings - Chemistry Check","FA499","952380","Westmoreland, Braxton J",19350,9.1,0,"<34.109","DOES NOT MEET","MEETS",34.109000000000002,0]
["Wade Moore Equipment Co.","Fleming Pit - Louisburg","2023-06-14","Aggregate Base Course","CA453","1109175","Moore, Charles A",19860,6.88,"<31","<25.17","MEETS","MEETS",25.17,31]
["Wade Moore Equipment Co.","Fleming Pit - Louisburg","2016-02-04","Sand, 2S - Chemistry Check","FA165","792780","Skinner, III, John L",92678,6.8,0,7.1,"MEETS","MEETS",7.1,0]
["Wade Moore Equipment Co.","Fleming Pit - Louisburg","2019-02-01","Sand, 2S - Chemistry Check","FA165","948020","Skinner, III, John L",79110,6.7,0,"<8.343","MEETS","MEETS",8.343,0]
["Wake Stone Corp.","Knightdale Quarry - Knightdale","2011-01-28","Sand, 2MS - Chemistry Check","CA98","531413","Gowl, Adam L",8217,8.6,0,0,"MEETS","MEETS",0,0]
["Wake Stone Corp.","Knightdale Quarry - Knightdale","2016-02-09","Sand, 2MS - Chemistry Check","FA481","793144","Skinner, III, John L",13198,8.9,5,8.9,"MEETS","MEETS",8.9,5]
["Wake Stone Corp.","Knightdale Quarry - Knightdale","2019-01-15","Sand, 2MS - Chemistry Check","FA481","945620","Skinner, III, John L",15920,9.1,0,"<41.457","DOES NOT MEET","MEETS",41.457000000000001,0]
["Wake Stone Corp.","Knightdale Quarry - Knightdale","2021-04-26","Sand, 2MS - Chemistry Check","FA481","1039861","Skinner, III, John L",24346,9,"<33","<58.099","MEETS","MEETS",58.098999999999997,33]
["Wake Stone Corp.","Knightdale Quarry - Knightdale","2021-04-26","Sand, 2MS - Chemistry Check","FA481","1039861","Skinner, III, John L",24346,9,"<33","<58.099","MEETS","MEETS",58.098999999999997,33]
["Wake Stone Corp.","Knightdale Quarry - Knightdale","2011-01-18","Select Material, Class II, Type 1","CA98","530183","Locklear, Marcus N",15000,9.6999999999999993,"na","na","DOES NOT MEET","DOES NOT MEET","na","na"]
["Wake Stone Corp.","Knightdale Quarry - Knightdale","2011-01-18","Select Material, Class II, Type 1","CA98","530184","Locklear, Marcus N",15000,9.8000000000000007,"na","na","DOES NOT MEET","DOES NOT MEET","na","na"]
["Wake Stone Corp.","Knightdale Quarry - Knightdale","2011-01-27","Select Material, Class II, Type 1","CA98","530811","Carter, PE, Sean C",15500,9.8000000000000007,"na","na","DOES NOT MEET","DOES NOT MEET","na","na"]
["Wake Stone Corp.","Knightdale Quarry - Knightdale","2011-01-27","Select Material, Class II, Type 1","CA98","530812","Carter, PE, Sean C",17500,9.8000000000000007,"na","na","DOES NOT MEET","DOES NOT MEET","na","na"]
["Wake Stone Corp.","Knightdale Quarry - Knightdale","2011-01-27","Select Material, Class II, Type 1","CA98","530813","Carter, PE, Sean C",16000,9.6999999999999993,"na","na","DOES NOT MEET","DOES NOT MEET","na","na"]
["Wake Stone Corp.","Knightdale Quarry - Knightdale","2011-01-27","Select Material, Class II, Type 1","CA98","530815","Carter, PE, Sean C",14500,9.6,"na","na","DOES NOT MEET","DOES NOT MEET","na","na"]
["Wake Stone Corp.","Knightdale Quarry - Knightdale","2011-01-27","Select Material, Class II, Type 1","CA98","530816","Carter, PE, Sean C",14500,9.6,"na","na","DOES NOT MEET","DOES NOT MEET","na","na"]
["Wake Stone Corp.","Knightdale Quarry - Knightdale","2011-01-28","Select Material, Class II, Type 1","CA98","530896","Gowl, Adam L","","","","","DOES NOT MEET","DOES NOT MEET","",""]
["Wake Stone Corp.","Knightdale Quarry - Knightdale","2011-02-04","Select Material, Class II, Type 1","CA98","531501","Helms, Blane A",21000,9.8000000000000007,"na","na","DOES NOT MEET","DOES NOT MEET","na","na"]
["Wake Stone Corp.","Knightdale Quarry - Knightdale","2011-02-04","Select Material, Class II, Type 1","CA98","531502","Helms, Blane A",13000,9.6999999999999993,"na","na","DOES NOT MEET","DOES NOT MEET","na","na"]
["Wake Stone Corp.","Knightdale Quarry - Knightdale","2011-02-04","Select Material, Class II, Type 1","CA98","531503","Helms, Blane A",17000,9.6999999999999993,"na","na","DOES NOT MEET","DOES NOT MEET","na","na"]
["Wake Stone Corp.","Knightdale Quarry - Knightdale","2011-02-04","Select Material, Class II, Type 1","CA98","531504","Hall, Brian D",29000,9.8000000000000007,"na","na","DOES NOT MEET","DOES NOT MEET","na","na"]
["Wake Stone Corp.","Knightdale Quarry - Knightdale","2011-02-04","Select Material, Class II, Type 1","CA98","531505","Hall, Brian D",16000,9.5,"na","na","DOES NOT MEET","DOES NOT MEET","na","na"]
["Wake Stone Corp.","Knightdale Quarry - Knightdale","2011-02-04","Select Material, Class II, Type 1","CA98","531510","Helms, Blane A",10,"na","na","","DOES NOT MEET","DOES NOT MEET","","na"]
["Wake Stone Corp.","Knightdale Quarry - Knightdale","2011-02-23","Select Material, Class II, Type 1","CA98","609765","Carter, PE, Sean C",9800,9.3000000000000007,"na","na","DOES NOT MEET","DOES NOT MEET","na","na"]
["Wake Stone Corp.","Knightdale Quarry - Knightdale","2011-03-04","Select Material, Class II, Type 1","CA98","533407","Carter, PE, Sean C",18000,9.8000000000000007,"na","na","DOES NOT MEET","DOES NOT MEET","na","na"]
["Wake Stone Corp.","Knightdale Quarry - Knightdale","2011-03-04","Select Material, Class II, Type 1","CA98","533408","Carter, PE, Sean C",19500,9.6,"na","na","DOES NOT MEET","DOES NOT MEET","na","na"]
["Wake Stone Corp.","Knightdale Quarry - Knightdale","2011-03-04","Select Material, Class II, Type 1","CA98","533409","Carter, PE, Sean C",23000,9.5,"na","na","DOES NOT MEET","DOES NOT MEET","na","na"]
["Wake Stone Corp.","Knightdale Quarry - Knightdale","2011-03-04","Select Material, Class II, Type 1","CA98","533410","Carter, PE, Sean C",11000,9.6,"na","na","DOES NOT MEET","DOES NOT MEET","na","na"]
["Wake Stone Corp.","Knightdale Quarry - Knightdale","2011-03-04","Select Material, Class II, Type 1","CA98","533411","Carter, PE, Sean C",17000,9.6999999999999993,"na","na","DOES NOT MEET","DOES NOT MEET","na","na"]
["Wake Stone Corp.","Knightdale Quarry - Knightdale","2011-03-04","Select Material, Class II, Type 1","CA98","533412","Carter, PE, Sean C",15000,9.6,"na","na","DOES NOT MEET","DOES NOT MEET","na","na"]
["Wake Stone Corp.","Knightdale Quarry - Knightdale","2011-06-23","Select Material, Class II, Type 1","CA98","609764","Carter, PE, Sean C",6500,9,"na","na","MEETS","DOES NOT MEET","na","na"]
["Wake Stone Corp.","Knightdale Quarry - Knightdale","2011-09-02","Select Material, Class II, Type 1","CA98","609767","Carter, PE, Sean C",8100,9.1,"na","na","DOES NOT MEET","DOES NOT MEET","na","na"]
["Wake Stone Corp.","Knightdale Quarry - Knightdale","2011-09-02","Select Material, Class II, Type 1","CA98","609768","Carter, PE, Sean C",9700,8.9,"na","na","MEETS","DOES NOT MEET","na","na"]
["Wake Stone Corp.","Knightdale Quarry - Knightdale","2011-10-24","Select Material, Class II, Type 1","CA98","609755","Carter, PE, Sean C",11300,8.9,"na","na","MEETS","DOES NOT MEET","na","na"]
["Wake Stone Corp.","Knightdale Quarry - Knightdale","2011-11-10","Select Material, Class II, Type 1","CA98","609761","Carter, PE, Sean C",10500,9.1,"na","na",{"$f":"IF(ISBLANK(I315),\"N/A\",IF(AND(4.5<=$I315,$I315<=9), \"MEETS\",\"DOES NOT MEET\"))","v":"DOES NOT MEET"},{"$f":"IF(ISBLANK(I315), \"N/A\", IF(AND(5 <= $I315, $I315 <= 10),IF($H315>=3000,IF($O315<=100,IF($N315<=200,\"MEETS\",\"DOES NOT MEET\"),\"DOES NOT MEET\"),\"DOES NOT MEET\"),\"DOES NOT MEET\"))","v":"DOES NOT MEET"},{"$f":"IF(LEFT(K315, 1)=\"<\", VALUE(RIGHT(K315,LEN(K315)-1)), K315)","v":"na"},{"$f":"IF(LEFT(J315, 1)=\"<\", VALUE(RIGHT(J315,LEN(J315)-1)), J315)","v":"na"}]
["Wake Stone Corp.","Knightdale Quarry - Knightdale","2011-11-10","Select Material, Class II, Type 1","CA98","609762","Carter, PE, Sean C",12100,9.1999999999999993,"na","na","DOES NOT MEET","DOES NOT MEET","na","na"]
["Wake Stone Corp.","Knightdale Quarry - Knightdale","2011-11-14","Select Material, Class II, Type 1","CA98","627960","Kingsmore, Donnie Edward",11100,10.199999999999999,"na","na","DOES NOT MEET","DOES NOT MEET","na","na"]
["Wake Stone Corp.","Knightdale Quarry - Knightdale","2011-11-14","Select Material, Class II, Type 1","CA98","627961","Kingsmore, Donnie Edward",9300,10.1,"na","na","DOES NOT MEET","DOES NOT MEET","na","na"]
["Wake Stone Corp.","Knightdale Quarry - Knightdale","2011-11-16","Select Material, Class II, Type 1","CA98","609757","Carter, PE, Sean C",10900,9.3000000000000007,"na","na","DOES NOT MEET","DOES NOT MEET","na","na"]
["Wake Stone Corp.","Knightdale Quarry - Knightdale","2011-11-16","Select Material, Class II, Type 1","CA98","609758","Carter, PE, Sean C",6700,9.1,"na","na","DOES NOT MEET","DOES NOT MEET","na","na"]
["Wake Stone Corp.","Knightdale Quarry - Knightdale","2011-12-30","Select Material, Class II, Type 1","CA98","627966","Byrd, Drew L.",9300,9.9,"na","na","DOES NOT MEET","DOES NOT MEET","na","na"]
["Wake Stone Corp.","Knightdale Quarry - Knightdale","2012-01-18","Select Material, Class II, Type 1","CA98","630159","Hall, Brian D",10900,9.8000000000000007,"na","na","DOES NOT MEET","DOES NOT MEET","na","na"]
["Wake Stone Corp.","Knightdale Quarry - Knightdale","2012-01-18","Select Material, Class II, Type 1","CA98","630162","Hall, Brian D",9900,9.6999999999999993,"na","na","DOES NOT MEET","DOES NOT MEET","na","na"]
["Wake Stone Corp.","Knightdale Quarry - Knightdale","2012-02-02","Select Material, Class II, Type 1","CA98","630163","Hall, Brian D",9700,9.6,"na","na","DOES NOT MEET","DOES NOT MEET","na","na"]
["Wake Stone Corp.","Knightdale Quarry - Knightdale","2012-02-06","Select Material, Class II, Type 1","CA98","627963","Byrd, Drew L.",10600,10.3,"na","na","DOES NOT MEET","DOES NOT MEET","na","na"]
["Wake Stone Corp.","Knightdale Quarry - Knightdale","2012-02-06","Select Material, Class II, Type 1","CA98","627964","Byrd, Drew L.",11200,10.1,"na","na","DOES NOT MEET","DOES NOT MEET","na","na"]
["Wake Stone Corp.","Knightdale Quarry - Knightdale","2012-03-12","Select Material, Class II, Type 1","CA98","627972","Wood, Aaron M",8900,10,"na","na","DOES NOT MEET","DOES NOT MEET","na","na"]
["Wake Stone Corp.","Knightdale Quarry - Knightdale","2012-03-12","Select Material, Class II, Type 1","CA98","627977","Wood, Aaron M",9400,10,"na","na","DOES NOT MEET","DOES NOT MEET","na","na"]
["Wake Stone Corp.","Knightdale Quarry - Knightdale","2012-03-28","Select Material, Class II, Type 1","CA98","627967","Knight, Justin M",10000,10.199999999999999,"na","na","DOES NOT MEET","DOES NOT MEET","na","na"]
["Wake Stone Corp.","Knightdale Quarry - Knightdale","2012-05-22","Select Material, Class II, Type 1","CA98","630831","Carter, PE, Sean C",10000,9.5,"na","na","DOES NOT MEET","DOES NOT MEET","na","na"]
["Wake Stone Corp.","Knightdale Quarry - Knightdale","2012-06-13","Select Material, Class II, Type 1","CA98","630833","Carter, PE, Sean C",9800,8.8000000000000007,"na","na","MEETS","DOES NOT MEET","na","na"]
["Wake Stone Corp.","Moncure Quarry - Moncure","2018-03-29","Screenings, Washed","FA502","904094","Jackson, Brandon M",4476,7.5,0,124.3,"MEETS","MEETS",124.3,0]
["Wake Stone Corp.","Nash County Quarry - Battleboro","2016-03-11","Sand, 2MS - Chemistry Check","FA480","797388","Raines, James R",8361,8.5,0,12.1,"MEETS","MEETS",12.1,0]
["Wake Stone Corp.","Triangle Quarry - Cary","2011-02-22","Sand, 2MS - Chemistry Check","CA157","533019","Gowl, Adam L",6925,8.6999999999999993,0,0,"MEETS","MEETS",0,0]
["Wake Stone Corp.","Triangle Quarry - Cary","2011-03-22","Sand, 2MS - Chemistry Check","CA157","534964","Gowl, Adam L",5216,9.8000000000000007,0,0,"DOES NOT MEET","MEETS",0,0]
["Wake Stone Corp.","Triangle Quarry - Cary","2011-04-20","Sand, 2MS - Chemistry Check","CA157","537245","Gowl, Adam L",7716,8.4,0,0,"MEETS","MEETS",0,0]
["Wake Stone Corp.","Triangle Quarry - Cary","2011-05-10","Sand, 2MS - Chemistry Check","CA157","538744","Gowl, Adam L",8123,8.5,0,0,"MEETS","MEETS",0,0]
["Wake Stone Corp.","Triangle Quarry - Cary","2011-05-24","Sand, 2MS - Chemistry Check","CA157","540670","Gowl, Adam L",8397,8.9,0,0,"MEETS","MEETS",0,0]
["Wake Stone Corp.","Triangle Quarry - Cary","2011-06-27","Sand, 2MS - Chemistry Check","CA157","543105","Gowl, Adam L",36670,7.9,0,0,"MEETS","MEETS",0,0]
["Wake Stone Corp.","Triangle Quarry - Cary","2011-06-30","Sand, 2MS - Chemistry Check","CA157","543270","Gowl, Adam L",14224,8.5,0,0,"MEETS","MEETS",0,0]
["Wake Stone Corp.","Triangle Quarry - Cary","2011-09-20","Sand, 2MS - Chemistry Check","CA157","601722","Gowl, Adam L",6988,8.6,0,0,"MEETS","MEETS",0,0]
["Wake Stone Corp.","Triangle Quarry - Cary","2011-11-14","Sand, 2MS - Chemistry Check","CA157","607605","Gowl, Adam L",8176,7.2,0,0,"MEETS","MEETS",0,0]
["Wake Stone Corp.","Triangle Quarry - Cary","2012-01-20","Sand, 2MS - Chemistry Check","CA157","613096","Gowl, Adam L",7893,6.7,0,0,"MEETS","MEETS",0,0]
["Wake Stone Corp.","Triangle Quarry - Cary","2012-01-20","Sand, 2MS - Chemistry Check","CA157","613126","Gowl, Adam L",7288,8.4,0,0,"MEETS","MEETS",0,0]
["Wake Stone Corp.","Triangle Quarry - Cary","2012-03-08","Sand, 2MS - Chemistry Check","CA157","617879","Gowl, Adam L",9560,8.1,0,0,"MEETS","MEETS",0,0]
["Wake Stone Corp.","Triangle Quarry - Cary","2012-03-12","Sand, 2MS - Chemistry Check","CA157","617977","Gowl, Adam L",7052,7.8,0,0,"MEETS","MEETS",0,0]
["Wake Stone Corp.","Triangle Quarry - Cary","2011-08-09","Sand, 2S - Chemistry Check","CA157","597278","Gowl, Adam L",8889,7.6,0,0,"MEETS","MEETS",0,0]
["Weeks Sand Company","Weeks Sand #3","2016-03-08","Sand, 2S - Chemistry Check","FA368","796682","Murphy, Billy J",62344,5.2,0,5.0999999999999996,"MEETS","MEETS",5.0999999999999996,0]
["Westside Minerals LLC","Dempsey Wood Pit - LaGrange","2016-07-27","Sand, 2S - Chemistry Check","FA403","818140","Cobb, James R",4955,3.9,12.9,65.8,"DOES NOT MEET","DOES NOT MEET",65.8,12.9]
["Westside Minerals LLC","Dempsey Wood Pit - LaGrange","2019-06-26","Sand, 2S - Chemistry Check","FA403","970244","Cobb, James R",47700,4.8600000000000003,"<29","<13.836","MEETS","DOES NOT MEET",13.836,29]
["Westside Minerals LLC","Dempsey Wood Pit - LaGrange","2020-09-24","Sand, 2S - Chemistry Check","FA403","1021168","Cobb, James R",80040,4.88,"<30","<18.739","MEETS","DOES NOT MEET",18.739000000000001,30]

{"sheet":"CHEMSTONE","index":4,"n_rows":3003,"n_cols":10,"rows_kept":3003,"cut":false,"hidden":true,"merged":[]}
["Producer Name","Location","Sample Date","Sample ID","Material Description","Sampled By","Resistivity [ohm-cm]:","pH","Chloride [ppm]:","Sulfate [ppm]:"]
["Aggregates USA","Abingdon Quarry","2016-09-28",828584,"#57 Stone for Electrochemical","Church, Tracy G",8741,7.7,0,14.2]
["Aggregates USA","Elizabethton Quarry","2016-09-28",828607,"#57 Stone for Electrochemical","Church, Tracy G",15265,7.3,0,9.6999999999999993]
["Aggregates USA","Watauga Quarry","2016-09-28",828603,"#57 Stone for Electrochemical","Church, Tracy G",16139,6.7,0,6.1]
["Ararat Rock Products","Eden Quarry - Cascade, VA","2016-02-09",793258,"#78-M Stone for Electrochemical","Westmoreland, Braxton J",11488,8.6,0,9.6]
["Ararat Rock Products","Eden Quarry - Cascade, VA","2016-02-09",793259,"#57 Stone for Electrochemical","Westmoreland, Braxton J",14265,8.8000000000000007,0,10.199999999999999]
["Ararat Rock Products","Mt. Airy Quarry - Mt. Airy","2016-01-11",790443,"#57 Stone for Electrochemical","Whitley, Christopher D",14205,8.6,10,0]
["Ararat Rock Products","Mt. Airy Quarry - Mt. Airy","2016-01-11",790444,"Miscellaneous Material for Electrochemical","Whitley, Christopher D",1655,7.7,10,0]
["Ararat Rock Products","Mt. Airy Quarry - Mt. Airy","2016-03-01",795846,"#78-M Stone for Electrochemical","Whitley, Christopher D",15858,7.9,0,10.1]
["Ararat Rock Products","Mt. Airy Quarry - Mt. Airy","2017-01-31",843861,"#78-M Stone for Electrochemical","Whitley, Christopher D",11582,8.3000000000000007,0,50.8]
["Ararat Rock Products","Mt. Airy Quarry - Mt. Airy","2017-01-31",843860,"#57 Stone for Electrochemical","Whitley, Christopher D",12816,8,0,48.7]
["Ararat Rock Products","Mt. Airy Quarry - Mt. Airy","2017-01-31",843862,"Miscellaneous Material for Electrochemical","Whitley, Christopher D",9355,7.7,0,64.400000000000006]
["Boone's Concrete Supply, LLC","Woodlawn Quarry","2016-10-28",832770,"#57 Stone for Electrochemical","Ausley, Jeff",13182,9.3000000000000007,0,0.8]
["Boone's Concrete Supply, LLC","Woodlawn Quarry","2016-10-28",832771,"#78-M Stone for Electrochemical","Ausley, Jeff",11364,9.1999999999999993,0,5.3]
["Boxley Concrete Products of Va","Fieldale Quarry - Martinsville","2016-02-17",794069,"#57 Stone for Electrochemical","Westmoreland, Braxton J",15154,8.3000000000000007,5.4,12.7]
["Boxley Concrete Products of Va","Fieldale Quarry - Martinsville","2016-02-17",794068,"#78-M Stone for Electrochemical","Westmoreland, Braxton J",23105,8.9,0,6.1]
["Boxley Concrete Products of Va","Lawyers Road Quarry","2016-03-14",798420,"#78-M Stone for Electrochemical","Fosque, Robert W",17065,7.6,0,9.5]
["Buckhorn Materials","Black Creek Sand Mine","2016-03-04",797150,"Select Material, Class III, Type 3 - Chemistry Check","Jordan, Daniel H",96618,5.5,0,5.0999999999999996]
["Buckhorn Materials","Lynches River Quarry","2015-06-29",764166,"#67 Stone for Electrochemical","Jordan, Daniel H",25773,9.3000000000000007,0,200]
["Buckhorn Materials","Lynches River Quarry","2015-06-29",764178,"Miscellaneous Material for Electrochemical","Jordan, Daniel H",16875,8.4,0,200]
["Buckhorn Materials","Lynches River Quarry","2016-02-11",793641,"#67 Stone for Electrochemical","Jordan, Daniel H",30057,7.6,5.4,4.8]
["Buckhorn Materials","Lynches River Quarry","2016-02-11",793642,"#78-M Stone for Electrochemical","Jordan, Daniel H",21959,7.5,0,4.2]
["Buckhorn Materials","Lynches River Quarry","2016-02-11",793640,"#57 Stone for Electrochemical","Jordan, Daniel H",26674,7.1,0,4.7]
["Hanson Aggregates Southeast Inc.","Crabtree Quarry - Raleigh","2016-02-19",794468,"#78-M Stone for Electrochemical","Skinner, III, John L",17966,8.1,0,4.0999999999999996]
["Hanson Aggregates Southeast Inc.","Crabtree Quarry - Raleigh","2016-02-19",794467,"#57 Stone for Electrochemical","Skinner, III, John L",24396,7.9,0,3.8]
["Hanson Aggregates Southeast Inc.","Crabtree Quarry - Raleigh","2016-02-19",794472,"Screenings - Chemistry Check","Skinner, III, John L",13367,8.3000000000000007,0,8.6]
["Hanson Aggregates Southeast Inc.","Holly Springs Quarry","2016-02-26",795306,"Screenings - Chemistry Check","Skinner, III, John L",7553,7.9,0,27.8]
["Hanson Aggregates Southeast Inc.","Holly Springs Quarry","2016-02-26",795305,"#78-M Stone for Electrochemical","Skinner, III, John L",19585,8.6,0,5.3]
["Hanson Aggregates Southeast Inc.","Holly Springs Quarry","2016-02-26",795303,"#57 Stone for Electrochemical","Skinner, III, John L",24313,8.1999999999999993,0,4.0999999999999996]
["Hanson Aggregates Southeast Inc.","Jefferson Q. - Jefferson, SC","2016-02-10",793427,"Screenings - Chemistry Check","Jordan, Daniel H",10508,7.2,5.4,8.6999999999999993]
["Hanson Aggregates Southeast Inc.","Jefferson Q. - Jefferson, SC","2016-12-14",838779,"Miscellaneous Material for Electrochemical","Jordan, Daniel H",14691,8.1,0,0]
["Hanson Aggregates Southeast Inc.","Jefferson Q. - Jefferson, SC","2016-12-14",838780,"#78-M Stone for Electrochemical","Jordan, Daniel H",26709,8.3000000000000007,0,0]
["Hanson Aggregates Southeast Inc.","Jefferson Q. - Jefferson, SC","2016-12-14",838781,"#57 Stone for Electrochemical","Jordan, Daniel H",31827,8.1,0,0]
["Hanson Aggregates Southeast Inc.","Marlboro Plant","2016-02-19",794732,"#78-M Stone for Electrochemical","Jordan, Daniel H",226552,6,0,4]
["Hanson Aggregates Southeast Inc.","Marlboro Plant","2016-02-19",794733,"#67 Stone for Electrochemical","Jordan, Daniel H",186567,5.0999999999999996,0,4.5]
["Hanson Aggregates Southeast Inc.","Neverson Q. - Bailey","2016-03-15",798233,"#78-M Stone for Electrochemical","Raines, James R",23288,7.4,0,4.5999999999999996]
["Hanson Aggregates Southeast Inc.","Neverson Q. - Bailey","2016-03-15",798232,"#57 Stone for Electrochemical","Raines, James R",22080,7.7,0,5.8]
["Hanson Aggregates Southeast Inc.","Princeton Quarry","2016-03-24",799116,"#57 Stone for Electrochemical","Raines, James R",13717,7.6,0,4.0999999999999996]
["Hanson Aggregates Southeast Inc.","Princeton Quarry","2016-03-24",799117,"#78-M Stone for Electrochemical","Raines, James R",13463,7.7,0,5.7]
["Hanson Aggregates Southeast Inc.","Princeton Quarry","2016-03-24",799118,"Screenings - Chemistry Check","Raines, James R",6472,8.4,10,14.1]
["Hanson Aggregates Southeast Inc.","Raleigh Q. - Wake Forest","2016-02-12",793719,"#57 Stone for Electrochemical","Skinner, III, John L",27071,9.1999999999999993,0,4.8]
["Hanson Aggregates Southeast Inc.","Raleigh Q. - Wake Forest","2016-02-12",793720,"#78-M Stone for Electrochemical","Skinner, III, John L",25927,7.7,0,4.0999999999999996]
["Hanson Aggregates Southeast Inc.","Raleigh Q. - Wake Forest","2016-02-12",793722,"Screenings - Chemistry Check","Skinner, III, John L",17053,7.4,0,0]
["Hanson Aggregates Southeast Inc.","Rocky Mount #2 Q.","2016-04-14",802198,"#78-M Stone for Electrochemical","Raines, James R",10244,9.3000000000000007,0,62.7]
["Hanson Aggregates Southeast Inc.","Rocky Mount #2 Q.","2016-04-14",802197,"#57 Stone for Electrochemical","Raines, James R",43346,7.9,0,0]
["Hanson Aggregates Southeast Inc.","Rougemont Quarry","2016-02-16",793930,"#57 Stone for Electrochemical","Skinner, III, John L",29940,9.4,5,8.3000000000000007]
["Hanson Aggregates Southeast Inc.","Rougemont Quarry","2016-02-16",793932,"#78-M Stone for Electrochemical","Skinner, III, John L",26378,7.8,0,3.7]
["Hanson Aggregates Southeast Inc.","Sandy Flats Quarry","2016-12-14",839142,"#67 Stone for Electrochemical","Wood, D. Michael M",21013,7.6,0,1.6]
["Hanson Aggregates Southeast Inc.","Sandy Flats Quarry","2016-12-14",839144,"#78-M Stone for Electrochemical","Wood, D. Michael M",21786,7.8,0,0.9]
["Hanson Aggregates Southeast Inc.","Sandy Flats Quarry","2016-12-14",839140,"#57 Stone for Electrochemical","Wood, D. Michael M",18152,7.7,0,2]
["Harrison Construction, Co., Div. of APAC-Atlantic","Dillsboro Quarry - Dillsboro","2016-10-04",828920,"#57 Stone for Electrochemical","Kindley, Wallace Quint",10607,7.5,0,8]
["Harrison Construction, Co., Div. of APAC-Atlantic","Dillsboro Quarry - Dillsboro","2016-10-04",828923,"#78-M Stone for Electrochemical","Kindley, Wallace Quint",8787,7.5,0,8.1999999999999993]
["Harrison Construction, Co., Div. of APAC-Atlantic","Dillsboro Quarry - Dillsboro","2016-10-04",828925,"Screenings - Chemistry Check","Kindley, Wallace Quint",1382,7.3,0,33.5]
["Harrison Construction, Co., Div. of APAC-Atlantic","Hayesville Quarry - Hayesville","2016-07-15",816297,"Screenings - Chemistry Check","Ledford, Brandon S",2440,7.8,2.1,144.69999999999999]
["Harrison Construction, Co., Div. of APAC-Atlantic","Hayesville Quarry - Hayesville","2016-07-15",816298,"#78-M Stone for Electrochemical","Ledford, Brandon S",8467,8.6999999999999993,2.1,28.4]
["Harrison Construction, Co., Div. of APAC-Atlantic","Hayesville Quarry - Hayesville","2016-07-15",816317,"#57 Stone for Electrochemical","Ledford, Brandon S",17449,8.8000000000000007,2.1,28.9]
["Harrison Construction, Co., Div. of APAC-Atlantic","Waynesville Quarry - Waynesville","2015-05-19",758295,"#57 Stone for Electrochemical","Wood, D. Michael M",12604,8.1999999999999993,0,0]
["Harrison Construction, Co., Div. of APAC-Atlantic","Waynesville Quarry - Waynesville","2016-09-26",827845,"#57 Stone for Electrochemical","Kindley, Wallace Quint",10436,7.7,0,12.9]
["Harrison Construction, Co., Div. of APAC-Atlantic","Waynesville Quarry - Waynesville","2016-09-26",827849,"#78-M Stone for Electrochemical","Kindley, Wallace Quint",7825,7.6,0,15.3]
["Harrison Construction, Co., Div. of APAC-Atlantic","Waynesville Quarry - Waynesville","2016-09-26",827851,"Screenings - Chemistry Check","Kindley, Wallace Quint",2380,7.5,0,40.9]
["Hedrick industries","Grove Stone Quarry","2016-04-08",801536,"Screenings - Chemistry Check","Rhymer, Robert C",8157,7.5,0,38.799999999999997]
["Hedrick industries","Grove Stone Quarry","2016-04-08",801532,"#78-M Stone for Electrochemical","Rhymer, Robert C",6964,7.3,0,49.1]
["Hedrick industries","Grove Stone Quarry","2016-04-08",801531,"#67 Stone for Electrochemical","Rhymer, Robert C",11593,7,0,21]
["Hedrick industries","Grove Stone Quarry","2016-12-12",838364,"Yearly Quality Check for Fine Aggregate (Strength, Soundness, etc.)","Rhymer, Robert C",6575,7.3,0,22.2]
["Hedrick industries","Lake Norman Quarry","2016-12-13",838934,"#57 Stone for Electrochemical","Kindley, Wallace Quint",13631,7.9,0,7.2]
["Hedrick industries","Lake Norman Quarry","2016-12-13",838935,"#78-M Stone for Electrochemical","Kindley, Wallace Quint",10028,7.7,0,21.7]
["Hedrick industries","North Buncombe Quarry","2016-10-10",829878,"#78-M Stone for Electrochemical","Kindley, Wallace Quint",1901,3.7,13.3,95.3]
["Hedrick industries","North Buncombe Quarry","2016-10-10",829874,"#57 Stone for Electrochemical","Kindley, Wallace Quint",3131,3.8,8.9,85.4]
["Hedrick industries","North Buncombe Quarry","2016-10-10",829882,"Screenings - Chemistry Check","Kindley, Wallace Quint",867,3.4,17.7,43.7]
["Hedrick industries","South McDowell Quarry","2016-01-29",791781,"#78-M Stone for Electrochemical","Rhymer, Robert C",22994,7.6,0,7.5]
["Hedrick industries","South McDowell Quarry","2016-01-29",791780,"#57 Stone for Electrochemical","Rhymer, Robert C",26364,7.6,5,5.3]
["Hedrick industries","South McDowell Quarry","2016-01-29",792270,"Screenings - Chemistry Check","Rhymer, Robert C",9497,7,5.4,33.6]
["Hedrick industries","South McDowell Quarry","2017-01-13",841896,"#78-M Stone for Electrochemical","Rhymer, Robert C",21088,7.8,0,30.3]
["Hedrick industries","South McDowell Quarry","2017-01-13",841899,"Screenings - Chemistry Check","Rhymer, Robert C",10930,7.5,0,55.9]
["Hedrick industries","South McDowell Quarry","2017-01-13",841894,"#57 Stone for Electrochemical","Rhymer, Robert C",22026,7.9,0,29.3]
["J.T. Russell & Sons, Inc.","Troy Sales Yard","2016-05-19",807584,"#57 Stone for Electrochemical","Tucker, Rusty J",72098,7.4,0,5.3]
["LBM Industries","Whitewater Falls Quarry","2016-05-24",808244,"#57 Stone for Electrochemical","Wood, D. Michael M",23987,7.8,2.1,13.6]
["LBM Industries","Whitewater Falls Quarry","2016-05-24",808249,"#78-M Stone for Electrochemical","Wood, D. Michael M",16584,7.7,2.1,12.6]
["LBM Industries","Whitewater Falls Quarry - Sapphire","2016-05-24",808254,"Screenings - Chemistry Check","Wood, D. Michael M",14663,8.6,2.1,9.3000000000000007]
["Luck Stone Corporation","Pittsboro Quarry","2016-03-29",799662,"#78-M Stone for Electrochemical","Jackson, Brandon M",13873,7.9,0,11.3]
["Luck Stone Corporation","Pittsboro Quarry","2016-03-29",799656,"#67 Stone for Electrochemical","Jackson, Brandon M",20833,8.6,0,6.1]
["Luck Stone Corporation","Pittsboro Quarry","2016-03-29",799661,"Miscellaneous Material for Electrochemical","Jackson, Brandon M",3383,7.3,0,123]
["Luck Stone Corporation","Pittsboro Quarry","2016-03-29",799654,"#57 Stone for Electrochemical","Jackson, Brandon M",16218,7.6,0,7.7]
["Martin Marietta","American Stone Company","2016-03-02",795847,"#78-M Stone for Electrochemical","Fosque, Robert W",23496,7.7,0,4.8]
["Martin Marietta","American Stone Company","2016-03-02",795848,"#67 Stone for Electrochemical","Fosque, Robert W",25170,8.9,0,4.0999999999999996]
["Martin Marietta","American Stone Company","2016-03-02",795851,"#57 Stone for Electrochemical","Fosque, Robert W",22989,8.9,0,4]
["Martin Marietta","Arrowood Quarry - Charlotte","2015-06-26",763931,"Miscellaneous Material for Electrochemical","Adair, Mildred (Millie) L",2106,7.7,0,200]
["Martin Marietta","Arrowood Quarry - Charlotte","2015-07-23",767814,"Miscellaneous Material for Electrochemical","Adair, Mildred (Millie) L",8013,8.4,0,0]
["Martin Marietta","Arrowood Quarry - Charlotte","2016-02-24",796030,"#78-M Stone for Electrochemical","Adair, Mildred (Millie) L",19139,7.7,0,10.199999999999999]
["Martin Marietta","Arrowood Quarry - Charlotte","2016-02-24",796029,"#67 Stone for Electrochemical","Adair, Mildred (Millie) L",16639,7.6,0,11.2]
["Martin Marietta","Arrowood Quarry - Charlotte","2016-02-24",796031,"#57 Stone for Electrochemical","Adair, Mildred (Millie) L",22826,7.7,0,9.6999999999999993]
["Martin Marietta","Arrowood Quarry - Charlotte","2016-02-22",796285,"Miscellaneous Material for Electrochemical","Adair, Mildred (Millie) L",2182,7.5,0,198.3]
["Martin Marietta","Asheboro Quarry - Asheboro","2016-06-17",811640,"#57 Stone for Electrochemical","Tucker, Rusty J",19387,9,2.1,12]
["Martin Marietta","Asheboro Quarry - Asheboro","2016-06-17",811641,"#67 Stone for Electrochemical","Tucker, Rusty J",22594,9,2.1,6.6]
["Martin Marietta","Asheboro Quarry - Asheboro","2016-06-17",811642,"#78-M Stone for Electrochemical","Tucker, Rusty J",18650,8.6999999999999993,2.1,21.5]
["Martin Marietta","Bakers Quarry - Monroe","2015-06-24",763935,"Miscellaneous Material for Electrochemical","Adair, Mildred (Millie) L",11515,9,0,200]
["Martin Marietta","Belgrade Quarry - Maysville","2015-09-30",778061,"#78-M Stone for Electrochemical","Cahill, Luke R",3370,7.3,0,0]
["Martin Marietta","Benson Quarry - Benson","2016-03-16",798243,"#57 Stone for Electrochemical","Raines, James R",27917,7.7,0,0]
["Martin Marietta","Benson Quarry - Benson","2016-03-16",798244,"#78-M Stone for Electrochemical","Raines, James R",20585,8.3000000000000007,0,4.3]
["Martin Marietta","Benson Quarry - Benson","2016-03-16",798245,"Screenings - Chemistry Check","Raines, James R",10971,8,0,8.1]
["Martin Marietta","Bonds Quarry - Concord","2016-09-19",826543,"#78-M Stone for Electrochemical","Pegues, Jr., Henderson",18709,7.7,0,4.4000000000000004]
["Martin Marietta","Bonds Quarry - Concord","2016-09-19",826544,"#67 Stone for Electrochemical","Pegues, Jr., Henderson",20833,7.7,0,2.2999999999999998]
["Martin Marietta","Bonds Quarry - Concord","2016-09-19",826542,"#57 Stone for Electrochemical","Pegues, Jr., Henderson",18889,7.7,0,3.9]
["Martin Marietta","Burlington Quarry - Burlington","2016-02-29",795917,"#57 Stone for Electrochemical","Loshinskiy, Roman",18420,8.9,0,4]
["Martin Marietta","Burlington Quarry - Burlington","2016-02-29",795919,"#78-M Stone for Electrochemical","Loshinskiy, Roman",15755,8.6,0,8.5]
["Martin Marietta","Burlington Quarry - Burlington","2016-02-29",795925,"Screenings - Chemistry Check","Loshinskiy, Roman",8518,8.1999999999999993,0,29.3]
["Martin Marietta","Castle Hayne Quarry - Castle Hayne","2016-08-16",821247,"#57 Stone for Electrochemical","Cahill, Luke R",4174,8.1999999999999993,4.3,69.2]
["Martin Marietta","Castle Hayne Stone Yard","2016-08-16",821246,"#57 Stone for Electrochemical","Cahill, Luke R",20125,9.3000000000000007,0,3.8]
["Martin Marietta","Central Rock Quarry - Greensboro","2016-02-16",793947,"#57 Stone for Electrochemical","Westmoreland, Braxton J",27322,8.8000000000000007,5.4,6.3]
["Martin Marietta","Central Rock Quarry - Greensboro","2016-02-16",793945,"#78-M Stone for Electrochemical","Westmoreland, Braxton J",13635,8.4,0,10.1]
["Martin Marietta","Charlotte Quarry - Charlotte","2016-04-14",802303,"#57 Stone for Electrochemical","Adair, Mildred (Millie) L",21124,8.8000000000000007,0,6.2]
["Martin Marietta","Charlotte Quarry - Charlotte","2016-04-14",802306,"#78-M Stone for Electrochemical","Adair, Mildred (Millie) L",17123,8.4,0,10.7]
["Martin Marietta","Charlotte Quarry - Charlotte","2016-04-14",802309,"Miscellaneous Material for Electrochemical","Adair, Mildred (Millie) L",9970,7.7,0,8.6]
["Martin Marietta","Charlotte Quarry - Charlotte","2016-09-08",825039,"#67 Stone for Electrochemical","Adair, Mildred (Millie) L",21882,7.7,0,2.2999999999999998]
["Martin Marietta","Charlotte Quarry - Charlotte","2016-09-08",825038,"#57 Stone for Electrochemical","Adair, Mildred (Millie) L",17937,7.9,0,3.9]
["Martin Marietta","Charlotte Quarry - Charlotte","2016-09-08",825040,"#78-M Stone for Electrochemical","Adair, Mildred (Millie) L",15936,7.6,0,4.0999999999999996]
["Martin Marietta","Clarks Quarry - New Bern","2015-06-18",762704,"#67 Stone for Electrochemical","Maynard, William T.",2670,8,0,0]
["Martin Marietta","Clarks Quarry - New Bern","2015-07-06",765168,"#67 Stone for Electrochemical","Maynard, William T.",2415,7.5,0,200]
["Martin Marietta","Clarks Quarry - New Bern","2015-07-06",765444,"#67 Stone for Electrochemical","Maynard, William T.",2437,8.1,0,200]
["Martin Marietta","Clarks Quarry - New Bern","2015-07-06",765445,"#67 Stone for Electrochemical","Maynard, William T.",1750,7.3,0,200]
["Martin Marietta","Clarks Quarry - New Bern","2015-09-10",775400,"#67 Stone for Electrochemical","Maynard, William T.",2465,7.2,null,300]
["Martin Marietta","Clarks Quarry - New Bern","2016-08-03",819246,"#67 Stone for Electrochemical","Maynard, William T.",4431,8,0,60.6]
["Martin Marietta","Clarks Quarry - New Bern","2016-08-03",819245,"Miscellaneous Material for Electrochemical","Maynard, William T.",8163,8.4,0,31.8]
["Martin Marietta","Denver Quarry - Denver","2016-12-20",839459,"#67 Stone for Electrochemical","Brinson, Joseph",18560,7.7,0,1.5]
["Martin Marietta","Denver Quarry - Denver","2016-12-20",839457,"#57 Stone for Electrochemical","Brinson, Joseph",13631,7.8,0,5]
["Martin Marietta","Denver Quarry - Denver","2016-12-20",839461,"#78-M Stone for Electrochemical","Brinson, Joseph",10254,7.5,0,16.399999999999999]
["Martin Marietta","East Alamance Sales Yard","2016-02-08",793260,"#57 Stone for Electrochemical","Westmoreland, Braxton J",19350,7,5,11.1]
["Martin Marietta","East Alamance Sales Yard","2016-02-08",793261,"#78-M Stone for Electrochemical","Westmoreland, Braxton J",15330,8.3000000000000007,5,9.4]
["Martin Marietta","Fountain Quarry - Fountain","2015-09-28",777688,"#57 Stone for Electrochemical","Cobb, James R",15179,9,0,0]
["Martin Marietta","Fountain Quarry - Fountain","2016-02-19",794454,"Screenings - Chemistry Check","Cobb, James R",8496,8.3000000000000007,0,13.3]
["Martin Marietta","Fountain Quarry - Fountain","2016-02-19",794449,"#57 Stone for Electrochemical","Cobb, James R",25304,8.5,0,0]
["Martin Marietta","Fountain Quarry - Fountain","2016-02-19",794440,"#78-M Stone for Electrochemical","Cobb, James R",10144,8.1999999999999993,0,0]
["Martin Marietta","Franklin Co. Quarry","2016-02-12",793723,"#57 Stone for Electrochemical","Skinner, III, John L",26652,9.1999999999999993,0,4.4000000000000004]
["Martin Marietta","Franklin Co. Quarry","2016-02-12",793725,"#78-M Stone for Electrochemical","Skinner, III, John L",38926,7.7,0,4.5]
["Martin Marietta","Fuquay Quarry - Fuquay-Varina","2016-02-11",793623,"#78-M Stone for Electrochemical","Skinner, III, John L",33179,7.7,0,4.0999999999999996]
["Martin Marietta","Fuquay Quarry - Fuquay-Varina","2016-02-11",793622,"#57 Stone for Electrochemical","Skinner, III, John L",53591,7.4,0,4.0999999999999996]
["Martin Marietta","Garner Quarry - Garner","2016-02-09",793217,"#67 Stone for Electrochemical","Skinner, III, John L",33367,8.1,0,3]
["Martin Marietta","Garner Quarry - Garner","2016-02-09",793218,"#78-M Stone for Electrochemical","Skinner, III, John L",25176,8.4,0,3.5]
["Martin Marietta","Lemon Springs - Sanford","2016-02-19",794477,"#78-M Stone for Electrochemical","Jackson, Brandon M",22188,8.6999999999999993,0,0]
["Martin Marietta","Lemon Springs - Sanford","2016-02-19",794479,"Screenings - Chemistry Check","Jackson, Brandon M",10602,8.5,0,10.7]
["Martin Marietta","Lemon Springs - Sanford","2016-02-19",794474,"#67 Stone for Electrochemical","Jackson, Brandon M",25608,8.6,0,0]
["Martin Marietta","Lemon Springs - Sanford","2016-02-19",794469,"#57 Stone for Electrochemical","Jackson, Brandon M",27716,8.6999999999999993,0,4]
["Martin Marietta","Mallard Creek Quarry - Charlotte","2016-02-22",794798,"#57 Stone for Electrochemical","Pegues, Jr., Henderson",23987,9.1,0,4.5]
["Martin Marietta","Mallard Creek Quarry - Charlotte","2016-02-22",794806,"#67 Stone for Electrochemical","Pegues, Jr., Henderson",26399,9.1,0,4.0999999999999996]
["Martin Marietta","Mallard Creek Quarry - Charlotte","2016-02-22",794807,"#78-M Stone for Electrochemical","Pegues, Jr., Henderson",26274,8.9,5.4,4.0999999999999996]
["Martin Marietta","Mallard Creek Quarry - Charlotte","2016-11-01",832992,"#67 Stone for Electrochemical","Pegues, Jr., Henderson",19051,8.6999999999999993,0,0]
["Martin Marietta","Mallard Creek Quarry - Charlotte","2016-11-01",832994,"#57 Stone for Electrochemical","Pegues, Jr., Henderson",23095,9,0,0.6]
["Martin Marietta","Mallard Creek Quarry - Charlotte","2016-11-01",832990,"#78-M Stone for Electrochemical","Pegues, Jr., Henderson",23381,8.6999999999999993,0,0.8]
["Martin Marietta","Onslow Quarry - Richlands","2015-09-30",778060,"#57 Stone for Electrochemical","Cahill, Luke R",4480,6.8,0,0]
["Martin Marietta","Pomona Quarry - Greensboro","2016-02-04",792600,"#78-M Stone for Electrochemical","Westmoreland, Braxton J",23218,9.1,5,28.8]
["Martin Marietta","Pomona Quarry - Greensboro","2016-02-04",792599,"#57 Stone for Electrochemical","Westmoreland, Braxton J",14000,8.8000000000000007,0,48.5]
["Martin Marietta","Raleigh-Durham Quarry - Raleigh","2016-02-05",792800,"#57 Stone for Electrochemical","Skinner, III, John L",22894,8.9,5,28.2]
["Martin Marietta","Raleigh-Durham Quarry - Raleigh","2016-02-05",792804,"Screenings - Chemistry Check","Skinner, III, John L",10752,8.6,0,62.1]
["Martin Marietta","Raleigh-Durham Quarry - Raleigh","2016-02-05",792801,"#78-M Stone for Electrochemical","Skinner, III, John L",19080,8.6999999999999993,5,34.200000000000003]
["Martin Marietta","Reidsville Quarry - Reidsville","2016-02-09",793249,"#57 Stone for Electrochemical","Loshinskiy, Roman",21400,8.9,0,4.4000000000000004]
["Martin Marietta","Reidsville Quarry - Reidsville","2016-02-09",793250,"#78-M Stone for Electrochemical","Loshinskiy, Roman",21487,9.3000000000000007,0,4.4000000000000004]
["Martin Marietta","Reidsville Quarry - Reidsville","2016-02-09",793251,"Screenings - Chemistry Check","Loshinskiy, Roman",16518,9,5,18.899999999999999]
["Martin Marietta","Statesville Quarry - Statesville","2016-09-09",825451,"#57 Stone for Electrochemical","Whitley, Christopher D",13848,7.6,0,13]
["Martin Marietta","Statesville Quarry - Statesville","2016-09-09",825455,"#67 Stone for Electrochemical","Whitley, Christopher D",11279,7.7,0,23.9]
["Martin Marietta","Statesville Quarry - Statesville","2016-09-09",825458,"#78-M Stone for Electrochemical","Whitley, Christopher D",10212,7.4,0,26.4]
["Martin Marietta","Statesville Quarry - Statesville","2016-09-09",825461,"Miscellaneous Material for Electrochemical","Whitley, Christopher D",2408,7.3,0,192]
["Martin Marietta","Thomasville Quarry - Thomasville","2016-03-22",798932,"#57 Stone for Electrochemical","Wallace, Weston G",11218,7.9,0,20.2]
["Martin Marietta","Thomasville Quarry - Thomasville","2016-05-02",800404,"#78-M Stone for Electrochemical","Wallace, Weston G",18477,9.4,4.3,10.199999999999999]
["Martin Marietta","Woodleaf Quarry - Salisbury","2015-08-20",771927,"#78-M Stone for Electrochemical","McLain Jr, Raeford L",23186,8.9,0,0]
["Mathis Quarries, Inc.","Mathis Quarry","2016-05-24",808610,"#57 Stone for Electrochemical","Whitley, Christopher D",17176,9.1,4.3,17.3]
["Maymead Materials, Inc.","Potter's","2016-11-03",833841,"#57 Stone for Electrochemical","Church, Tracy G",15676,8.6,0,0.2]
["McCrary Stone","Low Gap Quarry - Burnsville","2016-10-27",832526,"Screenings - Chemistry Check","Kindley, Wallace Quint",2322,7.6,0,60.4]
["McCrary Stone","Low Gap Quarry - Burnsville","2016-10-27",832511,"#78-M Stone for Electrochemical","Kindley, Wallace Quint",5543,7.8,0,39.799999999999997]
["McCrary Stone","Low Gap Quarry - Burnsville","2016-10-27",832505,"#57 Stone for Electrochemical","Kindley, Wallace Quint",7651,8,0,8.1999999999999993]
["McCrary Stone","Marshall Quarry - Marshall","2016-10-17",830770,"#57 Stone for Electrochemical","Kindley, Wallace Quint",10481,8.9,0,13.7]
["McCrary Stone","Marshall Quarry - Marshall","2016-10-17",830775,"Screenings - Chemistry Check","Kindley, Wallace Quint",5718,8.1,0,36.6]
["McCrary Stone","Marshall Quarry - Marshall","2016-10-17",830773,"#78-M Stone for Electrochemical","Kindley, Wallace Quint",8170,7.9,0,12.7]
["NC Granite Corp.","Mount Airy Quarry - Mount. Airy","2016-03-08",797321,"#57 Stone for Electrochemical","Whitley, Christopher D",24913,7.8,0,6]
["NC Granite Corp.","Mount Airy Quarry - Mount. Airy","2016-03-08",797325,"#78-M Stone for Electrochemical","Whitley, Christopher D",23436,7.9,0,5.2]
["Pounding Mill Quarry","Bluefield Quarry","2016-04-05",800733,"#57 Stone for Electrochemical","Whitley, Christopher D",21432,8.4,0,4.5]
["Pounding Mill Quarry","Bluefield Quarry","2016-04-05",800739,"Miscellaneous Material for Electrochemical","Whitley, Christopher D",9766,8.6999999999999993,8.6,17.5]
["Radford Quarries Of Boone, Inc.","Bamboo Quarry","2016-02-08",793017,"#78-M Stone for Electrochemical","Church, Tracy G",20687,7.5,5,5.2]
["Radford Quarries Of Boone, Inc.","Bamboo Quarry","2016-02-08",793016,"#57 Stone for Electrochemical","Church, Tracy G",19073,7.4,0,6.7]
["Rogers Group, Inc.","Henrietta Quarry","2015-05-20",758512,"#57 Stone for Electrochemical","Towery, Robby D",26978,9.1999999999999993,0,0]
["Rogers Group, Inc.","Henrietta Quarry","2016-02-19",794432,"#57 Stone for Electrochemical","Rhymer, Robert C",24845,7.8,0,4.2]
["Rogers Group, Inc.","Henrietta Quarry","2016-02-19",794434,"#78-M Stone for Electrochemical","Rhymer, Robert C",23618,8.1999999999999993,0,4.0999999999999996]
["Rogers Group, Inc.","Henrietta Quarry","2016-02-19",794436,"Screenings - Chemistry Check","Rhymer, Robert C",7663,8,5.4,24.7]
["Rogers Group, Inc.","Henrietta Quarry","2016-08-15",821774,"#57 Stone for Electrochemical","Towery, Robby D",24832,7.8,0,3.7]
["Rogers Group, Inc.","Mitchell County Stone","2015-03-30",750748,"#57 Stone for Electrochemical","Rhymer, Robert C",52966,7.8,100,200]
["Rogers Group, Inc.","Mitchell County Stone","2015-07-22",767763,"Select Material, Class VI","Radcliff, Roger Keith",50865,7.2,0,0]
["Rogers Group, Inc.","Mitchell County Stone","2016-10-25",832457,"#78-M Stone for Electrochemical","Rhymer, Robert C",42373,8.1,0,0.1]
["Rogers Group, Inc.","Mitchell County Stone","2016-10-25",832455,"#57 Stone for Electrochemical","Rhymer, Robert C",82508,8.1,0,0.4]
["Salem Stone","Cardinal Quarry LLC - Smethport Quarry - West Jefferson","2016-08-02",819961,"#57 Stone for Electrochemical","Church, Tracy G",14002,9.1999999999999993,0,17.3]
["Salem Stone","Cardinal Quarry LLC - Smethport Quarry - West Jefferson","2016-08-02",819962,"#78-M Stone for Electrochemical","Church, Tracy G",7502,8.6999999999999993,0,40.200000000000003]
["Salem Stone","Cardinal Quarry LLC - Smethport Quarry - West Jefferson","2016-08-02",819964,"Miscellaneous Material for Electrochemical","Church, Tracy G",3880,8,0,73]
["Salem Stone","Cardinal Stone-Galax Quarry","2016-03-07",797284,"#57 Stone for Electrochemical","Whitley, Christopher D",14977,7.8,0,5.6]
["Salem Stone","Cardinal Stone-Galax Quarry","2016-03-07",797287,"#78-M Stone for Electrochemical","Whitley, Christopher D",12880,9.1999999999999993,0,5.5]
["Salem Stone","Cardinal Stone-Galax Quarry","2016-03-07",797296,"Miscellaneous Material for Electrochemical","Whitley, Christopher D",4916,9.5,0,28]
["Salem Stone","Southside Materials LLC - Shelton Quarry","2016-02-17",794123,"#57 Stone for Electrochemical","Loshinskiy, Roman",31201,8.6,0,4.8]
["Salem Stone","Southside Materials LLC - Shelton Quarry","2016-02-17",794125,"Screenings - Chemistry Check","Loshinskiy, Roman",23469,8.3000000000000007,0,0]
["Salem Stone","Southside Materials LLC - Shelton Quarry","2016-02-17",794124,"#78-M Stone for Electrochemical","Loshinskiy, Roman",48780,7.3,0,5]
["SC Rock","Goretown Mine","2016-02-03",792514,"Screenings - Chemistry Check","Walker, Steven E",6510,8.1999999999999993,0,37.9]
["Sloan Construction Co.","Blacksburg, SC","2016-11-22",836475,"#57 Stone for Electrochemical","Brinson, Joseph",79114,7.7,0,1.8]
["Sloan Construction Co.","Blacksburg, SC","2016-11-22",836476,"#67 Stone for Electrochemical","Brinson, Joseph",68027,7.4,0,0]
["Sloan Construction Co.","Blacksburg, SC","2016-11-22",836477,"Miscellaneous Material for Electrochemical","Brinson, Joseph",53937,6.9,0,0]
["Sloan Construction Co.","Blacksburg, SC","2016-11-22",836479,"Screenings - Chemistry Check","Brinson, Joseph",19342,5.4,0,8.6999999999999993]
["Standard Conc. Prod., Inc.","Standard Conc. Prod., Inc. - Savannah Plant","2015-05-06",756002,"#67 Stone for Electrochemical","Brule, Jeffrey S",18769,7.6,0,0]
["Standard Conc. Prod., Inc.","Standard Conc. Prod., Inc. - Savannah Plant","2015-07-13",766130,"#67 Stone for Electrochemical","Brule, Jeffrey S",20044,9,0,0]
["The Sunrock Group","Butner Quarry","2016-02-08",793014,"#78-M Stone for Electrochemical","Skinner, III, John L",13416,9.6,0,0]
["The Sunrock Group","Butner Quarry","2016-02-08",793015,"#57 Stone for Electrochemical","Skinner, III, John L",19697,9.1999999999999993,0,0]
["The Sunrock Group","Kittrell Quarry","2016-02-04",792553,"#57 Stone for Electrochemical","Skinner, III, John L",20044,8.6,5,33.1]
["The Sunrock Group","Kittrell Quarry","2016-02-04",792563,"Screenings - Chemistry Check","Skinner, III, John L",9872,7.9,5,67.7]
["The Sunrock Group","Kittrell Quarry","2016-02-04",792558,"#78-M Stone for Electrochemical","Skinner, III, John L",18392,8.6,5,36]
["Thompson Contractors","Miller Creek Q. - Rutherfordton","2016-08-18",821705,"#57 Stone for Electrochemical","Rhymer, Robert C",20678,9.1,0,2.8]
["Thompson Contractors","Miller Creek Q. - Rutherfordton","2016-10-14",830322,"#78-M Stone for Electrochemical","Rhymer, Robert C",22109,8.4,0,0.9]
["Vulcan Materials Co.","115 Quarry - N. Wilkesboro","2016-07-29",819485,"#57 Stone for Electrochemical","Whitley, Christopher D",14470,9.1999999999999993,0,15.9]
["Vulcan Materials Co.","115 Quarry - N. Wilkesboro","2016-07-29",819580,"#78-M Stone for Electrochemical","Whitley, Christopher D",10981,9.1999999999999993,0,24.7]
["Vulcan Materials Co.","115 Quarry - N. Wilkesboro","2016-07-29",819513,"#67 Stone for Electrochemical","Whitley, Christopher D",7746,8.6999999999999993,0,40.9]
["Vulcan Materials Co.","Boone Quarry - Boone","2016-11-03",833828,"#78-M Stone for Electrochemical","Church, Tracy G",35881,7.7,0,1.8]
["Vulcan Materials Co.","Boone Quarry - Boone","2016-11-03",833824,"#57 Stone for Electrochemical","Church, Tracy G",50251,8.3000000000000007,0,0]
["Vulcan Materials Co.","Clear Creek Q. - Charlotte","2016-02-22",794810,"#78-M Stone for Electrochemical","Pegues, Jr., Henderson",21487,9.1,0,6.2]
["Vulcan Materials Co.","Clear Creek Q. - Charlotte","2016-02-22",794809,"#67 Stone for Electrochemical","Pegues, Jr., Henderson",27533,8.8000000000000007,0,4.5999999999999996]
["Vulcan Materials Co.","Clear Creek Q. - Charlotte","2017-02-01",843616,"#78-M Stone for Electrochemical","Pegues, Jr., Henderson",21749,8,0,28.9]
["Vulcan Materials Co.","Clear Creek Q. - Charlotte","2017-02-01",843624,"#67 Stone for Electrochemical","Pegues, Jr., Henderson",25272,8,0,24.7]
["Vulcan Materials Co.","Clear Creek Q. - Charlotte","2017-02-01",843620,"#57 Stone for Electrochemical","Pegues, Jr., Henderson",26954,8.4,0,23.3]
["Vulcan Materials Co.","Enka Quarry","2016-10-10",829644,"#57 Stone for Electrochemical","Rhymer, Robert C",13104,6.7,0,24.7]
["Vulcan Materials Co.","Enka Quarry","2016-10-10",829646,"#78-M Stone for Electrochemical","Rhymer, Robert C",9479,5.2,0,8.6]
["Vulcan Materials Co.","Greystone Quarry - Henderson","2016-02-10",793395,"#78-M Stone for Electrochemical","Skinner, III, John L",23719,8.6999999999999993,0,0.8]
["Vulcan Materials Co.","Greystone Quarry - Henderson","2016-02-10",793394,"#57 Stone for Electrochemical","Skinner, III, John L",24225,8.9,0,0]
["Vulcan Materials Co.","Havre De Grace Q. - Maryland","2016-10-26",832514,"#67 Stone for Electrochemical","Bonds, Maria M",15838,8.3000000000000007,0,3.7]
["Vulcan Materials Co.","Havre De Grace Q. - Maryland","2016-10-26",832499,"#78-M Stone for Electrochemical","Bonds, Maria M",6605,7.9,17.7,7.6]
["Vulcan Materials Co.","Havre De Grace Q. - Maryland","2016-10-26",832493,"Screenings - Chemistry Check","Bonds, Maria M",2755,7.9,17.7,70.5]
["Vulcan Materials Co.","Jack Q. - Petersburg, VA","2016-10-26",832488,"#67 Stone for Electrochemical","Bonds, Maria M",15921,9.5,0,2.1]
["Vulcan Materials Co.","Jack Q. - Petersburg, VA","2016-10-26",832483,"#78-M Stone for Electrochemical","Bonds, Maria M",19763,9,0,1.2]
["Vulcan Materials Co.","Jack Q. - Petersburg, VA","2016-10-26",832475,"Screenings - Chemistry Check","Bonds, Maria M",7880,9,0,12.3]
["Vulcan Materials Co.","Lenior Quarry","2016-06-24",815305,"#57 Stone for Electrochemical","Church, Tracy G",18751,9.1999999999999993,2.1,15]
["Vulcan Materials Co.","Lenior Quarry","2016-06-24",815307,"#78-M Stone for Electrochemical","Church, Tracy G",17443,9.1999999999999993,2.1,15.3]
["Vulcan Materials Co.","Lenior Quarry","2016-06-24",815310,"Miscellaneous Material for Electrochemical","Church, Tracy G",11291,8.5,2.1,25]
["Vulcan Materials Co.","Morganton Quarry","2016-04-21",803453,"#67 Stone for Electrochemical","Ausley, Jeff",22386,7.6,0,6.6]
["Vulcan Materials Co.","Morganton Quarry","2016-04-21",803463,"Screenings - Chemistry Check","Ausley, Jeff",10686,8.5,0,0]
["Vulcan Materials Co.","Morganton Quarry","2016-04-21",803457,"#78-M Stone for Electrochemical","Ausley, Jeff",13410,8.6,0,16.7]
["Vulcan Materials Co.","Morganton Quarry","2016-12-06",838536,"Screenings - Chemistry Check","Ausley, Jeff",7402,7.7,0,26.3]
["Vulcan Materials Co.","North Q. - Winston Salem","2016-03-23",798936,"#57 Stone for Electrochemical","Wallace, Weston G",29586,7.8,0,113.8]
["Vulcan Materials Co.","North Q. - Winston Salem","2016-03-23",798939,"#78-M Stone for Electrochemical","Wallace, Weston G",20812,7.5,0,7.7]
["Vulcan Materials Co.","Penrose Q. - Pisgah Forest","2016-06-14",811081,"#57 Stone for Electrochemical","Wood, D. Michael M",24213,9.1999999999999993,2.1,0.8]
["Vulcan Materials Co.","Penrose Q. - Pisgah Forest","2016-06-14",811085,"#78-M Stone for Electrochemical","Wood, D. Michael M",23354,9,2.1,0.5]
["Vulcan Materials Co.","Penrose Q. - Pisgah Forest","2016-06-14",811091,"Screenings - Chemistry Check","Wood, D. Michael M",14872,8.8000000000000007,2.1,13.2]
["Vulcan Materials Co.","Pineville Quarry","2016-02-24",796026,"#78-M Stone for Electrochemical","Adair, Mildred (Millie) L",12945,7.5,5.4,15.5]
["Vulcan Materials Co.","Pineville Quarry","2016-02-24",796025,"#67 Stone for Electrochemical","Adair, Mildred (Millie) L",19395,7.7,0,8.3000000000000007]
["Vulcan Materials Co.","Pineville Quarry","2016-02-24",796027,"Miscellaneous Material for Electrochemical","Adair, Mildred (Millie) L",5187,7.7,0,76.5]
["Vulcan Materials Co.","Pineville Quarry","2016-10-06",829482,"#57 Stone for Electrochemical","Adair, Mildred (Millie) L",10259,7.4,4.4000000000000004,14.2]
["Vulcan Materials Co.","Pineville Quarry","2016-10-06",829481,"#67 Stone for Electrochemical","Adair, Mildred (Millie) L",9940,7.6,0,19.7]
["Vulcan Materials Co.","Pineville Quarry","2016-10-06",829483,"#78-M Stone for Electrochemical","Adair, Mildred (Millie) L",9099,7.6,4.4000000000000004,20]
["Vulcan Materials Co.","Pineville Quarry","2016-10-06",832586,"Screenings - Chemistry Check","Adair, Mildred (Millie) L",1872,7.6,0,93.3]
["Vulcan Materials Co.","Puddledock Q. - Prince George, VA","2016-10-26",832529,"#78-M Stone for Electrochemical","Bonds, Maria M",43668,7.3,0,3.4]
["Vulcan Materials Co.","Puddledock Q. - Prince George, VA","2016-10-26",832533,"#57 Stone for Electrochemical","Bonds, Maria M",36088,5,0,3.3]
["Vulcan Materials Co.","Rockingham Quarry","2016-06-09",810584,"#78-M Stone for Electrochemical","Tucker, Rusty J",12031,9.4,2.1,12.7]
["Vulcan Materials Co.","Rockingham Quarry","2016-06-09",810585,"#67 Stone for Electrochemical","Tucker, Rusty J",16748,9.3000000000000007,2.1,10.199999999999999]
["Vulcan Materials Co.","Rockingham Quarry","2016-06-09",810587,"#57 Stone for Electrochemical","Tucker, Rusty J",18142,9.3000000000000007,2.1,11.2]
["Vulcan Materials Co.","Skippers Q. - Skippers, VA","2016-02-10",793423,"#67 Stone for Electrochemical","Thomas, Grady Q",24384,8.9,0,0]
["Vulcan Materials Co.","Skippers Q. - Skippers, VA","2016-02-10",793425,"Screenings - Chemistry Check","Thomas, Grady Q",7440,8.9,10,37.700000000000003]
["Vulcan Materials Co.","Skippers Q. - Skippers, VA","2016-02-10",793424,"#78-M Stone for Electrochemical","Thomas, Grady Q",9311,9.6999999999999993,10,6.5]
["Vulcan Materials Co.","Skippers Q. - Skippers, VA","2017-02-07",844774,"Screenings - Chemistry Check","Thomas, Grady Q",5382,7.9,22.1,18]
["Vulcan Materials Co.","Skippers Q. - Skippers, VA","2017-02-07",844601,"#67 Stone for Electrochemical","Thomas, Grady Q",12830,8.8000000000000007,13.3,48.7]
["Vulcan Materials Co.","Skippers Q. - Skippers, VA","2017-02-07",844605,"#78-M Stone for Electrochemical","Thomas, Grady Q",11986,8.3000000000000007,8.9,51]
["Vulcan Materials Co.","Smith Grove Q. - Mocksville","2016-04-26",803857,"#57 Stone for Electrochemical","Wallace, Weston G",22007,8.1,0,7.1]
["Vulcan Materials Co.","Smith Grove Q. - Mocksville","2016-04-26",803858,"#78-M Stone for Electrochemical","Wallace, Weston G",20838,8.5,0,11.7]
["Vulcan Materials Co.","Spruce Pine Q. - Bakersville","2015-07-22",767762,"Select Material, Class VI","Radcliff, Roger Keith",25374,8.1999999999999993,0,0]
["Vulcan Materials Co.","Spruce Pine Q. - Bakersville","2016-10-14",830562,"#78-M Stone for Electrochemical","Ausley, Jeff",16706,8.8000000000000007,0,4.8]
["Vulcan Materials Co.","Spruce Pine Q. - Bakersville","2016-10-14",830560,"#57 Stone for Electrochemical","Ausley, Jeff",19387,6.7,0,4.8]
["Vulcan Materials Co.","Spruce Pine Q. - Bakersville","2016-12-06",838537,"Screenings - Chemistry Check","Ausley, Jeff",4955,7,0,48]
["Vulcan Materials Co.","Stokesdale Quarry","2016-03-03",796398,"#67 Stone for Electrochemical","Fosque, Robert W",24600,9,0,5.0999999999999996]
["Vulcan Materials Co.","Stokesdale Quarry","2016-03-03",796410,"Screenings - Chemistry Check","Fosque, Robert W",24661,8.5,0,4.8]
["Vulcan Materials Co.","Stokesdale Quarry","2016-03-03",796401,"#78-M Stone for Electrochemical","Fosque, Robert W",23635,8.4,0,6]
["Vulcan Materials Co.","Stokesdale Quarry","2016-03-03",796400,"#57 Stone for Electrochemical","Fosque, Robert W",28769,8.8000000000000007,0,4.5]
["Wake Stone Corp.","Knightdale","2016-02-09",793147,"#78-M Stone for Electrochemical","Skinner, III, John L",26738,8.6,0,3.4]
["Wake Stone Corp.","Knightdale","2016-02-09",793146,"#57 Stone for Electrochemical","Skinner, III, John L",23463,8.9,0,0.9]
["Wake Stone Corp.","Nash County","2016-03-11",797387,"#78-M Stone for Electrochemical","Raines, James R",18450,7.6,0,8.5]
["Wake Stone Corp.","Nash County","2016-03-11",797386,"#57 Stone for Electrochemical","Raines, James R",24746,8,0,4.5]
["Wake Stone Corp.","Triangle Q. - Cary","2016-02-12",793927,"#78-M Stone for Electrochemical","Skinner, III, John L",21538,9.1,0,4.4000000000000004]
["Wake Stone Corp.","Triangle Q. - Cary","2016-02-12",793925,"#57 Stone for Electrochemical","Skinner, III, John L",24631,7.7,5,4]
[null,null,"2015-09-21",776486,"#57 Stone for Electrochemical","Wagoner, Roy M",20725,7.9,0,300]
[null,null,"2016-02-19",794308,"#67 Stone for Electrochemical","Rhymer, Robert C",21584,8.8000000000000007,0,7]
[null,null,"2016-07-27",818283,"#67 Stone for Electrochemical","Maynard, William T.",17483,9.3000000000000007,2.1,19.3]
[null,null,"2016-12-13",838640,"Screenings - Chemistry Check","Rhymer, Robert C",1763,4.9000000000000004,0,93.9]
[null,null,"2016-12-12",838362,"Screenings - Chemistry Check","Rhymer, Robert C",11157,7.1,0,22.6]
[null,null,"2016-12-13",838641,"Screenings - Chemistry Check","Rhymer, Robert C",197161,6.8,0,1.6]
[]
[]
[]
[]
[]
[]
[]
[]
[]
[]
[]
[]
[]
[]
[]
[]
[]
[]
[]
[]
[]
[]
[]
[]
[]
[]
[]
[]
[]
[]
[]
[]
[]
[]
[]
[]
[]
[]
[]
[]
[]
[]
[]
[]
[]
[]
[]
[]
[]
[]
[]
[]
[]
[]
[]
[]
[]
[]
[]
[]
[]
[]
[]
[]
[]
[]
[]
[]
[]
[]
[]
[]
[]
[]
[]
[]
[]
[]
[]
[]
[]
[]
[]
[]
[]
[]
[]
[]
[]
[]
[]
[]
[]
[]
[]
[]
[]
[]
[]
[]
[]
[]
[]
[]
[]
[]
[]
[]
[]
[]
[]
[]
[]
[]
[]
[]
[]
[]
[]
[]
[]
[]
[]
[]
[]
[]
[]
[]
[]
[]
[]
[]
[]
[]
[]
[]
[]
[]
[]
[]
[]
[]
[]
[]
[]
[]
[]
[]
[]
[]
[]
[]
[]
[]
[]
[]
[]
[]
[]
[]
[]
[]
[]
[]
[]
[]
[]
[]
[]
[]
[]
[]
[]
[]
[]
[]
[]
[]
[]
[]
[]
[]
[]
[]
[]
[]
[]
[]
[]
[]
[]
[]
[]
[]
[]
[]
[]
[]
[]
[]
[]
[]
[]
[]
[]
[]
[]
[]
[]
[]
[]
[]
[]
[]
[]
[]
[]
[]
[]
[]
[]
[]
[]
[]
[]
[]
[]
[]
[]
[]
[]
[]
[]
[]
[]
[]
[]
[]
[]
[]
[]
[]
[]
[]
[]
[]
[]
[]
[]
[]
[]
[]
[]
[]
[]
[]
[]
[]
[]
[]
[]
[]
[]
[]
[]
[]
[]
[]
[]
[]
[]
[]
[]
[]
[]
[]
[]
[]
[]
[]
[]
[]
[]
[]
[]
[]
[]
[]
[]
[]
[]
[]
[]
[]
[]
[]
[]
[]
[]
[]
[]
[]
[]
[]
[]
[]
[]
[]
[]
[]
[]
[]
[]
[]
[]
[]
[]
[]
[]
[]
[]
[]
[]
[]
[]
[]
[]
[]
[]
[]
[]
[]
[]
[]
[]
[]
[]
[]
[]
[]
[]
[]
[]
[]
[]
[]
[]
[]
[]
[]
[]
[]
[]
[]
[]
[]
[]
[]
[]
[]
[]
[]
[]
[]
[]
[]
[]
[]
[]
[]
[]
[]
[]
[]
[]
[]
[]
[]
[]
[]
[]
[]
[]
[]
[]
[]
[]
[]
[]
[]
[]
[]
[]
[]
[]
[]
[]
[]
[]
[]
[]
[]
[]
[]
[]
[]
[]
[]
[]
[]
[]
[]
[]
[]
[]
[]
[]
[]
[]
[]
[]
[]
[]
[]
[]
[]
[]
[]
[]
[]
[]
[]
[]
[]
[]
[]
[]
[]
[]
[]
[]
[]
[]
[]
[]
[]
[]
[]
[]
[]
[]
[]
[]
[]
[]
[]
[]
[]
[]
[]
[]
[]
[]
[]
[]
[]
[]
[]
[]
[]
[]
[]
[]
[]
[]
[]
[]
[]
[]
[]
[]
[]
[]
[]
[]
[]
[]
[]
[]
[]
[]
[]
[]
[]
[]
[]
[]
[]
[]
[]
[]
[]
[]
[]
[]
[]
[]
[]
[]
[]
[]
[]
[]
[]
[]
[]
[]
[]
[]
[]
[]
[]
[]
[]
[]
[]
[]
[]
[]
[]
[]
[]
[]
[]
[]
[]
[]
[]
[]
[]
[]
[]
[]
[]
[]
[]
[]
[]
[]
[]
[]
[]
[]
[]
[]
[]
[]
[]
[]
[]
[]
[]
[]
[]
[]
[]
[]
[]
[]
[]
[]
[]
[]
[]
[]
[]
[]
[]
[]
[]
[]
[]
[]
[]
[]
[]
[]
[]
[]
[]
[]
[]
[]
[]
[]
[]
[]
[]
[]
[]
[]
[]
[]
[]
[]
[]
[]
[]
[]
[]
[]
[]
[]
[]
[]
[]
[]
[]
[]
[]
[]
[]
[]
[]
[]
[]
[]
[]
[]
[]
[]
[]
[]
[]
[]
[]
[]
[]
[]
[]
[]
[]
[]
[]
[]
[]
[]
[]
[]
[]
[]
[]
[]
[]
[]
[]
[]
[]
[]
[]
[]
[]
[]
[]
[]
[]
[]
[]
[]
[]
[]
[]
[]
[]
[]
[]
[]
[]
[]
[]
[]
[]
[]
[]
[]
[]
[]
[]
[]
[]
[]
[]
[]
[]
[]
[]
[]
[]
[]
[]
[]
[]
[]
[]
[]
[]
[]
[]
[]
[]
[]
[]
[]
[]
[]
[]
[]
[]
[]
[]
[]
[]
[]
[]
[]
[]
[]
[]
[]
[]
[]
[]
[]
[]
[]
[]
[]
[]
[]
[]
[]
[]
[]
[]
[]
[]
[]
[]
[]
[]
[]
[]
[]
[]
[]
[]
[]
[]
[]
[]
[]
[]
[]
[]
[]
[]
[]
[]
[]
[]
[]
[]
[]
[]
[]
[]
[]
[]
[]
[]
[]
[]
[]
[]
[]
[]
[]
[]
[]
[]
[]
[]
[]
[]
[]
[]
[]
[]
[]
[]
[]
[]
[]
[]
[]
[]
[]
[]
[]
[]
[]
[]
[]
[]
[]
[]
[]
[]
[]
[]
[]
[]
[]
[]
[]
[]
[]
[]
[]
[]
[]
[]
[]
[]
[]
[]
[]
[]
[]
[]
[]
[]
[]
[]
[]
[]
[]
[]
[]
[]
[]
[]
[]
[]
[]
[]
[]
[]
[]
[]
[]
[]
[]
[]
[]
[]
[]
[]
[]
[]
[]
[]
[]
[]
[]
[]
[]
[]
[]
[]
[]
[]
[]
[]
[]
[]
[]
[]
[]
[]
[]
[]
[]
[]
[]
[]
[]
[]
[]
[]
[]
[]
[]
[]
[]
[]
[]
[]
[]
[]
[]
[]
[]
[]
[]
[]
[]
[]
[]
[]
[]
[]
[]
[]
[]
[]
[]
[]
[]
[]
[]
[]
[]
[]
[]
[]
[]
[]
[]
[]
[]
[]
[]
[]
[]
[]
[]
[]
[]
[]
[]
[]
[]
[]
[]
[]
[]
[]
[]
[]
[]
[]
[]
[]
[]
[]
[]
[]
[]
[]
[]
[]
[]
[]
[]
[]
[]
[]
[]
[]
[]
[]
[]
[]
[]
[]
[]
[]
[]
[]
[]
[]
[]
[]
[]
[]
[]
[]
[]
[]
[]
[]
[]
[]
[]
[]
[]
[]
[]
[]
[]
[]
[]
[]
[]
[]
[]
[]
[]
[]
[]
[]
[]
[]
[]
[]
[]
[]
[]
[]
[]
[]
[]
[]
[]
[]
[]
[]
[]
[]
[]
[]
[]
[]
[]
[]
[]
[]
[]
[]
[]
[]
[]
[]
[]
[]
[]
[]
[]
[]
[]
[]
[]
[]
[]
[]
[]
[]
[]
[]
[]
[]
[]
[]
[]
[]
[]
[]
[]
[]
[]
[]
[]
[]
[]
[]
[]
[]
[]
[]
[]
[]
[]
[]
[]
[]
[]
[]
[]
[]
[]
[]
[]
[]
[]
[]
[]
[]
[]
[]
[]
[]
[]
[]
[]
[]
[]
[]
[]
[]
[]
[]
[]
[]
[]
[]
[]
[]
[]
[]
[]
[]
[]
[]
[]
[]
[]
[]
[]
[]
[]
[]
[]
[]
[]
[]
[]
[]
[]
[]
[]
[]
[]
[]
[]
[]
[]
[]
[]
[]
[]
[]
[]
[]
[]
[]
[]
[]
[]
[]
[]
[]
[]
[]
[]
[]
[]
[]
[]
[]
[]
[]
[]
[]
[]
[]
[]
[]
[]
[]
[]
[]
[]
[]
[]
[]
[]
[]
[]
[]
[]
[]
[]
[]
[]
[]
[]
[]
[]
[]
[]
[]
[]
[]
[]
[]
[]
[]
[]
[]
[]
[]
[]
[]
[]
[]
[]
[]
[]
[]
[]
[]
[]
[]
[]
[]
[]
[]
[]
[]
[]
[]
[]
[]
[]
[]
[]
[]
[]
[]
[]
[]
[]
[]
[]
[]
[]
[]
[]
[]
[]
[]
[]
[]
[]
[]
[]
[]
[]
[]
[]
[]
[]
[]
[]
[]
[]
[]
[]
[]
[]
[]
[]
[]
[]
[]
[]
[]
[]
[]
[]
[]
[]
[]
[]
[]
[]
[]
[]
[]
[]
[]
[]
[]
[]
[]
[]
[]
[]
[]
[]
[]
[]
[]
[]
[]
[]
[]
[]
[]
[]
[]
[]
[]
[]
[]
[]
[]
[]
[]
[]
[]
[]
[]
[]
[]
[]
[]
[]
[]
[]
[]
[]
[]
[]
[]
[]
[]
[]
[]
[]
[]
[]
[]
[]
[]
[]
[]
[]
[]
[]
[]
[]
[]
[]
[]
[]
[]
[]
[]
[]
[]
[]
[]
[]
[]
[]
[]
[]
[]
[]
[]
[]
[]
[]
[]
[]
[]
[]
[]
[]
[]
[]
[]
[]
[]
[]
[]
[]
[]
[]
[]
[]
[]
[]
[]
[]
[]
[]
[]
[]
[]
[]
[]
[]
[]
[]
[]
[]
[]
[]
[]
[]
[]
[]
[]
[]
[]
[]
[]
[]
[]
[]
[]
[]
[]
[]
[]
[]
[]
[]
[]
[]
[]
[]
[]
[]
[]
[]
[]
[]
[]
[]
[]
[]
[]
[]
[]
[]
[]
[]
[]
[]
[]
[]
[]
[]
[]
[]
[]
[]
[]
[]
[]
[]
[]
[]
[]
[]
[]
[]
[]
[]
[]
[]
[]
[]
[]
[]
[]
[]
[]
[]
[]
[]
[]
[]
[]
[]
[]
[]
[]
[]
[]
[]
[]
[]
[]
[]
[]
[]
[]
[]
[]
[]
[]
[]
[]
[]
[]
[]
[]
[]
[]
[]
[]
[]
[]
[]
[]
[]
[]
[]
[]
[]
[]
[]
[]
[]
[]
[]
[]
[]
[]
[]
[]
[]
[]
[]
[]
[]
[]
[]
[]
[]
[]
[]
[]
[]
[]
[]
[]
[]
[]
[]
[]
[]
[]
[]
[]
[]
[]
[]
[]
[]
[]
[]
[]
[]
[]
[]
[]
[]
[]
[]
[]
[]
[]
[]
[]
[]
[]
[]
[]
[]
[]
[]
[]
[]
[]
[]
[]
[]
[]
[]
[]
[]
[]
[]
[]
[]
[]
[]
[]
[]
[]
[]
[]
[]
[]
[]
[]
[]
[]
[]
[]
[]
[]
[]
[]
[]
[]
[]
[]
[]
[]
[]
[]
[]
[]
[]
[]
[]
[]
[]
[]
[]
[]
[]
[]
[]
[]
[]
[]
[]
[]
[]
[]
[]
[]
[]
[]
[]
[]
[]
[]
[]
[]
[]
[]
[]
[]
[]
[]
[]
[]
[]
[]
[]
[]
[]
[]
[]
[]
[]
[]
[]
[]
[]
[]
[]
[]
[]
[]
[]
[]
[]
[]
[]
[]
[]
[]
[]
[]
[]
[]
[]
[]
[]
[]
[]
[]
[]
[]
[]
[]
[]
[]
[]
[]
[]
[]
[]
[]
[]
[]
[]
[]
[]
[]
[]
[]
[]
[]
[]
[]
[]
[]
[]
[]
[]
[]
[]
[]
[]
[]
[]
[]
[]
[]
[]
[]
[]
[]
[]
[]
[]
[]
[]
[]
[]
[]
[]
[]
[]
[]
[]
[]
[]
[]
[]
[]
[]
[]
[]
[]
[]
[]
[]
[]
[]
[]
[]
[]
[]
[]
[]
[]
[]
[]
[]
[]
[]
[]
[]
[]
[]
[]
[]
[]
[]
[]
[]
[]
[]
[]
[]
[]
[]
[]
[]
[]
[]
[]
[]
[]
[]
[]
[]
[]
[]
[]
[]
[]
[]
[]
[]
[]
[]
[]
[]
[]
[]
[]
[]
[]
[]
[]
[]
[]
[]
[]
[]
[]
[]
[]
[]
[]
[]
[]
[]
[]
[]
[]
[]
[]
[]
[]
[]
[]
[]
[]
[]
[]
[]
[]
[]
[]
[]
[]
[]
[]
[]
[]
[]
[]
[]
[]
[]
[]
[]
[]
[]
[]
[]
[]
[]
[]
[]
[]
[]
[]
[]
[]
[]
[]
[]
[]
[]
[]
[]
[]
[]
[]
[]
[]
[]
[]
[]
[]
[]
[]
[]
[]
[]
[]
[]
[]
[]
[]
[]
[]
[]
[]
[]
[]
[]
[]
[]
[]
[]
[]
[]
[]
[]
[]
[]
[]
[]
[]
[]
[]
[]
[]
[]
[]
[]
[]
[]
[]
[]
[]
[]
[]
[]
[]
[]
[]
[]
[]
[]
[]
[]
[]
[]
[]
[]
[]
[]
[]
[]
[]
[]
[]
[]
[]
[]
[]
[]
[]
[]
[]
[]
[]
[]
[]
[]
[]
[]
[]
[]
[]
[]
[]
[]
[]
[]
[]
[]
[]
[]
[]
[]
[]
[]
[]
[]
[]
[]
[]
[]
[]
[]
[]
[]
[]
[]
[]
[]
[]
[]
[]
[]
[]
[]
[]
[]
[]
[]
[]
[]
[]
[]
[]
[]
[]
[]
[]
[]
[]
[]
[]
[]
[]
[]
[]
[]
[]
[]
[]
[]
[]
[]
[]
[]
[]
[]
[]
[]
[]
[]
[]
[]
[]
[]
[]
[]
[]
[]
[]
[]
[]
[]
[]
[]
[]
[]
[]
[]
[]
[]
[]
[]
[]
[]
[]
[]
[]
[]
[]
[]
[]
[]
[]
[]
[]
[]
[]
[]
[]
[]
[]
[]
[]
[]
[]
[]
[]
[]
[]
[]
[]
[]
[]
[]
[]
[]
[]
[]
[]
[]
[]
[]
[]
[]
[]
[]
[]
[]
[]
[]
[]
[]
[]
[]
[]
[]
[]
[]
[]
[]
[]
[]
[]
[]
[]
[]
[]
[]
[]
[]
[]
[]
[]
[]
[]
[]
[]
[]
[]
[]
[]
[]
[]
[]
[]
[]
[]
[]
[]
[]
[]
[]
[]
[]
[]
[]
[]
[]
[]
[]
[]
[]
[]
[]
[]
[]
[]
[]
[]
[]
[]
[]
[]
[]
[]
[]
[]
[]
[]
[]
[]
[]
[]
[]
[]
[]
[]
[]
[]
[]
[]
[]
[]
[]
[]
[]
[]
[]
[]
[]
[]
[]
[]
[]
[]
[]
[]
[]
[]
[]
[]
[]
[]
[]
[]
[]
[]
[]
[]
[]
[]
[]
[]
[]
[]
[]
[]
[]
[]
[]
[]
[]
[]
[]
[]
[]
[]
[]
[]
[]
[]
[]
[]
[]
[]
[]
[]
[]
[]
[]
[]
[]
[]
[]
[]
[]
[]
[]
[]
[]
[]
[]
[]
[]
[]
[]
[]
[]
[]
[]
[]
[]
[]
[]
[]
[]
[]
[]
[]
[]
[]
[]
[]
[]
[]
[]
[]
[]
[]
[]
[]
[]
[]
[]
[]
[]
[]
[]
[]
[]
[]
[]
[]
[]
[]
[]
[]
[]
[]
[]
[]
[]
[]
[]
[]
[]
[]
[]
[]
[]
[]
[]
[]
[]
[]
[]
[]
[]
[]
[]
[]
[]
[]
[]
[]
[]
[]
[]
[]
[]
[]
[]
[]
[]
[]
[]
[]
[]
[]
[]
[]
[]
[]
[]
[]
[]
[]
[]
[]
[]
[]
[]
[]
[]
[]
[]
[]
[]
[]
[]
[]
[]
[]
[]
[]
[]
[]
[]
[]
[]
[]
[]
[]
[]
[]
[]
[]
[]
[]
[]
[]
[]
[]
[]
[]
[]
[]
[]
[]
[]
[]
[]
[]
[]
[]
[]
[]
[]
[]
[]
[]
[]
[]
[]
[]
[]
[]
[]
[]
[]
[]
[]
[]
[]
[]
[]
[]
[]
[]
[]
[]
[]
[]
[]
[]
[]
[]
[]
[]
[]
[]
[]
[]
[]
[]
[]
[]
[]
[]
[]
[]
[]
[]
[]
[]
[]
[]
[]
[]
[]
[]
[]
[]
[]
[]
[]
[]
[]
[]
[]
[]
[]
[]
[]
[]
[]
[]
[]
[]
[]
[]
[]
[]
[]
[]
[]
[]
[]
[]
[]
[]
[]
[]
[]
[]
[]
[]
[]
[]
[]
[]
[]
[]
[]
[]
[]
[]
[]
[]
[]
[]
[]
[]
[]
[]
[]
[]
[]
[]
[]
[]
[]
[]
[]
[]
[]
[]
[]
[]
[]
[]
[]
[]
[]
[]
[]
[]
[]
[]
[]
[]
[]
[]
[]
[]
[]
[]
[]
[]
[]
[]
[]
[]
[]
[]
[]
[]
[]
[]
[]
[]
[]
[]
[]
[]
[]
[]
[]
[]
[]
[]
[]
[]
[]
[]
[]
[]
[]
[]
[]
[]
[]
[]
[]
[]
[]
[]
[]
[]
[]
[]
[]
[]
[]
[]
[]
[]
[]
[]
[]
[]
[]
[]
[]
[]
[]
[]
[]
[]
[]
[]
[]
[]
[]
[]
[]
[]
[]
[]
[]
[]
[]
[]
[]
[]
[]
[]
[]
[]
[]
[]
[]
[]
[]
[]
[]
[]
[]
[]
[]
[]
[]
[]
[]
[]
[]
[]
[]
[]
[]
[]
[]
[]
[]
[]
[]
[]
[]
[]
[]
[]
[]
[]
[]
[]
[]
[]
[]
[]
[]
[]
[]
[]
[]
[]
[]
[]
[]
[]
[]
[]
[]
[]
[]
[]
[]
[]
[]
[]
[]
[]
[]
[]
[]
[]
[]
[]
[]
[]
[null,null,"3801-05-26"]

{"sheet":"CHEMSAND","index":5,"n_rows":68,"n_cols":10,"rows_kept":68,"cut":false,"hidden":true,"merged":[]}
["Producer Name","Location","Sample Date","Sample ID","Material Description","Sampled By","Resistivity [ohm-cm]:","pH","Chloride [ppm]:","Sulfate [ppm]:"]
["American Materials Co., LLC","Bailey Mine","2015-05-04",756586,"Sand, 2S - Chemistry Check","Russell, Jonathan T",79491,6.8,0,0]
["American Materials Co., LLC","Bailey Mine","2015-05-05",756587,"Sand, 2S - Chemistry Check","Russell, Jonathan T",81967,5.0999999999999996,0,0]
["American Materials Co., LLC","Bailey Mine","2015-06-17",763246,"Sand, 2S - Chemistry Check","Russell, Jonathan T",49432,6,0,0]
["American Materials Co., LLC","Bailey Mine","2015-07-16",766765,"Sand, 2S - Chemistry Check","Russell, Jonathan T",52521,5.8,0,200]
["American Materials Co., LLC","Bailey Mine","2015-08-24",773443,"Sand, 2S - Chemistry Check","Russell, Jonathan T",69013,6.2,0,0]
["American Materials Co., LLC","Bailey Mine","2015-08-26",773446,"Sand, 2S - Chemistry Check","Russell, Jonathan T",60132,5.7,0,0]
["American Materials Co., LLC","Bailey Mine","2015-08-27",773447,"Sand, 2S - Chemistry Check","Russell, Jonathan T",60350,5.4,0,0]
["American Materials Co., LLC","Dupree Mine","2016-03-29",799594,"Sand, 2S - Chemistry Check","Cobb, James R",21245,4.8,0,16.3]
["American Materials Co., LLC","Wade Pit","2016-05-10",805958,"Sand, 2S - Chemistry Check","Murphy, Billy J",91075,5.8,0,7.3]
["APAC-Atlantic - Thompson-Arthur","Candor Pit","2016-02-19",794457,"Sand, 2S - Chemistry Check","Jackson, Brandon M",126183,6.7,0,5]
["B.E. Singleton & Sons, Inc.","Talley-Whichard Pitt","2016-06-13",810903,"Sand, 2S - Chemistry Check","Cobb, James R",109613,6.8,2.1,15.1]
["Bent River Materials","Bent River Pit","2016-06-08",810508,"Sand, 2S - Chemistry Check","Thomas, Grady Q",45393,6.4,2.1,14.8]
["Best Sand & Gravel, Inc.","Brooks Pit","2016-04-07",801024,"Sand, 2S - Chemistry Check","Raines, James R",16537,7.3,0,0]
["Boxley Concrete Products of Va","Fieldale Quarry - Martinsville","2016-02-17",794066,"Sand, 2MS - Chemistry Check","Westmoreland, Braxton J",6061,7.7,0,57.1]
["Buckhorn Materials","Black Creek Sand Mine","2016-03-22",798885,"Sand, 2MS","Jordan, Daniel H",127113,7.4,0,11.2]
["Buckhorn Materials","Lynches River Quarry","2016-02-11",793639,"Sand, 2MS - Chemistry Check","Jordan, Daniel H",23154,7.3,0,9.1999999999999993]
["Carolina Sand","Burke County Pit","2016-12-14",839021,"Sand, 2S - Chemistry Check","Ausley, Jeff",35486,6.7,0,4.5999999999999996]
["Commercial Ready Mix Products","Newsome Pit #2","2016-06-10",810907,"Sand, 2S - Chemistry Check","Thomas, Grady Q",47103,5.0999999999999996,2.1,16.100000000000001]
["Dawson Contracting Inc","Ashley Heights Sand","2016-02-03",792505,"Sand, 2S - Chemistry Check","Jordan, Daniel H",90498,6.5,0,6.9]
["G.S. Materials","Blue Water Sand & Gravel - Mill Creek Pit","2016-04-15",803132,"Sand, 2S - Chemistry Check","Raines, James R",46729,4.9000000000000004,0,8]
["G.S. Materials","Emery Pit","2016-04-15",802369,"Sand, 2S - Chemistry Check","Jackson, Brandon M",73529,6.8,0,4.2]
["G.S. Materials","Hall Pit - Lemon Springs","2016-03-08",796684,"Sand, 2S - Chemistry Check","Murphy, Billy J",117385,5.4,0,6.1]
["Hanson Aggregates Southeast Inc.","Brewer Pit (Pageland #1)","2016-02-10",793426,"Sand, 2MS - Chemistry Check","Jordan, Daniel H",63052,7.3,0,9.5]
["Hanson Aggregates Southeast Inc.","Marlboro Plant - Bennettsville","2016-02-19",794731,"Sand, 2S - Chemistry Check","Jordan, Daniel H",109565,4.8,0,4.2]
["Hanson Aggregates Southeast Inc.","Neverson Q. - Bailey","2016-03-15",798235,"Sand, 2MS - Chemistry Check","Raines, James R",25867,7.9,0,4.5]
["Hanson Aggregates Southeast Inc.","Rocky Mount #2 Q.","2016-04-14",802199,"Sand, 2MS - Chemistry Check","Raines, James R",19135,8.4,0,38.799999999999997]
["Hanson Aggregates Southeast Inc.","Rougemont Quarry","2016-02-16",793937,"Sand, 2MS - Chemistry Check","Skinner, III, John L",19128,8.3000000000000007,0,9.8000000000000007]
["Hanson Aggregates Southeast Inc.","Sandy Flats Quarry","2016-12-14",839146,"Sand, 2MS - Chemistry Check","Wood, D. Michael M",14616,7.8,0,5.6]
["Hedrick industries","Lake Norman Quarry","2016-12-13",838936,"Sand, 2MS - Chemistry Check","Kindley, Wallace Quint",10284,8.5,0,3.8]
["Hedrick industries","Leasees of B.V. Hedrick Gravel & Sand Co.","2016-03-24",799231,"Sand, 2S - Chemistry Check","Jackson, Brandon M",185254,7.2,0,6.2]
["Hedrick industries","Piedmont/Pageland SC Pit #3","2016-03-18",798283,"Sand, 2MS","Jordan, Daniel H",25530,6.8,0,12.8]
["LBM Industries","Whitewater Falls Quarry - Sapphire","2016-05-24",808253,"Sand, 2MS - Chemistry Check","Wood, D. Michael M",12303,7.9,2.1,24.8]
["MAR MAC Sand and Gravel, LLC","MAR MAC Sand and Gravel","2016-04-15",803130,"Sand, 2S - Chemistry Check","Raines, James R",1812,3.1,8.6,146]
["Martin Marietta","Arrowood Quarry - Charlotte","2016-12-06",837865,"Sand, 2MS - Chemistry Check","Adair, Mildred (Millie) L",3339,7.3,8.9,8.5]
["Martin Marietta","Bonds Quarry - Concord","2016-09-19",826548,"Sand, 2MS - Chemistry Check","Pegues, Jr., Henderson",3953,7.3,0,103.2]
["Martin Marietta","Charlotte Quarry - Charlotte","2016-09-08",825585,"Sand, 2MS - Chemistry Check","Adair, Mildred (Millie) L",6112,7.5,0,50.7]
["Martin Marietta","Clarks Quarry - New Bern","2016-08-03",819242,"Sand, 2MS - Chemistry Check","Maynard, William T.",932,7.4,0,612]
["Martin Marietta","Denver Quarry - Denver","2016-12-20",839463,"Sand, 2MS - Chemistry Check","Brinson, Joseph",2731,7.7,0,74]
["Martin Marietta","Denver Quarry - Denver","2017-02-06",844563,"Sand, 2MS - Chemistry Check","Brinson, Joseph",6693,7.3,0,92]
["Martin Marietta","Franklin Co. Quarry","2016-02-12",793726,"Sand, 2MS - Chemistry Check","Skinner, III, John L",14188,7.8,0,10.8]
["Martin Marietta","Garner Quarry - Garner","2016-02-09",793219,"Sand, 2MS - Chemistry Check","Skinner, III, John L",18765,8.1999999999999993,5,2.4]
["Martin Marietta","Loamy Sand and Gravel","2016-02-05",793009,"Sand, 2S - Chemistry Check","Jordan, Daniel H",94967,5.0999999999999996,5,2.1]
["Martin Marietta","Mallard Creek Quarry - Charlotte","2016-02-22",794786,"Sand, 2MS - Chemistry Check","Pegues, Jr., Henderson",18875,8.8000000000000007,0,4.2]
["Martin Marietta","Mallard Creek Quarry - Charlotte","2016-11-01",832986,"Sand, 2MS - Chemistry Check","Pegues, Jr., Henderson",12887,9.1,0,3.5]
["Martin Marietta","Matthews Quarry - Matthews","2015-11-12",783957,"Sand, 2MS - Chemistry Check","Adair, Mildred (Millie) L",3383,7.6,5,300]
["Martin Marietta","Pomona Quarry - Greensboro","2016-02-04",792603,"Sand, 2MS - Chemistry Check","Westmoreland, Braxton J",24498,9.1,0,27.3]
["Matthews Sand and Gravel","Matthews 3 Pit","2016-04-05",801023,"Sand, 2S - Chemistry Check","Raines, James R",71531,7.3,0,0]
["Mid-East Services, Inc.","Howell Woods Pit","2016-04-05",801022,"Sand, 2S - Chemistry Check","Raines, James R",87108,7.4,0,5.2]
["Neuse Sand And Gravel","Tilghman Pit","2016-02-11",793688,"Sand, 2S - Chemistry Check","Cobb, James R",19829,4.4000000000000004,0,14.3]
["Oldcastle Stone Products - Bonsal Mining","Lilesville Pit","2016-03-23",799217,"Sand, 2S","Jackson, Brandon M",139121,6.8,0,6.1]
["Pea Creek Mines","Pea Creek Mines","2016-02-09",793199,"Sand, 2S - Chemistry Check","Cobb, James R",11682,3.9,0,18.5]
["PGS Aggregates, LLC","Great Pit","2016-04-18",803141,"Sand, 2S - Chemistry Check","Raines, James R",49727,5.0999999999999996,0,7.1]
["Stony Creek Sand and Gravel, LLC","Stony Creek Sand and Gravel","2016-04-22",803774,"Sand, 2S - Chemistry Check","Raines, James R",8210,4.0999999999999996,4.3,31.3]
["The Sunrock Group","Butner Quarry","2016-02-08",793012,"Sand, 2MS - Chemistry Check","Skinner, III, John L",7930,10,0,9]
["Thomas Cement Inc.","Simpson Mine","2016-02-05",793008,"Sand, 2S - Chemistry Check","Jordan, Daniel H",68540,5.0999999999999996,5,1.7]
["Vulcan Materials Co.","Greystone Quarry - Henderson","2016-02-10",793398,"Sand, 2MS - Chemistry Check","Skinner, III, John L",14501,8.5,0,10.9]
["Vulcan Materials Co.","North Q. - Winston Salem","2016-03-23",798945,"Sand, 2MS - Chemistry Check","Wallace, Weston G",24278,8,0,7.1]
["Vulcan Materials Co.","Puddledock Q. - Prince George, VA","2016-10-26",832522,"Sand, 2S - Chemistry Check","Bonds, Maria M",48146,4.7,0,0]
["Vulcan Materials Co.","Rockingham Quarry","2016-06-09",810588,"Sand, 2MS - Chemistry Check","Tucker, Rusty J",9407,8.9,2.1,16.7]
["Vulcan Materials Co.","Smith Grove Q. - Mocksville","2016-04-26",803859,"Sand, 2MS - Chemistry Check","Wallace, Weston G",6254,6.2,0,49]
["Vulcan Materials Co.","Spruce Pine Q. - Bakersville","2015-08-11",770808,"Sand, 2MS - Chemistry Check","Rhymer, Robert C",931966,7.2,0,300]
["Wade Moore Equip. Co.","Fleming Sand Pit","2016-02-04",792780,"Sand, 2S - Chemistry Check","Skinner, III, John L",92678,6.8,0,7.1]
["Wake Stone Corp.","Knightdale","2016-02-09",793144,"Sand, 2MS - Chemistry Check","Skinner, III, John L",13198,8.9,5,8.9]
["Wake Stone Corp.","Nash County","2016-03-11",797388,"Sand, 2MS - Chemistry Check","Raines, James R",8361,8.5,0,12.1]
["Weeks Sand Company","Weeks Sand #3","2016-03-08",796682,"Sand, 2S - Chemistry Check","Murphy, Billy J",62344,5.2,0,5.0999999999999996]
["Westside Minerals LLC","Dempsey Wood Pit","2016-07-27",818140,"Sand, 2S - Chemistry Check","Cobb, James R",4955,3.9,12.9,65.8]
[null,null,"2016-02-19",794310,"Sand, 2MS - Chemistry Check","Rhymer, Robert C",22207,8.1,0,8.8000000000000007]